{"text_format":"1","workbook":"xlsx","n_sheets":6,"sheets":["Gestion des Livres","Science 1-23","Histoire 1-30","Histoire 31-40","Géographie 1-13","Ordre de sortie"],"not_rendered":{"charts":0,"images":0,"macros":1,"external_links":0,"defined_names":2,"comments":0,"pivot_tables":0},"unopened":[],"bounds":{"document_bytes":16777216,"sheet_cells":100000,"rows_first":2000,"rows_last":500,"rows_between":2000,"halvings":0,"cell_chars":16384,"cell_head_chars":4096},"cells_cut":0,"cells_raw":0,"read":"whole","date_system":"1900"}

{"sheet":"Gestion des Livres","index":0,"n_rows":790,"n_cols":16,"rows_kept":790,"cut":false,"hidden":false,"merged":[[3,12,428,12],[0,8,0,10],[3,20,3,21],[0,0,0,1],[0,14,2,14],[3,0,25,0],[28,0,67,0],[68,0,80,0],[83,0,86,0],[113,0,164,0],[168,0,173,0],[178,0,194,0],[98,0,109,0],[93,0,95,0],[198,0,209,0],[213,0,219,0],[430,6,431,7],[223,0,232,0],[233,0,241,0],[243,0,254,0],[258,0,262,0],[263,0,288,0],[430,1,431,1],[430,0,434,0],[430,4,431,4],[430,3,431,3],[430,5,431,5]]}
["ANNEE 2021   DATE DU JOUR",null,null,{"$f":"NOW()","v":"2022-07-04T16:31:59.890"},{"$f":"NOW()","v":"2022-07-04T16:31:59.890"},null,null,null,"c",null,null,null,null,null,"Nombre d'Emprunteurs"]
[]
[null,"TE","Territ","Nom","Entrée","sortie","Code","Alerte à J+115","A faire rentrer","Rendre à J+130","Urgent","Ecart de jours",null,null,null,{"$f":"IF(COUNTA(P194)=0,\"\",SUM(P194))","v":6}]
["SCIENCE","Science 1","Livre 1","Paul",null,"2022-05-18","s",{"$f":"IF(F4=\"\",\"\",F4+115)","v":"2022-09-10"},{"$f":"IF(AND(L4>=115,L4<=129),\"A faire rentrer\",\"\")","v":""},{"$f":"IF(F4=\"\",\"\",F4+130)","v":"2022-09-25"},{"$f":"IF(L4>=130,\"Urgent\",\"\")","v":""},{"$f":"IF(F4=\"\",0,DATEDIF(F4,$D$1,\"D\"))","v":47},null,{"$f":"IFERROR(IF('Gestion des Livres'!B4=\"\",\"\",IF('Gestion des Livres'!E4>0,RANK(E4,E:E,1)+COUNTIF($E$3:E3,E4)/1000,COUNTIF($E$3:E3,\"\")/1000)),\"\")","v":0},"Paul",{"$f":"IF(COUNTA(O4)=0,\"\",1)","v":1}]
[null,"Science 2","Livre 2","Pierre",null,"2022-05-14","s",{"$f":"IF(F5=\"\",\"\",F5+115)","v":"2022-09-06"},{"$f":"IF(AND(L5>=115,L5<=129),\"A faire rentrer\",\"\")","v":""},{"$f":"IF(F5=\"\",\"\",F5+130)","v":"2022-09-21"},{"$f":"IF(L5>=130,\"Urgent\",\"\")","v":""},{"$f":"IF(F5=\"\",0,DATEDIF(F5,$D$1,\"D\"))","v":51},null,{"$f":"IFERROR(IF('Gestion des Livres'!B5=\"\",\"\",IF('Gestion des Livres'!E5>0,RANK(E5,E:E,1)+COUNTIF($E$3:E4,E5)/1000,COUNTIF($E$3:E4,\"\")/1000)),\"\")","v":1E-3},"Pierre",1]
[null,"Science 3","Livre 3",null,null,null,null,"","","","",0,null,{"$f":"IFERROR(IF('Gestion des Livres'!B6=\"\",\"\",IF('Gestion des Livres'!E6>0,RANK(E6,E:E,1)+COUNTIF($E$3:E5,E6)/1000,COUNTIF($E$3:E5,\"\")/1000)),\"\")","v":2E-3},"Ruduolf",1]
[null,"Science 4","Livre 4",null,null,null,null,"","","","",0,null,{"$f":"IFERROR(IF('Gestion des Livres'!B7=\"\",\"\",IF('Gestion des Livres'!E7>0,RANK(E7,E:E,1)+COUNTIF($E$3:E6,E7)/1000,COUNTIF($E$3:E6,\"\")/1000)),\"\")","v":3.0000000000000001E-3},"André",1]
[null,"Science 5","Livre 5",null,null,null,null,"","","","",0,null,{"$f":"IFERROR(IF('Gestion des Livres'!B8=\"\",\"\",IF('Gestion des Livres'!E8>0,RANK(E8,E:E,1)+COUNTIF($E$3:E7,E8)/1000,COUNTIF($E$3:E7,\"\")/1000)),\"\")","v":4.0000000000000001E-3},"Gisèle",1]
[null,"Science 6","Livre 6",null,null,null,null,{"$f":"IF(F9=\"\",\"\",F9+115)","v":""},{"$f":"IF(AND(L9>=115,L9<=129),\"A faire rentrer\",\"\")","v":""},{"$f":"IF(F9=\"\",\"\",F9+130)","v":""},{"$f":"IF(L9>=130,\"Urgent\",\"\")","v":""},{"$f":"IF(F9=\"\",0,DATEDIF(F9,$D$1,\"D\"))","v":0},null,{"$f":"IFERROR(IF('Gestion des Livres'!B9=\"\",\"\",IF('Gestion des Livres'!E9>0,RANK(E9,E:E,1)+COUNTIF($E$3:E8,E9)/1000,COUNTIF($E$3:E8,\"\")/1000)),\"\")","v":5.0000000000000001E-3},"Bernadette",1]
[null,"Science 7","Livre 7",null,null,null,null,"","","","",0,null,{"$f":"IFERROR(IF('Gestion des Livres'!B10=\"\",\"\",IF('Gestion des Livres'!E10>0,RANK(E10,E:E,1)+COUNTIF($E$3:E9,E10)/1000,COUNTIF($E$3:E9,\"\")/1000)),\"\")","v":6.0000000000000001E-3},null,{"$f":"IF(COUNTA(O10)=0,\"\",1)","v":""}]
[null,"Science 8","Livre 8",null,null,null,null,"","","","",0,null,{"$f":"IFERROR(IF('Gestion des Livres'!B11=\"\",\"\",IF('Gestion des Livres'!E11>0,RANK(E11,E:E,1)+COUNTIF($E$3:E10,E11)/1000,COUNTIF($E$3:E10,\"\")/1000)),\"\")","v":7.0000000000000001E-3},null,""]
[null,"Science 9","Livre 9",null,null,null,null,"","","","",0,null,{"$f":"IFERROR(IF('Gestion des Livres'!B12=\"\",\"\",IF('Gestion des Livres'!E12>0,RANK(E12,E:E,1)+COUNTIF($E$3:E11,E12)/1000,COUNTIF($E$3:E11,\"\")/1000)),\"\")","v":8.0000000000000002E-3},null,""]
[null,"Science 10","Livre 10",null,null,null,null,"","","","",0,null,{"$f":"IFERROR(IF('Gestion des Livres'!B13=\"\",\"\",IF('Gestion des Livres'!E13>0,RANK(E13,E:E,1)+COUNTIF($E$3:E12,E13)/1000,COUNTIF($E$3:E12,\"\")/1000)),\"\")","v":8.9999999999999993E-3},null,""]
[null,"Science 11","Livre 11",null,null,null,null,{"$f":"IF(F14=\"\",\"\",F14+115)","v":""},{"$f":"IF(AND(L14>=115,L14<=129),\"A faire rentrer\",\"\")","v":""},{"$f":"IF(F14=\"\",\"\",F14+130)","v":""},"",{"$f":"IF(F14=\"\",0,DATEDIF(F14,$D$1,\"D\"))","v":0},null,{"$f":"IFERROR(IF('Gestion des Livres'!B14=\"\",\"\",IF('Gestion des Livres'!E14>0,RANK(E14,E:E,1)+COUNTIF($E$3:E13,E14)/1000,COUNTIF($E$3:E13,\"\")/1000)),\"\")","v":0.01},null,""]
[null,"Science 12","Livre 12",null,null,null,null,"","","","",0,null,{"$f":"IFERROR(IF('Gestion des Livres'!B15=\"\",\"\",IF('Gestion des Livres'!E15>0,RANK(E15,E:E,1)+COUNTIF($E$3:E14,E15)/1000,COUNTIF($E$3:E14,\"\")/1000)),\"\")","v":1.0999999999999999E-2},null,""]
[null,"Science 13","Livre 13",null,null,null,null,"","","","",0,null,{"$f":"IFERROR(IF('Gestion des Livres'!B16=\"\",\"\",IF('Gestion des Livres'!E16>0,RANK(E16,E:E,1)+COUNTIF($E$3:E15,E16)/1000,COUNTIF($E$3:E15,\"\")/1000)),\"\")","v":1.2E-2},null,""]
[null,"Science 14","Livre 14",null,null,null,null,"","","","",0,null,{"$f":"IFERROR(IF('Gestion des Livres'!B17=\"\",\"\",IF('Gestion des Livres'!E17>0,RANK(E17,E:E,1)+COUNTIF($E$3:E16,E17)/1000,COUNTIF($E$3:E16,\"\")/1000)),\"\")","v":1.2999999999999999E-2},null,""]
[null,"Science 15","Livre 15",null,null,null,null,"","","","",0,null,{"$f":"IFERROR(IF('Gestion des Livres'!B18=\"\",\"\",IF('Gestion des Livres'!E18>0,RANK(E18,E:E,1)+COUNTIF($E$3:E17,E18)/1000,COUNTIF($E$3:E17,\"\")/1000)),\"\")","v":1.4E-2},null,""]
[null,"Science 16","Livre 16",null,null,null,null,"","","","",0,null,{"$f":"IFERROR(IF('Gestion des Livres'!B19=\"\",\"\",IF('Gestion des Livres'!E19>0,RANK(E19,E:E,1)+COUNTIF($E$3:E18,E19)/1000,COUNTIF($E$3:E18,\"\")/1000)),\"\")","v":1.4999999999999999E-2},null,""]
[null,"Science 17","Livre 17",null,null,null,null,"","","","",0,null,{"$f":"IFERROR(IF('Gestion des Livres'!B20=\"\",\"\",IF('Gestion des Livres'!E20>0,RANK(E20,E:E,1)+COUNTIF($E$3:E19,E20)/1000,COUNTIF($E$3:E19,\"\")/1000)),\"\")","v":1.6E-2},null,""]
[null,"Science 18","Livre 18",null,null,null,null,"","","","",0,null,{"$f":"IFERROR(IF('Gestion des Livres'!B21=\"\",\"\",IF('Gestion des Livres'!E21>0,RANK(E21,E:E,1)+COUNTIF($E$3:E20,E21)/1000,COUNTIF($E$3:E20,\"\")/1000)),\"\")","v":1.7000000000000001E-2},null,""]
[null,"Science 19","Livre 19",null,null,null,null,"","","","",0,null,{"$f":"IFERROR(IF('Gestion des Livres'!B22=\"\",\"\",IF('Gestion des Livres'!E22>0,RANK(E22,E:E,1)+COUNTIF($E$3:E21,E22)/1000,COUNTIF($E$3:E21,\"\")/1000)),\"\")","v":1.7999999999999999E-2},null,""]
[null,"Science 20","Livre 20",null,null,null,null,"","","","",0,null,{"$f":"IFERROR(IF('Gestion des Livres'!B23=\"\",\"\",IF('Gestion des Livres'!E23>0,RANK(E23,E:E,1)+COUNTIF($E$3:E22,E23)/1000,COUNTIF($E$3:E22,\"\")/1000)),\"\")","v":1.9E-2},null,""]
[null,"Science 21","Livre 21",null,null,null,null,"","","","",0,null,{"$f":"IFERROR(IF('Gestion des Livres'!B24=\"\",\"\",IF('Gestion des Livres'!E24>0,RANK(E24,E:E,1)+COUNTIF($E$3:E23,E24)/1000,COUNTIF($E$3:E23,\"\")/1000)),\"\")","v":0.02},null,""]
[null,"Science 22","Livre 22",null,null,null,null,"","","","",0,null,{"$f":"IFERROR(IF('Gestion des Livres'!B25=\"\",\"\",IF('Gestion des Livres'!E25>0,RANK(E25,E:E,1)+COUNTIF($E$3:E24,E25)/1000,COUNTIF($E$3:E24,\"\")/1000)),\"\")","v":2.1000000000000001E-2},null,""]
[null,"Science 23","Livre 23",null,null,null,null,"","","","",0,null,{"$f":"IFERROR(IF('Gestion des Livres'!B26=\"\",\"\",IF('Gestion des Livres'!E26>0,RANK(E26,E:E,1)+COUNTIF($E$3:E25,E26)/1000,COUNTIF($E$3:E25,\"\")/1000)),\"\")","v":2.1999999999999999E-2},null,""]
[null,"Science   NUL 1","Livre 24",null,null,null,null,"","","","",0,null,{"$f":"IFERROR(IF('Gestion des Livres'!B27=\"\",\"\",IF('Gestion des Livres'!E27>0,RANK(E27,E:E,1)+COUNTIF($E$3:E26,E27)/1000,COUNTIF($E$3:E26,\"\")/1000)),\"\")","v":2.3E-2}]
[null,"Science   NUL 2","Livre 25",null,null,null,null,"","","","",0,null,{"$f":"IFERROR(IF('Gestion des Livres'!B28=\"\",\"\",IF('Gestion des Livres'!E28>0,RANK(E28,E:E,1)+COUNTIF($E$3:E27,E28)/1000,COUNTIF($E$3:E27,\"\")/1000)),\"\")","v":2.4E-2}]
["HISTOIRE","Histoire 1","Livre 26",null,null,null,"s","","","","",0,null,{"$f":"IFERROR(IF('Gestion des Livres'!B29=\"\",\"\",IF('Gestion des Livres'!E29>0,RANK(E29,E:E,1)+COUNTIF($E$3:E28,E29)/1000,COUNTIF($E$3:E28,\"\")/1000)),\"\")","v":2.5000000000000001E-2},null,{"$f":"IF(COUNTA(O29)=0,\"\",1)","v":""}]
[null,"Histoire 2","Livre 27",null,null,null,null,"","","","",0,null,{"$f":"IFERROR(IF('Gestion des Livres'!B30=\"\",\"\",IF('Gestion des Livres'!E30>0,RANK(E30,E:E,1)+COUNTIF($E$3:E29,E30)/1000,COUNTIF($E$3:E29,\"\")/1000)),\"\")","v":2.5999999999999999E-2},null,""]
[null,"Histoire 3","Livre 28",null,null,null,null,"","","","",0,null,{"$f":"IFERROR(IF('Gestion des Livres'!B31=\"\",\"\",IF('Gestion des Livres'!E31>0,RANK(E31,E:E,1)+COUNTIF($E$3:E30,E31)/1000,COUNTIF($E$3:E30,\"\")/1000)),\"\")","v":2.7E-2},null,""]
[null,"Histoire 4","Livre 29",null,null,null,null,"","","","",0,null,{"$f":"IFERROR(IF('Gestion des Livres'!B32=\"\",\"\",IF('Gestion des Livres'!E32>0,RANK(E32,E:E,1)+COUNTIF($E$3:E31,E32)/1000,COUNTIF($E$3:E31,\"\")/1000)),\"\")","v":2.8000000000000001E-2},null,""]
[null,"Histoire 5","Livre 30",null,null,null,null,"","","","",0,null,{"$f":"IFERROR(IF('Gestion des Livres'!B33=\"\",\"\",IF('Gestion des Livres'!E33>0,RANK(E33,E:E,1)+COUNTIF($E$3:E32,E33)/1000,COUNTIF($E$3:E32,\"\")/1000)),\"\")","v":2.9000000000000001E-2},null,""]
[null,"Histoire 6","Livre 31",null,null,null,null,"","","","",0,null,{"$f":"IFERROR(IF('Gestion des Livres'!B34=\"\",\"\",IF('Gestion des Livres'!E34>0,RANK(E34,E:E,1)+COUNTIF($E$3:E33,E34)/1000,COUNTIF($E$3:E33,\"\")/1000)),\"\")","v":0.03},null,""]
[null,"Histoire 7","Livre 32",null,null,null,null,"","","","",0,null,{"$f":"IFERROR(IF('Gestion des Livres'!B35=\"\",\"\",IF('Gestion des Livres'!E35>0,RANK(E35,E:E,1)+COUNTIF($E$3:E34,E35)/1000,COUNTIF($E$3:E34,\"\")/1000)),\"\")","v":3.1E-2},null,""]
[null,"Histoire 8","Livre 33",null,null,null,null,"","","","",0,null,{"$f":"IFERROR(IF('Gestion des Livres'!B36=\"\",\"\",IF('Gestion des Livres'!E36>0,RANK(E36,E:E,1)+COUNTIF($E$3:E35,E36)/1000,COUNTIF($E$3:E35,\"\")/1000)),\"\")","v":3.2000000000000001E-2},null,""]
[null,"Histoire 9","Livre 34",null,null,null,null,"","","","",0,null,{"$f":"IFERROR(IF('Gestion des Livres'!B37=\"\",\"\",IF('Gestion des Livres'!E37>0,RANK(E37,E:E,1)+COUNTIF($E$3:E36,E37)/1000,COUNTIF($E$3:E36,\"\")/1000)),\"\")","v":3.3000000000000002E-2},null,""]
[null,"Histoire 10","Livre 35",null,null,null,null,"","","","",0,null,{"$f":"IFERROR(IF('Gestion des Livres'!B38=\"\",\"\",IF('Gestion des Livres'!E38>0,RANK(E38,E:E,1)+COUNTIF($E$3:E37,E38)/1000,COUNTIF($E$3:E37,\"\")/1000)),\"\")","v":3.4000000000000002E-2},null,""]
[null,"Histoire 11","Livre 36",null,null,null,null,"","","","",0,null,{"$f":"IFERROR(IF('Gestion des Livres'!B39=\"\",\"\",IF('Gestion des Livres'!E39>0,RANK(E39,E:E,1)+COUNTIF($E$3:E38,E39)/1000,COUNTIF($E$3:E38,\"\")/1000)),\"\")","v":3.5000000000000003E-2},null,""]
[null,"Histoire 12","Livre 37",null,null,null,null,"","","","",0,null,{"$f":"IFERROR(IF('Gestion des Livres'!B40=\"\",\"\",IF('Gestion des Livres'!E40>0,RANK(E40,E:E,1)+COUNTIF($E$3:E39,E40)/1000,COUNTIF($E$3:E39,\"\")/1000)),\"\")","v":3.5999999999999997E-2},null,""]
[null,"Histoire 13","Livre 38",null,null,null,null,"","","","",0,null,{"$f":"IFERROR(IF('Gestion des Livres'!B41=\"\",\"\",IF('Gestion des Livres'!E41>0,RANK(E41,E:E,1)+COUNTIF($E$3:E40,E41)/1000,COUNTIF($E$3:E40,\"\")/1000)),\"\")","v":3.6999999999999998E-2},null,""]
[null,"Histoire 14","Livre 39",null,null,null,null,"","","","",0,null,{"$f":"IFERROR(IF('Gestion des Livres'!B42=\"\",\"\",IF('Gestion des Livres'!E42>0,RANK(E42,E:E,1)+COUNTIF($E$3:E41,E42)/1000,COUNTIF($E$3:E41,\"\")/1000)),\"\")","v":3.7999999999999999E-2},null,""]
[null,"Histoire 15","Livre 40",null,null,null,null,"","","","",0,null,{"$f":"IFERROR(IF('Gestion des Livres'!B43=\"\",\"\",IF('Gestion des Livres'!E43>0,RANK(E43,E:E,1)+COUNTIF($E$3:E42,E43)/1000,COUNTIF($E$3:E42,\"\")/1000)),\"\")","v":3.9E-2},null,""]
[null,"Histoire 16","Livre 41",null,null,null,null,"","","","",0,null,{"$f":"IFERROR(IF('Gestion des Livres'!B44=\"\",\"\",IF('Gestion des Livres'!E44>0,RANK(E44,E:E,1)+COUNTIF($E$3:E43,E44)/1000,COUNTIF($E$3:E43,\"\")/1000)),\"\")","v":0.04},null,""]
[null,"Histoire 17","Livre 42",null,null,null,null,"","","","",0,null,{"$f":"IFERROR(IF('Gestion des Livres'!B45=\"\",\"\",IF('Gestion des Livres'!E45>0,RANK(E45,E:E,1)+COUNTIF($E$3:E44,E45)/1000,COUNTIF($E$3:E44,\"\")/1000)),\"\")","v":4.1000000000000002E-2},null,""]
[null,"Histoire 18","Livre 43",null,null,null,null,"","","","",0,null,{"$f":"IFERROR(IF('Gestion des Livres'!B46=\"\",\"\",IF('Gestion des Livres'!E46>0,RANK(E46,E:E,1)+COUNTIF($E$3:E45,E46)/1000,COUNTIF($E$3:E45,\"\")/1000)),\"\")","v":4.2000000000000003E-2},null,""]
[null,"Histoire 19","Livre 44",null,null,null,null,"","","","",0,null,{"$f":"IFERROR(IF('Gestion des Livres'!B47=\"\",\"\",IF('Gestion des Livres'!E47>0,RANK(E47,E:E,1)+COUNTIF($E$3:E46,E47)/1000,COUNTIF($E$3:E46,\"\")/1000)),\"\")","v":4.2999999999999997E-2},null,""]
[null,"Histoire 20","Livre 45",null,null,null,null,"","","","",0,null,{"$f":"IFERROR(IF('Gestion des Livres'!B48=\"\",\"\",IF('Gestion des Livres'!E48>0,RANK(E48,E:E,1)+COUNTIF($E$3:E47,E48)/1000,COUNTIF($E$3:E47,\"\")/1000)),\"\")","v":4.3999999999999997E-2},null,""]
[null,"Histoire 21","Livre 46",null,null,null,null,"","","","",0,null,{"$f":"IFERROR(IF('Gestion des Livres'!B49=\"\",\"\",IF('Gestion des Livres'!E49>0,RANK(E49,E:E,1)+COUNTIF($E$3:E48,E49)/1000,COUNTIF($E$3:E48,\"\")/1000)),\"\")","v":4.4999999999999998E-2},null,""]
[null,"Histoire 22","Livre 47",null,null,null,null,"","","","",0,null,{"$f":"IFERROR(IF('Gestion des Livres'!B50=\"\",\"\",IF('Gestion des Livres'!E50>0,RANK(E50,E:E,1)+COUNTIF($E$3:E49,E50)/1000,COUNTIF($E$3:E49,\"\")/1000)),\"\")","v":4.5999999999999999E-2},null,""]
[null,"Histoire 23","Livre 48",null,null,null,null,"","","","",0,null,{"$f":"IFERROR(IF('Gestion des Livres'!B51=\"\",\"\",IF('Gestion des Livres'!E51>0,RANK(E51,E:E,1)+COUNTIF($E$3:E50,E51)/1000,COUNTIF($E$3:E50,\"\")/1000)),\"\")","v":4.7E-2},null,""]
[null,"Histoire 24","Livre 49",null,null,null,null,"","","","",0,null,{"$f":"IFERROR(IF('Gestion des Livres'!B52=\"\",\"\",IF('Gestion des Livres'!E52>0,RANK(E52,E:E,1)+COUNTIF($E$3:E51,E52)/1000,COUNTIF($E$3:E51,\"\")/1000)),\"\")","v":4.8000000000000001E-2},null,""]
[null,"Histoire 25","Livre 50",null,null,null,null,"","","","",0,null,{"$f":"IFERROR(IF('Gestion des Livres'!B53=\"\",\"\",IF('Gestion des Livres'!E53>0,RANK(E53,E:E,1)+COUNTIF($E$3:E52,E53)/1000,COUNTIF($E$3:E52,\"\")/1000)),\"\")","v":4.9000000000000002E-2},null,""]
[null,"Histoire 26","Livre 51",null,null,null,null,"","","","",0,null,{"$f":"IFERROR(IF('Gestion des Livres'!B54=\"\",\"\",IF('Gestion des Livres'!E54>0,RANK(E54,E:E,1)+COUNTIF($E$3:E53,E54)/1000,COUNTIF($E$3:E53,\"\")/1000)),\"\")","v":0.05},null,""]
[null,"Histoire 27","Livre 52",null,null,null,null,"","","","",0,null,{"$f":"IFERROR(IF('Gestion des Livres'!B55=\"\",\"\",IF('Gestion des Livres'!E55>0,RANK(E55,E:E,1)+COUNTIF($E$3:E54,E55)/1000,COUNTIF($E$3:E54,\"\")/1000)),\"\")","v":5.0999999999999997E-2},null,""]
[null,"Histoire 28","Livre 53",null,null,null,null,"","","","",0,null,{"$f":"IFERROR(IF('Gestion des Livres'!B56=\"\",\"\",IF('Gestion des Livres'!E56>0,RANK(E56,E:E,1)+COUNTIF($E$3:E55,E56)/1000,COUNTIF($E$3:E55,\"\")/1000)),\"\")","v":5.1999999999999998E-2},null,""]
[null,"Histoire 29","Livre 54",null,null,null,null,"","","","",0,null,{"$f":"IFERROR(IF('Gestion des Livres'!B57=\"\",\"\",IF('Gestion des Livres'!E57>0,RANK(E57,E:E,1)+COUNTIF($E$3:E56,E57)/1000,COUNTIF($E$3:E56,\"\")/1000)),\"\")","v":5.2999999999999999E-2},null,""]
[null,"Histoire 30","Livre 55",null,null,null,null,"","","","",0,null,{"$f":"IFERROR(IF('Gestion des Livres'!B58=\"\",\"\",IF('Gestion des Livres'!E58>0,RANK(E58,E:E,1)+COUNTIF($E$3:E57,E58)/1000,COUNTIF($E$3:E57,\"\")/1000)),\"\")","v":5.3999999999999999E-2},null,""]
[null,"Histoire 31","Livre 56",null,null,null,null,"","","","",0,null,{"$f":"IFERROR(IF('Gestion des Livres'!B59=\"\",\"\",IF('Gestion des Livres'!E59>0,RANK(E59,E:E,1)+COUNTIF($E$3:E58,E59)/1000,COUNTIF($E$3:E58,\"\")/1000)),\"\")","v":5.5E-2},null,""]
[null,"Histoire 32","Livre 57",null,null,null,null,"","","","",0,null,{"$f":"IFERROR(IF('Gestion des Livres'!B60=\"\",\"\",IF('Gestion des Livres'!E60>0,RANK(E60,E:E,1)+COUNTIF($E$3:E59,E60)/1000,COUNTIF($E$3:E59,\"\")/1000)),\"\")","v":5.6000000000000001E-2},null,""]
[null,"Histoire 33","Livre 58",null,null,null,null,"","","","",0,null,{"$f":"IFERROR(IF('Gestion des Livres'!B61=\"\",\"\",IF('Gestion des Livres'!E61>0,RANK(E61,E:E,1)+COUNTIF($E$3:E60,E61)/1000,COUNTIF($E$3:E60,\"\")/1000)),\"\")","v":5.7000000000000002E-2},null,{"$f":"IF(COUNTA(O61)=0,\"\",1)","v":""}]
[null,"Histoire 34","Livre 59",null,null,null,null,"","","","",0,null,{"$f":"IFERROR(IF('Gestion des Livres'!B62=\"\",\"\",IF('Gestion des Livres'!E62>0,RANK(E62,E:E,1)+COUNTIF($E$3:E61,E62)/1000,COUNTIF($E$3:E61,\"\")/1000)),\"\")","v":5.8000000000000003E-2},null,""]
[null,"Histoire 35","Livre 60",null,null,null,null,"","","","",0,null,{"$f":"IFERROR(IF('Gestion des Livres'!B63=\"\",\"\",IF('Gestion des Livres'!E63>0,RANK(E63,E:E,1)+COUNTIF($E$3:E62,E63)/1000,COUNTIF($E$3:E62,\"\")/1000)),\"\")","v":5.8999999999999997E-2},null,""]
[null,"Histoire 36","Livre 61",null,null,null,null,"","","","",0,null,{"$f":"IFERROR(IF('Gestion des Livres'!B64=\"\",\"\",IF('Gestion des Livres'!E64>0,RANK(E64,E:E,1)+COUNTIF($E$3:E63,E64)/1000,COUNTIF($E$3:E63,\"\")/1000)),\"\")","v":0.06},null,""]
[null,"Histoire 37","Livre 62",null,null,null,null,"","","","",0,null,{"$f":"IFERROR(IF('Gestion des Livres'!B65=\"\",\"\",IF('Gestion des Livres'!E65>0,RANK(E65,E:E,1)+COUNTIF($E$3:E64,E65)/1000,COUNTIF($E$3:E64,\"\")/1000)),\"\")","v":6.0999999999999999E-2},null,""]
[null,"Histoire 38","Livre 63",null,null,null,null,"","","","",0,null,{"$f":"IFERROR(IF('Gestion des Livres'!B66=\"\",\"\",IF('Gestion des Livres'!E66>0,RANK(E66,E:E,1)+COUNTIF($E$3:E65,E66)/1000,COUNTIF($E$3:E65,\"\")/1000)),\"\")","v":6.2E-2},null,""]
[null,"Histoire 39","Livre 64",null,null,null,null,"","","","",0,null,{"$f":"IFERROR(IF('Gestion des Livres'!B67=\"\",\"\",IF('Gestion des Livres'!E67>0,RANK(E67,E:E,1)+COUNTIF($E$3:E66,E67)/1000,COUNTIF($E$3:E66,\"\")/1000)),\"\")","v":6.3E-2},null,""]
[null,"Histoire 40","Livre 65",null,null,null,null,"","","","",0,null,{"$f":"IFERROR(IF('Gestion des Livres'!B68=\"\",\"\",IF('Gestion des Livres'!E68>0,RANK(E68,E:E,1)+COUNTIF($E$3:E67,E68)/1000,COUNTIF($E$3:E67,\"\")/1000)),\"\")","v":6.4000000000000001E-2},null,""]
["GEO","Géographie 1","Livre 66",null,null,null,null,"","","",{"$f":"IF(L69>=130,\"Urgent\",\"\")","v":""},0,null,{"$f":"IFERROR(IF('Gestion des Livres'!B69=\"\",\"\",IF('Gestion des Livres'!E69>0,RANK(E69,E:E,1)+COUNTIF($E$3:E68,E69)/1000,COUNTIF($E$3:E68,\"\")/1000)),\"\")","v":6.5000000000000002E-2},null,""]
[null,"Géographie 2","Livre 67",null,null,null,null,"","","","",0,null,{"$f":"IFERROR(IF('Gestion des Livres'!B70=\"\",\"\",IF('Gestion des Livres'!E70>0,RANK(E70,E:E,1)+COUNTIF($E$3:E69,E70)/1000,COUNTIF($E$3:E69,\"\")/1000)),\"\")","v":6.6000000000000003E-2},null,""]
[null,"Géographie 3","Livre 68",null,null,null,null,"","","","",0,null,{"$f":"IFERROR(IF('Gestion des Livres'!B71=\"\",\"\",IF('Gestion des Livres'!E71>0,RANK(E71,E:E,1)+COUNTIF($E$3:E70,E71)/1000,COUNTIF($E$3:E70,\"\")/1000)),\"\")","v":6.7000000000000004E-2},null,""]
[null,"Géographie 4","Livre 69",null,null,null,null,"","","","",0,null,{"$f":"IFERROR(IF('Gestion des Livres'!B72=\"\",\"\",IF('Gestion des Livres'!E72>0,RANK(E72,E:E,1)+COUNTIF($E$3:E71,E72)/1000,COUNTIF($E$3:E71,\"\")/1000)),\"\")","v":6.8000000000000005E-2},null,""]
[null,"Géographie 5","Livre 70",null,null,null,null,"","","","",0,null,{"$f":"IFERROR(IF('Gestion des Livres'!B73=\"\",\"\",IF('Gestion des Livres'!E73>0,RANK(E73,E:E,1)+COUNTIF($E$3:E72,E73)/1000,COUNTIF($E$3:E72,\"\")/1000)),\"\")","v":6.9000000000000006E-2},null,""]
[null,"Géographie 6","Livre 71",null,null,null,null,"","","","",0,null,{"$f":"IFERROR(IF('Gestion des Livres'!B74=\"\",\"\",IF('Gestion des Livres'!E74>0,RANK(E74,E:E,1)+COUNTIF($E$3:E73,E74)/1000,COUNTIF($E$3:E73,\"\")/1000)),\"\")","v":7.0000000000000007E-2},null,""]
[null,"Géographie 7","Livre 72",null,null,null,null,"","","","",0,null,{"$f":"IFERROR(IF('Gestion des Livres'!B75=\"\",\"\",IF('Gestion des Livres'!E75>0,RANK(E75,E:E,1)+COUNTIF($E$3:E74,E75)/1000,COUNTIF($E$3:E74,\"\")/1000)),\"\")","v":7.0999999999999994E-2},null,""]
[null,"Géographie 8","Livre 73",null,null,null,null,"","","","",0,null,{"$f":"IFERROR(IF('Gestion des Livres'!B76=\"\",\"\",IF('Gestion des Livres'!E76>0,RANK(E76,E:E,1)+COUNTIF($E$3:E75,E76)/1000,COUNTIF($E$3:E75,\"\")/1000)),\"\")","v":7.1999999999999995E-2},null,""]
[null,"Géographie 9","Livre 74",null,null,null,null,"","","","",0,null,{"$f":"IFERROR(IF('Gestion des Livres'!B77=\"\",\"\",IF('Gestion des Livres'!E77>0,RANK(E77,E:E,1)+COUNTIF($E$3:E76,E77)/1000,COUNTIF($E$3:E76,\"\")/1000)),\"\")","v":7.2999999999999995E-2},null,""]
[null,"Géographie 10","Livre 75",null,null,null,null,{"$f":"IF(F78=\"\",\"\",F78+115)","v":""},{"$f":"IF(AND(L78>=115,L78<=129),\"A faire rentrer\",\"\")","v":""},{"$f":"IF(F78=\"\",\"\",F78+130)","v":""},"",{"$f":"IF(F78=\"\",0,DATEDIF(F78,$D$1,\"D\"))","v":0},null,{"$f":"IFERROR(IF('Gestion des Livres'!B78=\"\",\"\",IF('Gestion des Livres'!E78>0,RANK(E78,E:E,1)+COUNTIF($E$3:E77,E78)/1000,COUNTIF($E$3:E77,\"\")/1000)),\"\")","v":7.3999999999999996E-2},null,""]
[null,"Géographie 11","Livre 76",null,null,null,null,"","","","",0,null,{"$f":"IFERROR(IF('Gestion des Livres'!B79=\"\",\"\",IF('Gestion des Livres'!E79>0,RANK(E79,E:E,1)+COUNTIF($E$3:E78,E79)/1000,COUNTIF($E$3:E78,\"\")/1000)),\"\")","v":7.4999999999999997E-2},null,""]
[null,"Géographie 12","Livre 77",null,null,null,null,"","","","",0,null,{"$f":"IFERROR(IF('Gestion des Livres'!B80=\"\",\"\",IF('Gestion des Livres'!E80>0,RANK(E80,E:E,1)+COUNTIF($E$3:E79,E80)/1000,COUNTIF($E$3:E79,\"\")/1000)),\"\")","v":7.5999999999999998E-2},null,""]
[null,"Géographie 13","Livre 78",null,null,null,null,"","","","",0,null,{"$f":"IFERROR(IF('Gestion des Livres'!B81=\"\",\"\",IF('Gestion des Livres'!E81>0,RANK(E81,E:E,1)+COUNTIF($E$3:E80,E81)/1000,COUNTIF($E$3:E80,\"\")/1000)),\"\")","v":7.6999999999999999E-2},null,""]
[null,"Géographie NUL 1","Livre 79",null,null,null,null,"","","","",0,null,{"$f":"IFERROR(IF('Gestion des Livres'!B82=\"\",\"\",IF('Gestion des Livres'!E82>0,RANK(E82,E:E,1)+COUNTIF($E$3:E81,E82)/1000,COUNTIF($E$3:E81,\"\")/1000)),\"\")","v":7.8E-2}]
[null,"Géographie NUL 2","Livre 80",null,null,null,null,"","","","",0,null,{"$f":"IFERROR(IF('Gestion des Livres'!B83=\"\",\"\",IF('Gestion des Livres'!E83>0,RANK(E83,E:E,1)+COUNTIF($E$3:E82,E83)/1000,COUNTIF($E$3:E82,\"\")/1000)),\"\")","v":7.9000000000000001E-2}]
[null,null,"Livre 81",null,null,null,null,"","","","",0,null,{"$f":"IFERROR(IF('Gestion des Livres'!B84=\"\",\"\",IF('Gestion des Livres'!E84>0,RANK(E84,E:E,1)+COUNTIF($E$3:E83,E84)/1000,COUNTIF($E$3:E83,\"\")/1000)),\"\")","v":""},null,{"$f":"IF(COUNTA(O84)=0,\"\",1)","v":""}]
[null,null,"Livre 82",null,null,null,null,"","","","",0,null,{"$f":"IFERROR(IF('Gestion des Livres'!B85=\"\",\"\",IF('Gestion des Livres'!E85>0,RANK(E85,E:E,1)+COUNTIF($E$3:E84,E85)/1000,COUNTIF($E$3:E84,\"\")/1000)),\"\")","v":""},null,""]
[null,null,"Livre 83",null,null,null,null,"","","","",0,null,{"$f":"IFERROR(IF('Gestion des Livres'!B86=\"\",\"\",IF('Gestion des Livres'!E86>0,RANK(E86,E:E,1)+COUNTIF($E$3:E85,E86)/1000,COUNTIF($E$3:E85,\"\")/1000)),\"\")","v":""},null,""]
[null,null,"Livre 84",null,null,null,null,"","","","",0,null,{"$f":"IFERROR(IF('Gestion des Livres'!B87=\"\",\"\",IF('Gestion des Livres'!E87>0,RANK(E87,E:E,1)+COUNTIF($E$3:E86,E87)/1000,COUNTIF($E$3:E86,\"\")/1000)),\"\")","v":""},null,""]
[null,null,"Livre 85",null,null,null,null,"","","","",0,null,{"$f":"IFERROR(IF('Gestion des Livres'!B88=\"\",\"\",IF('Gestion des Livres'!E88>0,RANK(E88,E:E,1)+COUNTIF($E$3:E87,E88)/1000,COUNTIF($E$3:E87,\"\")/1000)),\"\")","v":""},null,""]
[null,null,"Livre 86",null,null,null,null,"","","","",0,null,{"$f":"IFERROR(IF('Gestion des Livres'!B89=\"\",\"\",IF('Gestion des Livres'!E89>0,RANK(E89,E:E,1)+COUNTIF($E$3:E88,E89)/1000,COUNTIF($E$3:E88,\"\")/1000)),\"\")","v":""},null,""]
[null,null,"Livre 87",null,null,null,null,"","","","",0,null,{"$f":"IFERROR(IF('Gestion des Livres'!B90=\"\",\"\",IF('Gestion des Livres'!E90>0,RANK(E90,E:E,1)+COUNTIF($E$3:E89,E90)/1000,COUNTIF($E$3:E89,\"\")/1000)),\"\")","v":""}]
[null,null,"Livre 88",null,null,null,null,"","","","",0,null,{"$f":"IFERROR(IF('Gestion des Livres'!B91=\"\",\"\",IF('Gestion des Livres'!E91>0,RANK(E91,E:E,1)+COUNTIF($E$3:E90,E91)/1000,COUNTIF($E$3:E90,\"\")/1000)),\"\")","v":""}]
[null,null,"Livre 89",null,null,null,null,"","","","",0,null,{"$f":"IFERROR(IF('Gestion des Livres'!B92=\"\",\"\",IF('Gestion des Livres'!E92>0,RANK(E92,E:E,1)+COUNTIF($E$3:E91,E92)/1000,COUNTIF($E$3:E91,\"\")/1000)),\"\")","v":""}]
[null,null,"Livre 90",null,null,null,null,"","","","",0,null,{"$f":"IFERROR(IF('Gestion des Livres'!B93=\"\",\"\",IF('Gestion des Livres'!E93>0,RANK(E93,E:E,1)+COUNTIF($E$3:E92,E93)/1000,COUNTIF($E$3:E92,\"\")/1000)),\"\")","v":""}]
[null,null,"Livre 91",null,null,null,null,"","","","",0,null,{"$f":"IFERROR(IF('Gestion des Livres'!B94=\"\",\"\",IF('Gestion des Livres'!E94>0,RANK(E94,E:E,1)+COUNTIF($E$3:E93,E94)/1000,COUNTIF($E$3:E93,\"\")/1000)),\"\")","v":""},null,{"$f":"IF(COUNTA(O94)=0,\"\",1)","v":""}]
[null,null,"Livre 92",null,null,null,null,"","","","",0,null,{"$f":"IFERROR(IF('Gestion des Livres'!B95=\"\",\"\",IF('Gestion des Livres'!E95>0,RANK(E95,E:E,1)+COUNTIF($E$3:E94,E95)/1000,COUNTIF($E$3:E94,\"\")/1000)),\"\")","v":""},null,""]
[null,null,"Livre 93",null,null,null,null,"","","","",0,null,{"$f":"IFERROR(IF('Gestion des Livres'!B96=\"\",\"\",IF('Gestion des Livres'!E96>0,RANK(E96,E:E,1)+COUNTIF($E$3:E95,E96)/1000,COUNTIF($E$3:E95,\"\")/1000)),\"\")","v":""},null,""]
[null,null,"Livre 94",null,null,null,null,"","","","",0,null,{"$f":"IFERROR(IF('Gestion des Livres'!B97=\"\",\"\",IF('Gestion des Livres'!E97>0,RANK(E97,E:E,1)+COUNTIF($E$3:E96,E97)/1000,COUNTIF($E$3:E96,\"\")/1000)),\"\")","v":""},null,""]
[null,null,"Livre 95",null,null,null,null,"","","","",0,null,{"$f":"IFERROR(IF('Gestion des Livres'!B98=\"\",\"\",IF('Gestion des Livres'!E98>0,RANK(E98,E:E,1)+COUNTIF($E$3:E97,E98)/1000,COUNTIF($E$3:E97,\"\")/1000)),\"\")","v":""},null,""]
[null,null,"Livre 96",null,null,null,null,"","","","",0,null,{"$f":"IFERROR(IF('Gestion des Livres'!B99=\"\",\"\",IF('Gestion des Livres'!E99>0,RANK(E99,E:E,1)+COUNTIF($E$3:E98,E99)/1000,COUNTIF($E$3:E98,\"\")/1000)),\"\")","v":""},null,""]
[null,"???????????","Livre 97",null,null,null,null,"","","","",0,null,{"$f":"IFERROR(IF('Gestion des Livres'!B100=\"\",\"\",IF('Gestion des Livres'!E100>0,RANK(E100,E:E,1)+COUNTIF($E$3:E99,E100)/1000,COUNTIF($E$3:E99,\"\")/1000)),\"\")","v":9.6000000000000002E-2},null,""]
[null,null,"Livre 98",null,null,null,null,"","","","",0,null,{"$f":"IFERROR(IF('Gestion des Livres'!B101=\"\",\"\",IF('Gestion des Livres'!E101>0,RANK(E101,E:E,1)+COUNTIF($E$3:E100,E101)/1000,COUNTIF($E$3:E100,\"\")/1000)),\"\")","v":""}]
[null,null,"Livre 99",null,null,null,null,"","","","",0,null,{"$f":"IFERROR(IF('Gestion des Livres'!B102=\"\",\"\",IF('Gestion des Livres'!E102>0,RANK(E102,E:E,1)+COUNTIF($E$3:E101,E102)/1000,COUNTIF($E$3:E101,\"\")/1000)),\"\")","v":""}]
[null,null,"Livre 100",null,null,null,null,"","","","",0,null,{"$f":"IFERROR(IF('Gestion des Livres'!B103=\"\",\"\",IF('Gestion des Livres'!E103>0,RANK(E103,E:E,1)+COUNTIF($E$3:E102,E103)/1000,COUNTIF($E$3:E102,\"\")/1000)),\"\")","v":""}]
[null,null,"Livre 101",null,null,null,null,"","","","",0,null,{"$f":"IFERROR(IF('Gestion des Livres'!B104=\"\",\"\",IF('Gestion des Livres'!E104>0,RANK(E104,E:E,1)+COUNTIF($E$3:E103,E104)/1000,COUNTIF($E$3:E103,\"\")/1000)),\"\")","v":""}]
[null,null,"Livre 102",null,null,null,null,"","","","",0,null,{"$f":"IFERROR(IF('Gestion des Livres'!B105=\"\",\"\",IF('Gestion des Livres'!E105>0,RANK(E105,E:E,1)+COUNTIF($E$3:E104,E105)/1000,COUNTIF($E$3:E104,\"\")/1000)),\"\")","v":""}]
[null,null,"Livre 103",null,null,null,null,"","","","",0,null,{"$f":"IFERROR(IF('Gestion des Livres'!B106=\"\",\"\",IF('Gestion des Livres'!E106>0,RANK(E106,E:E,1)+COUNTIF($E$3:E105,E106)/1000,COUNTIF($E$3:E105,\"\")/1000)),\"\")","v":""}]
[null,null,"Livre 104",null,null,null,null,"","","","",0,null,{"$f":"IFERROR(IF('Gestion des Livres'!B107=\"\",\"\",IF('Gestion des Livres'!E107>0,RANK(E107,E:E,1)+COUNTIF($E$3:E106,E107)/1000,COUNTIF($E$3:E106,\"\")/1000)),\"\")","v":""},null,""]
[null,null,"Livre 105",null,null,null,null,"","","","",0,null,{"$f":"IFERROR(IF('Gestion des Livres'!B108=\"\",\"\",IF('Gestion des Livres'!E108>0,RANK(E108,E:E,1)+COUNTIF($E$3:E107,E108)/1000,COUNTIF($E$3:E107,\"\")/1000)),\"\")","v":""},null,""]
[null,null,"Livre 106",null,null,null,null,"","","","",0,null,{"$f":"IFERROR(IF('Gestion des Livres'!B109=\"\",\"\",IF('Gestion des Livres'!E109>0,RANK(E109,E:E,1)+COUNTIF($E$3:E108,E109)/1000,COUNTIF($E$3:E108,\"\")/1000)),\"\")","v":""},null,""]
[null,null,"Livre 107",null,null,null,null,"","","","",0,null,{"$f":"IFERROR(IF('Gestion des Livres'!B110=\"\",\"\",IF('Gestion des Livres'!E110>0,RANK(E110,E:E,1)+COUNTIF($E$3:E109,E110)/1000,COUNTIF($E$3:E109,\"\")/1000)),\"\")","v":""},null,""]
[null,null,"Livre 108",null,null,null,null,"","","","",0,null,{"$f":"IFERROR(IF('Gestion des Livres'!B111=\"\",\"\",IF('Gestion des Livres'!E111>0,RANK(E111,E:E,1)+COUNTIF($E$3:E110,E111)/1000,COUNTIF($E$3:E110,\"\")/1000)),\"\")","v":""}]
[null,null,"Livre 109",null,null,null,null,"","","","",0,null,{"$f":"IFERROR(IF('Gestion des Livres'!B112=\"\",\"\",IF('Gestion des Livres'!E112>0,RANK(E112,E:E,1)+COUNTIF($E$3:E111,E112)/1000,COUNTIF($E$3:E111,\"\")/1000)),\"\")","v":""}]
[null,null,"Livre 110",null,null,null,null,"","","","",0,null,{"$f":"IFERROR(IF('Gestion des Livres'!B113=\"\",\"\",IF('Gestion des Livres'!E113>0,RANK(E113,E:E,1)+COUNTIF($E$3:E112,E113)/1000,COUNTIF($E$3:E112,\"\")/1000)),\"\")","v":""}]
[null,null,"Livre 111",null,null,null,null,"","","","",0,null,{"$f":"IFERROR(IF('Gestion des Livres'!B114=\"\",\"\",IF('Gestion des Livres'!E114>0,RANK(E114,E:E,1)+COUNTIF($E$3:E113,E114)/1000,COUNTIF($E$3:E113,\"\")/1000)),\"\")","v":""},null,{"$f":"IF(COUNTA(O114)=0,\"\",1)","v":""}]
[null,null,"Livre 112",null,null,null,null,"","","","",0,null,{"$f":"IFERROR(IF('Gestion des Livres'!B115=\"\",\"\",IF('Gestion des Livres'!E115>0,RANK(E115,E:E,1)+COUNTIF($E$3:E114,E115)/1000,COUNTIF($E$3:E114,\"\")/1000)),\"\")","v":""},null,""]
[null,null,"Livre 113",null,null,null,null,"","","","",0,null,{"$f":"IFERROR(IF('Gestion des Livres'!B116=\"\",\"\",IF('Gestion des Livres'!E116>0,RANK(E116,E:E,1)+COUNTIF($E$3:E115,E116)/1000,COUNTIF($E$3:E115,\"\")/1000)),\"\")","v":""},null,""]
[null,null,"Livre 114",null,null,null,null,"","","","",0,null,{"$f":"IFERROR(IF('Gestion des Livres'!B117=\"\",\"\",IF('Gestion des Livres'!E117>0,RANK(E117,E:E,1)+COUNTIF($E$3:E116,E117)/1000,COUNTIF($E$3:E116,\"\")/1000)),\"\")","v":""},null,""]
[null,null,"Livre 115",null,null,null,null,"","","","",0,null,{"$f":"IFERROR(IF('Gestion des Livres'!B118=\"\",\"\",IF('Gestion des Livres'!E118>0,RANK(E118,E:E,1)+COUNTIF($E$3:E117,E118)/1000,COUNTIF($E$3:E117,\"\")/1000)),\"\")","v":""},null,""]
[null,null,"Livre 116",null,null,null,null,"","","","",0,null,{"$f":"IFERROR(IF('Gestion des Livres'!B119=\"\",\"\",IF('Gestion des Livres'!E119>0,RANK(E119,E:E,1)+COUNTIF($E$3:E118,E119)/1000,COUNTIF($E$3:E118,\"\")/1000)),\"\")","v":""},null,""]
[null,null,"Livre 117",null,null,null,null,"","","","",0,null,{"$f":"IFERROR(IF('Gestion des Livres'!B120=\"\",\"\",IF('Gestion des Livres'!E120>0,RANK(E120,E:E,1)+COUNTIF($E$3:E119,E120)/1000,COUNTIF($E$3:E119,\"\")/1000)),\"\")","v":""},null,""]
[null,"?????????????","Livre 118",null,null,null,null,"","","","",0,null,{"$f":"IFERROR(IF('Gestion des Livres'!B121=\"\",\"\",IF('Gestion des Livres'!E121>0,RANK(E121,E:E,1)+COUNTIF($E$3:E120,E121)/1000,COUNTIF($E$3:E120,\"\")/1000)),\"\")","v":0.11700000000000001},null,""]
[null,null,"Livre 119",null,null,null,null,"","","","",0,null,{"$f":"IFERROR(IF('Gestion des Livres'!B122=\"\",\"\",IF('Gestion des Livres'!E122>0,RANK(E122,E:E,1)+COUNTIF($E$3:E121,E122)/1000,COUNTIF($E$3:E121,\"\")/1000)),\"\")","v":""},null,""]
[null,null,"Livre 120",null,null,null,null,"","","","",0,null,{"$f":"IFERROR(IF('Gestion des Livres'!B123=\"\",\"\",IF('Gestion des Livres'!E123>0,RANK(E123,E:E,1)+COUNTIF($E$3:E122,E123)/1000,COUNTIF($E$3:E122,\"\")/1000)),\"\")","v":""},null,""]
[null,null,"Livre 121",null,null,null,null,"","","","",0,null,{"$f":"IFERROR(IF('Gestion des Livres'!B124=\"\",\"\",IF('Gestion des Livres'!E124>0,RANK(E124,E:E,1)+COUNTIF($E$3:E123,E124)/1000,COUNTIF($E$3:E123,\"\")/1000)),\"\")","v":""},null,""]
[null,null,"Livre 122",null,null,null,null,"","","","",0,null,{"$f":"IFERROR(IF('Gestion des Livres'!B125=\"\",\"\",IF('Gestion des Livres'!E125>0,RANK(E125,E:E,1)+COUNTIF($E$3:E124,E125)/1000,COUNTIF($E$3:E124,\"\")/1000)),\"\")","v":""},null,""]
[null,null,"Livre 123",null,null,null,null,"","","","",0,null,{"$f":"IFERROR(IF('Gestion des Livres'!B126=\"\",\"\",IF('Gestion des Livres'!E126>0,RANK(E126,E:E,1)+COUNTIF($E$3:E125,E126)/1000,COUNTIF($E$3:E125,\"\")/1000)),\"\")","v":""},null,""]
[null,null,"Livre 124",null,null,null,null,"","","","",0,null,{"$f":"IFERROR(IF('Gestion des Livres'!B127=\"\",\"\",IF('Gestion des Livres'!E127>0,RANK(E127,E:E,1)+COUNTIF($E$3:E126,E127)/1000,COUNTIF($E$3:E126,\"\")/1000)),\"\")","v":""},null,""]
[null,null,"Livre 125",null,null,null,null,"","","","",0,null,{"$f":"IFERROR(IF('Gestion des Livres'!B128=\"\",\"\",IF('Gestion des Livres'!E128>0,RANK(E128,E:E,1)+COUNTIF($E$3:E127,E128)/1000,COUNTIF($E$3:E127,\"\")/1000)),\"\")","v":""},null,""]
[null,null,"Livre 126",null,null,null,null,"","","","",0,null,{"$f":"IFERROR(IF('Gestion des Livres'!B129=\"\",\"\",IF('Gestion des Livres'!E129>0,RANK(E129,E:E,1)+COUNTIF($E$3:E128,E129)/1000,COUNTIF($E$3:E128,\"\")/1000)),\"\")","v":""},null,""]
[null,null,"Livre 127",null,null,null,null,"","","","",0,null,{"$f":"IFERROR(IF('Gestion des Livres'!B130=\"\",\"\",IF('Gestion des Livres'!E130>0,RANK(E130,E:E,1)+COUNTIF($E$3:E129,E130)/1000,COUNTIF($E$3:E129,\"\")/1000)),\"\")","v":""},null,""]
[null,null,"Livre 128",null,null,null,null,"","","","",0,null,{"$f":"IFERROR(IF('Gestion des Livres'!B131=\"\",\"\",IF('Gestion des Livres'!E131>0,RANK(E131,E:E,1)+COUNTIF($E$3:E130,E131)/1000,COUNTIF($E$3:E130,\"\")/1000)),\"\")","v":""},null,""]
[null,null,"Livre 129",null,null,null,null,"","","","",0,null,{"$f":"IFERROR(IF('Gestion des Livres'!B132=\"\",\"\",IF('Gestion des Livres'!E132>0,RANK(E132,E:E,1)+COUNTIF($E$3:E131,E132)/1000,COUNTIF($E$3:E131,\"\")/1000)),\"\")","v":""},null,""]
[null,null,"Livre 130",null,null,null,null,"","","",{"$f":"IF(L133>=130,\"Urgent\",\"\")","v":""},0,null,{"$f":"IFERROR(IF('Gestion des Livres'!B133=\"\",\"\",IF('Gestion des Livres'!E133>0,RANK(E133,E:E,1)+COUNTIF($E$3:E132,E133)/1000,COUNTIF($E$3:E132,\"\")/1000)),\"\")","v":""},null,{"$f":"IF(COUNTA(O133)=0,\"\",1)","v":""}]
[null,null,"Livre 131",null,null,null,null,"","","","",0,null,{"$f":"IFERROR(IF('Gestion des Livres'!B134=\"\",\"\",IF('Gestion des Livres'!E134>0,RANK(E134,E:E,1)+COUNTIF($E$3:E133,E134)/1000,COUNTIF($E$3:E133,\"\")/1000)),\"\")","v":""},null,""]
[null,null,"Livre 132",null,null,null,null,"","","","",0,null,{"$f":"IFERROR(IF('Gestion des Livres'!B135=\"\",\"\",IF('Gestion des Livres'!E135>0,RANK(E135,E:E,1)+COUNTIF($E$3:E134,E135)/1000,COUNTIF($E$3:E134,\"\")/1000)),\"\")","v":""},null,""]
[null,null,"Livre 133",null,null,null,null,"","","","",0,null,{"$f":"IFERROR(IF('Gestion des Livres'!B136=\"\",\"\",IF('Gestion des Livres'!E136>0,RANK(E136,E:E,1)+COUNTIF($E$3:E135,E136)/1000,COUNTIF($E$3:E135,\"\")/1000)),\"\")","v":""},null,""]
[null,null,"Livre 134",null,null,null,null,"","","","",0,null,{"$f":"IFERROR(IF('Gestion des Livres'!B137=\"\",\"\",IF('Gestion des Livres'!E137>0,RANK(E137,E:E,1)+COUNTIF($E$3:E136,E137)/1000,COUNTIF($E$3:E136,\"\")/1000)),\"\")","v":""},null,""]
[null,null,"Livre 135",null,null,null,null,"","","","",0,null,{"$f":"IFERROR(IF('Gestion des Livres'!B138=\"\",\"\",IF('Gestion des Livres'!E138>0,RANK(E138,E:E,1)+COUNTIF($E$3:E137,E138)/1000,COUNTIF($E$3:E137,\"\")/1000)),\"\")","v":""},null,""]
[null,null,"Livre 136",null,null,null,null,"","","","",0,null,{"$f":"IFERROR(IF('Gestion des Livres'!B139=\"\",\"\",IF('Gestion des Livres'!E139>0,RANK(E139,E:E,1)+COUNTIF($E$3:E138,E139)/1000,COUNTIF($E$3:E138,\"\")/1000)),\"\")","v":""},null,""]
[null,null,"Livre 137",null,null,null,null,"","","","",0,null,{"$f":"IFERROR(IF('Gestion des Livres'!B140=\"\",\"\",IF('Gestion des Livres'!E140>0,RANK(E140,E:E,1)+COUNTIF($E$3:E139,E140)/1000,COUNTIF($E$3:E139,\"\")/1000)),\"\")","v":""},null,""]
[null,null,"Livre 138",null,null,null,null,"","","","",0,null,{"$f":"IFERROR(IF('Gestion des Livres'!B141=\"\",\"\",IF('Gestion des Livres'!E141>0,RANK(E141,E:E,1)+COUNTIF($E$3:E140,E141)/1000,COUNTIF($E$3:E140,\"\")/1000)),\"\")","v":""},null,""]
[null,null,"Livre 139",null,null,null,null,{"$f":"IF(F142=\"\",\"\",F142+115)","v":""},{"$f":"IF(AND(L142>=115,L142<=129),\"A faire rentrer\",\"\")","v":""},{"$f":"IF(F142=\"\",\"\",F142+130)","v":""},"",{"$f":"IF(F142=\"\",0,DATEDIF(F142,$D$1,\"D\"))","v":0},null,{"$f":"IFERROR(IF('Gestion des Livres'!B142=\"\",\"\",IF('Gestion des Livres'!E142>0,RANK(E142,E:E,1)+COUNTIF($E$3:E141,E142)/1000,COUNTIF($E$3:E141,\"\")/1000)),\"\")","v":""},null,""]
[null,null,"Livre 140",null,null,null,null,"","","","",0,null,{"$f":"IFERROR(IF('Gestion des Livres'!B143=\"\",\"\",IF('Gestion des Livres'!E143>0,RANK(E143,E:E,1)+COUNTIF($E$3:E142,E143)/1000,COUNTIF($E$3:E142,\"\")/1000)),\"\")","v":""},null,""]
[null,null,"Livre 141",null,null,null,null,"","","","",0,null,{"$f":"IFERROR(IF('Gestion des Livres'!B144=\"\",\"\",IF('Gestion des Livres'!E144>0,RANK(E144,E:E,1)+COUNTIF($E$3:E143,E144)/1000,COUNTIF($E$3:E143,\"\")/1000)),\"\")","v":""},null,""]
[null,null,"Livre 142",null,null,null,null,"","","","",0,null,{"$f":"IFERROR(IF('Gestion des Livres'!B145=\"\",\"\",IF('Gestion des Livres'!E145>0,RANK(E145,E:E,1)+COUNTIF($E$3:E144,E145)/1000,COUNTIF($E$3:E144,\"\")/1000)),\"\")","v":""},null,""]
[null,null,"Livre 143",null,null,null,null,"","","","",0,null,{"$f":"IFERROR(IF('Gestion des Livres'!B146=\"\",\"\",IF('Gestion des Livres'!E146>0,RANK(E146,E:E,1)+COUNTIF($E$3:E145,E146)/1000,COUNTIF($E$3:E145,\"\")/1000)),\"\")","v":""},null,""]
[null,null,"Livre 144",null,null,null,null,"","","","",0,null,{"$f":"IFERROR(IF('Gestion des Livres'!B147=\"\",\"\",IF('Gestion des Livres'!E147>0,RANK(E147,E:E,1)+COUNTIF($E$3:E146,E147)/1000,COUNTIF($E$3:E146,\"\")/1000)),\"\")","v":""},null,""]
[null,null,"Livre 145",null,null,null,null,"","","","",0,null,{"$f":"IFERROR(IF('Gestion des Livres'!B148=\"\",\"\",IF('Gestion des Livres'!E148>0,RANK(E148,E:E,1)+COUNTIF($E$3:E147,E148)/1000,COUNTIF($E$3:E147,\"\")/1000)),\"\")","v":""},null,""]
[null,null,"Livre 146",null,null,null,null,"","","","",0,null,{"$f":"IFERROR(IF('Gestion des Livres'!B149=\"\",\"\",IF('Gestion des Livres'!E149>0,RANK(E149,E:E,1)+COUNTIF($E$3:E148,E149)/1000,COUNTIF($E$3:E148,\"\")/1000)),\"\")","v":""},null,""]
[null,null,"Livre 147",null,null,null,null,"","","","",0,null,{"$f":"IFERROR(IF('Gestion des Livres'!B150=\"\",\"\",IF('Gestion des Livres'!E150>0,RANK(E150,E:E,1)+COUNTIF($E$3:E149,E150)/1000,COUNTIF($E$3:E149,\"\")/1000)),\"\")","v":""},null,""]
[null,null,"Livre 148",null,null,null,null,"","","","",0,null,{"$f":"IFERROR(IF('Gestion des Livres'!B151=\"\",\"\",IF('Gestion des Livres'!E151>0,RANK(E151,E:E,1)+COUNTIF($E$3:E150,E151)/1000,COUNTIF($E$3:E150,\"\")/1000)),\"\")","v":""},null,""]
[null,null,"Livre 149",null,null,null,null,"","","","",0,null,{"$f":"IFERROR(IF('Gestion des Livres'!B152=\"\",\"\",IF('Gestion des Livres'!E152>0,RANK(E152,E:E,1)+COUNTIF($E$3:E151,E152)/1000,COUNTIF($E$3:E151,\"\")/1000)),\"\")","v":""},null,""]
[null,null,"Livre 150",null,null,null,null,"","","","",0,null,{"$f":"IFERROR(IF('Gestion des Livres'!B153=\"\",\"\",IF('Gestion des Livres'!E153>0,RANK(E153,E:E,1)+COUNTIF($E$3:E152,E153)/1000,COUNTIF($E$3:E152,\"\")/1000)),\"\")","v":""},null,""]
[null,null,"Livre 151",null,null,null,null,"","","","",0,null,{"$f":"IFERROR(IF('Gestion des Livres'!B154=\"\",\"\",IF('Gestion des Livres'!E154>0,RANK(E154,E:E,1)+COUNTIF($E$3:E153,E154)/1000,COUNTIF($E$3:E153,\"\")/1000)),\"\")","v":""},null,""]
[null,null,"Livre 152",null,null,null,null,"","","","",0,null,{"$f":"IFERROR(IF('Gestion des Livres'!B155=\"\",\"\",IF('Gestion des Livres'!E155>0,RANK(E155,E:E,1)+COUNTIF($E$3:E154,E155)/1000,COUNTIF($E$3:E154,\"\")/1000)),\"\")","v":""},null,""]
[null,null,"Livre 153",null,null,null,null,"","","","",0,null,{"$f":"IFERROR(IF('Gestion des Livres'!B156=\"\",\"\",IF('Gestion des Livres'!E156>0,RANK(E156,E:E,1)+COUNTIF($E$3:E155,E156)/1000,COUNTIF($E$3:E155,\"\")/1000)),\"\")","v":""},null,""]
[null,null,"Livre 154",null,null,null,null,"","","","",0,null,{"$f":"IFERROR(IF('Gestion des Livres'!B157=\"\",\"\",IF('Gestion des Livres'!E157>0,RANK(E157,E:E,1)+COUNTIF($E$3:E156,E157)/1000,COUNTIF($E$3:E156,\"\")/1000)),\"\")","v":""},null,""]
[null,null,"Livre 155",null,null,null,null,"","","","",0,null,{"$f":"IFERROR(IF('Gestion des Livres'!B158=\"\",\"\",IF('Gestion des Livres'!E158>0,RANK(E158,E:E,1)+COUNTIF($E$3:E157,E158)/1000,COUNTIF($E$3:E157,\"\")/1000)),\"\")","v":""},null,""]
[null,null,"Livre 156",null,null,null,null,"","","","",0,null,{"$f":"IFERROR(IF('Gestion des Livres'!B159=\"\",\"\",IF('Gestion des Livres'!E159>0,RANK(E159,E:E,1)+COUNTIF($E$3:E158,E159)/1000,COUNTIF($E$3:E158,\"\")/1000)),\"\")","v":""},null,""]
[null,null,"Livre 157",null,null,null,null,"","","","",0,null,{"$f":"IFERROR(IF('Gestion des Livres'!B160=\"\",\"\",IF('Gestion des Livres'!E160>0,RANK(E160,E:E,1)+COUNTIF($E$3:E159,E160)/1000,COUNTIF($E$3:E159,\"\")/1000)),\"\")","v":""},null,""]
[null,null,"Livre 158",null,null,null,null,"","","","",0,null,{"$f":"IFERROR(IF('Gestion des Livres'!B161=\"\",\"\",IF('Gestion des Livres'!E161>0,RANK(E161,E:E,1)+COUNTIF($E$3:E160,E161)/1000,COUNTIF($E$3:E160,\"\")/1000)),\"\")","v":""},null,""]
[null,null,"Livre 159",null,null,null,null,"","","","",0,null,{"$f":"IFERROR(IF('Gestion des Livres'!B162=\"\",\"\",IF('Gestion des Livres'!E162>0,RANK(E162,E:E,1)+COUNTIF($E$3:E161,E162)/1000,COUNTIF($E$3:E161,\"\")/1000)),\"\")","v":""},null,""]
[null,null,"Livre 160",null,null,null,null,"","","","",0,null,{"$f":"IFERROR(IF('Gestion des Livres'!B163=\"\",\"\",IF('Gestion des Livres'!E163>0,RANK(E163,E:E,1)+COUNTIF($E$3:E162,E163)/1000,COUNTIF($E$3:E162,\"\")/1000)),\"\")","v":""},null,""]
[null,null,"Livre 161",null,null,null,null,"","","","",0,null,{"$f":"IFERROR(IF('Gestion des Livres'!B164=\"\",\"\",IF('Gestion des Livres'!E164>0,RANK(E164,E:E,1)+COUNTIF($E$3:E163,E164)/1000,COUNTIF($E$3:E163,\"\")/1000)),\"\")","v":""},null,""]
[null,null,"Livre 162",null,null,null,null,"","","","",0,null,{"$f":"IFERROR(IF('Gestion des Livres'!B165=\"\",\"\",IF('Gestion des Livres'!E165>0,RANK(E165,E:E,1)+COUNTIF($E$3:E164,E165)/1000,COUNTIF($E$3:E164,\"\")/1000)),\"\")","v":""},null,""]
[null,null,"Livre 163",null,null,null,null,"","","","",0,null,{"$f":"IFERROR(IF('Gestion des Livres'!B166=\"\",\"\",IF('Gestion des Livres'!E166>0,RANK(E166,E:E,1)+COUNTIF($E$3:E165,E166)/1000,COUNTIF($E$3:E165,\"\")/1000)),\"\")","v":""},null,""]
[null,null,"Livre 164",null,null,null,null,"","","","",0,null,{"$f":"IFERROR(IF('Gestion des Livres'!B167=\"\",\"\",IF('Gestion des Livres'!E167>0,RANK(E167,E:E,1)+COUNTIF($E$3:E166,E167)/1000,COUNTIF($E$3:E166,\"\")/1000)),\"\")","v":""},null,""]
[null,null,"Livre 165",null,null,null,null,"","","","",0,null,{"$f":"IFERROR(IF('Gestion des Livres'!B168=\"\",\"\",IF('Gestion des Livres'!E168>0,RANK(E168,E:E,1)+COUNTIF($E$3:E167,E168)/1000,COUNTIF($E$3:E167,\"\")/1000)),\"\")","v":""},null,""]
[null,null,"Livre 166",null,null,null,null,"","","","",0,null,{"$f":"IFERROR(IF('Gestion des Livres'!B169=\"\",\"\",IF('Gestion des Livres'!E169>0,RANK(E169,E:E,1)+COUNTIF($E$3:E168,E169)/1000,COUNTIF($E$3:E168,\"\")/1000)),\"\")","v":""},null,""]
[null,null,"Livre 167",null,null,null,null,"","","","",0,null,{"$f":"IFERROR(IF('Gestion des Livres'!B170=\"\",\"\",IF('Gestion des Livres'!E170>0,RANK(E170,E:E,1)+COUNTIF($E$3:E169,E170)/1000,COUNTIF($E$3:E169,\"\")/1000)),\"\")","v":""},null,""]
[null,null,"Livre 168",null,null,null,null,"","","","",0,null,{"$f":"IFERROR(IF('Gestion des Livres'!B171=\"\",\"\",IF('Gestion des Livres'!E171>0,RANK(E171,E:E,1)+COUNTIF($E$3:E170,E171)/1000,COUNTIF($E$3:E170,\"\")/1000)),\"\")","v":""},null,""]
[null,null,"Livre 169",null,null,null,null,"","","","",0,null,{"$f":"IFERROR(IF('Gestion des Livres'!B172=\"\",\"\",IF('Gestion des Livres'!E172>0,RANK(E172,E:E,1)+COUNTIF($E$3:E171,E172)/1000,COUNTIF($E$3:E171,\"\")/1000)),\"\")","v":""},null,""]
[null,null,"Livre 170",null,null,null,null,"","","","",0,null,{"$f":"IFERROR(IF('Gestion des Livres'!B173=\"\",\"\",IF('Gestion des Livres'!E173>0,RANK(E173,E:E,1)+COUNTIF($E$3:E172,E173)/1000,COUNTIF($E$3:E172,\"\")/1000)),\"\")","v":""},null,""]
[null,null,"Livre 171",null,null,null,null,"","","","",0,null,{"$f":"IFERROR(IF('Gestion des Livres'!B174=\"\",\"\",IF('Gestion des Livres'!E174>0,RANK(E174,E:E,1)+COUNTIF($E$3:E173,E174)/1000,COUNTIF($E$3:E173,\"\")/1000)),\"\")","v":""},null,""]
[null,null,"Livre 172",null,null,null,null,"","","","",0,null,{"$f":"IFERROR(IF('Gestion des Livres'!B175=\"\",\"\",IF('Gestion des Livres'!E175>0,RANK(E175,E:E,1)+COUNTIF($E$3:E174,E175)/1000,COUNTIF($E$3:E174,\"\")/1000)),\"\")","v":""},null,""]
[null,null,"Livre 173",null,null,null,null,"","","","",0,null,{"$f":"IFERROR(IF('Gestion des Livres'!B176=\"\",\"\",IF('Gestion des Livres'!E176>0,RANK(E176,E:E,1)+COUNTIF($E$3:E175,E176)/1000,COUNTIF($E$3:E175,\"\")/1000)),\"\")","v":""},null,""]
[null,null,"Livre 174",null,null,null,null,"","","","",0,null,{"$f":"IFERROR(IF('Gestion des Livres'!B177=\"\",\"\",IF('Gestion des Livres'!E177>0,RANK(E177,E:E,1)+COUNTIF($E$3:E176,E177)/1000,COUNTIF($E$3:E176,\"\")/1000)),\"\")","v":""},null,""]
[null,null,"Livre 175",null,null,null,null,"","","","",0,null,{"$f":"IFERROR(IF('Gestion des Livres'!B178=\"\",\"\",IF('Gestion des Livres'!E178>0,RANK(E178,E:E,1)+COUNTIF($E$3:E177,E178)/1000,COUNTIF($E$3:E177,\"\")/1000)),\"\")","v":""},null,""]
[null,null,"Livre 176",null,null,null,null,"","","","",0,null,{"$f":"IFERROR(IF('Gestion des Livres'!B179=\"\",\"\",IF('Gestion des Livres'!E179>0,RANK(E179,E:E,1)+COUNTIF($E$3:E178,E179)/1000,COUNTIF($E$3:E178,\"\")/1000)),\"\")","v":""},null,""]
[null,null,"Livre 177",null,null,null,null,"","","","",0,null,{"$f":"IFERROR(IF('Gestion des Livres'!B180=\"\",\"\",IF('Gestion des Livres'!E180>0,RANK(E180,E:E,1)+COUNTIF($E$3:E179,E180)/1000,COUNTIF($E$3:E179,\"\")/1000)),\"\")","v":""},null,""]
[null,null,"Livre 178",null,null,null,null,"","","","",0,null,{"$f":"IFERROR(IF('Gestion des Livres'!B181=\"\",\"\",IF('Gestion des Livres'!E181>0,RANK(E181,E:E,1)+COUNTIF($E$3:E180,E181)/1000,COUNTIF($E$3:E180,\"\")/1000)),\"\")","v":""},null,""]
[null,null,"Livre 179",null,null,null,null,"","","","",0,null,{"$f":"IFERROR(IF('Gestion des Livres'!B182=\"\",\"\",IF('Gestion des Livres'!E182>0,RANK(E182,E:E,1)+COUNTIF($E$3:E181,E182)/1000,COUNTIF($E$3:E181,\"\")/1000)),\"\")","v":""},null,""]
[null,null,"Livre 180",null,null,null,null,"","","","",0,null,{"$f":"IFERROR(IF('Gestion des Livres'!B183=\"\",\"\",IF('Gestion des Livres'!E183>0,RANK(E183,E:E,1)+COUNTIF($E$3:E182,E183)/1000,COUNTIF($E$3:E182,\"\")/1000)),\"\")","v":""},null,""]
[null,null,"Livre 181",null,null,null,null,"","","","",0,null,{"$f":"IFERROR(IF('Gestion des Livres'!B184=\"\",\"\",IF('Gestion des Livres'!E184>0,RANK(E184,E:E,1)+COUNTIF($E$3:E183,E184)/1000,COUNTIF($E$3:E183,\"\")/1000)),\"\")","v":""}]
[null,null,"Livre 182",null,null,null,null,"","","","",0,null,{"$f":"IFERROR(IF('Gestion des Livres'!B185=\"\",\"\",IF('Gestion des Livres'!E185>0,RANK(E185,E:E,1)+COUNTIF($E$3:E184,E185)/1000,COUNTIF($E$3:E184,\"\")/1000)),\"\")","v":""}]
[null,null,"Livre 183",null,null,null,null,"","","","",0,null,{"$f":"IFERROR(IF('Gestion des Livres'!B186=\"\",\"\",IF('Gestion des Livres'!E186>0,RANK(E186,E:E,1)+COUNTIF($E$3:E185,E186)/1000,COUNTIF($E$3:E185,\"\")/1000)),\"\")","v":""}]
[null,null,"Livre 184",null,null,null,null,"","","","",0,null,{"$f":"IFERROR(IF('Gestion des Livres'!B187=\"\",\"\",IF('Gestion des Livres'!E187>0,RANK(E187,E:E,1)+COUNTIF($E$3:E186,E187)/1000,COUNTIF($E$3:E186,\"\")/1000)),\"\")","v":""},null,{"$f":"IF(COUNTA(O187)=0,\"\",1)","v":""}]
[null,null,"Livre 185",null,null,null,null,"","","","",0,null,{"$f":"IFERROR(IF('Gestion des Livres'!B188=\"\",\"\",IF('Gestion des Livres'!E188>0,RANK(E188,E:E,1)+COUNTIF($E$3:E187,E188)/1000,COUNTIF($E$3:E187,\"\")/1000)),\"\")","v":""},null,""]
[null,null,"Livre 186",null,null,null,null,"","","","",0,null,{"$f":"IFERROR(IF('Gestion des Livres'!B189=\"\",\"\",IF('Gestion des Livres'!E189>0,RANK(E189,E:E,1)+COUNTIF($E$3:E188,E189)/1000,COUNTIF($E$3:E188,\"\")/1000)),\"\")","v":""},null,""]
[null,null,"Livre 187",null,null,null,null,"","","","",0,null,{"$f":"IFERROR(IF('Gestion des Livres'!B190=\"\",\"\",IF('Gestion des Livres'!E190>0,RANK(E190,E:E,1)+COUNTIF($E$3:E189,E190)/1000,COUNTIF($E$3:E189,\"\")/1000)),\"\")","v":""},null,""]
[null,null,"Livre 188",null,null,null,null,"","","","",0,null,{"$f":"IFERROR(IF('Gestion des Livres'!B191=\"\",\"\",IF('Gestion des Livres'!E191>0,RANK(E191,E:E,1)+COUNTIF($E$3:E190,E191)/1000,COUNTIF($E$3:E190,\"\")/1000)),\"\")","v":""},null,""]
[null,null,"Livre 189",null,null,null,null,"","","","",0,null,{"$f":"IFERROR(IF('Gestion des Livres'!B192=\"\",\"\",IF('Gestion des Livres'!E192>0,RANK(E192,E:E,1)+COUNTIF($E$3:E191,E192)/1000,COUNTIF($E$3:E191,\"\")/1000)),\"\")","v":""}]
[null,null,"Livre 190",null,null,null,null,"","","","",0,null,{"$f":"IFERROR(IF('Gestion des Livres'!B193=\"\",\"\",IF('Gestion des Livres'!E193>0,RANK(E193,E:E,1)+COUNTIF($E$3:E192,E193)/1000,COUNTIF($E$3:E192,\"\")/1000)),\"\")","v":""}]
[null,null,"Livre 191",null,null,null,null,"","","","",0,null,{"$f":"IFERROR(IF('Gestion des Livres'!B194=\"\",\"\",IF('Gestion des Livres'!E194>0,RANK(E194,E:E,1)+COUNTIF($E$3:E193,E194)/1000,COUNTIF($E$3:E193,\"\")/1000)),\"\")","v":""},"Total",{"$f":"SUM(P4:P192)","v":6}]
[null,null,"Livre 192",null,null,null,null,"","","","",0,null,{"$f":"IFERROR(IF('Gestion des Livres'!B195=\"\",\"\",IF('Gestion des Livres'!E195>0,RANK(E195,E:E,1)+COUNTIF($E$3:E194,E195)/1000,COUNTIF($E$3:E194,\"\")/1000)),\"\")","v":""}]
[null,null,"Livre 193",null,null,null,null,"","","","",0,null,{"$f":"IFERROR(IF('Gestion des Livres'!B196=\"\",\"\",IF('Gestion des Livres'!E196>0,RANK(E196,E:E,1)+COUNTIF($E$3:E195,E196)/1000,COUNTIF($E$3:E195,\"\")/1000)),\"\")","v":""}]
[null,null,"Livre 194",null,null,null,null,"","","",{"$f":"IF(L197>=130,\"Urgent\",\"\")","v":""},0,null,{"$f":"IFERROR(IF('Gestion des Livres'!B197=\"\",\"\",IF('Gestion des Livres'!E197>0,RANK(E197,E:E,1)+COUNTIF($E$3:E196,E197)/1000,COUNTIF($E$3:E196,\"\")/1000)),\"\")","v":""}]
[null,null,"Livre 195",null,null,null,null,"","","","",0,null,{"$f":"IFERROR(IF('Gestion des Livres'!B198=\"\",\"\",IF('Gestion des Livres'!E198>0,RANK(E198,E:E,1)+COUNTIF($E$3:E197,E198)/1000,COUNTIF($E$3:E197,\"\")/1000)),\"\")","v":""}]
[null,null,"Livre 196",null,null,null,null,"","","","",0,null,{"$f":"IFERROR(IF('Gestion des Livres'!B199=\"\",\"\",IF('Gestion des Livres'!E199>0,RANK(E199,E:E,1)+COUNTIF($E$3:E198,E199)/1000,COUNTIF($E$3:E198,\"\")/1000)),\"\")","v":""}]
[null,null,"Livre 197",null,null,null,null,"","","","",0,null,{"$f":"IFERROR(IF('Gestion des Livres'!B200=\"\",\"\",IF('Gestion des Livres'!E200>0,RANK(E200,E:E,1)+COUNTIF($E$3:E199,E200)/1000,COUNTIF($E$3:E199,\"\")/1000)),\"\")","v":""}]
[null,null,"Livre 198",null,null,null,null,"","","","",0,null,{"$f":"IFERROR(IF('Gestion des Livres'!B201=\"\",\"\",IF('Gestion des Livres'!E201>0,RANK(E201,E:E,1)+COUNTIF($E$3:E200,E201)/1000,COUNTIF($E$3:E200,\"\")/1000)),\"\")","v":""}]
[null,null,"Livre 199",null,null,null,null,"","","","",0,null,{"$f":"IFERROR(IF('Gestion des Livres'!B202=\"\",\"\",IF('Gestion des Livres'!E202>0,RANK(E202,E:E,1)+COUNTIF($E$3:E201,E202)/1000,COUNTIF($E$3:E201,\"\")/1000)),\"\")","v":""}]
[null,null,"Livre 200",null,null,null,null,"","","","",0,null,{"$f":"IFERROR(IF('Gestion des Livres'!B203=\"\",\"\",IF('Gestion des Livres'!E203>0,RANK(E203,E:E,1)+COUNTIF($E$3:E202,E203)/1000,COUNTIF($E$3:E202,\"\")/1000)),\"\")","v":""}]
[null,null,"Livre 201",null,null,null,null,"","","","",0,null,{"$f":"IFERROR(IF('Gestion des Livres'!B204=\"\",\"\",IF('Gestion des Livres'!E204>0,RANK(E204,E:E,1)+COUNTIF($E$3:E203,E204)/1000,COUNTIF($E$3:E203,\"\")/1000)),\"\")","v":""}]
[null,null,"Livre 202",null,null,null,null,"","","","",0,null,{"$f":"IFERROR(IF('Gestion des Livres'!B205=\"\",\"\",IF('Gestion des Livres'!E205>0,RANK(E205,E:E,1)+COUNTIF($E$3:E204,E205)/1000,COUNTIF($E$3:E204,\"\")/1000)),\"\")","v":""}]
[null,null,"Livre 203",null,null,null,null,{"$f":"IF(F206=\"\",\"\",F206+115)","v":""},{"$f":"IF(AND(L206>=115,L206<=129),\"A faire rentrer\",\"\")","v":""},{"$f":"IF(F206=\"\",\"\",F206+130)","v":""},"",{"$f":"IF(F206=\"\",0,DATEDIF(F206,$D$1,\"D\"))","v":0},null,{"$f":"IFERROR(IF('Gestion des Livres'!B206=\"\",\"\",IF('Gestion des Livres'!E206>0,RANK(E206,E:E,1)+COUNTIF($E$3:E205,E206)/1000,COUNTIF($E$3:E205,\"\")/1000)),\"\")","v":""}]
[null,null,"Livre 204",null,null,null,null,"","","","",0,null,{"$f":"IFERROR(IF('Gestion des Livres'!B207=\"\",\"\",IF('Gestion des Livres'!E207>0,RANK(E207,E:E,1)+COUNTIF($E$3:E206,E207)/1000,COUNTIF($E$3:E206,\"\")/1000)),\"\")","v":""}]
[null,null,"Livre 205",null,null,null,null,"","","","",0,null,{"$f":"IFERROR(IF('Gestion des Livres'!B208=\"\",\"\",IF('Gestion des Livres'!E208>0,RANK(E208,E:E,1)+COUNTIF($E$3:E207,E208)/1000,COUNTIF($E$3:E207,\"\")/1000)),\"\")","v":""}]
[null,null,"Livre 206",null,null,null,null,"","","","",0,null,{"$f":"IFERROR(IF('Gestion des Livres'!B209=\"\",\"\",IF('Gestion des Livres'!E209>0,RANK(E209,E:E,1)+COUNTIF($E$3:E208,E209)/1000,COUNTIF($E$3:E208,\"\")/1000)),\"\")","v":""}]
[null,null,"Livre 207",null,null,null,null,"","","","",0,null,{"$f":"IFERROR(IF('Gestion des Livres'!B210=\"\",\"\",IF('Gestion des Livres'!E210>0,RANK(E210,E:E,1)+COUNTIF($E$3:E209,E210)/1000,COUNTIF($E$3:E209,\"\")/1000)),\"\")","v":""}]
[null,null,"Livre 208",null,null,null,null,"","","","",0,null,{"$f":"IFERROR(IF('Gestion des Livres'!B211=\"\",\"\",IF('Gestion des Livres'!E211>0,RANK(E211,E:E,1)+COUNTIF($E$3:E210,E211)/1000,COUNTIF($E$3:E210,\"\")/1000)),\"\")","v":""}]
[null,null,"Livre 209",null,null,null,null,"","","","",0,null,{"$f":"IFERROR(IF('Gestion des Livres'!B212=\"\",\"\",IF('Gestion des Livres'!E212>0,RANK(E212,E:E,1)+COUNTIF($E$3:E211,E212)/1000,COUNTIF($E$3:E211,\"\")/1000)),\"\")","v":""}]
[null,null,"Livre 210",null,null,null,null,"","","","",0,null,{"$f":"IFERROR(IF('Gestion des Livres'!B213=\"\",\"\",IF('Gestion des Livres'!E213>0,RANK(E213,E:E,1)+COUNTIF($E$3:E212,E213)/1000,COUNTIF($E$3:E212,\"\")/1000)),\"\")","v":""}]
[null,null,"Livre 211",null,null,null,null,"","","","",0,null,{"$f":"IFERROR(IF('Gestion des Livres'!B214=\"\",\"\",IF('Gestion des Livres'!E214>0,RANK(E214,E:E,1)+COUNTIF($E$3:E213,E214)/1000,COUNTIF($E$3:E213,\"\")/1000)),\"\")","v":""}]
[null,null,"Livre 212",null,null,null,null,"","","","",0,null,{"$f":"IFERROR(IF('Gestion des Livres'!B215=\"\",\"\",IF('Gestion des Livres'!E215>0,RANK(E215,E:E,1)+COUNTIF($E$3:E214,E215)/1000,COUNTIF($E$3:E214,\"\")/1000)),\"\")","v":""}]
[null,null,"Livre 213",null,null,null,null,"","","","",0,null,{"$f":"IFERROR(IF('Gestion des Livres'!B216=\"\",\"\",IF('Gestion des Livres'!E216>0,RANK(E216,E:E,1)+COUNTIF($E$3:E215,E216)/1000,COUNTIF($E$3:E215,\"\")/1000)),\"\")","v":""}]
[null,null,"Livre 214",null,null,null,null,"","","","",0,null,{"$f":"IFERROR(IF('Gestion des Livres'!B217=\"\",\"\",IF('Gestion des Livres'!E217>0,RANK(E217,E:E,1)+COUNTIF($E$3:E216,E217)/1000,COUNTIF($E$3:E216,\"\")/1000)),\"\")","v":""}]
[null,null,"Livre 215",null,null,null,null,"","","","",0,null,{"$f":"IFERROR(IF('Gestion des Livres'!B218=\"\",\"\",IF('Gestion des Livres'!E218>0,RANK(E218,E:E,1)+COUNTIF($E$3:E217,E218)/1000,COUNTIF($E$3:E217,\"\")/1000)),\"\")","v":""}]
[null,null,"Livre 216",null,null,null,null,"","","","",0,null,{"$f":"IFERROR(IF('Gestion des Livres'!B219=\"\",\"\",IF('Gestion des Livres'!E219>0,RANK(E219,E:E,1)+COUNTIF($E$3:E218,E219)/1000,COUNTIF($E$3:E218,\"\")/1000)),\"\")","v":""}]
[null,null,"Livre 217",null,null,null,null,"","","","",0,null,{"$f":"IFERROR(IF('Gestion des Livres'!B220=\"\",\"\",IF('Gestion des Livres'!E220>0,RANK(E220,E:E,1)+COUNTIF($E$3:E219,E220)/1000,COUNTIF($E$3:E219,\"\")/1000)),\"\")","v":""}]
[null,null,"Livre 218",null,null,null,null,"","","","",0,null,{"$f":"IFERROR(IF('Gestion des Livres'!B221=\"\",\"\",IF('Gestion des Livres'!E221>0,RANK(E221,E:E,1)+COUNTIF($E$3:E220,E221)/1000,COUNTIF($E$3:E220,\"\")/1000)),\"\")","v":""}]
[null,null,"Livre 219",null,null,null,null,"","","","",0,null,{"$f":"IFERROR(IF('Gestion des Livres'!B222=\"\",\"\",IF('Gestion des Livres'!E222>0,RANK(E222,E:E,1)+COUNTIF($E$3:E221,E222)/1000,COUNTIF($E$3:E221,\"\")/1000)),\"\")","v":""}]
[null,null,"Livre 220",null,null,null,null,"","","","",0,null,{"$f":"IFERROR(IF('Gestion des Livres'!B223=\"\",\"\",IF('Gestion des Livres'!E223>0,RANK(E223,E:E,1)+COUNTIF($E$3:E222,E223)/1000,COUNTIF($E$3:E222,\"\")/1000)),\"\")","v":""}]
[null,null,"Livre 221",null,null,null,null,"","","","",0,null,{"$f":"IFERROR(IF('Gestion des Livres'!B224=\"\",\"\",IF('Gestion des Livres'!E224>0,RANK(E224,E:E,1)+COUNTIF($E$3:E223,E224)/1000,COUNTIF($E$3:E223,\"\")/1000)),\"\")","v":""}]
[null,null,"Livre 222",null,null,null,null,"","","","",0,null,{"$f":"IFERROR(IF('Gestion des Livres'!B225=\"\",\"\",IF('Gestion des Livres'!E225>0,RANK(E225,E:E,1)+COUNTIF($E$3:E224,E225)/1000,COUNTIF($E$3:E224,\"\")/1000)),\"\")","v":""}]
[null,null,"Livre 223",null,null,null,null,"","","","",0,null,{"$f":"IFERROR(IF('Gestion des Livres'!B226=\"\",\"\",IF('Gestion des Livres'!E226>0,RANK(E226,E:E,1)+COUNTIF($E$3:E225,E226)/1000,COUNTIF($E$3:E225,\"\")/1000)),\"\")","v":""}]
[null,null,"Livre 224",null,null,null,null,"","","","",0,null,{"$f":"IFERROR(IF('Gestion des Livres'!B227=\"\",\"\",IF('Gestion des Livres'!E227>0,RANK(E227,E:E,1)+COUNTIF($E$3:E226,E227)/1000,COUNTIF($E$3:E226,\"\")/1000)),\"\")","v":""}]
[null,null,"Livre 225",null,null,null,null,"","","","",0,null,{"$f":"IFERROR(IF('Gestion des Livres'!B228=\"\",\"\",IF('Gestion des Livres'!E228>0,RANK(E228,E:E,1)+COUNTIF($E$3:E227,E228)/1000,COUNTIF($E$3:E227,\"\")/1000)),\"\")","v":""}]
[null,null,"Livre 226",null,null,null,null,"","","","",0,null,{"$f":"IFERROR(IF('Gestion des Livres'!B229=\"\",\"\",IF('Gestion des Livres'!E229>0,RANK(E229,E:E,1)+COUNTIF($E$3:E228,E229)/1000,COUNTIF($E$3:E228,\"\")/1000)),\"\")","v":""}]
[null,null,"Livre 227",null,null,null,null,"","","","",0,null,{"$f":"IFERROR(IF('Gestion des Livres'!B230=\"\",\"\",IF('Gestion des Livres'!E230>0,RANK(E230,E:E,1)+COUNTIF($E$3:E229,E230)/1000,COUNTIF($E$3:E229,\"\")/1000)),\"\")","v":""}]
[null,null,"Livre 228",null,null,null,null,"","","","",0,null,{"$f":"IFERROR(IF('Gestion des Livres'!B231=\"\",\"\",IF('Gestion des Livres'!E231>0,RANK(E231,E:E,1)+COUNTIF($E$3:E230,E231)/1000,COUNTIF($E$3:E230,\"\")/1000)),\"\")","v":""}]
[null,null,"Livre 229",null,null,null,null,"","","","",0,null,{"$f":"IFERROR(IF('Gestion des Livres'!B232=\"\",\"\",IF('Gestion des Livres'!E232>0,RANK(E232,E:E,1)+COUNTIF($E$3:E231,E232)/1000,COUNTIF($E$3:E231,\"\")/1000)),\"\")","v":""}]
[null,null,"Livre 230",null,null,null,null,"","","","",0,null,{"$f":"IFERROR(IF('Gestion des Livres'!B233=\"\",\"\",IF('Gestion des Livres'!E233>0,RANK(E233,E:E,1)+COUNTIF($E$3:E232,E233)/1000,COUNTIF($E$3:E232,\"\")/1000)),\"\")","v":""}]
[null,null,"Livre 231",null,null,null,null,"","","","",0,null,{"$f":"IFERROR(IF('Gestion des Livres'!B234=\"\",\"\",IF('Gestion des Livres'!E234>0,RANK(E234,E:E,1)+COUNTIF($E$3:E233,E234)/1000,COUNTIF($E$3:E233,\"\")/1000)),\"\")","v":""}]
[null,null,"Livre 232",null,null,null,null,"","","","",0,null,{"$f":"IFERROR(IF('Gestion des Livres'!B235=\"\",\"\",IF('Gestion des Livres'!E235>0,RANK(E235,E:E,1)+COUNTIF($E$3:E234,E235)/1000,COUNTIF($E$3:E234,\"\")/1000)),\"\")","v":""}]
[null,null,"Livre 233",null,null,null,null,"","","","",0,null,{"$f":"IFERROR(IF('Gestion des Livres'!B236=\"\",\"\",IF('Gestion des Livres'!E236>0,RANK(E236,E:E,1)+COUNTIF($E$3:E235,E236)/1000,COUNTIF($E$3:E235,\"\")/1000)),\"\")","v":""}]
[null,null,"Livre 234",null,null,null,null,"","","","",0,null,{"$f":"IFERROR(IF('Gestion des Livres'!B237=\"\",\"\",IF('Gestion des Livres'!E237>0,RANK(E237,E:E,1)+COUNTIF($E$3:E236,E237)/1000,COUNTIF($E$3:E236,\"\")/1000)),\"\")","v":""}]
[null,null,"Livre 235",null,null,null,null,"","","","",0,null,{"$f":"IFERROR(IF('Gestion des Livres'!B238=\"\",\"\",IF('Gestion des Livres'!E238>0,RANK(E238,E:E,1)+COUNTIF($E$3:E237,E238)/1000,COUNTIF($E$3:E237,\"\")/1000)),\"\")","v":""}]
[null,null,"Livre 236",null,null,null,null,"","","","",0,null,{"$f":"IFERROR(IF('Gestion des Livres'!B239=\"\",\"\",IF('Gestion des Livres'!E239>0,RANK(E239,E:E,1)+COUNTIF($E$3:E238,E239)/1000,COUNTIF($E$3:E238,\"\")/1000)),\"\")","v":""}]
[null,null,"Livre 237",null,null,null,null,"","","","",0,null,{"$f":"IFERROR(IF('Gestion des Livres'!B240=\"\",\"\",IF('Gestion des Livres'!E240>0,RANK(E240,E:E,1)+COUNTIF($E$3:E239,E240)/1000,COUNTIF($E$3:E239,\"\")/1000)),\"\")","v":""}]
[null,null,"Livre 238",null,null,null,null,"","","","",0,null,{"$f":"IFERROR(IF('Gestion des Livres'!B241=\"\",\"\",IF('Gestion des Livres'!E241>0,RANK(E241,E:E,1)+COUNTIF($E$3:E240,E241)/1000,COUNTIF($E$3:E240,\"\")/1000)),\"\")","v":""}]
[null,null,"Livre 239",null,null,null,null,"","","","",0,null,{"$f":"IFERROR(IF('Gestion des Livres'!B242=\"\",\"\",IF('Gestion des Livres'!E242>0,RANK(E242,E:E,1)+COUNTIF($E$3:E241,E242)/1000,COUNTIF($E$3:E241,\"\")/1000)),\"\")","v":""}]
[null,null,"Livre 240",null,null,null,null,"","","","",0,null,{"$f":"IFERROR(IF('Gestion des Livres'!B243=\"\",\"\",IF('Gestion des Livres'!E243>0,RANK(E243,E:E,1)+COUNTIF($E$3:E242,E243)/1000,COUNTIF($E$3:E242,\"\")/1000)),\"\")","v":""}]
[null,null,"Livre 241",null,null,null,null,"","","","",0,null,{"$f":"IFERROR(IF('Gestion des Livres'!B244=\"\",\"\",IF('Gestion des Livres'!E244>0,RANK(E244,E:E,1)+COUNTIF($E$3:E243,E244)/1000,COUNTIF($E$3:E243,\"\")/1000)),\"\")","v":""}]
[null,null,"Livre 242",null,null,null,null,"","","","",0,null,{"$f":"IFERROR(IF('Gestion des Livres'!B245=\"\",\"\",IF('Gestion des Livres'!E245>0,RANK(E245,E:E,1)+COUNTIF($E$3:E244,E245)/1000,COUNTIF($E$3:E244,\"\")/1000)),\"\")","v":""}]
[null,null,"Livre 243",null,null,null,null,"","","","",0,null,{"$f":"IFERROR(IF('Gestion des Livres'!B246=\"\",\"\",IF('Gestion des Livres'!E246>0,RANK(E246,E:E,1)+COUNTIF($E$3:E245,E246)/1000,COUNTIF($E$3:E245,\"\")/1000)),\"\")","v":""}]
[null,null,"Livre 244",null,null,null,null,"","","","",0,null,{"$f":"IFERROR(IF('Gestion des Livres'!B247=\"\",\"\",IF('Gestion des Livres'!E247>0,RANK(E247,E:E,1)+COUNTIF($E$3:E246,E247)/1000,COUNTIF($E$3:E246,\"\")/1000)),\"\")","v":""}]
[null,null,"Livre 245",null,null,null,null,"","","","",0,null,{"$f":"IFERROR(IF('Gestion des Livres'!B248=\"\",\"\",IF('Gestion des Livres'!E248>0,RANK(E248,E:E,1)+COUNTIF($E$3:E247,E248)/1000,COUNTIF($E$3:E247,\"\")/1000)),\"\")","v":""}]
[null,null,"Livre 246",null,null,null,null,"","","","",0,null,{"$f":"IFERROR(IF('Gestion des Livres'!B249=\"\",\"\",IF('Gestion des Livres'!E249>0,RANK(E249,E:E,1)+COUNTIF($E$3:E248,E249)/1000,COUNTIF($E$3:E248,\"\")/1000)),\"\")","v":""}]
[null,null,"Livre 247",null,null,null,null,"","","","",0,null,{"$f":"IFERROR(IF('Gestion des Livres'!B250=\"\",\"\",IF('Gestion des Livres'!E250>0,RANK(E250,E:E,1)+COUNTIF($E$3:E249,E250)/1000,COUNTIF($E$3:E249,\"\")/1000)),\"\")","v":""}]
[null,null,"Livre 248",null,null,null,null,"","","","",0,null,{"$f":"IFERROR(IF('Gestion des Livres'!B251=\"\",\"\",IF('Gestion des Livres'!E251>0,RANK(E251,E:E,1)+COUNTIF($E$3:E250,E251)/1000,COUNTIF($E$3:E250,\"\")/1000)),\"\")","v":""}]
[null,null,"Livre 249",null,null,null,null,"","","","",0,null,{"$f":"IFERROR(IF('Gestion des Livres'!B252=\"\",\"\",IF('Gestion des Livres'!E252>0,RANK(E252,E:E,1)+COUNTIF($E$3:E251,E252)/1000,COUNTIF($E$3:E251,\"\")/1000)),\"\")","v":""}]
[null,null,"Livre 250",null,null,null,null,"","","","",0,null,{"$f":"IFERROR(IF('Gestion des Livres'!B253=\"\",\"\",IF('Gestion des Livres'!E253>0,RANK(E253,E:E,1)+COUNTIF($E$3:E252,E253)/1000,COUNTIF($E$3:E252,\"\")/1000)),\"\")","v":""}]
[null,null,"Livre 251",null,null,null,null,"","","","",0,null,{"$f":"IFERROR(IF('Gestion des Livres'!B254=\"\",\"\",IF('Gestion des Livres'!E254>0,RANK(E254,E:E,1)+COUNTIF($E$3:E253,E254)/1000,COUNTIF($E$3:E253,\"\")/1000)),\"\")","v":""}]
[null,null,"Livre 252",null,null,null,null,"","","","",0,null,{"$f":"IFERROR(IF('Gestion des Livres'!B255=\"\",\"\",IF('Gestion des Livres'!E255>0,RANK(E255,E:E,1)+COUNTIF($E$3:E254,E255)/1000,COUNTIF($E$3:E254,\"\")/1000)),\"\")","v":""}]
[null,null,"Livre 253",null,null,null,null,"","","","",0,null,{"$f":"IFERROR(IF('Gestion des Livres'!B256=\"\",\"\",IF('Gestion des Livres'!E256>0,RANK(E256,E:E,1)+COUNTIF($E$3:E255,E256)/1000,COUNTIF($E$3:E255,\"\")/1000)),\"\")","v":""}]
[null,null,"Livre 254",null,null,null,null,"","","","",0,null,{"$f":"IFERROR(IF('Gestion des Livres'!B257=\"\",\"\",IF('Gestion des Livres'!E257>0,RANK(E257,E:E,1)+COUNTIF($E$3:E256,E257)/1000,COUNTIF($E$3:E256,\"\")/1000)),\"\")","v":""}]
[null,null,"Livre 255",null,null,null,null,"","","","",0,null,{"$f":"IFERROR(IF('Gestion des Livres'!B258=\"\",\"\",IF('Gestion des Livres'!E258>0,RANK(E258,E:E,1)+COUNTIF($E$3:E257,E258)/1000,COUNTIF($E$3:E257,\"\")/1000)),\"\")","v":""}]
[null,null,"Livre 256",null,null,null,null,"","","","",0,null,{"$f":"IFERROR(IF('Gestion des Livres'!B259=\"\",\"\",IF('Gestion des Livres'!E259>0,RANK(E259,E:E,1)+COUNTIF($E$3:E258,E259)/1000,COUNTIF($E$3:E258,\"\")/1000)),\"\")","v":""}]
[null,null,"Livre 257",null,null,null,null,"","","","",0,null,{"$f":"IFERROR(IF('Gestion des Livres'!B260=\"\",\"\",IF('Gestion des Livres'!E260>0,RANK(E260,E:E,1)+COUNTIF($E$3:E259,E260)/1000,COUNTIF($E$3:E259,\"\")/1000)),\"\")","v":""}]
[null,null,"Livre 258",null,null,null,null,"","","",{"$f":"IF(L261>=130,\"Urgent\",\"\")","v":""},0,null,{"$f":"IFERROR(IF('Gestion des Livres'!B261=\"\",\"\",IF('Gestion des Livres'!E261>0,RANK(E261,E:E,1)+COUNTIF($E$3:E260,E261)/1000,COUNTIF($E$3:E260,\"\")/1000)),\"\")","v":""}]
[null,null,"Livre 259",null,null,null,null,"","","","",0,null,{"$f":"IFERROR(IF('Gestion des Livres'!B262=\"\",\"\",IF('Gestion des Livres'!E262>0,RANK(E262,E:E,1)+COUNTIF($E$3:E261,E262)/1000,COUNTIF($E$3:E261,\"\")/1000)),\"\")","v":""}]
[null,null,"Livre 260",null,null,null,null,"","","","",0,null,{"$f":"IFERROR(IF('Gestion des Livres'!B263=\"\",\"\",IF('Gestion des Livres'!E263>0,RANK(E263,E:E,1)+COUNTIF($E$3:E262,E263)/1000,COUNTIF($E$3:E262,\"\")/1000)),\"\")","v":""}]
[null,null,"Livre 261",null,null,null,null,"","","","",0,null,{"$f":"IFERROR(IF('Gestion des Livres'!B264=\"\",\"\",IF('Gestion des Livres'!E264>0,RANK(E264,E:E,1)+COUNTIF($E$3:E263,E264)/1000,COUNTIF($E$3:E263,\"\")/1000)),\"\")","v":""}]
[null,null,"Livre 262",null,null,null,null,"","","","",0,null,{"$f":"IFERROR(IF('Gestion des Livres'!B265=\"\",\"\",IF('Gestion des Livres'!E265>0,RANK(E265,E:E,1)+COUNTIF($E$3:E264,E265)/1000,COUNTIF($E$3:E264,\"\")/1000)),\"\")","v":""}]
[null,null,"Livre 263",null,null,null,null,"","","","",0,null,{"$f":"IFERROR(IF('Gestion des Livres'!B266=\"\",\"\",IF('Gestion des Livres'!E266>0,RANK(E266,E:E,1)+COUNTIF($E$3:E265,E266)/1000,COUNTIF($E$3:E265,\"\")/1000)),\"\")","v":""}]
[null,null,"Livre 264",null,null,null,null,"","","","",0,null,{"$f":"IFERROR(IF('Gestion des Livres'!B267=\"\",\"\",IF('Gestion des Livres'!E267>0,RANK(E267,E:E,1)+COUNTIF($E$3:E266,E267)/1000,COUNTIF($E$3:E266,\"\")/1000)),\"\")","v":""}]
[null,null,"Livre 265",null,null,null,null,"","","","",0,null,{"$f":"IFERROR(IF('Gestion des Livres'!B268=\"\",\"\",IF('Gestion des Livres'!E268>0,RANK(E268,E:E,1)+COUNTIF($E$3:E267,E268)/1000,COUNTIF($E$3:E267,\"\")/1000)),\"\")","v":""}]
[null,null,"Livre 266",null,null,null,null,"","","","",0,null,{"$f":"IFERROR(IF('Gestion des Livres'!B269=\"\",\"\",IF('Gestion des Livres'!E269>0,RANK(E269,E:E,1)+COUNTIF($E$3:E268,E269)/1000,COUNTIF($E$3:E268,\"\")/1000)),\"\")","v":""}]
[null,null,"Livre 267",null,null,null,null,{"$f":"IF(F270=\"\",\"\",F270+115)","v":""},{"$f":"IF(AND(L270>=115,L270<=129),\"A faire rentrer\",\"\")","v":""},{"$f":"IF(F270=\"\",\"\",F270+130)","v":""},"",{"$f":"IF(F270=\"\",0,DATEDIF(F270,$D$1,\"D\"))","v":0},null,{"$f":"IFERROR(IF('Gestion des Livres'!B270=\"\",\"\",IF('Gestion des Livres'!E270>0,RANK(E270,E:E,1)+COUNTIF($E$3:E269,E270)/1000,COUNTIF($E$3:E269,\"\")/1000)),\"\")","v":""}]
[null,null,"Livre 268",null,null,null,null,"","","","",0,null,{"$f":"IFERROR(IF('Gestion des Livres'!B271=\"\",\"\",IF('Gestion des Livres'!E271>0,RANK(E271,E:E,1)+COUNTIF($E$3:E270,E271)/1000,COUNTIF($E$3:E270,\"\")/1000)),\"\")","v":""}]
[null,null,"Livre 269",null,null,null,null,"","","","",0,null,{"$f":"IFERROR(IF('Gestion des Livres'!B272=\"\",\"\",IF('Gestion des Livres'!E272>0,RANK(E272,E:E,1)+COUNTIF($E$3:E271,E272)/1000,COUNTIF($E$3:E271,\"\")/1000)),\"\")","v":""}]
[null,null,"Livre 270",null,null,null,null,"","","","",0,null,{"$f":"IFERROR(IF('Gestion des Livres'!B273=\"\",\"\",IF('Gestion des Livres'!E273>0,RANK(E273,E:E,1)+COUNTIF($E$3:E272,E273)/1000,COUNTIF($E$3:E272,\"\")/1000)),\"\")","v":""}]
[null,null,"Livre 271",null,null,null,null,"","","","",0,null,{"$f":"IFERROR(IF('Gestion des Livres'!B274=\"\",\"\",IF('Gestion des Livres'!E274>0,RANK(E274,E:E,1)+COUNTIF($E$3:E273,E274)/1000,COUNTIF($E$3:E273,\"\")/1000)),\"\")","v":""}]
[null,null,"Livre 272",null,null,null,null,"","","","",0,null,{"$f":"IFERROR(IF('Gestion des Livres'!B275=\"\",\"\",IF('Gestion des Livres'!E275>0,RANK(E275,E:E,1)+COUNTIF($E$3:E274,E275)/1000,COUNTIF($E$3:E274,\"\")/1000)),\"\")","v":""}]
[null,null,"Livre 273",null,null,null,null,"","","","",0,null,{"$f":"IFERROR(IF('Gestion des Livres'!B276=\"\",\"\",IF('Gestion des Livres'!E276>0,RANK(E276,E:E,1)+COUNTIF($E$3:E275,E276)/1000,COUNTIF($E$3:E275,\"\")/1000)),\"\")","v":""}]
[null,null,"Livre 274",null,null,null,null,"","","","",0,null,{"$f":"IFERROR(IF('Gestion des Livres'!B277=\"\",\"\",IF('Gestion des Livres'!E277>0,RANK(E277,E:E,1)+COUNTIF($E$3:E276,E277)/1000,COUNTIF($E$3:E276,\"\")/1000)),\"\")","v":""}]
[null,null,"Livre 275",null,null,null,null,"","","","",0,null,{"$f":"IFERROR(IF('Gestion des Livres'!B278=\"\",\"\",IF('Gestion des Livres'!E278>0,RANK(E278,E:E,1)+COUNTIF($E$3:E277,E278)/1000,COUNTIF($E$3:E277,\"\")/1000)),\"\")","v":""}]
[null,null,"Livre 276",null,null,null,null,"","","","",0,null,{"$f":"IFERROR(IF('Gestion des Livres'!B279=\"\",\"\",IF('Gestion des Livres'!E279>0,RANK(E279,E:E,1)+COUNTIF($E$3:E278,E279)/1000,COUNTIF($E$3:E278,\"\")/1000)),\"\")","v":""}]
[null,null,"Livre 277",null,null,null,null,"","","","",0,null,{"$f":"IFERROR(IF('Gestion des Livres'!B280=\"\",\"\",IF('Gestion des Livres'!E280>0,RANK(E280,E:E,1)+COUNTIF($E$3:E279,E280)/1000,COUNTIF($E$3:E279,\"\")/1000)),\"\")","v":""}]
[null,null,"Livre 278",null,null,null,null,"","","","",0,null,{"$f":"IFERROR(IF('Gestion des Livres'!B281=\"\",\"\",IF('Gestion des Livres'!E281>0,RANK(E281,E:E,1)+COUNTIF($E$3:E280,E281)/1000,COUNTIF($E$3:E280,\"\")/1000)),\"\")","v":""}]
[null,null,"Livre 279",null,null,null,null,"","","","",0,null,{"$f":"IFERROR(IF('Gestion des Livres'!B282=\"\",\"\",IF('Gestion des Livres'!E282>0,RANK(E282,E:E,1)+COUNTIF($E$3:E281,E282)/1000,COUNTIF($E$3:E281,\"\")/1000)),\"\")","v":""}]
[null,null,"Livre 280",null,null,null,null,"","","","",0,null,{"$f":"IFERROR(IF('Gestion des Livres'!B283=\"\",\"\",IF('Gestion des Livres'!E283>0,RANK(E283,E:E,1)+COUNTIF($E$3:E282,E283)/1000,COUNTIF($E$3:E282,\"\")/1000)),\"\")","v":""}]
[null,null,"Livre 281",null,null,null,null,"","","","",0,null,{"$f":"IFERROR(IF('Gestion des Livres'!B284=\"\",\"\",IF('Gestion des Livres'!E284>0,RANK(E284,E:E,1)+COUNTIF($E$3:E283,E284)/1000,COUNTIF($E$3:E283,\"\")/1000)),\"\")","v":""}]
[null,null,"Livre 282",null,null,null,null,"","","","",0,null,{"$f":"IFERROR(IF('Gestion des Livres'!B285=\"\",\"\",IF('Gestion des Livres'!E285>0,RANK(E285,E:E,1)+COUNTIF($E$3:E284,E285)/1000,COUNTIF($E$3:E284,\"\")/1000)),\"\")","v":""}]
[null,null,"Livre 283",null,null,null,null,"","","","",0,null,{"$f":"IFERROR(IF('Gestion des Livres'!B286=\"\",\"\",IF('Gestion des Livres'!E286>0,RANK(E286,E:E,1)+COUNTIF($E$3:E285,E286)/1000,COUNTIF($E$3:E285,\"\")/1000)),\"\")","v":""}]
[null,null,"Livre 284",null,null,null,null,"","","","",0,null,{"$f":"IFERROR(IF('Gestion des Livres'!B287=\"\",\"\",IF('Gestion des Livres'!E287>0,RANK(E287,E:E,1)+COUNTIF($E$3:E286,E287)/1000,COUNTIF($E$3:E286,\"\")/1000)),\"\")","v":""}]
[null,null,"Livre 285",null,null,null,null,"","","","",0,null,{"$f":"IFERROR(IF('Gestion des Livres'!B288=\"\",\"\",IF('Gestion des Livres'!E288>0,RANK(E288,E:E,1)+COUNTIF($E$3:E287,E288)/1000,COUNTIF($E$3:E287,\"\")/1000)),\"\")","v":""}]
[null,null,"Livre 286",null,null,null,null,"","","","",0,null,{"$f":"IFERROR(IF('Gestion des Livres'!B289=\"\",\"\",IF('Gestion des Livres'!E289>0,RANK(E289,E:E,1)+COUNTIF($E$3:E288,E289)/1000,COUNTIF($E$3:E288,\"\")/1000)),\"\")","v":""}]
[null,null,"Livre 287",null,null,null,null,"","","","",0,null,{"$f":"IFERROR(IF('Gestion des Livres'!B290=\"\",\"\",IF('Gestion des Livres'!E290>0,RANK(E290,E:E,1)+COUNTIF($E$3:E289,E290)/1000,COUNTIF($E$3:E289,\"\")/1000)),\"\")","v":""}]
[null,null,"Livre 288",null,null,null,null,"","","","",0,null,{"$f":"IFERROR(IF('Gestion des Livres'!B291=\"\",\"\",IF('Gestion des Livres'!E291>0,RANK(E291,E:E,1)+COUNTIF($E$3:E290,E291)/1000,COUNTIF($E$3:E290,\"\")/1000)),\"\")","v":""}]
[null,null,"Livre 289",null,null,null,null,"","","","",0,null,{"$f":"IFERROR(IF('Gestion des Livres'!B292=\"\",\"\",IF('Gestion des Livres'!E292>0,RANK(E292,E:E,1)+COUNTIF($E$3:E291,E292)/1000,COUNTIF($E$3:E291,\"\")/1000)),\"\")","v":""}]
[null,null,"Livre 290",null,null,null,null,"","","","",0,null,{"$f":"IFERROR(IF('Gestion des Livres'!B293=\"\",\"\",IF('Gestion des Livres'!E293>0,RANK(E293,E:E,1)+COUNTIF($E$3:E292,E293)/1000,COUNTIF($E$3:E292,\"\")/1000)),\"\")","v":""}]
[null,null,"Livre 291",null,null,null,null,"","","","",0,null,{"$f":"IFERROR(IF('Gestion des Livres'!B294=\"\",\"\",IF('Gestion des Livres'!E294>0,RANK(E294,E:E,1)+COUNTIF($E$3:E293,E294)/1000,COUNTIF($E$3:E293,\"\")/1000)),\"\")","v":""}]
[null,null,"Livre 292",null,null,null,null,"","","","",0,null,{"$f":"IFERROR(IF('Gestion des Livres'!B295=\"\",\"\",IF('Gestion des Livres'!E295>0,RANK(E295,E:E,1)+COUNTIF($E$3:E294,E295)/1000,COUNTIF($E$3:E294,\"\")/1000)),\"\")","v":""}]
[null,null,"Livre 293",null,null,null,null,"","","","",0,null,{"$f":"IFERROR(IF('Gestion des Livres'!B296=\"\",\"\",IF('Gestion des Livres'!E296>0,RANK(E296,E:E,1)+COUNTIF($E$3:E295,E296)/1000,COUNTIF($E$3:E295,\"\")/1000)),\"\")","v":""}]
[null,null,"Livre 294",null,null,null,null,"","","","",0,null,{"$f":"IFERROR(IF('Gestion des Livres'!B297=\"\",\"\",IF('Gestion des Livres'!E297>0,RANK(E297,E:E,1)+COUNTIF($E$3:E296,E297)/1000,COUNTIF($E$3:E296,\"\")/1000)),\"\")","v":""}]
[null,null,"Livre 295",null,null,null,null,"","","","",0,null,{"$f":"IFERROR(IF('Gestion des Livres'!B298=\"\",\"\",IF('Gestion des Livres'!E298>0,RANK(E298,E:E,1)+COUNTIF($E$3:E297,E298)/1000,COUNTIF($E$3:E297,\"\")/1000)),\"\")","v":""}]
[null,null,"Livre 296",null,null,null,null,"","","","",0,null,{"$f":"IFERROR(IF('Gestion des Livres'!B299=\"\",\"\",IF('Gestion des Livres'!E299>0,RANK(E299,E:E,1)+COUNTIF($E$3:E298,E299)/1000,COUNTIF($E$3:E298,\"\")/1000)),\"\")","v":""}]
[null,null,"Livre 297",null,null,null,null,"","","","",0,null,{"$f":"IFERROR(IF('Gestion des Livres'!B300=\"\",\"\",IF('Gestion des Livres'!E300>0,RANK(E300,E:E,1)+COUNTIF($E$3:E299,E300)/1000,COUNTIF($E$3:E299,\"\")/1000)),\"\")","v":""}]
[null,null,"Livre 298",null,null,null,null,"","","","",0,null,{"$f":"IFERROR(IF('Gestion des Livres'!B301=\"\",\"\",IF('Gestion des Livres'!E301>0,RANK(E301,E:E,1)+COUNTIF($E$3:E300,E301)/1000,COUNTIF($E$3:E300,\"\")/1000)),\"\")","v":""}]
[null,null,"Livre 299",null,null,null,null,"","","","",0,null,{"$f":"IFERROR(IF('Gestion des Livres'!B302=\"\",\"\",IF('Gestion des Livres'!E302>0,RANK(E302,E:E,1)+COUNTIF($E$3:E301,E302)/1000,COUNTIF($E$3:E301,\"\")/1000)),\"\")","v":""}]
[null,null,"Livre 300",null,null,null,null,"","","","",0,null,{"$f":"IFERROR(IF('Gestion des Livres'!B303=\"\",\"\",IF('Gestion des Livres'!E303>0,RANK(E303,E:E,1)+COUNTIF($E$3:E302,E303)/1000,COUNTIF($E$3:E302,\"\")/1000)),\"\")","v":""}]
[null,null,"Livre 301",null,null,null,null,"","","","",0,null,{"$f":"IFERROR(IF('Gestion des Livres'!B304=\"\",\"\",IF('Gestion des Livres'!E304>0,RANK(E304,E:E,1)+COUNTIF($E$3:E303,E304)/1000,COUNTIF($E$3:E303,\"\")/1000)),\"\")","v":""}]
[null,null,"Livre 302",null,null,null,null,"","","","",0,null,{"$f":"IFERROR(IF('Gestion des Livres'!B305=\"\",\"\",IF('Gestion des Livres'!E305>0,RANK(E305,E:E,1)+COUNTIF($E$3:E304,E305)/1000,COUNTIF($E$3:E304,\"\")/1000)),\"\")","v":""}]
[null,null,"Livre 303",null,null,null,null,"","","","",0,null,{"$f":"IFERROR(IF('Gestion des Livres'!B306=\"\",\"\",IF('Gestion des Livres'!E306>0,RANK(E306,E:E,1)+COUNTIF($E$3:E305,E306)/1000,COUNTIF($E$3:E305,\"\")/1000)),\"\")","v":""}]
[null,null,"Livre 304",null,null,null,null,"","","","",0,null,{"$f":"IFERROR(IF('Gestion des Livres'!B307=\"\",\"\",IF('Gestion des Livres'!E307>0,RANK(E307,E:E,1)+COUNTIF($E$3:E306,E307)/1000,COUNTIF($E$3:E306,\"\")/1000)),\"\")","v":""}]
[null,null,"Livre 305",null,null,null,null,"","","","",0,null,{"$f":"IFERROR(IF('Gestion des Livres'!B308=\"\",\"\",IF('Gestion des Livres'!E308>0,RANK(E308,E:E,1)+COUNTIF($E$3:E307,E308)/1000,COUNTIF($E$3:E307,\"\")/1000)),\"\")","v":""}]
[null,null,"Livre 306",null,null,null,null,"","","","",0,null,{"$f":"IFERROR(IF('Gestion des Livres'!B309=\"\",\"\",IF('Gestion des Livres'!E309>0,RANK(E309,E:E,1)+COUNTIF($E$3:E308,E309)/1000,COUNTIF($E$3:E308,\"\")/1000)),\"\")","v":""}]
[null,null,"Livre 307",null,null,null,null,"","","","",0,null,{"$f":"IFERROR(IF('Gestion des Livres'!B310=\"\",\"\",IF('Gestion des Livres'!E310>0,RANK(E310,E:E,1)+COUNTIF($E$3:E309,E310)/1000,COUNTIF($E$3:E309,\"\")/1000)),\"\")","v":""}]
[null,null,"Livre 308",null,null,null,null,"","","","",0,null,{"$f":"IFERROR(IF('Gestion des Livres'!B311=\"\",\"\",IF('Gestion des Livres'!E311>0,RANK(E311,E:E,1)+COUNTIF($E$3:E310,E311)/1000,COUNTIF($E$3:E310,\"\")/1000)),\"\")","v":""}]
[null,null,"Livre 309",null,null,null,null,"","","","",0,null,{"$f":"IFERROR(IF('Gestion des Livres'!B312=\"\",\"\",IF('Gestion des Livres'!E312>0,RANK(E312,E:E,1)+COUNTIF($E$3:E311,E312)/1000,COUNTIF($E$3:E311,\"\")/1000)),\"\")","v":""}]
[null,null,"Livre 310",null,null,null,null,"","","","",0,null,{"$f":"IFERROR(IF('Gestion des Livres'!B313=\"\",\"\",IF('Gestion des Livres'!E313>0,RANK(E313,E:E,1)+COUNTIF($E$3:E312,E313)/1000,COUNTIF($E$3:E312,\"\")/1000)),\"\")","v":""}]
[null,null,"Livre 311",null,null,null,null,"","","","",0,null,{"$f":"IFERROR(IF('Gestion des Livres'!B314=\"\",\"\",IF('Gestion des Livres'!E314>0,RANK(E314,E:E,1)+COUNTIF($E$3:E313,E314)/1000,COUNTIF($E$3:E313,\"\")/1000)),\"\")","v":""}]
[null,null,"Livre 312",null,null,null,null,"","","","",0,null,{"$f":"IFERROR(IF('Gestion des Livres'!B315=\"\",\"\",IF('Gestion des Livres'!E315>0,RANK(E315,E:E,1)+COUNTIF($E$3:E314,E315)/1000,COUNTIF($E$3:E314,\"\")/1000)),\"\")","v":""}]
[null,null,"Livre 313",null,null,null,null,"","","","",0,null,{"$f":"IFERROR(IF('Gestion des Livres'!B316=\"\",\"\",IF('Gestion des Livres'!E316>0,RANK(E316,E:E,1)+COUNTIF($E$3:E315,E316)/1000,COUNTIF($E$3:E315,\"\")/1000)),\"\")","v":""}]
[null,null,"Livre 314",null,null,null,null,"","","","",0,null,{"$f":"IFERROR(IF('Gestion des Livres'!B317=\"\",\"\",IF('Gestion des Livres'!E317>0,RANK(E317,E:E,1)+COUNTIF($E$3:E316,E317)/1000,COUNTIF($E$3:E316,\"\")/1000)),\"\")","v":""}]
[null,null,"Livre 315",null,null,null,null,"","","","",0,null,{"$f":"IFERROR(IF('Gestion des Livres'!B318=\"\",\"\",IF('Gestion des Livres'!E318>0,RANK(E318,E:E,1)+COUNTIF($E$3:E317,E318)/1000,COUNTIF($E$3:E317,\"\")/1000)),\"\")","v":""}]
[null,null,"Livre 316",null,null,null,null,"","","","",0,null,{"$f":"IFERROR(IF('Gestion des Livres'!B319=\"\",\"\",IF('Gestion des Livres'!E319>0,RANK(E319,E:E,1)+COUNTIF($E$3:E318,E319)/1000,COUNTIF($E$3:E318,\"\")/1000)),\"\")","v":""}]
[null,null,"Livre 317",null,null,null,null,"","","","",0,null,{"$f":"IFERROR(IF('Gestion des Livres'!B320=\"\",\"\",IF('Gestion des Livres'!E320>0,RANK(E320,E:E,1)+COUNTIF($E$3:E319,E320)/1000,COUNTIF($E$3:E319,\"\")/1000)),\"\")","v":""}]
[null,null,"Livre 318",null,null,null,null,"","","","",0,null,{"$f":"IFERROR(IF('Gestion des Livres'!B321=\"\",\"\",IF('Gestion des Livres'!E321>0,RANK(E321,E:E,1)+COUNTIF($E$3:E320,E321)/1000,COUNTIF($E$3:E320,\"\")/1000)),\"\")","v":""}]
[null,null,"Livre 319",null,null,null,null,"","","","",0,null,{"$f":"IFERROR(IF('Gestion des Livres'!B322=\"\",\"\",IF('Gestion des Livres'!E322>0,RANK(E322,E:E,1)+COUNTIF($E$3:E321,E322)/1000,COUNTIF($E$3:E321,\"\")/1000)),\"\")","v":""}]
[null,null,"Livre 320",null,null,null,null,"","","","",0,null,{"$f":"IFERROR(IF('Gestion des Livres'!B323=\"\",\"\",IF('Gestion des Livres'!E323>0,RANK(E323,E:E,1)+COUNTIF($E$3:E322,E323)/1000,COUNTIF($E$3:E322,\"\")/1000)),\"\")","v":""}]
[null,null,"Livre 321",null,null,null,null,"","","","",0,null,{"$f":"IFERROR(IF('Gestion des Livres'!B324=\"\",\"\",IF('Gestion des Livres'!E324>0,RANK(E324,E:E,1)+COUNTIF($E$3:E323,E324)/1000,COUNTIF($E$3:E323,\"\")/1000)),\"\")","v":""}]
[null,null,"Livre 322",null,null,null,null,"","","",{"$f":"IF(L325>=130,\"Urgent\",\"\")","v":""},0,null,{"$f":"IFERROR(IF('Gestion des Livres'!B325=\"\",\"\",IF('Gestion des Livres'!E325>0,RANK(E325,E:E,1)+COUNTIF($E$3:E324,E325)/1000,COUNTIF($E$3:E324,\"\")/1000)),\"\")","v":""}]
[null,null,"Livre 323",null,null,null,null,"","","","",0,null,{"$f":"IFERROR(IF('Gestion des Livres'!B326=\"\",\"\",IF('Gestion des Livres'!E326>0,RANK(E326,E:E,1)+COUNTIF($E$3:E325,E326)/1000,COUNTIF($E$3:E325,\"\")/1000)),\"\")","v":""}]
[null,null,"Livre 324",null,null,null,null,"","","","",0,null,{"$f":"IFERROR(IF('Gestion des Livres'!B327=\"\",\"\",IF('Gestion des Livres'!E327>0,RANK(E327,E:E,1)+COUNTIF($E$3:E326,E327)/1000,COUNTIF($E$3:E326,\"\")/1000)),\"\")","v":""}]
[null,null,"Livre 325",null,null,null,null,"","","","",0,null,{"$f":"IFERROR(IF('Gestion des Livres'!B328=\"\",\"\",IF('Gestion des Livres'!E328>0,RANK(E328,E:E,1)+COUNTIF($E$3:E327,E328)/1000,COUNTIF($E$3:E327,\"\")/1000)),\"\")","v":""}]
[null,null,"Livre 326",null,null,null,null,"","","","",0,null,{"$f":"IFERROR(IF('Gestion des Livres'!B329=\"\",\"\",IF('Gestion des Livres'!E329>0,RANK(E329,E:E,1)+COUNTIF($E$3:E328,E329)/1000,COUNTIF($E$3:E328,\"\")/1000)),\"\")","v":""}]
[null,null,"Livre 327",null,null,null,null,"","","","",0,null,{"$f":"IFERROR(IF('Gestion des Livres'!B330=\"\",\"\",IF('Gestion des Livres'!E330>0,RANK(E330,E:E,1)+COUNTIF($E$3:E329,E330)/1000,COUNTIF($E$3:E329,\"\")/1000)),\"\")","v":""}]
[null,null,"Livre 328",null,null,null,null,"","","","",0,null,{"$f":"IFERROR(IF('Gestion des Livres'!B331=\"\",\"\",IF('Gestion des Livres'!E331>0,RANK(E331,E:E,1)+COUNTIF($E$3:E330,E331)/1000,COUNTIF($E$3:E330,\"\")/1000)),\"\")","v":""}]
[null,null,"Livre 329",null,null,null,null,"","","","",0,null,{"$f":"IFERROR(IF('Gestion des Livres'!B332=\"\",\"\",IF('Gestion des Livres'!E332>0,RANK(E332,E:E,1)+COUNTIF($E$3:E331,E332)/1000,COUNTIF($E$3:E331,\"\")/1000)),\"\")","v":""}]
[null,null,"Livre 330",null,null,null,null,"","","","",0,null,{"$f":"IFERROR(IF('Gestion des Livres'!B333=\"\",\"\",IF('Gestion des Livres'!E333>0,RANK(E333,E:E,1)+COUNTIF($E$3:E332,E333)/1000,COUNTIF($E$3:E332,\"\")/1000)),\"\")","v":""}]
[null,null,"Livre 331",null,null,null,null,{"$f":"IF(F334=\"\",\"\",F334+115)","v":""},{"$f":"IF(AND(L334>=115,L334<=129),\"A faire rentrer\",\"\")","v":""},{"$f":"IF(F334=\"\",\"\",F334+130)","v":""},"",{"$f":"IF(F334=\"\",0,DATEDIF(F334,$D$1,\"D\"))","v":0},null,{"$f":"IFERROR(IF('Gestion des Livres'!B334=\"\",\"\",IF('Gestion des Livres'!E334>0,RANK(E334,E:E,1)+COUNTIF($E$3:E333,E334)/1000,COUNTIF($E$3:E333,\"\")/1000)),\"\")","v":""}]
[null,null,"Livre 332",null,null,null,null,"","","","",0,null,{"$f":"IFERROR(IF('Gestion des Livres'!B335=\"\",\"\",IF('Gestion des Livres'!E335>0,RANK(E335,E:E,1)+COUNTIF($E$3:E334,E335)/1000,COUNTIF($E$3:E334,\"\")/1000)),\"\")","v":""}]
[null,null,"Livre 333",null,null,null,null,"","","","",0,null,{"$f":"IFERROR(IF('Gestion des Livres'!B336=\"\",\"\",IF('Gestion des Livres'!E336>0,RANK(E336,E:E,1)+COUNTIF($E$3:E335,E336)/1000,COUNTIF($E$3:E335,\"\")/1000)),\"\")","v":""}]
[null,null,"Livre 334",null,null,null,null,"","","","",0,null,{"$f":"IFERROR(IF('Gestion des Livres'!B337=\"\",\"\",IF('Gestion des Livres'!E337>0,RANK(E337,E:E,1)+COUNTIF($E$3:E336,E337)/1000,COUNTIF($E$3:E336,\"\")/1000)),\"\")","v":""}]
[null,null,"Livre 335",null,null,null,null,"","","","",0,null,{"$f":"IFERROR(IF('Gestion des Livres'!B338=\"\",\"\",IF('Gestion des Livres'!E338>0,RANK(E338,E:E,1)+COUNTIF($E$3:E337,E338)/1000,COUNTIF($E$3:E337,\"\")/1000)),\"\")","v":""}]
[null,null,"Livre 336",null,null,null,null,"","","","",0,null,{"$f":"IFERROR(IF('Gestion des Livres'!B339=\"\",\"\",IF('Gestion des Livres'!E339>0,RANK(E339,E:E,1)+COUNTIF($E$3:E338,E339)/1000,COUNTIF($E$3:E338,\"\")/1000)),\"\")","v":""}]
[null,null,"Livre 337",null,null,null,null,"","","","",0,null,{"$f":"IFERROR(IF('Gestion des Livres'!B340=\"\",\"\",IF('Gestion des Livres'!E340>0,RANK(E340,E:E,1)+COUNTIF($E$3:E339,E340)/1000,COUNTIF($E$3:E339,\"\")/1000)),\"\")","v":""}]
[null,null,"Livre 338",null,null,null,null,"","","","",0,null,{"$f":"IFERROR(IF('Gestion des Livres'!B341=\"\",\"\",IF('Gestion des Livres'!E341>0,RANK(E341,E:E,1)+COUNTIF($E$3:E340,E341)/1000,COUNTIF($E$3:E340,\"\")/1000)),\"\")","v":""}]
[null,null,"Livre 339",null,null,null,null,"","","","",0,null,{"$f":"IFERROR(IF('Gestion des Livres'!B342=\"\",\"\",IF('Gestion des Livres'!E342>0,RANK(E342,E:E,1)+COUNTIF($E$3:E341,E342)/1000,COUNTIF($E$3:E341,\"\")/1000)),\"\")","v":""}]
[null,null,"Livre 340",null,null,null,null,"","","","",0,null,{"$f":"IFERROR(IF('Gestion des Livres'!B343=\"\",\"\",IF('Gestion des Livres'!E343>0,RANK(E343,E:E,1)+COUNTIF($E$3:E342,E343)/1000,COUNTIF($E$3:E342,\"\")/1000)),\"\")","v":""}]
[null,null,"Livre 341",null,null,null,null,"","","","",0,null,{"$f":"IFERROR(IF('Gestion des Livres'!B344=\"\",\"\",IF('Gestion des Livres'!E344>0,RANK(E344,E:E,1)+COUNTIF($E$3:E343,E344)/1000,COUNTIF($E$3:E343,\"\")/1000)),\"\")","v":""}]
[null,null,"Livre 342",null,null,null,null,"","","","",0,null,{"$f":"IFERROR(IF('Gestion des Livres'!B345=\"\",\"\",IF('Gestion des Livres'!E345>0,RANK(E345,E:E,1)+COUNTIF($E$3:E344,E345)/1000,COUNTIF($E$3:E344,\"\")/1000)),\"\")","v":""}]
[null,null,"Livre 343",null,null,null,null,"","","","",0,null,{"$f":"IFERROR(IF('Gestion des Livres'!B346=\"\",\"\",IF('Gestion des Livres'!E346>0,RANK(E346,E:E,1)+COUNTIF($E$3:E345,E346)/1000,COUNTIF($E$3:E345,\"\")/1000)),\"\")","v":""}]
[null,null,"Livre 344",null,null,null,null,"","","","",0,null,{"$f":"IFERROR(IF('Gestion des Livres'!B347=\"\",\"\",IF('Gestion des Livres'!E347>0,RANK(E347,E:E,1)+COUNTIF($E$3:E346,E347)/1000,COUNTIF($E$3:E346,\"\")/1000)),\"\")","v":""}]
[null,null,"Livre 345",null,null,null,null,"","","","",0,null,{"$f":"IFERROR(IF('Gestion des Livres'!B348=\"\",\"\",IF('Gestion des Livres'!E348>0,RANK(E348,E:E,1)+COUNTIF($E$3:E347,E348)/1000,COUNTIF($E$3:E347,\"\")/1000)),\"\")","v":""}]
[null,null,"Livre 346",null,null,null,null,"","","","",0,null,{"$f":"IFERROR(IF('Gestion des Livres'!B349=\"\",\"\",IF('Gestion des Livres'!E349>0,RANK(E349,E:E,1)+COUNTIF($E$3:E348,E349)/1000,COUNTIF($E$3:E348,\"\")/1000)),\"\")","v":""}]
[null,null,"Livre 347",null,null,null,null,"","","","",0,null,{"$f":"IFERROR(IF('Gestion des Livres'!B350=\"\",\"\",IF('Gestion des Livres'!E350>0,RANK(E350,E:E,1)+COUNTIF($E$3:E349,E350)/1000,COUNTIF($E$3:E349,\"\")/1000)),\"\")","v":""}]
[null,null,"Livre 348",null,null,null,null,"","","","",0,null,{"$f":"IFERROR(IF('Gestion des Livres'!B351=\"\",\"\",IF('Gestion des Livres'!E351>0,RANK(E351,E:E,1)+COUNTIF($E$3:E350,E351)/1000,COUNTIF($E$3:E350,\"\")/1000)),\"\")","v":""}]
[null,null,"Livre 349",null,null,null,null,"","","","",0,null,{"$f":"IFERROR(IF('Gestion des Livres'!B352=\"\",\"\",IF('Gestion des Livres'!E352>0,RANK(E352,E:E,1)+COUNTIF($E$3:E351,E352)/1000,COUNTIF($E$3:E351,\"\")/1000)),\"\")","v":""}]
[null,null,"Livre 350",null,null,null,null,"","","","",0,null,{"$f":"IFERROR(IF('Gestion des Livres'!B353=\"\",\"\",IF('Gestion des Livres'!E353>0,RANK(E353,E:E,1)+COUNTIF($E$3:E352,E353)/1000,COUNTIF($E$3:E352,\"\")/1000)),\"\")","v":""}]
[null,null,"Livre 351",null,null,null,null,"","","","",0,null,{"$f":"IFERROR(IF('Gestion des Livres'!B354=\"\",\"\",IF('Gestion des Livres'!E354>0,RANK(E354,E:E,1)+COUNTIF($E$3:E353,E354)/1000,COUNTIF($E$3:E353,\"\")/1000)),\"\")","v":""}]
[null,null,"Livre 352",null,null,null,null,"","","","",0,null,{"$f":"IFERROR(IF('Gestion des Livres'!B355=\"\",\"\",IF('Gestion des Livres'!E355>0,RANK(E355,E:E,1)+COUNTIF($E$3:E354,E355)/1000,COUNTIF($E$3:E354,\"\")/1000)),\"\")","v":""}]
[null,null,"Livre 353",null,null,null,null,"","","","",0,null,{"$f":"IFERROR(IF('Gestion des Livres'!B356=\"\",\"\",IF('Gestion des Livres'!E356>0,RANK(E356,E:E,1)+COUNTIF($E$3:E355,E356)/1000,COUNTIF($E$3:E355,\"\")/1000)),\"\")","v":""}]
[null,null,"Livre 354",null,null,null,null,"","","","",0,null,{"$f":"IFERROR(IF('Gestion des Livres'!B357=\"\",\"\",IF('Gestion des Livres'!E357>0,RANK(E357,E:E,1)+COUNTIF($E$3:E356,E357)/1000,COUNTIF($E$3:E356,\"\")/1000)),\"\")","v":""}]
[null,null,"Livre 355",null,null,null,null,"","","","",0,null,{"$f":"IFERROR(IF('Gestion des Livres'!B358=\"\",\"\",IF('Gestion des Livres'!E358>0,RANK(E358,E:E,1)+COUNTIF($E$3:E357,E358)/1000,COUNTIF($E$3:E357,\"\")/1000)),\"\")","v":""}]
[null,null,"Livre 356",null,null,null,null,"","","","",0,null,{"$f":"IFERROR(IF('Gestion des Livres'!B359=\"\",\"\",IF('Gestion des Livres'!E359>0,RANK(E359,E:E,1)+COUNTIF($E$3:E358,E359)/1000,COUNTIF($E$3:E358,\"\")/1000)),\"\")","v":""}]
[null,null,"Livre 357",null,null,null,null,"","","","",0,null,{"$f":"IFERROR(IF('Gestion des Livres'!B360=\"\",\"\",IF('Gestion des Livres'!E360>0,RANK(E360,E:E,1)+COUNTIF($E$3:E359,E360)/1000,COUNTIF($E$3:E359,\"\")/1000)),\"\")","v":""}]
[null,null,"Livre 358",null,null,null,null,"","","","",0,null,{"$f":"IFERROR(IF('Gestion des Livres'!B361=\"\",\"\",IF('Gestion des Livres'!E361>0,RANK(E361,E:E,1)+COUNTIF($E$3:E360,E361)/1000,COUNTIF($E$3:E360,\"\")/1000)),\"\")","v":""}]
[null,null,"Livre 359",null,null,null,null,"","","","",0,null,{"$f":"IFERROR(IF('Gestion des Livres'!B362=\"\",\"\",IF('Gestion des Livres'!E362>0,RANK(E362,E:E,1)+COUNTIF($E$3:E361,E362)/1000,COUNTIF($E$3:E361,\"\")/1000)),\"\")","v":""}]
[null,null,"Livre 360",null,null,null,null,"","","","",0,null,{"$f":"IFERROR(IF('Gestion des Livres'!B363=\"\",\"\",IF('Gestion des Livres'!E363>0,RANK(E363,E:E,1)+COUNTIF($E$3:E362,E363)/1000,COUNTIF($E$3:E362,\"\")/1000)),\"\")","v":""}]
[null,null,"Livre 361",null,null,null,null,"","","","",0,null,{"$f":"IFERROR(IF('Gestion des Livres'!B364=\"\",\"\",IF('Gestion des Livres'!E364>0,RANK(E364,E:E,1)+COUNTIF($E$3:E363,E364)/1000,COUNTIF($E$3:E363,\"\")/1000)),\"\")","v":""}]
[null,null,"Livre 362",null,null,null,null,"","","","",0,null,{"$f":"IFERROR(IF('Gestion des Livres'!B365=\"\",\"\",IF('Gestion des Livres'!E365>0,RANK(E365,E:E,1)+COUNTIF($E$3:E364,E365)/1000,COUNTIF($E$3:E364,\"\")/1000)),\"\")","v":""}]
[null,null,"Livre 363",null,null,null,null,"","","","",0,null,{"$f":"IFERROR(IF('Gestion des Livres'!B366=\"\",\"\",IF('Gestion des Livres'!E366>0,RANK(E366,E:E,1)+COUNTIF($E$3:E365,E366)/1000,COUNTIF($E$3:E365,\"\")/1000)),\"\")","v":""}]
[null,null,"Livre 364",null,null,null,null,"","","","",0,null,{"$f":"IFERROR(IF('Gestion des Livres'!B367=\"\",\"\",IF('Gestion des Livres'!E367>0,RANK(E367,E:E,1)+COUNTIF($E$3:E366,E367)/1000,COUNTIF($E$3:E366,\"\")/1000)),\"\")","v":""}]
[null,null,"Livre 365",null,null,null,null,"","","","",0,null,{"$f":"IFERROR(IF('Gestion des Livres'!B368=\"\",\"\",IF('Gestion des Livres'!E368>0,RANK(E368,E:E,1)+COUNTIF($E$3:E367,E368)/1000,COUNTIF($E$3:E367,\"\")/1000)),\"\")","v":""}]
[null,null,"Livre 366",null,null,null,null,"","","","",0,null,{"$f":"IFERROR(IF('Gestion des Livres'!B369=\"\",\"\",IF('Gestion des Livres'!E369>0,RANK(E369,E:E,1)+COUNTIF($E$3:E368,E369)/1000,COUNTIF($E$3:E368,\"\")/1000)),\"\")","v":""}]
[null,null,"Livre 367",null,null,null,null,"","","","",0,null,{"$f":"IFERROR(IF('Gestion des Livres'!B370=\"\",\"\",IF('Gestion des Livres'!E370>0,RANK(E370,E:E,1)+COUNTIF($E$3:E369,E370)/1000,COUNTIF($E$3:E369,\"\")/1000)),\"\")","v":""}]
[null,null,"Livre 368",null,null,null,null,"","","","",0,null,{"$f":"IFERROR(IF('Gestion des Livres'!B371=\"\",\"\",IF('Gestion des Livres'!E371>0,RANK(E371,E:E,1)+COUNTIF($E$3:E370,E371)/1000,COUNTIF($E$3:E370,\"\")/1000)),\"\")","v":""}]
[null,null,"Livre 369",null,null,null,null,"","","","",0,null,{"$f":"IFERROR(IF('Gestion des Livres'!B372=\"\",\"\",IF('Gestion des Livres'!E372>0,RANK(E372,E:E,1)+COUNTIF($E$3:E371,E372)/1000,COUNTIF($E$3:E371,\"\")/1000)),\"\")","v":""}]
[null,null,"Livre 370",null,null,null,null,"","","","",0,null,{"$f":"IFERROR(IF('Gestion des Livres'!B373=\"\",\"\",IF('Gestion des Livres'!E373>0,RANK(E373,E:E,1)+COUNTIF($E$3:E372,E373)/1000,COUNTIF($E$3:E372,\"\")/1000)),\"\")","v":""}]
[null,null,"Livre 371",null,null,null,null,"","","","",0,null,{"$f":"IFERROR(IF('Gestion des Livres'!B374=\"\",\"\",IF('Gestion des Livres'!E374>0,RANK(E374,E:E,1)+COUNTIF($E$3:E373,E374)/1000,COUNTIF($E$3:E373,\"\")/1000)),\"\")","v":""}]
[null,null,"Livre 372",null,null,null,null,"","","","",0,null,{"$f":"IFERROR(IF('Gestion des Livres'!B375=\"\",\"\",IF('Gestion des Livres'!E375>0,RANK(E375,E:E,1)+COUNTIF($E$3:E374,E375)/1000,COUNTIF($E$3:E374,\"\")/1000)),\"\")","v":""}]
[null,null,"Livre 373",null,null,null,null,"","","","",0,null,{"$f":"IFERROR(IF('Gestion des Livres'!B376=\"\",\"\",IF('Gestion des Livres'!E376>0,RANK(E376,E:E,1)+COUNTIF($E$3:E375,E376)/1000,COUNTIF($E$3:E375,\"\")/1000)),\"\")","v":""}]
[null,null,"Livre 374",null,null,null,null,"","","","",0,null,{"$f":"IFERROR(IF('Gestion des Livres'!B377=\"\",\"\",IF('Gestion des Livres'!E377>0,RANK(E377,E:E,1)+COUNTIF($E$3:E376,E377)/1000,COUNTIF($E$3:E376,\"\")/1000)),\"\")","v":""}]
[null,null,"Livre 375",null,null,null,null,"","","","",0,null,{"$f":"IFERROR(IF('Gestion des Livres'!B378=\"\",\"\",IF('Gestion des Livres'!E378>0,RANK(E378,E:E,1)+COUNTIF($E$3:E377,E378)/1000,COUNTIF($E$3:E377,\"\")/1000)),\"\")","v":""}]
[null,null,"Livre 376",null,null,null,null,"","","","",0,null,{"$f":"IFERROR(IF('Gestion des Livres'!B379=\"\",\"\",IF('Gestion des Livres'!E379>0,RANK(E379,E:E,1)+COUNTIF($E$3:E378,E379)/1000,COUNTIF($E$3:E378,\"\")/1000)),\"\")","v":""}]
[null,null,"Livre 377",null,null,null,null,"","","","",0,null,{"$f":"IFERROR(IF('Gestion des Livres'!B380=\"\",\"\",IF('Gestion des Livres'!E380>0,RANK(E380,E:E,1)+COUNTIF($E$3:E379,E380)/1000,COUNTIF($E$3:E379,\"\")/1000)),\"\")","v":""}]
[null,null,"Livre 378",null,null,null,null,"","","","",0,null,{"$f":"IFERROR(IF('Gestion des Livres'!B381=\"\",\"\",IF('Gestion des Livres'!E381>0,RANK(E381,E:E,1)+COUNTIF($E$3:E380,E381)/1000,COUNTIF($E$3:E380,\"\")/1000)),\"\")","v":""}]
[null,null,"Livre 379",null,null,null,null,"","","","",0,null,{"$f":"IFERROR(IF('Gestion des Livres'!B382=\"\",\"\",IF('Gestion des Livres'!E382>0,RANK(E382,E:E,1)+COUNTIF($E$3:E381,E382)/1000,COUNTIF($E$3:E381,\"\")/1000)),\"\")","v":""}]
[null,null,"Livre 380",null,null,null,null,"","","","",0,null,{"$f":"IFERROR(IF('Gestion des Livres'!B383=\"\",\"\",IF('Gestion des Livres'!E383>0,RANK(E383,E:E,1)+COUNTIF($E$3:E382,E383)/1000,COUNTIF($E$3:E382,\"\")/1000)),\"\")","v":""}]
[null,null,"Livre 381",null,null,null,null,"","","","",0,null,{"$f":"IFERROR(IF('Gestion des Livres'!B384=\"\",\"\",IF('Gestion des Livres'!E384>0,RANK(E384,E:E,1)+COUNTIF($E$3:E383,E384)/1000,COUNTIF($E$3:E383,\"\")/1000)),\"\")","v":""}]
[null,null,"Livre 382",null,null,null,null,"","","","",0,null,{"$f":"IFERROR(IF('Gestion des Livres'!B385=\"\",\"\",IF('Gestion des Livres'!E385>0,RANK(E385,E:E,1)+COUNTIF($E$3:E384,E385)/1000,COUNTIF($E$3:E384,\"\")/1000)),\"\")","v":""}]
[null,null,"Livre 383",null,null,null,null,"","","","",0,null,{"$f":"IFERROR(IF('Gestion des Livres'!B386=\"\",\"\",IF('Gestion des Livres'!E386>0,RANK(E386,E:E,1)+COUNTIF($E$3:E385,E386)/1000,COUNTIF($E$3:E385,\"\")/1000)),\"\")","v":""}]
[null,null,"Livre 384",null,null,null,null,"","","","",0,null,{"$f":"IFERROR(IF('Gestion des Livres'!B387=\"\",\"\",IF('Gestion des Livres'!E387>0,RANK(E387,E:E,1)+COUNTIF($E$3:E386,E387)/1000,COUNTIF($E$3:E386,\"\")/1000)),\"\")","v":""}]
[null,null,"Livre 385",null,null,null,null,"","","","",0,null,{"$f":"IFERROR(IF('Gestion des Livres'!B388=\"\",\"\",IF('Gestion des Livres'!E388>0,RANK(E388,E:E,1)+COUNTIF($E$3:E387,E388)/1000,COUNTIF($E$3:E387,\"\")/1000)),\"\")","v":""}]
[null,null,"Livre 386",null,null,null,null,"","","",{"$f":"IF(L389>=130,\"Urgent\",\"\")","v":""},0,null,{"$f":"IFERROR(IF('Gestion des Livres'!B389=\"\",\"\",IF('Gestion des Livres'!E389>0,RANK(E389,E:E,1)+COUNTIF($E$3:E388,E389)/1000,COUNTIF($E$3:E388,\"\")/1000)),\"\")","v":""}]
[null,null,"Livre 387",null,null,null,null,"","","","",0,null,{"$f":"IFERROR(IF('Gestion des Livres'!B390=\"\",\"\",IF('Gestion des Livres'!E390>0,RANK(E390,E:E,1)+COUNTIF($E$3:E389,E390)/1000,COUNTIF($E$3:E389,\"\")/1000)),\"\")","v":""}]
[null,null,"Livre 388",null,null,null,null,"","","","",0,null,{"$f":"IFERROR(IF('Gestion des Livres'!B391=\"\",\"\",IF('Gestion des Livres'!E391>0,RANK(E391,E:E,1)+COUNTIF($E$3:E390,E391)/1000,COUNTIF($E$3:E390,\"\")/1000)),\"\")","v":""}]
[null,null,"Livre 389",null,null,null,null,"","","","",0,null,{"$f":"IFERROR(IF('Gestion des Livres'!B392=\"\",\"\",IF('Gestion des Livres'!E392>0,RANK(E392,E:E,1)+COUNTIF($E$3:E391,E392)/1000,COUNTIF($E$3:E391,\"\")/1000)),\"\")","v":""}]
[null,null,"Livre 390",null,null,null,null,"","","","",0,null,{"$f":"IFERROR(IF('Gestion des Livres'!B393=\"\",\"\",IF('Gestion des Livres'!E393>0,RANK(E393,E:E,1)+COUNTIF($E$3:E392,E393)/1000,COUNTIF($E$3:E392,\"\")/1000)),\"\")","v":""}]
[null,null,"Livre 391",null,null,null,null,"","","","",0,null,{"$f":"IFERROR(IF('Gestion des Livres'!B394=\"\",\"\",IF('Gestion des Livres'!E394>0,RANK(E394,E:E,1)+COUNTIF($E$3:E393,E394)/1000,COUNTIF($E$3:E393,\"\")/1000)),\"\")","v":""}]
[null,null,"Livre 392",null,null,null,null,"","","","",0,null,{"$f":"IFERROR(IF('Gestion des Livres'!B395=\"\",\"\",IF('Gestion des Livres'!E395>0,RANK(E395,E:E,1)+COUNTIF($E$3:E394,E395)/1000,COUNTIF($E$3:E394,\"\")/1000)),\"\")","v":""}]
[null,null,"Livre 393",null,null,null,null,"","","","",0,null,{"$f":"IFERROR(IF('Gestion des Livres'!B396=\"\",\"\",IF('Gestion des Livres'!E396>0,RANK(E396,E:E,1)+COUNTIF($E$3:E395,E396)/1000,COUNTIF($E$3:E395,\"\")/1000)),\"\")","v":""}]
[null,null,"Livre 394",null,null,null,null,"","","","",0,null,{"$f":"IFERROR(IF('Gestion des Livres'!B397=\"\",\"\",IF('Gestion des Livres'!E397>0,RANK(E397,E:E,1)+COUNTIF($E$3:E396,E397)/1000,COUNTIF($E$3:E396,\"\")/1000)),\"\")","v":""}]
[null,null,"Livre 395",null,null,null,null,{"$f":"IF(F398=\"\",\"\",F398+115)","v":""},{"$f":"IF(AND(L398>=115,L398<=129),\"A faire rentrer\",\"\")","v":""},{"$f":"IF(F398=\"\",\"\",F398+130)","v":""},"",{"$f":"IF(F398=\"\",0,DATEDIF(F398,$D$1,\"D\"))","v":0},null,{"$f":"IFERROR(IF('Gestion des Livres'!B398=\"\",\"\",IF('Gestion des Livres'!E398>0,RANK(E398,E:E,1)+COUNTIF($E$3:E397,E398)/1000,COUNTIF($E$3:E397,\"\")/1000)),\"\")","v":""}]
[null,null,"Livre 396",null,null,null,null,"","","","",0,null,{"$f":"IFERROR(IF('Gestion des Livres'!B399=\"\",\"\",IF('Gestion des Livres'!E399>0,RANK(E399,E:E,1)+COUNTIF($E$3:E398,E399)/1000,COUNTIF($E$3:E398,\"\")/1000)),\"\")","v":""}]
[null,null,"Livre 397",null,null,null,null,"","","","",0,null,{"$f":"IFERROR(IF('Gestion des Livres'!B400=\"\",\"\",IF('Gestion des Livres'!E400>0,RANK(E400,E:E,1)+COUNTIF($E$3:E399,E400)/1000,COUNTIF($E$3:E399,\"\")/1000)),\"\")","v":""}]
[null,null,"Livre 398",null,null,null,null,"","","","",0,null,{"$f":"IFERROR(IF('Gestion des Livres'!B401=\"\",\"\",IF('Gestion des Livres'!E401>0,RANK(E401,E:E,1)+COUNTIF($E$3:E400,E401)/1000,COUNTIF($E$3:E400,\"\")/1000)),\"\")","v":""}]
[null,null,"Livre 399",null,null,null,null,"","","","",0,null,{"$f":"IFERROR(IF('Gestion des Livres'!B402=\"\",\"\",IF('Gestion des Livres'!E402>0,RANK(E402,E:E,1)+COUNTIF($E$3:E401,E402)/1000,COUNTIF($E$3:E401,\"\")/1000)),\"\")","v":""}]
[null,null,"Livre 400",null,null,null,null,"","","","",0,null,{"$f":"IFERROR(IF('Gestion des Livres'!B403=\"\",\"\",IF('Gestion des Livres'!E403>0,RANK(E403,E:E,1)+COUNTIF($E$3:E402,E403)/1000,COUNTIF($E$3:E402,\"\")/1000)),\"\")","v":""}]
[null,null,"Livre 401",null,null,null,null,"","","","",0,null,{"$f":"IFERROR(IF('Gestion des Livres'!B404=\"\",\"\",IF('Gestion des Livres'!E404>0,RANK(E404,E:E,1)+COUNTIF($E$3:E403,E404)/1000,COUNTIF($E$3:E403,\"\")/1000)),\"\")","v":""}]
[null,null,"Livre 402",null,null,null,null,"","","","",0,null,{"$f":"IFERROR(IF('Gestion des Livres'!B405=\"\",\"\",IF('Gestion des Livres'!E405>0,RANK(E405,E:E,1)+COUNTIF($E$3:E404,E405)/1000,COUNTIF($E$3:E404,\"\")/1000)),\"\")","v":""}]
[null,null,"Livre 403",null,null,null,null,"","","","",0,null,{"$f":"IFERROR(IF('Gestion des Livres'!B406=\"\",\"\",IF('Gestion des Livres'!E406>0,RANK(E406,E:E,1)+COUNTIF($E$3:E405,E406)/1000,COUNTIF($E$3:E405,\"\")/1000)),\"\")","v":""}]
[null,null,"Livre 404",null,null,null,null,"","","","",0,null,{"$f":"IFERROR(IF('Gestion des Livres'!B407=\"\",\"\",IF('Gestion des Livres'!E407>0,RANK(E407,E:E,1)+COUNTIF($E$3:E406,E407)/1000,COUNTIF($E$3:E406,\"\")/1000)),\"\")","v":""}]
[null,null,"Livre 405",null,null,null,null,"","","","",0,null,{"$f":"IFERROR(IF('Gestion des Livres'!B408=\"\",\"\",IF('Gestion des Livres'!E408>0,RANK(E408,E:E,1)+COUNTIF($E$3:E407,E408)/1000,COUNTIF($E$3:E407,\"\")/1000)),\"\")","v":""}]
[null,null,"Livre 406",null,null,null,null,"","","","",0,null,{"$f":"IFERROR(IF('Gestion des Livres'!B409=\"\",\"\",IF('Gestion des Livres'!E409>0,RANK(E409,E:E,1)+COUNTIF($E$3:E408,E409)/1000,COUNTIF($E$3:E408,\"\")/1000)),\"\")","v":""}]
[null,null,"Livre 407",null,null,null,null,"","","","",0,null,{"$f":"IFERROR(IF('Gestion des Livres'!B410=\"\",\"\",IF('Gestion des Livres'!E410>0,RANK(E410,E:E,1)+COUNTIF($E$3:E409,E410)/1000,COUNTIF($E$3:E409,\"\")/1000)),\"\")","v":""}]
[null,null,"Livre 408",null,null,null,null,"","","","",0,null,{"$f":"IFERROR(IF('Gestion des Livres'!B411=\"\",\"\",IF('Gestion des Livres'!E411>0,RANK(E411,E:E,1)+COUNTIF($E$3:E410,E411)/1000,COUNTIF($E$3:E410,\"\")/1000)),\"\")","v":""}]
[null,null,"Livre 409",null,null,null,null,"","","","",0,null,{"$f":"IFERROR(IF('Gestion des Livres'!B412=\"\",\"\",IF('Gestion des Livres'!E412>0,RANK(E412,E:E,1)+COUNTIF($E$3:E411,E412)/1000,COUNTIF($E$3:E411,\"\")/1000)),\"\")","v":""}]
[null,null,"Livre 410",null,null,null,null,"","","","",0,null,{"$f":"IFERROR(IF('Gestion des Livres'!B413=\"\",\"\",IF('Gestion des Livres'!E413>0,RANK(E413,E:E,1)+COUNTIF($E$3:E412,E413)/1000,COUNTIF($E$3:E412,\"\")/1000)),\"\")","v":""}]
[null,null,"Livre 411",null,null,null,null,"","","","",0,null,{"$f":"IFERROR(IF('Gestion des Livres'!B414=\"\",\"\",IF('Gestion des Livres'!E414>0,RANK(E414,E:E,1)+COUNTIF($E$3:E413,E414)/1000,COUNTIF($E$3:E413,\"\")/1000)),\"\")","v":""}]
[null,null,"Livre 412",null,null,null,null,"","","","",0,null,{"$f":"IFERROR(IF('Gestion des Livres'!B415=\"\",\"\",IF('Gestion des Livres'!E415>0,RANK(E415,E:E,1)+COUNTIF($E$3:E414,E415)/1000,COUNTIF($E$3:E414,\"\")/1000)),\"\")","v":""}]
[null,null,"Livre 413",null,null,null,null,"","","","",0,null,{"$f":"IFERROR(IF('Gestion des Livres'!B416=\"\",\"\",IF('Gestion des Livres'!E416>0,RANK(E416,E:E,1)+COUNTIF($E$3:E415,E416)/1000,COUNTIF($E$3:E415,\"\")/1000)),\"\")","v":""}]
[null,null,"Livre 414",null,null,null,null,"","","","",0,null,{"$f":"IFERROR(IF('Gestion des Livres'!B417=\"\",\"\",IF('Gestion des Livres'!E417>0,RANK(E417,E:E,1)+COUNTIF($E$3:E416,E417)/1000,COUNTIF($E$3:E416,\"\")/1000)),\"\")","v":""}]
[null,null,"Livre 415",null,null,null,null,"","","","",0,null,{"$f":"IFERROR(IF('Gestion des Livres'!B418=\"\",\"\",IF('Gestion des Livres'!E418>0,RANK(E418,E:E,1)+COUNTIF($E$3:E417,E418)/1000,COUNTIF($E$3:E417,\"\")/1000)),\"\")","v":""}]
[null,null,"Livre 416",null,null,null,null,"","","","",0,null,{"$f":"IFERROR(IF('Gestion des Livres'!B419=\"\",\"\",IF('Gestion des Livres'!E419>0,RANK(E419,E:E,1)+COUNTIF($E$3:E418,E419)/1000,COUNTIF($E$3:E418,\"\")/1000)),\"\")","v":""}]
[null,null,"Livre 417",null,null,null,null,"","","","",0,null,{"$f":"IFERROR(IF('Gestion des Livres'!B420=\"\",\"\",IF('Gestion des Livres'!E420>0,RANK(E420,E:E,1)+COUNTIF($E$3:E419,E420)/1000,COUNTIF($E$3:E419,\"\")/1000)),\"\")","v":""}]
[null,null,"Livre 418",null,null,null,null,"","","","",0,null,{"$f":"IFERROR(IF('Gestion des Livres'!B421=\"\",\"\",IF('Gestion des Livres'!E421>0,RANK(E421,E:E,1)+COUNTIF($E$3:E420,E421)/1000,COUNTIF($E$3:E420,\"\")/1000)),\"\")","v":""}]
[null,null,"Livre 419",null,null,null,null,"","","","",0,null,{"$f":"IFERROR(IF('Gestion des Livres'!B422=\"\",\"\",IF('Gestion des Livres'!E422>0,RANK(E422,E:E,1)+COUNTIF($E$3:E421,E422)/1000,COUNTIF($E$3:E421,\"\")/1000)),\"\")","v":""}]
[null,null,"Livre 420",null,null,null,null,"","","","",0,null,{"$f":"IFERROR(IF('Gestion des Livres'!B423=\"\",\"\",IF('Gestion des Livres'!E423>0,RANK(E423,E:E,1)+COUNTIF($E$3:E422,E423)/1000,COUNTIF($E$3:E422,\"\")/1000)),\"\")","v":""}]
[null,null,"Livre 421",null,null,null,null,"","","","",0,null,{"$f":"IFERROR(IF('Gestion des Livres'!B424=\"\",\"\",IF('Gestion des Livres'!E424>0,RANK(E424,E:E,1)+COUNTIF($E$3:E423,E424)/1000,COUNTIF($E$3:E423,\"\")/1000)),\"\")","v":""}]
[null,null,"Livre 422",null,null,null,null,"","","","",0,null,{"$f":"IFERROR(IF('Gestion des Livres'!B425=\"\",\"\",IF('Gestion des Livres'!E425>0,RANK(E425,E:E,1)+COUNTIF($E$3:E424,E425)/1000,COUNTIF($E$3:E424,\"\")/1000)),\"\")","v":""}]
[null,null,"Livre 423",null,null,null,null,"","","","",0,null,{"$f":"IFERROR(IF('Gestion des Livres'!B426=\"\",\"\",IF('Gestion des Livres'!E426>0,RANK(E426,E:E,1)+COUNTIF($E$3:E425,E426)/1000,COUNTIF($E$3:E425,\"\")/1000)),\"\")","v":""}]
[null,null,"Livre 424",null,null,null,null,"","","","",0,null,{"$f":"IFERROR(IF('Gestion des Livres'!B427=\"\",\"\",IF('Gestion des Livres'!E427>0,RANK(E427,E:E,1)+COUNTIF($E$3:E426,E427)/1000,COUNTIF($E$3:E426,\"\")/1000)),\"\")","v":""}]
[null,null,"Livre 425",null,null,null,null,"","","","",0,null,{"$f":"IFERROR(IF('Gestion des Livres'!B428=\"\",\"\",IF('Gestion des Livres'!E428>0,RANK(E428,E:E,1)+COUNTIF($E$3:E427,E428)/1000,COUNTIF($E$3:E427,\"\")/1000)),\"\")","v":""}]
[null,null,"Livre 426",null,null,null,null,"","","","",0,null,{"$f":"IFERROR(IF('Gestion des Livres'!B429=\"\",\"\",IF('Gestion des Livres'!E429>0,RANK(E429,E:E,1)+COUNTIF($E$3:E428,E429)/1000,COUNTIF($E$3:E428,\"\")/1000)),\"\")","v":""}]
[null,null,null,null,null,null,null,null,null,null,null,null,null,""]
["S",{"$f":"SUM(#REF!)","v":{"$error":"#REF!"}},null,"Total entrée",{"$f":"COUNTA(E4:E429)","v":0},{"$f":"COUNTA(F4:F429)","v":2},"Total Sorties",null,null,null,null,null,null,""]
[null,null,null,null,null,null,null,null,null,null,null,null,null,""]
[null,null,null,null,null,null,null,null,null,null,null,null,null,""]
[null,null,null,null,null,null,null,null,null,null,null,null,null,""]
[null,null,null,null,null,null,null,null,null,null,null,null,null,""]
[null,null,null,null,null,null,null,null,null,null,null,null,null,""]
[null,null,null,null,null,null,null,null,null,null,null,null,null,""]
[null,null,null,null,null,null,null,null,null,null,null,null,null,""]
[null,null,null,null,null,null,null,null,null,null,null,null,null,""]
[null,null,null,null,null,null,null,null,null,null,null,null,null,""]
[null,null,null,null,null,null,null,null,null,null,null,null,null,""]
[null,null,null,null,null,null,null,null,null,null,null,null,null,""]
[null,null,null,null,null,null,null,null,null,null,null,null,null,""]
[null,null,null,null,null,null,null,null,null,null,null,null,null,""]
[null,null,null,null,null,null,null,null,null,null,null,null,null,""]
[null,null,null,null,null,null,null,null,null,null,null,null,null,""]
[null,null,null,null,null,null,null,null,null,null,null,null,null,""]
[null,null,null,null,null,null,null,null,null,null,null,null,null,""]
[null,null,null,null,null,null,null,null,null,null,null,null,null,""]
[null,null,null,null,null,null,null,null,null,null,null,null,null,""]
[null,null,null,null,null,null,null,null,null,null,null,null,null,""]
[null,null,null,null,null,null,null,null,null,null,null,null,null,""]
[null,null,null,null,null,null,null,null,null,null,null,null,null,""]
[null,null,null,null,null,null,null,null,null,null,null,null,null,""]
[null,null,null,null,null,null,null,null,null,null,null,null,null,""]
[null,null,null,null,null,null,null,null,null,null,null,null,null,""]
[null,null,null,null,null,null,null,null,null,null,null,null,null,""]
[null,null,null,null,null,null,null,null,null,null,null,null,null,""]
[null,null,null,null,null,null,null,null,null,null,null,null,null,""]
[null,null,null,null,null,null,null,null,null,null,null,null,null,""]
[null,null,null,null,null,null,null,null,null,null,null,null,null,""]
[null,null,null,null,null,null,null,null,null,null,null,null,null,""]
[null,null,null,null,null,null,null,null,null,null,null,null,null,""]
[null,null,null,null,null,null,null,null,null,null,null,null,null,""]
[null,null,null,null,null,null,null,null,null,null,null,null,null,""]
[null,null,null,null,null,null,null,null,null,null,null,null,null,""]
[null,null,null,null,null,null,null,null,null,null,null,null,null,""]
[null,null,null,null,null,null,null,null,null,null,null,null,null,""]
[null,null,null,null,null,null,null,null,null,null,null,null,null,""]
[null,null,null,null,null,null,null,null,null,null,null,null,null,""]
[null,null,null,null,null,null,null,null,null,null,null,null,null,""]
[null,null,null,null,null,null,null,null,null,null,null,null,null,""]
[null,null,null,null,null,null,null,null,null,null,null,null,null,""]
[null,null,null,null,null,null,null,null,null,null,null,null,null,""]
[null,null,null,null,null,null,null,null,null,null,null,null,null,""]
[null,null,null,null,null,null,null,null,null,null,null,null,null,""]
[null,null,null,null,null,null,null,null,null,null,null,null,null,""]
[null,null,null,null,null,null,null,null,null,null,null,null,null,""]
[null,null,null,null,null,null,null,null,null,null,null,null,null,""]
[null,null,null,null,null,null,null,null,null,null,null,null,null,""]
[null,null,null,null,null,null,null,null,null,null,null,null,null,""]
[null,null,null,null,null,null,null,null,null,null,null,null,null,""]
[null,null,null,null,null,null,null,null,null,null,null,null,null,""]
[null,null,null,null,null,null,null,null,null,null,null,null,null,""]
[null,null,null,null,null,null,null,null,null,null,null,null,null,""]
[null,null,null,null,null,null,null,null,null,null,null,null,null,""]
[null,null,null,null,null,null,null,null,null,null,null,null,null,""]
[null,null,null,null,null,null,null,null,null,null,null,null,null,""]
[null,null,null,null,null,null,null,null,null,null,null,null,null,""]
[null,null,null,null,null,null,null,null,null,null,null,null,null,""]
[null,null,null,null,null,null,null,null,null,null,null,null,null,""]
[null,null,null,null,null,null,null,null,null,null,null,null,null,""]
[null,null,null,null,null,null,null,null,null,null,null,null,null,""]
[null,null,null,null,null,null,null,null,null,null,null,null,null,""]
[null,null,null,null,null,null,null,null,null,null,null,null,null,""]
[null,null,null,null,null,null,null,null,null,null,null,null,null,""]
[null,null,null,null,null,null,null,null,null,null,null,null,null,""]
[null,null,null,null,null,null,null,null,null,null,null,null,null,""]
[null,null,null,null,null,null,null,null,null,null,null,null,null,""]
[null,null,null,null,null,null,null,null,null,null,null,null,null,""]
[null,null,null,null,null,null,null,null,null,null,null,null,null,""]
[null,null,null,null,null,null,null,null,null,null,null,null,null,""]
[null,null,null,null,null,null,null,null,null,null,null,null,null,""]
[null,null,null,null,null,null,null,null,null,null,null,null,null,""]
[null,null,null,null,null,null,null,null,null,null,null,null,null,""]
[null,null,null,null,null,null,null,null,null,null,null,null,null,""]
[null,null,null,null,null,null,null,null,null,null,null,null,null,""]
[null,null,null,null,null,null,null,null,null,null,null,null,null,""]
[null,null,null,null,null,null,null,null,null,null,null,null,null,""]
[null,null,null,null,null,null,null,null,null,null,null,null,null,""]
[null,null,null,null,null,null,null,null,null,null,null,null,null,""]
[null,null,null,null,null,null,null,null,null,null,null,null,null,""]
[null,null,null,null,null,null,null,null,null,null,null,null,null,""]
[null,null,null,null,null,null,null,null,null,null,null,null,null,""]
[null,null,null,null,null,null,null,null,null,null,null,null,null,""]
[null,null,null,null,null,null,null,null,null,null,null,null,null,""]
[null,null,null,null,null,null,null,null,null,null,null,null,null,""]
[null,null,null,null,null,null,null,null,null,null,null,null,null,""]
[null,null,null,null,null,null,null,null,null,null,null,null,null,""]
[null,null,null,null,null,null,null,null,null,null,null,null,null,""]
[null,null,null,null,null,null,null,null,null,null,null,null,null,""]
[null,null,null,null,null,null,null,null,null,null,null,null,null,""]
[null,null,null,null,null,null,null,null,null,null,null,null,null,""]
[null,null,null,null,null,null,null,null,null,null,null,null,null,""]
[null,null,null,null,null,null,null,null,null,null,null,null,null,""]
[null,null,null,null,null,null,null,null,null,null,null,null,null,""]
[null,null,null,null,null,null,null,null,null,null,null,null,null,""]
[null,null,null,null,null,null,null,null,null,null,null,null,null,""]
[null,null,null,null,null,null,null,null,null,null,null,null,null,""]
[null,null,null,null,null,null,null,null,null,null,null,null,null,""]
[null,null,null,null,null,null,null,null,null,null,null,null,null,""]
[null,null,null,null,null,null,null,null,null,null,null,null,null,""]
[null,null,null,null,null,null,null,null,null,null,null,null,null,""]
[null,null,null,null,null,null,null,null,null,null,null,null,null,""]
[null,null,null,null,null,null,null,null,null,null,null,null,null,""]
[null,null,null,null,null,null,null,null,null,null,null,null,null,""]
[null,null,null,null,null,null,null,null,null,null,null,null,null,""]
[null,null,null,null,null,null,null,null,null,null,null,null,null,""]
[null,null,null,null,null,null,null,null,null,null,null,null,null,""]
[null,null,null,null,null,null,null,null,null,null,null,null,null,""]
[null,null,null,null,null,null,null,null,null,null,null,null,null,""]
[null,null,null,null,null,null,null,null,null,null,null,null,null,""]
[null,null,null,null,null,null,null,null,null,null,null,null,null,""]
[null,null,null,null,null,null,null,null,null,null,null,null,null,""]
[null,null,null,null,null,null,null,null,null,null,null,null,null,""]
[null,null,null,null,null,null,null,null,null,null,null,null,null,""]
[null,null,null,null,null,null,null,null,null,null,null,null,null,""]
[null,null,null,null,null,null,null,null,null,null,null,null,null,""]
[null,null,null,null,null,null,null,null,null,null,null,null,null,""]
[null,null,null,null,null,null,null,null,null,null,null,null,null,""]
[null,null,null,null,null,null,null,null,null,null,null,null,null,""]
[null,null,null,null,null,null,null,null,null,null,null,null,null,""]
[null,null,null,null,null,null,null,null,null,null,null,null,null,""]
[null,null,null,null,null,null,null,null,null,null,null,null,null,""]
[null,null,null,null,null,null,null,null,null,null,null,null,null,""]
[null,null,null,null,null,null,null,null,null,null,null,null,null,""]
[null,null,null,null,null,null,null,null,null,null,null,null,null,""]
[null,null,null,null,null,null,null,null,null,null,null,null,null,""]
[null,null,null,null,null,null,null,null,null,null,null,null,null,""]
[null,null,null,null,null,null,null,null,null,null,null,null,null,""]
[null,null,null,null,null,null,null,null,null,null,null,null,null,""]
[null,null,null,null,null,null,null,null,null,null,null,null,null,""]
[null,null,null,null,null,null,null,null,null,null,null,null,null,""]
[null,null,null,null,null,null,null,null,null,null,null,null,null,""]
[null,null,null,null,null,null,null,null,null,null,null,null,null,""]
[null,null,null,null,null,null,null,null,null,null,null,null,null,""]
[null,null,null,null,null,null,null,null,null,null,null,null,null,""]
[null,null,null,null,null,null,null,null,null,null,null,null,null,""]
[null,null,null,null,null,null,null,null,null,null,null,null,null,""]
[null,null,null,null,null,null,null,null,null,null,null,null,null,""]
[null,null,null,null,null,null,null,null,null,null,null,null,null,""]
[null,null,null,null,null,null,null,null,null,null,null,null,null,""]
[null,null,null,null,null,null,null,null,null,null,null,null,null,""]
[null,null,null,null,null,null,null,null,null,null,null,null,null,""]
[null,null,null,null,null,null,null,null,null,null,null,null,null,""]
[null,null,null,null,null,null,null,null,null,null,null,null,null,""]
[null,null,null,null,null,null,null,null,null,null,null,null,null,""]
[null,null,null,null,null,null,null,null,null,null,null,null,null,""]
[null,null,null,null,null,null,null,null,null,null,null,null,null,""]
[null,null,null,null,null,null,null,null,null,null,null,null,null,""]
[null,null,null,null,null,null,null,null,null,null,null,null,null,""]
[null,null,null,null,null,null,null,null,null,null,null,null,null,""]
[null,null,null,null,null,null,null,null,null,null,null,null,null,""]
[null,null,null,null,null,null,null,null,null,null,null,null,null,""]
[null,null,null,null,null,null,null,null,null,null,null,null,null,""]
[null,null,null,null,null,null,null,null,null,null,null,null,null,""]
[null,null,null,null,null,null,null,null,null,null,null,null,null,""]
[null,null,null,null,null,null,null,null,null,null,null,null,null,""]
[null,null,null,null,null,null,null,null,null,null,null,null,null,""]
[null,null,null,null,null,null,null,null,null,null,null,null,null,""]
[null,null,null,null,null,null,null,null,null,null,null,null,null,""]
[null,null,null,null,null,null,null,null,null,null,null,null,null,""]
[null,null,null,null,null,null,null,null,null,null,null,null,null,""]
[null,null,null,null,null,null,null,null,null,null,null,null,null,""]
[null,null,null,null,null,null,null,null,null,null,null,null,null,""]
[null,null,null,null,null,null,null,null,null,null,null,null,null,""]
[null,null,null,null,null,null,null,null,null,null,null,null,null,""]
[null,null,null,null,null,null,null,null,null,null,null,null,null,""]
[null,null,null,null,null,null,null,null,null,null,null,null,null,""]
[null,null,null,null,null,null,null,null,null,null,null,null,null,""]
[null,null,null,null,null,null,null,null,null,null,null,null,null,""]
[null,null,null,null,null,null,null,null,null,null,null,null,null,""]
[null,null,null,null,null,null,null,null,null,null,null,null,null,""]
[null,null,null,null,null,null,null,null,null,null,null,null,null,""]
[null,null,null,null,null,null,null,null,null,null,null,null,null,""]
[null,null,null,null,null,null,null,null,null,null,null,null,null,""]
[null,null,null,null,null,null,null,null,null,null,null,null,null,""]
[null,null,null,null,null,null,null,null,null,null,null,null,null,""]
[null,null,null,null,null,null,null,null,null,null,null,null,null,""]
[null,null,null,null,null,null,null,null,null,null,null,null,null,""]
[null,null,null,null,null,null,null,null,null,null,null,null,null,""]
[null,null,null,null,null,null,null,null,null,null,null,null,null,""]
[null,null,null,null,null,null,null,null,null,null,null,null,null,""]
[null,null,null,null,null,null,null,null,null,null,null,null,null,""]
[null,null,null,null,null,null,null,null,null,null,null,null,null,""]
[null,null,null,null,null,null,null,null,null,null,null,null,null,""]
[null,null,null,null,null,null,null,null,null,null,null,null,null,""]
[null,null,null,null,null,null,null,null,null,null,null,null,null,""]
[null,null,null,null,null,null,null,null,null,null,null,null,null,""]
[null,null,null,null,null,null,null,null,null,null,null,null,null,""]
[null,null,null,null,null,null,null,null,null,null,null,null,null,""]
[null,null,null,null,null,null,null,null,null,null,null,null,null,""]
[null,null,null,null,null,null,null,null,null,null,null,null,null,""]
[null,null,null,null,null,null,null,null,null,null,null,null,null,""]
[null,null,null,null,null,null,null,null,null,null,null,null,null,""]
[null,null,null,null,null,null,null,null,null,null,null,null,null,""]
[null,null,null,null,null,null,null,null,null,null,null,null,null,""]
[null,null,null,null,null,null,null,null,null,null,null,null,null,""]
[null,null,null,null,null,null,null,null,null,null,null,null,null,""]
[null,null,null,null,null,null,null,null,null,null,null,null,null,""]
[null,null,null,null,null,null,null,null,null,null,null,null,null,""]
[null,null,null,null,null,null,null,null,null,null,null,null,null,""]
[null,null,null,null,null,null,null,null,null,null,null,null,null,""]
[null,null,null,null,null,null,null,null,null,null,null,null,null,""]
[null,null,null,null,null,null,null,null,null,null,null,null,null,""]
[null,null,null,null,null,null,null,null,null,null,null,null,null,""]
[null,null,null,null,null,null,null,null,null,null,null,null,null,""]
[null,null,null,null,null,null,null,null,null,null,null,null,null,""]
[null,null,null,null,null,null,null,null,null,null,null,null,null,""]
[null,null,null,null,null,null,null,null,null,null,null,null,null,""]
[null,null,null,null,null,null,null,null,null,null,null,null,null,""]
[null,null,null,null,null,null,null,null,null,null,null,null,null,""]
[null,null,null,null,null,null,null,null,null,null,null,null,null,""]
[null,null,null,null,null,null,null,null,null,null,null,null,null,""]
[null,null,null,null,null,null,null,null,null,null,null,null,null,""]
[null,null,null,null,null,null,null,null,null,null,null,null,null,""]
[null,null,null,null,null,null,null,null,null,null,null,null,null,""]
[null,null,null,null,null,null,null,null,null,null,null,null,null,""]
[null,null,null,null,null,null,null,null,null,null,null,null,null,""]
[null,null,null,null,null,null,null,null,null,null,null,null,null,""]
[null,null,null,null,null,null,null,null,null,null,null,null,null,""]
[null,null,null,null,null,null,null,null,null,null,null,null,null,""]
[null,null,null,null,null,null,null,null,null,null,null,null,null,""]
[null,null,null,null,null,null,null,null,null,null,null,null,null,""]
[null,null,null,null,null,null,null,null,null,null,null,null,null,""]
[null,null,null,null,null,null,null,null,null,null,null,null,null,""]
[null,null,null,null,null,null,null,null,null,null,null,null,null,""]
[null,null,null,null,null,null,null,null,null,null,null,null,null,""]
[null,null,null,null,null,null,null,null,null,null,null,null,null,""]
[null,null,null,null,null,null,null,null,null,null,null,null,null,""]
[null,null,null,null,null,null,null,null,null,null,null,null,null,""]
[null,null,null,null,null,null,null,null,null,null,null,null,null,""]
[null,null,null,null,null,null,null,null,null,null,null,null,null,""]
[null,null,null,null,null,null,null,null,null,null,null,null,null,""]
[null,null,null,null,null,null,null,null,null,null,null,null,null,""]
[null,null,null,null,null,null,null,null,null,null,null,null,null,""]
[null,null,null,null,null,null,null,null,null,null,null,null,null,""]
[null,null,null,null,null,null,null,null,null,null,null,null,null,""]
[null,null,null,null,null,null,null,null,null,null,null,null,null,""]
[null,null,null,null,null,null,null,null,null,null,null,null,null,""]
[null,null,null,null,null,null,null,null,null,null,null,null,null,""]
[null,null,null,null,null,null,null,null,null,null,null,null,null,""]
[null,null,null,null,null,null,null,null,null,null,null,null,null,""]
[null,null,null,null,null,null,null,null,null,null,null,null,null,""]
[null,null,null,null,null,null,null,null,null,null,null,null,null,""]
[null,null,null,null,null,null,null,null,null,null,null,null,null,""]
[null,null,null,null,null,null,null,null,null,null,null,null,null,""]
[null,null,null,null,null,null,null,null,null,null,null,null,null,""]
[null,null,null,null,null,null,null,null,null,null,null,null,null,""]
[null,null,null,null,null,null,null,null,null,null,null,null,null,""]
[null,null,null,null,null,null,null,null,null,null,null,null,null,""]
[null,null,null,null,null,null,null,null,null,null,null,null,null,""]
[null,null,null,null,null,null,null,null,null,null,null,null,null,""]
[null,null,null,null,null,null,null,null,null,null,null,null,null,""]
[null,null,null,null,null,null,null,null,null,null,null,null,null,""]
[null,null,null,null,null,null,null,null,null,null,null,null,null,""]
[null,null,null,null,null,null,null,null,null,null,null,null,null,""]
[null,null,null,null,null,null,null,null,null,null,null,null,null,""]
[null,null,null,null,null,null,null,null,null,null,null,null,null,""]
[null,null,null,null,null,null,null,null,null,null,null,null,null,""]
[null,null,null,null,null,null,null,null,null,null,null,null,null,""]
[null,null,null,null,null,null,null,null,null,null,null,null,null,""]
[null,null,null,null,null,null,null,null,null,null,null,null,null,""]
[null,null,null,null,null,null,null,null,null,null,null,null,null,""]
[null,null,null,null,null,null,null,null,null,null,null,null,null,""]
[null,null,null,null,null,null,null,null,null,null,null,null,null,""]
[null,null,null,null,null,null,null,null,null,null,null,null,null,""]
[null,null,null,null,null,null,null,null,null,null,null,null,null,""]
[null,null,null,null,null,null,null,null,null,null,null,null,null,""]
[null,null,null,null,null,null,null,null,null,null,null,null,null,""]
[null,null,null,null,null,null,null,null,null,null,null,null,null,""]
[null,null,null,null,null,null,null,null,null,null,null,null,null,""]
[null,null,null,null,null,null,null,null,null,null,null,null,null,""]
[null,null,null,null,null,null,null,null,null,null,null,null,null,""]
[null,null,null,null,null,null,null,null,null,null,null,null,null,""]
[null,null,null,null,null,null,null,null,null,null,null,null,null,""]
[null,null,null,null,null,null,null,null,null,null,null,null,null,""]
[null,null,null,null,null,null,null,null,null,null,null,null,null,""]
[null,null,null,null,null,null,null,null,null,null,null,null,null,""]
[null,null,null,null,null,null,null,null,null,null,null,null,null,""]
[null,null,null,null,null,null,null,null,null,null,null,null,null,""]
[null,null,null,null,null,null,null,null,null,null,null,null,null,""]
[null,null,null,null,null,null,null,null,null,null,null,null,null,""]
[null,null,null,null,null,null,null,null,null,null,null,null,null,""]
[null,null,null,null,null,null,null,null,null,null,null,null,null,""]
[null,null,null,null,null,null,null,null,null,null,null,null,null,""]
[null,null,null,null,null,null,null,null,null,null,null,null,null,""]
[null,null,null,null,null,null,null,null,null,null,null,null,null,""]
[null,null,null,null,null,null,null,null,null,null,null,null,null,""]
[null,null,null,null,null,null,null,null,null,null,null,null,null,""]
[null,null,null,null,null,null,null,null,null,null,null,null,null,""]
[null,null,null,null,null,null,null,null,null,null,null,null,null,""]
[null,null,null,null,null,null,null,null,null,null,null,null,null,""]
[null,null,null,null,null,null,null,null,null,null,null,null,null,""]
[null,null,null,null,null,null,null,null,null,null,null,null,null,""]
[null,null,null,null,null,null,null,null,null,null,null,null,null,""]
[null,null,null,null,null,null,null,null,null,null,null,null,null,""]
[null,null,null,null,null,null,null,null,null,null,null,null,null,""]
[null,null,null,null,null,null,null,null,null,null,null,null,null,""]
[null,null,null,null,null,null,null,null,null,null,null,null,null,""]
[null,null,null,null,null,null,null,null,null,null,null,null,null,""]
[null,null,null,null,null,null,null,null,null,null,null,null,null,""]
[null,null,null,null,null,null,null,null,null,null,null,null,null,""]
[null,null,null,null,null,null,null,null,null,null,null,null,null,""]
[null,null,null,null,null,null,null,null,null,null,null,null,null,""]
[null,null,null,null,null,null,null,null,null,null,null,null,null,""]
[null,null,null,null,null,null,null,null,null,null,null,null,null,""]
[null,null,null,null,null,null,null,null,null,null,null,null,null,""]
[null,null,null,null,null,null,null,null,null,null,null,null,null,""]
[null,null,null,null,null,null,null,null,null,null,null,null,null,""]
[null,null,null,null,null,null,null,null,null,null,null,null,null,""]
[null,null,null,null,null,null,null,null,null,null,null,null,null,""]
[null,null,null,null,null,null,null,null,null,null,null,null,null,""]
[null,null,null,null,null,null,null,null,null,null,null,null,null,""]
[null,null,null,null,null,null,null,null,null,null,null,null,null,""]
[null,null,null,null,null,null,null,null,null,null,null,null,null,""]
[null,null,null,null,null,null,null,null,null,null,null,null,null,""]
[null,null,null,null,null,null,null,null,null,null,null,null,null,""]
[null,null,null,null,null,null,null,null,null,null,null,null,null,""]
[null,null,null,null,null,null,null,null,null,null,null,null,null,""]
[null,null,null,null,null,null,null,null,null,null,null,null,null,""]
[null,null,null,null,null,null,null,null,null,null,null,null,null,""]
[null,null,null,null,null,null,null,null,null,null,null,null,null,""]
[null,null,null,null,null,null,null,null,null,null,null,null,null,""]
[null,null,null,null,null,null,null,null,null,null,null,null,null,""]
[null,null,null,null,null,null,null,null,null,null,null,null,null,""]
[null,null,null,null,null,null,null,null,null,null,null,null,null,""]
[null,null,null,null,null,null,null,null,null,null,null,null,null,""]
[null,null,null,null,null,null,null,null,null,null,null,null,null,""]
[null,null,null,null,null,null,null,null,null,null,null,null,null,""]
[null,null,null,null,null,null,null,null,null,null,null,null,null,""]
[null,null,null,null,null,null,null,null,null,null,null,null,null,""]
[null,null,null,null,null,null,null,null,null,null,null,null,null,""]
[null,null,null,null,null,null,null,null,null,null,null,null,null,""]
[null,null,null,null,null,null,null,null,null,null,null,null,null,""]
[null,null,null,null,null,null,null,null,null,null,null,null,null,""]
[null,null,null,null,null,null,null,null,null,null,null,null,null,""]
[null,null,null,null,null,null,null,null,null,null,null,null,null,""]
[null,null,null,null,null,null,null,null,null,null,null,null,null,""]
[null,null,null,null,null,null,null,null,null,null,null,null,null,""]
[null,null,null,null,null,null,null,null,null,null,null,null,null,""]
[null,null,null,null,null,null,null,null,null,null,null,null,null,""]
[null,null,null,null,null,null,null,null,null,null,null,null,null,""]
[null,null,null,null,null,null,null,null,null,null,null,null,null,""]
[null,null,null,null,null,null,null,null,null,null,null,null,null,""]
[null,null,null,null,null,null,null,null,null,null,null,null,null,""]
[null,null,null,null,null,null,null,null,null,null,null,null,null,""]
[null,null,null,null,null,null,null,null,null,null,null,null,null,""]
[null,null,null,null,null,null,null,null,null,null,null,null,null,""]
[null,null,null,null,null,null,null,null,null,null,null,null,null,""]
[null,null,null,null,null,null,null,null,null,null,null,null,null,""]
[null,null,null,null,null,null,null,null,null,null,null,null,null,""]
[null,null,null,null,null,null,null,null,null,null,null,null,null,""]
[null,null,null,null,null,null,null,null,null,null,null,null,null,""]
[null,null,null,null,null,null,null,null,null,null,null,null,null,""]
[null,null,null,null,null,null,null,null,null,null,null,null,null,""]
[null,null,null,null,null,null,null,null,null,null,null,null,null,""]
[null,null,null,null,null,null,null,null,null,null,null,null,null,""]
[null,null,null,null,null,null,null,null,null,null,null,null,null,""]
[null,null,null,null,null,null,null,null,null,null,null,null,null,""]

{"sheet":"Science 1-23","index":1,"n_rows":52,"n_cols":10,"rows_kept":52,"cut":false,"hidden":false,"merged":[[69,8,69,9],[69,0,70,0],[69,1,70,1],[69,2,69,3],[69,4,69,5],[69,6,69,7],[65,8,65,9],[67,0,68,0],[67,1,68,1],[67,2,67,3],[67,4,67,5],[67,6,67,7],[67,8,67,9],[65,0,66,0],[65,1,66,1],[65,2,65,3],[65,4,65,5],[65,6,65,7],[61,8,61,9],[63,0,64,0],[63,1,64,1],[63,2,63,3],[63,4,63,5],[63,6,63,7],[63,8,63,9],[61,0,62,0],[61,1,62,1],[61,2,61,3],[61,4,61,5],[61,6,61,7],[57,8,57,9],[59,0,60,0],[59,1,60,1],[59,2,59,3],[59,4,59,5],[59,6,59,7],[59,8,59,9],[57,0,58,0],[57,1,58,1],[57,2,57,3],[57,4,57,5],[57,6,57,7],[53,8,53,9],[55,0,56,0],[55,1,56,1],[55,2,55,3],[55,4,55,5],[55,6,55,7],[55,8,55,9],[53,0,54,0],[53,1,54,1],[53,2,53,3],[53,4,53,5],[53,6,53,7],[49,8,49,9],[51,0,52,0],[51,1,52,1],[51,2,51,3],[51,4,51,5],[51,6,51,7],[51,8,51,9],[49,0,50,0],[49,1,50,1],[49,2,49,3],[49,4,49,5],[49,6,49,7],[45,8,45,9],[47,0,48,0],[47,1,48,1],[47,2,47,3],[47,4,47,5],[47,6,47,7],[47,8,47,9],[45,0,46,0],[45,1,46,1],[45,2,45,3],[45,4,45,5],[45,6,45,7],[41,8,41,9],[43,0,44,0],[43,1,44,1],[43,2,43,3],[43,4,43,5],[43,6,43,7],[43,8,43,9],[41,0,42,0],[41,1,42,1],[41,2,41,3],[41,4,41,5],[41,6,41,7],[37,8,37,9],[39,0,40,0],[39,1,40,1],[39,2,39,3],[39,4,39,5],[39,6,39,7],[39,8,39,9],[37,0,38,0],[37,1,38,1],[37,2,37,3],[37,4,37,5],[37,6,37,7],[33,8,33,9],[35,0,36,0],[35,1,36,1],[35,2,35,3],[35,4,35,5],[35,6,35,7],[35,8,35,9],[33,0,34,0],[33,1,34,1],[33,2,33,3],[33,4,33,5],[33,6,33,7],[29,8,29,9],[31,0,32,0],[31,1,32,1],[31,2,31,3],[31,4,31,5],[31,6,31,7],[31,8,31,9],[29,0,30,0],[29,1,30,1],[29,2,29,3],[29,4,29,5],[29,6,29,7],[25,8,25,9],[27,0,28,0],[27,1,28,1],[27,2,27,3],[27,4,27,5],[27,6,27,7],[27,8,27,9],[25,0,26,0],[25,1,26,1],[25,2,25,3],[25,4,25,5],[25,6,25,7],[21,8,21,9],[23,0,24,0],[23,1,24,1],[23,2,23,3],[23,4,23,5],[23,6,23,7],[23,8,23,9],[21,0,22,0],[21,1,22,1],[21,2,21,3],[21,4,21,5],[21,6,21,7],[17,8,17,9],[19,0,20,0],[19,1,20,1],[19,2,19,3],[19,4,19,5],[19,6,19,7],[19,8,19,9],[17,0,18,0],[17,1,18,1],[17,2,17,3],[17,4,17,5],[17,6,17,7],[13,8,13,9],[15,0,16,0],[15,1,16,1],[15,2,15,3],[15,4,15,5],[15,6,15,7],[15,8,15,9],[13,0,14,0],[13,1,14,1],[13,2,13,3],[13,4,13,5],[13,6,13,7],[9,8,9,9],[11,0,12,0],[11,1,12,1],[11,2,11,3],[11,4,11,5],[11,6,11,7],[11,8,11,9],[9,0,10,0],[9,1,10,1],[9,2,9,3],[9,4,9,5],[9,6,9,7],[2,0,3,2],[2,7,2,8],[0,0,1,9],[2,3,3,6],[5,8,5,9],[7,0,8,0],[7,1,8,1],[7,2,7,3],[7,4,7,5],[7,6,7,7],[7,8,7,9],[5,0,6,0],[5,1,6,1],[5,2,5,3],[5,4,5,5],[5,6,5,7]]}
["Relevé d'Attribution des Livres"]
[]
["Science",null,null,"Année  2022"]
[]
[]
["Terr.N°","Parcouru pour la dernière fois le*","Attribué  à",null,"Attribué  à",null,"Attribué  à",null,"Attribué  à"]
[null,null,"Attribué le ","Entièrement parcouru le","Attribué le ","Entièrement parcouru le","Attribué le ","Entièrement parcouru le","Attribué le ","Entièrement parcouru le"]
[1,"2021-10-10","Paul",null,"Paul"]
[null,null,"2022-04-25","2022-05-06","2022-05-18"]
[2,"Pierre","Pierre"]
[null,null,"2022-05-14"]
[3]
[]
[4]
[]
[5]
[]
[6]
[]
[7]
[]
[8]
[]
[9]
[]
[10]
[]
[11]
[]
[12]
[]
[13]
[]
[14]
[]
[15]
[]
[16]
[]
[17]
[]
[18]
[]
[19]
[]
[20]
[]
[21]
[]
[22]
[]
[23]

{"sheet":"Histoire 1-30","index":2,"n_rows":66,"n_cols":10,"rows_kept":66,"cut":false,"hidden":false,"merged":[[65,8,65,9],[65,0,66,0],[65,1,66,1],[65,2,65,3],[65,4,65,5],[65,6,65,7],[61,8,61,9],[63,0,64,0],[63,1,64,1],[63,2,63,3],[63,4,63,5],[63,6,63,7],[63,8,63,9],[61,0,62,0],[61,1,62,1],[61,2,61,3],[61,4,61,5],[61,6,61,7],[57,8,57,9],[59,0,60,0],[59,1,60,1],[59,2,59,3],[59,4,59,5],[59,6,59,7],[59,8,59,9],[57,0,58,0],[57,1,58,1],[57,2,57,3],[57,4,57,5],[57,6,57,7],[53,8,53,9],[55,0,56,0],[55,1,56,1],[55,2,55,3],[55,4,55,5],[55,6,55,7],[55,8,55,9],[53,0,54,0],[53,1,54,1],[53,2,53,3],[53,4,53,5],[53,6,53,7],[49,8,49,9],[51,0,52,0],[51,1,52,1],[51,2,51,3],[51,4,51,5],[51,6,51,7],[51,8,51,9],[49,0,50,0],[49,1,50,1],[49,2,49,3],[49,4,49,5],[49,6,49,7],[45,8,45,9],[47,0,48,0],[47,1,48,1],[47,2,47,3],[47,4,47,5],[47,6,47,7],[47,8,47,9],[45,0,46,0],[45,1,46,1],[45,2,45,3],[45,4,45,5],[45,6,45,7],[41,8,41,9],[43,0,44,0],[43,1,44,1],[43,2,43,3],[43,4,43,5],[43,6,43,7],[43,8,43,9],[41,0,42,0],[41,1,42,1],[41,2,41,3],[41,4,41,5],[41,6,41,7],[37,8,37,9],[39,0,40,0],[39,1,40,1],[39,2,39,3],[39,4,39,5],[39,6,39,7],[39,8,39,9],[37,0,38,0],[37,1,38,1],[37,2,37,3],[37,4,37,5],[37,6,37,7],[33,8,33,9],[35,0,36,0],[35,1,36,1],[35,2,35,3],[35,4,35,5],[35,6,35,7],[35,8,35,9],[33,0,34,0],[33,1,34,1],[33,2,33,3],[33,4,33,5],[33,6,33,7],[29,8,29,9],[31,0,32,0],[31,1,32,1],[31,2,31,3],[31,4,31,5],[31,6,31,7],[31,8,31,9],[29,0,30,0],[29,1,30,1],[29,2,29,3],[29,4,29,5],[29,6,29,7],[25,8,25,9],[27,0,28,0],[27,1,28,1],[27,2,27,3],[27,4,27,5],[27,6,27,7],[27,8,27,9],[25,0,26,0],[25,1,26,1],[25,2,25,3],[25,4,25,5],[25,6,25,7],[21,8,21,9],[23,0,24,0],[23,1,24,1],[23,2,23,3],[23,4,23,5],[23,6,23,7],[23,8,23,9],[21,0,22,0],[21,1,22,1],[21,2,21,3],[21,4,21,5],[21,6,21,7],[17,8,17,9],[19,0,20,0],[19,1,20,1],[19,2,19,3],[19,4,19,5],[19,6,19,7],[19,8,19,9],[17,0,18,0],[17,1,18,1],[17,2,17,3],[17,4,17,5],[17,6,17,7],[13,8,13,9],[15,0,16,0],[15,1,16,1],[15,2,15,3],[15,4,15,5],[15,6,15,7],[15,8,15,9],[13,0,14,0],[13,1,14,1],[13,2,13,3],[13,4,13,5],[13,6,13,7],[9,8,9,9],[11,0,12,0],[11,1,12,1],[11,2,11,3],[11,4,11,5],[11,6,11,7],[11,8,11,9],[9,0,10,0],[9,1,10,1],[9,2,9,3],[9,4,9,5],[9,6,9,7],[2,0,3,2],[2,7,2,8],[0,0,1,9],[2,3,3,6],[5,8,5,9],[7,0,8,0],[7,1,8,1],[7,2,7,3],[7,4,7,5],[7,6,7,7],[7,8,7,9],[5,0,6,0],[5,1,6,1],[5,2,5,3],[5,4,5,5],[5,6,5,7]]}
["Relevé d'Attribution des territoires"]
[]
["Histoire",null,null,"Année de Service 2022"]
[]
[]
["Terr.N°","Parcouru pour la dernière fois le*","Attribué  à",null,"Attribué  à",null,"Attribué  à",null,"Attribué  à"]
[null,null,"Attribué le ","Entièrement parcouru le","Attribué le ","Entièrement parcouru le","Attribué le ","Entièrement parcouru le","Attribué le ","Entièrement parcouru le"]
[1,"2021-10-10","André"]
[null,null,"2022-05-05","2022-05-06"]
[2]
[]
[3]
[]
[4]
[]
[5]
[]
[6]
[]
[7]
[]
[8]
[]
[9]
[]
[10]
[]
[11]
[]
[12]
[]
[13]
[]
[14]
[]
[15]
[]
[16]
[]
[17]
[]
[18]
[]
[19]
[]
[20]
[]
[21]
[]
[22]
[]
[23]
[]
[24]
[]
[25]
[]
[26]
[]
[27]
[]
[28]
[]
[29]
[]
[30]

{"sheet":"Histoire 31-40","index":3,"n_rows":26,"n_cols":10,"rows_kept":26,"cut":false,"hidden":false,"merged":[[57,8,57,9],[59,0,60,0],[59,1,60,1],[59,2,59,3],[59,4,59,5],[59,6,59,7],[59,8,59,9],[57,0,58,0],[57,1,58,1],[57,2,57,3],[57,4,57,5],[57,6,57,7],[53,8,53,9],[55,0,56,0],[55,1,56,1],[55,2,55,3],[55,4,55,5],[55,6,55,7],[55,8,55,9],[53,0,54,0],[53,1,54,1],[53,2,53,3],[53,4,53,5],[53,6,53,7],[49,8,49,9],[51,0,52,0],[51,1,52,1],[51,2,51,3],[51,4,51,5],[51,6,51,7],[51,8,51,9],[49,0,50,0],[49,1,50,1],[49,2,49,3],[49,4,49,5],[49,6,49,7],[45,8,45,9],[47,0,48,0],[47,1,48,1],[47,2,47,3],[47,4,47,5],[47,6,47,7],[47,8,47,9],[45,0,46,0],[45,1,46,1],[45,2,45,3],[45,4,45,5],[45,6,45,7],[41,8,41,9],[43,0,44,0],[43,1,44,1],[43,2,43,3],[43,4,43,5],[43,6,43,7],[43,8,43,9],[41,0,42,0],[41,1,42,1],[41,2,41,3],[41,4,41,5],[41,6,41,7],[37,8,37,9],[39,0,40,0],[39,1,40,1],[39,2,39,3],[39,4,39,5],[39,6,39,7],[39,8,39,9],[37,0,38,0],[37,1,38,1],[37,2,37,3],[37,4,37,5],[37,6,37,7],[33,8,33,9],[35,0,36,0],[35,1,36,1],[35,2,35,3],[35,4,35,5],[35,6,35,7],[35,8,35,9],[33,0,34,0],[33,1,34,1],[33,2,33,3],[33,4,33,5],[33,6,33,7],[29,8,29,9],[31,0,32,0],[31,1,32,1],[31,2,31,3],[31,4,31,5],[31,6,31,7],[31,8,31,9],[29,0,30,0],[29,1,30,1],[29,2,29,3],[29,4,29,5],[29,6,29,7],[25,8,25,9],[27,0,28,0],[27,1,28,1],[27,2,27,3],[27,4,27,5],[27,6,27,7],[27,8,27,9],[25,0,26,0],[25,1,26,1],[25,2,25,3],[25,4,25,5],[25,6,25,7],[21,8,21,9],[23,0,24,0],[23,1,24,1],[23,2,23,3],[23,4,23,5],[23,6,23,7],[23,8,23,9],[21,0,22,0],[21,1,22,1],[21,2,21,3],[21,4,21,5],[21,6,21,7],[17,8,17,9],[19,0,20,0],[19,1,20,1],[19,2,19,3],[19,4,19,5],[19,6,19,7],[19,8,19,9],[17,0,18,0],[17,1,18,1],[17,2,17,3],[17,4,17,5],[17,6,17,7],[13,8,13,9],[15,0,16,0],[15,1,16,1],[15,2,15,3],[15,4,15,5],[15,6,15,7],[15,8,15,9],[13,0,14,0],[13,1,14,1],[13,2,13,3],[13,4,13,5],[13,6,13,7],[9,8,9,9],[11,0,12,0],[11,1,12,1],[11,2,11,3],[11,4,11,5],[11,6,11,7],[11,8,11,9],[9,0,10,0],[9,1,10,1],[9,2,9,3],[9,4,9,5],[9,6,9,7],[2,0,3,2],[2,7,2,8],[0,0,1,9],[2,3,3,6],[5,8,5,9],[7,0,8,0],[7,1,8,1],[7,2,7,3],[7,4,7,5],[7,6,7,7],[7,8,7,9],[5,0,6,0],[5,1,6,1],[5,2,5,3],[5,4,5,5],[5,6,5,7]]}
["Relevé d'Attribution des territoires"]
[]
["Histoire",null,null,"Année de Service 2022"]
[]
[]
["Terr.N°","Parcouru pour la dernière fois le*","Attribué  à",null,"Attribué  à",null,"Attribué  à",null,"Attribué  à"]
[null,null,"Attribué le ","Entièrement parcouru le","Attribué le ","Entièrement parcouru le","Attribué le ","Entièrement parcouru le","Attribué le ","Entièrement parcouru le"]
[31,"2021-10-10"]
[]
[32]
[]
[33]
[]
[34]
[]
[35]
[]
[36]
[]
[37]
[]
[38]
[]
[39,null,"Bernadette",null,"Gisèle"]
[null,null,"2022-05-24","2022-06-01","2022-06-02","2022-06-03"]
[40]

{"sheet":"Géographie 1-13","index":4,"n_rows":32,"n_cols":10,"rows_kept":32,"cut":false,"hidden":false,"merged":[[57,8,57,9],[59,0,60,0],[59,1,60,1],[59,2,59,3],[59,4,59,5],[59,6,59,7],[59,8,59,9],[57,0,58,0],[57,1,58,1],[57,2,57,3],[57,4,57,5],[57,6,57,7],[53,8,53,9],[55,0,56,0],[55,1,56,1],[55,2,55,3],[55,4,55,5],[55,6,55,7],[55,8,55,9],[53,0,54,0],[53,1,54,1],[53,2,53,3],[53,4,53,5],[53,6,53,7],[49,8,49,9],[51,0,52,0],[51,1,52,1],[51,2,51,3],[51,4,51,5],[51,6,51,7],[51,8,51,9],[49,0,50,0],[49,1,50,1],[49,2,49,3],[49,4,49,5],[49,6,49,7],[45,8,45,9],[47,0,48,0],[47,1,48,1],[47,2,47,3],[47,4,47,5],[47,6,47,7],[47,8,47,9],[45,0,46,0],[45,1,46,1],[45,2,45,3],[45,4,45,5],[45,6,45,7],[41,8,41,9],[43,0,44,0],[43,1,44,1],[43,2,43,3],[43,4,43,5],[43,6,43,7],[43,8,43,9],[41,0,42,0],[41,1,42,1],[41,2,41,3],[41,4,41,5],[41,6,41,7],[37,8,37,9],[39,0,40,0],[39,1,40,1],[39,2,39,3],[39,4,39,5],[39,6,39,7],[39,8,39,9],[37,0,38,0],[37,1,38,1],[37,2,37,3],[37,4,37,5],[37,6,37,7],[33,8,33,9],[35,0,36,0],[35,1,36,1],[35,2,35,3],[35,4,35,5],[35,6,35,7],[35,8,35,9],[33,0,34,0],[33,1,34,1],[33,2,33,3],[33,4,33,5],[33,6,33,7],[29,8,29,9],[31,0,32,0],[31,1,32,1],[31,2,31,3],[31,4,31,5],[31,6,31,7],[31,8,31,9],[29,0,30,0],[29,1,30,1],[29,2,29,3],[29,4,29,5],[29,6,29,7],[25,8,25,9],[27,0,28,0],[27,1,28,1],[27,2,27,3],[27,4,27,5],[27,6,27,7],[27,8,27,9],[25,0,26,0],[25,1,26,1],[25,2,25,3],[25,4,25,5],[25,6,25,7],[21,8,21,9],[23,0,24,0],[23,1,24,1],[23,2,23,3],[23,4,23,5],[23,6,23,7],[23,8,23,9],[21,0,22,0],[21,1,22,1],[21,2,21,3],[21,4,21,5],[21,6,21,7],[17,8,17,9],[19,0,20,0],[19,1,20,1],[19,2,19,3],[19,4,19,5],[19,6,19,7],[19,8,19,9],[17,0,18,0],[17,1,18,1],[17,2,17,3],[17,4,17,5],[17,6,17,7],[13,8,13,9],[15,0,16,0],[15,1,16,1],[15,2,15,3],[15,4,15,5],[15,6,15,7],[15,8,15,9],[13,0,14,0],[13,1,14,1],[13,2,13,3],[13,4,13,5],[13,6,13,7],[9,8,9,9],[11,0,12,0],[11,1,12,1],[11,2,11,3],[11,4,11,5],[11,6,11,7],[11,8,11,9],[9,0,10,0],[9,1,10,1],[9,2,9,3],[9,4,9,5],[9,6,9,7],[2,0,3,2],[2,7,2,8],[0,0,1,9],[2,3,3,6],[5,8,5,9],[7,0,8,0],[7,1,8,1],[7,2,7,3],[7,4,7,5],[7,6,7,7],[7,8,7,9],[5,0,6,0],[5,1,6,1],[5,2,5,3],[5,4,5,5],[5,6,5,7]]}
["Relevé d'Attribution des territoires"]
[]
["Géographie",null,null,"Année de Service 2022"]
[]
[]
["Terr.N°","Parcouru pour la dernière fois le*","Attribué  à",null,"Attribué  à",null,"Attribué  à",null,"Attribué  à"]
[null,null,"Attribué le ","Entièrement parcouru le","Attribué le ","Entièrement parcouru le","Attribué le ","Entièrement parcouru le","Attribué le ","Entièrement parcouru le"]
[1,"2021-10-10"]
[]
[2]
[]
[3]
[]
[4]
[]
[5]
[]
[6]
[]
[7]
[]
[8]
[]
[9]
[]
[10]
[]
[11]
[]
[12]
[]
[13]

{"sheet":"Ordre de sortie","index":5,"n_rows":429,"n_cols":10,"rows_kept":429,"cut":false,"hidden":true,"merged":[[0,0,0,1],[67,4,67,6],[68,7,68,8],[68,9,68,11],[69,4,69,6]]}
[2021]
["Territoires","Dates  rentrés"]
[{"$f":"IFERROR(INDEX('Gestion des Livres'!B:L,MATCH(SMALL('Gestion des Livres'!N:N,ROW(A1)),'Gestion des Livres'!N:N,0),1),\"\")","v":"Science 1"},{"$f":"IFERROR(INDEX('Gestion des Livres'!B:L,MATCH(SMALL('Gestion des Livres'!N:N,ROW(B1)),'Gestion des Livres'!N:N,0),4),\"\")","v":"00:00:00"},null,{"$f":"IF((B3)=0,\"\",1)","v":""}]
[{"$f":"IFERROR(INDEX('Gestion des Livres'!B:L,MATCH(SMALL('Gestion des Livres'!N:N,ROW(A2)),'Gestion des Livres'!N:N,0),1),\"\")","v":"Science 2"},{"$f":"IFERROR(INDEX('Gestion des Livres'!B:L,MATCH(SMALL('Gestion des Livres'!N:N,ROW(B2)),'Gestion des Livres'!N:N,0),4),\"\")","v":"00:00:00"},null,""]
[{"$f":"IFERROR(INDEX('Gestion des Livres'!B:L,MATCH(SMALL('Gestion des Livres'!N:N,ROW(A3)),'Gestion des Livres'!N:N,0),1),\"\")","v":"Science 3"},{"$f":"IFERROR(INDEX('Gestion des Livres'!B:L,MATCH(SMALL('Gestion des Livres'!N:N,ROW(B3)),'Gestion des Livres'!N:N,0),4),\"\")","v":"00:00:00"},null,""]
[{"$f":"IFERROR(INDEX('Gestion des Livres'!B:L,MATCH(SMALL('Gestion des Livres'!N:N,ROW(A4)),'Gestion des Livres'!N:N,0),1),\"\")","v":"Science 4"},{"$f":"IFERROR(INDEX('Gestion des Livres'!B:L,MATCH(SMALL('Gestion des Livres'!N:N,ROW(B4)),'Gestion des Livres'!N:N,0),4),\"\")","v":"00:00:00"},null,""]
[{"$f":"IFERROR(INDEX('Gestion des Livres'!B:L,MATCH(SMALL('Gestion des Livres'!N:N,ROW(A5)),'Gestion des Livres'!N:N,0),1),\"\")","v":"Science 5"},{"$f":"IFERROR(INDEX('Gestion des Livres'!B:L,MATCH(SMALL('Gestion des Livres'!N:N,ROW(B5)),'Gestion des Livres'!N:N,0),4),\"\")","v":"00:00:00"},null,""]
[{"$f":"IFERROR(INDEX('Gestion des Livres'!B:L,MATCH(SMALL('Gestion des Livres'!N:N,ROW(A6)),'Gestion des Livres'!N:N,0),1),\"\")","v":"Science 6"},{"$f":"IFERROR(INDEX('Gestion des Livres'!B:L,MATCH(SMALL('Gestion des Livres'!N:N,ROW(B6)),'Gestion des Livres'!N:N,0),4),\"\")","v":"00:00:00"},null,""]
[{"$f":"IFERROR(INDEX('Gestion des Livres'!B:L,MATCH(SMALL('Gestion des Livres'!N:N,ROW(A7)),'Gestion des Livres'!N:N,0),1),\"\")","v":"Science 7"},{"$f":"IFERROR(INDEX('Gestion des Livres'!B:L,MATCH(SMALL('Gestion des Livres'!N:N,ROW(B7)),'Gestion des Livres'!N:N,0),4),\"\")","v":"00:00:00"},null,""]
[{"$f":"IFERROR(INDEX('Gestion des Livres'!B:L,MATCH(SMALL('Gestion des Livres'!N:N,ROW(A8)),'Gestion des Livres'!N:N,0),1),\"\")","v":"Science 8"},{"$f":"IFERROR(INDEX('Gestion des Livres'!B:L,MATCH(SMALL('Gestion des Livres'!N:N,ROW(B8)),'Gestion des Livres'!N:N,0),4),\"\")","v":"00:00:00"},null,""]
[{"$f":"IFERROR(INDEX('Gestion des Livres'!B:L,MATCH(SMALL('Gestion des Livres'!N:N,ROW(A9)),'Gestion des Livres'!N:N,0),1),\"\")","v":"Science 9"},{"$f":"IFERROR(INDEX('Gestion des Livres'!B:L,MATCH(SMALL('Gestion des Livres'!N:N,ROW(B9)),'Gestion des Livres'!N:N,0),4),\"\")","v":"00:00:00"},null,""]
[{"$f":"IFERROR(INDEX('Gestion des Livres'!B:L,MATCH(SMALL('Gestion des Livres'!N:N,ROW(A10)),'Gestion des Livres'!N:N,0),1),\"\")","v":"Science 10"},{"$f":"IFERROR(INDEX('Gestion des Livres'!B:L,MATCH(SMALL('Gestion des Livres'!N:N,ROW(B10)),'Gestion des Livres'!N:N,0),4),\"\")","v":"00:00:00"},null,""]
[{"$f":"IFERROR(INDEX('Gestion des Livres'!B:L,MATCH(SMALL('Gestion des Livres'!N:N,ROW(A11)),'Gestion des Livres'!N:N,0),1),\"\")","v":"Science 11"},{"$f":"IFERROR(INDEX('Gestion des Livres'!B:L,MATCH(SMALL('Gestion des Livres'!N:N,ROW(B11)),'Gestion des Livres'!N:N,0),4),\"\")","v":"00:00:00"},null,""]
[{"$f":"IFERROR(INDEX('Gestion des Livres'!B:L,MATCH(SMALL('Gestion des Livres'!N:N,ROW(A12)),'Gestion des Livres'!N:N,0),1),\"\")","v":"Science 12"},{"$f":"IFERROR(INDEX('Gestion des Livres'!B:L,MATCH(SMALL('Gestion des Livres'!N:N,ROW(B12)),'Gestion des Livres'!N:N,0),4),\"\")","v":"00:00:00"},null,""]
[{"$f":"IFERROR(INDEX('Gestion des Livres'!B:L,MATCH(SMALL('Gestion des Livres'!N:N,ROW(A13)),'Gestion des Livres'!N:N,0),1),\"\")","v":"Science 13"},{"$f":"IFERROR(INDEX('Gestion des Livres'!B:L,MATCH(SMALL('Gestion des Livres'!N:N,ROW(B13)),'Gestion des Livres'!N:N,0),4),\"\")","v":"00:00:00"},null,""]
[{"$f":"IFERROR(INDEX('Gestion des Livres'!B:L,MATCH(SMALL('Gestion des Livres'!N:N,ROW(A14)),'Gestion des Livres'!N:N,0),1),\"\")","v":"Science 14"},{"$f":"IFERROR(INDEX('Gestion des Livres'!B:L,MATCH(SMALL('Gestion des Livres'!N:N,ROW(B14)),'Gestion des Livres'!N:N,0),4),\"\")","v":"00:00:00"},null,""]
[{"$f":"IFERROR(INDEX('Gestion des Livres'!B:L,MATCH(SMALL('Gestion des Livres'!N:N,ROW(A15)),'Gestion des Livres'!N:N,0),1),\"\")","v":"Science 15"},{"$f":"IFERROR(INDEX('Gestion des Livres'!B:L,MATCH(SMALL('Gestion des Livres'!N:N,ROW(B15)),'Gestion des Livres'!N:N,0),4),\"\")","v":"00:00:00"},null,""]
[{"$f":"IFERROR(INDEX('Gestion des Livres'!B:L,MATCH(SMALL('Gestion des Livres'!N:N,ROW(A16)),'Gestion des Livres'!N:N,0),1),\"\")","v":"Science 16"},{"$f":"IFERROR(INDEX('Gestion des Livres'!B:L,MATCH(SMALL('Gestion des Livres'!N:N,ROW(B16)),'Gestion des Livres'!N:N,0),4),\"\")","v":"00:00:00"},null,""]
[{"$f":"IFERROR(INDEX('Gestion des Livres'!B:L,MATCH(SMALL('Gestion des Livres'!N:N,ROW(A17)),'Gestion des Livres'!N:N,0),1),\"\")","v":"Science 17"},{"$f":"IFERROR(INDEX('Gestion des Livres'!B:L,MATCH(SMALL('Gestion des Livres'!N:N,ROW(B17)),'Gestion des Livres'!N:N,0),4),\"\")","v":"00:00:00"},null,""]
[{"$f":"IFERROR(INDEX('Gestion des Livres'!B:L,MATCH(SMALL('Gestion des Livres'!N:N,ROW(A18)),'Gestion des Livres'!N:N,0),1),\"\")","v":"Science 18"},{"$f":"IFERROR(INDEX('Gestion des Livres'!B:L,MATCH(SMALL('Gestion des Livres'!N:N,ROW(B18)),'Gestion des Livres'!N:N,0),4),\"\")","v":"00:00:00"},null,""]
[{"$f":"IFERROR(INDEX('Gestion des Livres'!B:L,MATCH(SMALL('Gestion des Livres'!N:N,ROW(A19)),'Gestion des Livres'!N:N,0),1),\"\")","v":"Science 19"},{"$f":"IFERROR(INDEX('Gestion des Livres'!B:L,MATCH(SMALL('Gestion des Livres'!N:N,ROW(B19)),'Gestion des Livres'!N:N,0),4),\"\")","v":"00:00:00"},null,""]
[{"$f":"IFERROR(INDEX('Gestion des Livres'!B:L,MATCH(SMALL('Gestion des Livres'!N:N,ROW(A20)),'Gestion des Livres'!N:N,0),1),\"\")","v":"Science 20"},{"$f":"IFERROR(INDEX('Gestion des Livres'!B:L,MATCH(SMALL('Gestion des Livres'!N:N,ROW(B20)),'Gestion des Livres'!N:N,0),4),\"\")","v":"00:00:00"},null,""]
[{"$f":"IFERROR(INDEX('Gestion des Livres'!B:L,MATCH(SMALL('Gestion des Livres'!N:N,ROW(A21)),'Gestion des Livres'!N:N,0),1),\"\")","v":"Science 21"},{"$f":"IFERROR(INDEX('Gestion des Livres'!B:L,MATCH(SMALL('Gestion des Livres'!N:N,ROW(B21)),'Gestion des Livres'!N:N,0),4),\"\")","v":"00:00:00"},null,""]
[{"$f":"IFERROR(INDEX('Gestion des Livres'!B:L,MATCH(SMALL('Gestion des Livres'!N:N,ROW(A22)),'Gestion des Livres'!N:N,0),1),\"\")","v":"Science 22"},{"$f":"IFERROR(INDEX('Gestion des Livres'!B:L,MATCH(SMALL('Gestion des Livres'!N:N,ROW(B22)),'Gestion des Livres'!N:N,0),4),\"\")","v":"00:00:00"},null,""]
[{"$f":"IFERROR(INDEX('Gestion des Livres'!B:L,MATCH(SMALL('Gestion des Livres'!N:N,ROW(A23)),'Gestion des Livres'!N:N,0),1),\"\")","v":"Science 23"},{"$f":"IFERROR(INDEX('Gestion des Livres'!B:L,MATCH(SMALL('Gestion des Livres'!N:N,ROW(B23)),'Gestion des Livres'!N:N,0),4),\"\")","v":"00:00:00"},null,""]
[{"$f":"IFERROR(INDEX('Gestion des Livres'!B:L,MATCH(SMALL('Gestion des Livres'!N:N,ROW(A24)),'Gestion des Livres'!N:N,0),1),\"\")","v":"Science   NUL 1"},{"$f":"IFERROR(INDEX('Gestion des Livres'!B:L,MATCH(SMALL('Gestion des Livres'!N:N,ROW(B24)),'Gestion des Livres'!N:N,0),4),\"\")","v":"00:00:00"},null,""]
[{"$f":"IFERROR(INDEX('Gestion des Livres'!B:L,MATCH(SMALL('Gestion des Livres'!N:N,ROW(A25)),'Gestion des Livres'!N:N,0),1),\"\")","v":"Science   NUL 2"},{"$f":"IFERROR(INDEX('Gestion des Livres'!B:L,MATCH(SMALL('Gestion des Livres'!N:N,ROW(B25)),'Gestion des Livres'!N:N,0),4),\"\")","v":"00:00:00"},null,""]
[{"$f":"IFERROR(INDEX('Gestion des Livres'!B:L,MATCH(SMALL('Gestion des Livres'!N:N,ROW(A26)),'Gestion des Livres'!N:N,0),1),\"\")","v":"Histoire 1"},{"$f":"IFERROR(INDEX('Gestion des Livres'!B:L,MATCH(SMALL('Gestion des Livres'!N:N,ROW(B26)),'Gestion des Livres'!N:N,0),4),\"\")","v":"00:00:00"},null,""]
[{"$f":"IFERROR(INDEX('Gestion des Livres'!B:L,MATCH(SMALL('Gestion des Livres'!N:N,ROW(A27)),'Gestion des Livres'!N:N,0),1),\"\")","v":"Histoire 2"},{"$f":"IFERROR(INDEX('Gestion des Livres'!B:L,MATCH(SMALL('Gestion des Livres'!N:N,ROW(B27)),'Gestion des Livres'!N:N,0),4),\"\")","v":"00:00:00"},null,""]
[{"$f":"IFERROR(INDEX('Gestion des Livres'!B:L,MATCH(SMALL('Gestion des Livres'!N:N,ROW(A28)),'Gestion des Livres'!N:N,0),1),\"\")","v":"Histoire 3"},{"$f":"IFERROR(INDEX('Gestion des Livres'!B:L,MATCH(SMALL('Gestion des Livres'!N:N,ROW(B28)),'Gestion des Livres'!N:N,0),4),\"\")","v":"00:00:00"},null,""]
[{"$f":"IFERROR(INDEX('Gestion des Livres'!B:L,MATCH(SMALL('Gestion des Livres'!N:N,ROW(A29)),'Gestion des Livres'!N:N,0),1),\"\")","v":"Histoire 4"},{"$f":"IFERROR(INDEX('Gestion des Livres'!B:L,MATCH(SMALL('Gestion des Livres'!N:N,ROW(B29)),'Gestion des Livres'!N:N,0),4),\"\")","v":"00:00:00"},null,""]
[{"$f":"IFERROR(INDEX('Gestion des Livres'!B:L,MATCH(SMALL('Gestion des Livres'!N:N,ROW(A30)),'Gestion des Livres'!N:N,0),1),\"\")","v":"Histoire 5"},{"$f":"IFERROR(INDEX('Gestion des Livres'!B:L,MATCH(SMALL('Gestion des Livres'!N:N,ROW(B30)),'Gestion des Livres'!N:N,0),4),\"\")","v":"00:00:00"},null,""]
[{"$f":"IFERROR(INDEX('Gestion des Livres'!B:L,MATCH(SMALL('Gestion des Livres'!N:N,ROW(A31)),'Gestion des Livres'!N:N,0),1),\"\")","v":"Histoire 6"},{"$f":"IFERROR(INDEX('Gestion des Livres'!B:L,MATCH(SMALL('Gestion des Livres'!N:N,ROW(B31)),'Gestion des Livres'!N:N,0),4),\"\")","v":"00:00:00"},null,""]
[{"$f":"IFERROR(INDEX('Gestion des Livres'!B:L,MATCH(SMALL('Gestion des Livres'!N:N,ROW(A32)),'Gestion des Livres'!N:N,0),1),\"\")","v":"Histoire 7"},{"$f":"IFERROR(INDEX('Gestion des Livres'!B:L,MATCH(SMALL('Gestion des Livres'!N:N,ROW(B32)),'Gestion des Livres'!N:N,0),4),\"\")","v":"00:00:00"},null,""]
[{"$f":"IFERROR(INDEX('Gestion des Livres'!B:L,MATCH(SMALL('Gestion des Livres'!N:N,ROW(A33)),'Gestion des Livres'!N:N,0),1),\"\")","v":"Histoire 8"},{"$f":"IFERROR(INDEX('Gestion des Livres'!B:L,MATCH(SMALL('Gestion des Livres'!N:N,ROW(B33)),'Gestion des Livres'!N:N,0),4),\"\")","v":"00:00:00"},null,""]
[{"$f":"IFERROR(INDEX('Gestion des Livres'!B:L,MATCH(SMALL('Gestion des Livres'!N:N,ROW(A34)),'Gestion des Livres'!N:N,0),1),\"\")","v":"Histoire 9"},{"$f":"IFERROR(INDEX('Gestion des Livres'!B:L,MATCH(SMALL('Gestion des Livres'!N:N,ROW(B34)),'Gestion des Livres'!N:N,0),4),\"\")","v":"00:00:00"},null,""]
[{"$f":"IFERROR(INDEX('Gestion des Livres'!B:L,MATCH(SMALL('Gestion des Livres'!N:N,ROW(A35)),'Gestion des Livres'!N:N,0),1),\"\")","v":"Histoire 10"},{"$f":"IFERROR(INDEX('Gestion des Livres'!B:L,MATCH(SMALL('Gestion des Livres'!N:N,ROW(B35)),'Gestion des Livres'!N:N,0),4),\"\")","v":"00:00:00"},null,""]
[{"$f":"IFERROR(INDEX('Gestion des Livres'!B:L,MATCH(SMALL('Gestion des Livres'!N:N,ROW(A36)),'Gestion des Livres'!N:N,0),1),\"\")","v":"Histoire 11"},{"$f":"IFERROR(INDEX('Gestion des Livres'!B:L,MATCH(SMALL('Gestion des Livres'!N:N,ROW(B36)),'Gestion des Livres'!N:N,0),4),\"\")","v":"00:00:00"},null,""]
[{"$f":"IFERROR(INDEX('Gestion des Livres'!B:L,MATCH(SMALL('Gestion des Livres'!N:N,ROW(A37)),'Gestion des Livres'!N:N,0),1),\"\")","v":"Histoire 12"},{"$f":"IFERROR(INDEX('Gestion des Livres'!B:L,MATCH(SMALL('Gestion des Livres'!N:N,ROW(B37)),'Gestion des Livres'!N:N,0),4),\"\")","v":"00:00:00"},null,""]
[{"$f":"IFERROR(INDEX('Gestion des Livres'!B:L,MATCH(SMALL('Gestion des Livres'!N:N,ROW(A38)),'Gestion des Livres'!N:N,0),1),\"\")","v":"Histoire 13"},{"$f":"IFERROR(INDEX('Gestion des Livres'!B:L,MATCH(SMALL('Gestion des Livres'!N:N,ROW(B38)),'Gestion des Livres'!N:N,0),4),\"\")","v":"00:00:00"},null,""]
[{"$f":"IFERROR(INDEX('Gestion des Livres'!B:L,MATCH(SMALL('Gestion des Livres'!N:N,ROW(A39)),'Gestion des Livres'!N:N,0),1),\"\")","v":"Histoire 14"},{"$f":"IFERROR(INDEX('Gestion des Livres'!B:L,MATCH(SMALL('Gestion des Livres'!N:N,ROW(B39)),'Gestion des Livres'!N:N,0),4),\"\")","v":"00:00:00"},null,""]
[{"$f":"IFERROR(INDEX('Gestion des Livres'!B:L,MATCH(SMALL('Gestion des Livres'!N:N,ROW(A40)),'Gestion des Livres'!N:N,0),1),\"\")","v":"Histoire 15"},{"$f":"IFERROR(INDEX('Gestion des Livres'!B:L,MATCH(SMALL('Gestion des Livres'!N:N,ROW(B40)),'Gestion des Livres'!N:N,0),4),\"\")","v":"00:00:00"},null,""]
[{"$f":"IFERROR(INDEX('Gestion des Livres'!B:L,MATCH(SMALL('Gestion des Livres'!N:N,ROW(A41)),'Gestion des Livres'!N:N,0),1),\"\")","v":"Histoire 16"},{"$f":"IFERROR(INDEX('Gestion des Livres'!B:L,MATCH(SMALL('Gestion des Livres'!N:N,ROW(B41)),'Gestion des Livres'!N:N,0),4),\"\")","v":"00:00:00"},null,""]
[{"$f":"IFERROR(INDEX('Gestion des Livres'!B:L,MATCH(SMALL('Gestion des Livres'!N:N,ROW(A42)),'Gestion des Livres'!N:N,0),1),\"\")","v":"Histoire 17"},{"$f":"IFERROR(INDEX('Gestion des Livres'!B:L,MATCH(SMALL('Gestion des Livres'!N:N,ROW(B42)),'Gestion des Livres'!N:N,0),4),\"\")","v":"00:00:00"},null,""]
[{"$f":"IFERROR(INDEX('Gestion des Livres'!B:L,MATCH(SMALL('Gestion des Livres'!N:N,ROW(A43)),'Gestion des Livres'!N:N,0),1),\"\")","v":"Histoire 18"},{"$f":"IFERROR(INDEX('Gestion des Livres'!B:L,MATCH(SMALL('Gestion des Livres'!N:N,ROW(B43)),'Gestion des Livres'!N:N,0),4),\"\")","v":"00:00:00"},null,""]
[{"$f":"IFERROR(INDEX('Gestion des Livres'!B:L,MATCH(SMALL('Gestion des Livres'!N:N,ROW(A44)),'Gestion des Livres'!N:N,0),1),\"\")","v":"Histoire 19"},{"$f":"IFERROR(INDEX('Gestion des Livres'!B:L,MATCH(SMALL('Gestion des Livres'!N:N,ROW(B44)),'Gestion des Livres'!N:N,0),4),\"\")","v":"00:00:00"},null,""]
[{"$f":"IFERROR(INDEX('Gestion des Livres'!B:L,MATCH(SMALL('Gestion des Livres'!N:N,ROW(A45)),'Gestion des Livres'!N:N,0),1),\"\")","v":"Histoire 20"},{"$f":"IFERROR(INDEX('Gestion des Livres'!B:L,MATCH(SMALL('Gestion des Livres'!N:N,ROW(B45)),'Gestion des Livres'!N:N,0),4),\"\")","v":"00:00:00"},null,""]
[{"$f":"IFERROR(INDEX('Gestion des Livres'!B:L,MATCH(SMALL('Gestion des Livres'!N:N,ROW(A46)),'Gestion des Livres'!N:N,0),1),\"\")","v":"Histoire 21"},{"$f":"IFERROR(INDEX('Gestion des Livres'!B:L,MATCH(SMALL('Gestion des Livres'!N:N,ROW(B46)),'Gestion des Livres'!N:N,0),4),\"\")","v":"00:00:00"},null,""]
[{"$f":"IFERROR(INDEX('Gestion des Livres'!B:L,MATCH(SMALL('Gestion des Livres'!N:N,ROW(A47)),'Gestion des Livres'!N:N,0),1),\"\")","v":"Histoire 22"},{"$f":"IFERROR(INDEX('Gestion des Livres'!B:L,MATCH(SMALL('Gestion des Livres'!N:N,ROW(B47)),'Gestion des Livres'!N:N,0),4),\"\")","v":"00:00:00"},null,""]
[{"$f":"IFERROR(INDEX('Gestion des Livres'!B:L,MATCH(SMALL('Gestion des Livres'!N:N,ROW(A48)),'Gestion des Livres'!N:N,0),1),\"\")","v":"Histoire 23"},{"$f":"IFERROR(INDEX('Gestion des Livres'!B:L,MATCH(SMALL('Gestion des Livres'!N:N,ROW(B48)),'Gestion des Livres'!N:N,0),4),\"\")","v":"00:00:00"},null,""]
[{"$f":"IFERROR(INDEX('Gestion des Livres'!B:L,MATCH(SMALL('Gestion des Livres'!N:N,ROW(A49)),'Gestion des Livres'!N:N,0),1),\"\")","v":"Histoire 24"},{"$f":"IFERROR(INDEX('Gestion des Livres'!B:L,MATCH(SMALL('Gestion des Livres'!N:N,ROW(B49)),'Gestion des Livres'!N:N,0),4),\"\")","v":"00:00:00"},null,""]
[{"$f":"IFERROR(INDEX('Gestion des Livres'!B:L,MATCH(SMALL('Gestion des Livres'!N:N,ROW(A50)),'Gestion des Livres'!N:N,0),1),\"\")","v":"Histoire 25"},{"$f":"IFERROR(INDEX('Gestion des Livres'!B:L,MATCH(SMALL('Gestion des Livres'!N:N,ROW(B50)),'Gestion des Livres'!N:N,0),4),\"\")","v":"00:00:00"},null,""]
[{"$f":"IFERROR(INDEX('Gestion des Livres'!B:L,MATCH(SMALL('Gestion des Livres'!N:N,ROW(A51)),'Gestion des Livres'!N:N,0),1),\"\")","v":"Histoire 26"},{"$f":"IFERROR(INDEX('Gestion des Livres'!B:L,MATCH(SMALL('Gestion des Livres'!N:N,ROW(B51)),'Gestion des Livres'!N:N,0),4),\"\")","v":"00:00:00"},null,""]
[{"$f":"IFERROR(INDEX('Gestion des Livres'!B:L,MATCH(SMALL('Gestion des Livres'!N:N,ROW(A52)),'Gestion des Livres'!N:N,0),1),\"\")","v":"Histoire 27"},{"$f":"IFERROR(INDEX('Gestion des Livres'!B:L,MATCH(SMALL('Gestion des Livres'!N:N,ROW(B52)),'Gestion des Livres'!N:N,0),4),\"\")","v":"00:00:00"},null,""]
[{"$f":"IFERROR(INDEX('Gestion des Livres'!B:L,MATCH(SMALL('Gestion des Livres'!N:N,ROW(A53)),'Gestion des Livres'!N:N,0),1),\"\")","v":"Histoire 28"},{"$f":"IFERROR(INDEX('Gestion des Livres'!B:L,MATCH(SMALL('Gestion des Livres'!N:N,ROW(B53)),'Gestion des Livres'!N:N,0),4),\"\")","v":"00:00:00"},null,""]
[{"$f":"IFERROR(INDEX('Gestion des Livres'!B:L,MATCH(SMALL('Gestion des Livres'!N:N,ROW(A54)),'Gestion des Livres'!N:N,0),1),\"\")","v":"Histoire 29"},{"$f":"IFERROR(INDEX('Gestion des Livres'!B:L,MATCH(SMALL('Gestion des Livres'!N:N,ROW(B54)),'Gestion des Livres'!N:N,0),4),\"\")","v":"00:00:00"},null,""]
[{"$f":"IFERROR(INDEX('Gestion des Livres'!B:L,MATCH(SMALL('Gestion des Livres'!N:N,ROW(A55)),'Gestion des Livres'!N:N,0),1),\"\")","v":"Histoire 30"},{"$f":"IFERROR(INDEX('Gestion des Livres'!B:L,MATCH(SMALL('Gestion des Livres'!N:N,ROW(B55)),'Gestion des Livres'!N:N,0),4),\"\")","v":"00:00:00"},null,""]
[{"$f":"IFERROR(INDEX('Gestion des Livres'!B:L,MATCH(SMALL('Gestion des Livres'!N:N,ROW(A56)),'Gestion des Livres'!N:N,0),1),\"\")","v":"Histoire 31"},{"$f":"IFERROR(INDEX('Gestion des Livres'!B:L,MATCH(SMALL('Gestion des Livres'!N:N,ROW(B56)),'Gestion des Livres'!N:N,0),4),\"\")","v":"00:00:00"},null,""]
[{"$f":"IFERROR(INDEX('Gestion des Livres'!B:L,MATCH(SMALL('Gestion des Livres'!N:N,ROW(A57)),'Gestion des Livres'!N:N,0),1),\"\")","v":"Histoire 32"},{"$f":"IFERROR(INDEX('Gestion des Livres'!B:L,MATCH(SMALL('Gestion des Livres'!N:N,ROW(B57)),'Gestion des Livres'!N:N,0),4),\"\")","v":"00:00:00"},null,""]
[{"$f":"IFERROR(INDEX('Gestion des Livres'!B:L,MATCH(SMALL('Gestion des Livres'!N:N,ROW(A58)),'Gestion des Livres'!N:N,0),1),\"\")","v":"Histoire 33"},{"$f":"IFERROR(INDEX('Gestion des Livres'!B:L,MATCH(SMALL('Gestion des Livres'!N:N,ROW(B58)),'Gestion des Livres'!N:N,0),4),\"\")","v":"00:00:00"},null,""]
[{"$f":"IFERROR(INDEX('Gestion des Livres'!B:L,MATCH(SMALL('Gestion des Livres'!N:N,ROW(A59)),'Gestion des Livres'!N:N,0),1),\"\")","v":"Histoire 34"},{"$f":"IFERROR(INDEX('Gestion des Livres'!B:L,MATCH(SMALL('Gestion des Livres'!N:N,ROW(B59)),'Gestion des Livres'!N:N,0),4),\"\")","v":"00:00:00"},null,""]
[{"$f":"IFERROR(INDEX('Gestion des Livres'!B:L,MATCH(SMALL('Gestion des Livres'!N:N,ROW(A60)),'Gestion des Livres'!N:N,0),1),\"\")","v":"Histoire 35"},{"$f":"IFERROR(INDEX('Gestion des Livres'!B:L,MATCH(SMALL('Gestion des Livres'!N:N,ROW(B60)),'Gestion des Livres'!N:N,0),4),\"\")","v":"00:00:00"},null,""]
[{"$f":"IFERROR(INDEX('Gestion des Livres'!B:L,MATCH(SMALL('Gestion des Livres'!N:N,ROW(A61)),'Gestion des Livres'!N:N,0),1),\"\")","v":"Histoire 36"},{"$f":"IFERROR(INDEX('Gestion des Livres'!B:L,MATCH(SMALL('Gestion des Livres'!N:N,ROW(B61)),'Gestion des Livres'!N:N,0),4),\"\")","v":"00:00:00"},null,""]
[{"$f":"IFERROR(INDEX('Gestion des Livres'!B:L,MATCH(SMALL('Gestion des Livres'!N:N,ROW(A62)),'Gestion des Livres'!N:N,0),1),\"\")","v":"Histoire 37"},{"$f":"IFERROR(INDEX('Gestion des Livres'!B:L,MATCH(SMALL('Gestion des Livres'!N:N,ROW(B62)),'Gestion des Livres'!N:N,0),4),\"\")","v":"00:00:00"},null,""]
[{"$f":"IFERROR(INDEX('Gestion des Livres'!B:L,MATCH(SMALL('Gestion des Livres'!N:N,ROW(A63)),'Gestion des Livres'!N:N,0),1),\"\")","v":"Histoire 38"},{"$f":"IFERROR(INDEX('Gestion des Livres'!B:L,MATCH(SMALL('Gestion des Livres'!N:N,ROW(B63)),'Gestion des Livres'!N:N,0),4),\"\")","v":"00:00:00"},null,""]
[{"$f":"IFERROR(INDEX('Gestion des Livres'!B:L,MATCH(SMALL('Gestion des Livres'!N:N,ROW(A64)),'Gestion des Livres'!N:N,0),1),\"\")","v":"Histoire 39"},{"$f":"IFERROR(INDEX('Gestion des Livres'!B:L,MATCH(SMALL('Gestion des Livres'!N:N,ROW(B64)),'Gestion des Livres'!N:N,0),4),\"\")","v":"00:00:00"},null,""]
[{"$f":"IFERROR(INDEX('Gestion des Livres'!B:L,MATCH(SMALL('Gestion des Livres'!N:N,ROW(A65)),'Gestion des Livres'!N:N,0),1),\"\")","v":"Histoire 40"},{"$f":"IFERROR(INDEX('Gestion des Livres'!B:L,MATCH(SMALL('Gestion des Livres'!N:N,ROW(B65)),'Gestion des Livres'!N:N,0),4),\"\")","v":"00:00:00"},null,{"$f":"IF((B67)=0,\"\",1)","v":""}]
[{"$f":"IFERROR(INDEX('Gestion des Livres'!B:L,MATCH(SMALL('Gestion des Livres'!N:N,ROW(A66)),'Gestion des Livres'!N:N,0),1),\"\")","v":"Géographie 1"},{"$f":"IFERROR(INDEX('Gestion des Livres'!B:L,MATCH(SMALL('Gestion des Livres'!N:N,ROW(B66)),'Gestion des Livres'!N:N,0),4),\"\")","v":"00:00:00"},null,"","Total des territoires sorties"]
[{"$f":"IFERROR(INDEX('Gestion des Livres'!B:L,MATCH(SMALL('Gestion des Livres'!N:N,ROW(A67)),'Gestion des Livres'!N:N,0),1),\"\")","v":"Géographie 2"},{"$f":"IFERROR(INDEX('Gestion des Livres'!B:L,MATCH(SMALL('Gestion des Livres'!N:N,ROW(B67)),'Gestion des Livres'!N:N,0),4),\"\")","v":"00:00:00"},null,"",null,{"$f":"SUM(369-F71)","v":28},null,369,null,"Nombres total de Territoires"]
[{"$f":"IFERROR(INDEX('Gestion des Livres'!B:L,MATCH(SMALL('Gestion des Livres'!N:N,ROW(A68)),'Gestion des Livres'!N:N,0),1),\"\")","v":"Géographie 3"},{"$f":"IFERROR(INDEX('Gestion des Livres'!B:L,MATCH(SMALL('Gestion des Livres'!N:N,ROW(B68)),'Gestion des Livres'!N:N,0),4),\"\")","v":"00:00:00"},null,"","Total des territoires en Boîte"]
[{"$f":"IFERROR(INDEX('Gestion des Livres'!B:L,MATCH(SMALL('Gestion des Livres'!N:N,ROW(A69)),'Gestion des Livres'!N:N,0),1),\"\")","v":"Géographie 4"},{"$f":"IFERROR(INDEX('Gestion des Livres'!B:L,MATCH(SMALL('Gestion des Livres'!N:N,ROW(B69)),'Gestion des Livres'!N:N,0),4),\"\")","v":"00:00:00"},null,"",null,{"$f":"SUM(D3:D425)","v":341}]
[{"$f":"IFERROR(INDEX('Gestion des Livres'!B:L,MATCH(SMALL('Gestion des Livres'!N:N,ROW(A70)),'Gestion des Livres'!N:N,0),1),\"\")","v":"Géographie 5"},{"$f":"IFERROR(INDEX('Gestion des Livres'!B:L,MATCH(SMALL('Gestion des Livres'!N:N,ROW(B70)),'Gestion des Livres'!N:N,0),4),\"\")","v":"00:00:00"},null,""]
[{"$f":"IFERROR(INDEX('Gestion des Livres'!B:L,MATCH(SMALL('Gestion des Livres'!N:N,ROW(A71)),'Gestion des Livres'!N:N,0),1),\"\")","v":"Géographie 6"},{"$f":"IFERROR(INDEX('Gestion des Livres'!B:L,MATCH(SMALL('Gestion des Livres'!N:N,ROW(B71)),'Gestion des Livres'!N:N,0),4),\"\")","v":"00:00:00"},null,""]
[{"$f":"IFERROR(INDEX('Gestion des Livres'!B:L,MATCH(SMALL('Gestion des Livres'!N:N,ROW(A72)),'Gestion des Livres'!N:N,0),1),\"\")","v":"Géographie 7"},{"$f":"IFERROR(INDEX('Gestion des Livres'!B:L,MATCH(SMALL('Gestion des Livres'!N:N,ROW(B72)),'Gestion des Livres'!N:N,0),4),\"\")","v":"00:00:00"},null,""]
[{"$f":"IFERROR(INDEX('Gestion des Livres'!B:L,MATCH(SMALL('Gestion des Livres'!N:N,ROW(A73)),'Gestion des Livres'!N:N,0),1),\"\")","v":"Géographie 8"},{"$f":"IFERROR(INDEX('Gestion des Livres'!B:L,MATCH(SMALL('Gestion des Livres'!N:N,ROW(B73)),'Gestion des Livres'!N:N,0),4),\"\")","v":"00:00:00"},null,""]
[{"$f":"IFERROR(INDEX('Gestion des Livres'!B:L,MATCH(SMALL('Gestion des Livres'!N:N,ROW(A74)),'Gestion des Livres'!N:N,0),1),\"\")","v":"Géographie 9"},{"$f":"IFERROR(INDEX('Gestion des Livres'!B:L,MATCH(SMALL('Gestion des Livres'!N:N,ROW(B74)),'Gestion des Livres'!N:N,0),4),\"\")","v":"00:00:00"},null,""]
[{"$f":"IFERROR(INDEX('Gestion des Livres'!B:L,MATCH(SMALL('Gestion des Livres'!N:N,ROW(A75)),'Gestion des Livres'!N:N,0),1),\"\")","v":"Géographie 10"},{"$f":"IFERROR(INDEX('Gestion des Livres'!B:L,MATCH(SMALL('Gestion des Livres'!N:N,ROW(B75)),'Gestion des Livres'!N:N,0),4),\"\")","v":"00:00:00"},null,""]
[{"$f":"IFERROR(INDEX('Gestion des Livres'!B:L,MATCH(SMALL('Gestion des Livres'!N:N,ROW(A76)),'Gestion des Livres'!N:N,0),1),\"\")","v":"Géographie 11"},{"$f":"IFERROR(INDEX('Gestion des Livres'!B:L,MATCH(SMALL('Gestion des Livres'!N:N,ROW(B76)),'Gestion des Livres'!N:N,0),4),\"\")","v":"00:00:00"},null,""]
[{"$f":"IFERROR(INDEX('Gestion des Livres'!B:L,MATCH(SMALL('Gestion des Livres'!N:N,ROW(A77)),'Gestion des Livres'!N:N,0),1),\"\")","v":"Géographie 12"},{"$f":"IFERROR(INDEX('Gestion des Livres'!B:L,MATCH(SMALL('Gestion des Livres'!N:N,ROW(B77)),'Gestion des Livres'!N:N,0),4),\"\")","v":"00:00:00"},null,""]
[{"$f":"IFERROR(INDEX('Gestion des Livres'!B:L,MATCH(SMALL('Gestion des Livres'!N:N,ROW(A78)),'Gestion des Livres'!N:N,0),1),\"\")","v":"Géographie 13"},{"$f":"IFERROR(INDEX('Gestion des Livres'!B:L,MATCH(SMALL('Gestion des Livres'!N:N,ROW(B78)),'Gestion des Livres'!N:N,0),4),\"\")","v":"00:00:00"},null,""]
[{"$f":"IFERROR(INDEX('Gestion des Livres'!B:L,MATCH(SMALL('Gestion des Livres'!N:N,ROW(A79)),'Gestion des Livres'!N:N,0),1),\"\")","v":"Géographie NUL 1"},{"$f":"IFERROR(INDEX('Gestion des Livres'!B:L,MATCH(SMALL('Gestion des Livres'!N:N,ROW(B79)),'Gestion des Livres'!N:N,0),4),\"\")","v":"00:00:00"},null,""]
[{"$f":"IFERROR(INDEX('Gestion des Livres'!B:L,MATCH(SMALL('Gestion des Livres'!N:N,ROW(A80)),'Gestion des Livres'!N:N,0),1),\"\")","v":"Géographie NUL 2"},{"$f":"IFERROR(INDEX('Gestion des Livres'!B:L,MATCH(SMALL('Gestion des Livres'!N:N,ROW(B80)),'Gestion des Livres'!N:N,0),4),\"\")","v":"00:00:00"},null,""]
[{"$f":"IFERROR(INDEX('Gestion des Livres'!B:L,MATCH(SMALL('Gestion des Livres'!N:N,ROW(A81)),'Gestion des Livres'!N:N,0),1),\"\")","v":"???????????"},{"$f":"IFERROR(INDEX('Gestion des Livres'!B:L,MATCH(SMALL('Gestion des Livres'!N:N,ROW(B81)),'Gestion des Livres'!N:N,0),4),\"\")","v":"00:00:00"},null,""]
[{"$f":"IFERROR(INDEX('Gestion des Livres'!B:L,MATCH(SMALL('Gestion des Livres'!N:N,ROW(A82)),'Gestion des Livres'!N:N,0),1),\"\")","v":"?????????????"},{"$f":"IFERROR(INDEX('Gestion des Livres'!B:L,MATCH(SMALL('Gestion des Livres'!N:N,ROW(B82)),'Gestion des Livres'!N:N,0),4),\"\")","v":"00:00:00"},null,""]
[{"$f":"IFERROR(INDEX('Gestion des Livres'!B:L,MATCH(SMALL('Gestion des Livres'!N:N,ROW(A83)),'Gestion des Livres'!N:N,0),1),\"\")","v":""},{"$f":"IFERROR(INDEX('Gestion des Livres'!B:L,MATCH(SMALL('Gestion des Livres'!N:N,ROW(B83)),'Gestion des Livres'!N:N,0),4),\"\")","v":""},null,1]
[{"$f":"IFERROR(INDEX('Gestion des Livres'!B:L,MATCH(SMALL('Gestion des Livres'!N:N,ROW(A84)),'Gestion des Livres'!N:N,0),1),\"\")","v":""},{"$f":"IFERROR(INDEX('Gestion des Livres'!B:L,MATCH(SMALL('Gestion des Livres'!N:N,ROW(B84)),'Gestion des Livres'!N:N,0),4),\"\")","v":""},null,1]
[{"$f":"IFERROR(INDEX('Gestion des Livres'!B:L,MATCH(SMALL('Gestion des Livres'!N:N,ROW(A85)),'Gestion des Livres'!N:N,0),1),\"\")","v":""},{"$f":"IFERROR(INDEX('Gestion des Livres'!B:L,MATCH(SMALL('Gestion des Livres'!N:N,ROW(B85)),'Gestion des Livres'!N:N,0),4),\"\")","v":""},null,1]
[{"$f":"IFERROR(INDEX('Gestion des Livres'!B:L,MATCH(SMALL('Gestion des Livres'!N:N,ROW(A86)),'Gestion des Livres'!N:N,0),1),\"\")","v":""},{"$f":"IFERROR(INDEX('Gestion des Livres'!B:L,MATCH(SMALL('Gestion des Livres'!N:N,ROW(B86)),'Gestion des Livres'!N:N,0),4),\"\")","v":""},null,1]
[{"$f":"IFERROR(INDEX('Gestion des Livres'!B:L,MATCH(SMALL('Gestion des Livres'!N:N,ROW(A87)),'Gestion des Livres'!N:N,0),1),\"\")","v":""},{"$f":"IFERROR(INDEX('Gestion des Livres'!B:L,MATCH(SMALL('Gestion des Livres'!N:N,ROW(B87)),'Gestion des Livres'!N:N,0),4),\"\")","v":""},null,1]
[{"$f":"IFERROR(INDEX('Gestion des Livres'!B:L,MATCH(SMALL('Gestion des Livres'!N:N,ROW(A88)),'Gestion des Livres'!N:N,0),1),\"\")","v":""},{"$f":"IFERROR(INDEX('Gestion des Livres'!B:L,MATCH(SMALL('Gestion des Livres'!N:N,ROW(B88)),'Gestion des Livres'!N:N,0),4),\"\")","v":""},null,1]
[{"$f":"IFERROR(INDEX('Gestion des Livres'!B:L,MATCH(SMALL('Gestion des Livres'!N:N,ROW(A89)),'Gestion des Livres'!N:N,0),1),\"\")","v":""},{"$f":"IFERROR(INDEX('Gestion des Livres'!B:L,MATCH(SMALL('Gestion des Livres'!N:N,ROW(B89)),'Gestion des Livres'!N:N,0),4),\"\")","v":""},null,1]
[{"$f":"IFERROR(INDEX('Gestion des Livres'!B:L,MATCH(SMALL('Gestion des Livres'!N:N,ROW(A90)),'Gestion des Livres'!N:N,0),1),\"\")","v":""},{"$f":"IFERROR(INDEX('Gestion des Livres'!B:L,MATCH(SMALL('Gestion des Livres'!N:N,ROW(B90)),'Gestion des Livres'!N:N,0),4),\"\")","v":""},null,1]
[{"$f":"IFERROR(INDEX('Gestion des Livres'!B:L,MATCH(SMALL('Gestion des Livres'!N:N,ROW(A91)),'Gestion des Livres'!N:N,0),1),\"\")","v":""},{"$f":"IFERROR(INDEX('Gestion des Livres'!B:L,MATCH(SMALL('Gestion des Livres'!N:N,ROW(B91)),'Gestion des Livres'!N:N,0),4),\"\")","v":""},null,1]
[{"$f":"IFERROR(INDEX('Gestion des Livres'!B:L,MATCH(SMALL('Gestion des Livres'!N:N,ROW(A92)),'Gestion des Livres'!N:N,0),1),\"\")","v":""},{"$f":"IFERROR(INDEX('Gestion des Livres'!B:L,MATCH(SMALL('Gestion des Livres'!N:N,ROW(B92)),'Gestion des Livres'!N:N,0),4),\"\")","v":""},null,1]
[{"$f":"IFERROR(INDEX('Gestion des Livres'!B:L,MATCH(SMALL('Gestion des Livres'!N:N,ROW(A93)),'Gestion des Livres'!N:N,0),1),\"\")","v":""},{"$f":"IFERROR(INDEX('Gestion des Livres'!B:L,MATCH(SMALL('Gestion des Livres'!N:N,ROW(B93)),'Gestion des Livres'!N:N,0),4),\"\")","v":""},null,1]
[{"$f":"IFERROR(INDEX('Gestion des Livres'!B:L,MATCH(SMALL('Gestion des Livres'!N:N,ROW(A94)),'Gestion des Livres'!N:N,0),1),\"\")","v":""},{"$f":"IFERROR(INDEX('Gestion des Livres'!B:L,MATCH(SMALL('Gestion des Livres'!N:N,ROW(B94)),'Gestion des Livres'!N:N,0),4),\"\")","v":""},null,1]
[{"$f":"IFERROR(INDEX('Gestion des Livres'!B:L,MATCH(SMALL('Gestion des Livres'!N:N,ROW(A95)),'Gestion des Livres'!N:N,0),1),\"\")","v":""},{"$f":"IFERROR(INDEX('Gestion des Livres'!B:L,MATCH(SMALL('Gestion des Livres'!N:N,ROW(B95)),'Gestion des Livres'!N:N,0),4),\"\")","v":""},null,1]
[{"$f":"IFERROR(INDEX('Gestion des Livres'!B:L,MATCH(SMALL('Gestion des Livres'!N:N,ROW(A96)),'Gestion des Livres'!N:N,0),1),\"\")","v":""},{"$f":"IFERROR(INDEX('Gestion des Livres'!B:L,MATCH(SMALL('Gestion des Livres'!N:N,ROW(B96)),'Gestion des Livres'!N:N,0),4),\"\")","v":""},null,1]
[{"$f":"IFERROR(INDEX('Gestion des Livres'!B:L,MATCH(SMALL('Gestion des Livres'!N:N,ROW(A97)),'Gestion des Livres'!N:N,0),1),\"\")","v":""},{"$f":"IFERROR(INDEX('Gestion des Livres'!B:L,MATCH(SMALL('Gestion des Livres'!N:N,ROW(B97)),'Gestion des Livres'!N:N,0),4),\"\")","v":""},null,1]
[{"$f":"IFERROR(INDEX('Gestion des Livres'!B:L,MATCH(SMALL('Gestion des Livres'!N:N,ROW(A98)),'Gestion des Livres'!N:N,0),1),\"\")","v":""},{"$f":"IFERROR(INDEX('Gestion des Livres'!B:L,MATCH(SMALL('Gestion des Livres'!N:N,ROW(B98)),'Gestion des Livres'!N:N,0),4),\"\")","v":""},null,1]
[{"$f":"IFERROR(INDEX('Gestion des Livres'!B:L,MATCH(SMALL('Gestion des Livres'!N:N,ROW(A99)),'Gestion des Livres'!N:N,0),1),\"\")","v":""},{"$f":"IFERROR(INDEX('Gestion des Livres'!B:L,MATCH(SMALL('Gestion des Livres'!N:N,ROW(B99)),'Gestion des Livres'!N:N,0),4),\"\")","v":""},null,1]
[{"$f":"IFERROR(INDEX('Gestion des Livres'!B:L,MATCH(SMALL('Gestion des Livres'!N:N,ROW(A100)),'Gestion des Livres'!N:N,0),1),\"\")","v":""},{"$f":"IFERROR(INDEX('Gestion des Livres'!B:L,MATCH(SMALL('Gestion des Livres'!N:N,ROW(B100)),'Gestion des Livres'!N:N,0),4),\"\")","v":""},null,1]
[{"$f":"IFERROR(INDEX('Gestion des Livres'!B:L,MATCH(SMALL('Gestion des Livres'!N:N,ROW(A101)),'Gestion des Livres'!N:N,0),1),\"\")","v":""},{"$f":"IFERROR(INDEX('Gestion des Livres'!B:L,MATCH(SMALL('Gestion des Livres'!N:N,ROW(B101)),'Gestion des Livres'!N:N,0),4),\"\")","v":""},null,1]
[{"$f":"IFERROR(INDEX('Gestion des Livres'!B:L,MATCH(SMALL('Gestion des Livres'!N:N,ROW(A102)),'Gestion des Livres'!N:N,0),1),\"\")","v":""},{"$f":"IFERROR(INDEX('Gestion des Livres'!B:L,MATCH(SMALL('Gestion des Livres'!N:N,ROW(B102)),'Gestion des Livres'!N:N,0),4),\"\")","v":""},null,1]
[{"$f":"IFERROR(INDEX('Gestion des Livres'!B:L,MATCH(SMALL('Gestion des Livres'!N:N,ROW(A103)),'Gestion des Livres'!N:N,0),1),\"\")","v":""},{"$f":"IFERROR(INDEX('Gestion des Livres'!B:L,MATCH(SMALL('Gestion des Livres'!N:N,ROW(B103)),'Gestion des Livres'!N:N,0),4),\"\")","v":""},null,1]
[{"$f":"IFERROR(INDEX('Gestion des Livres'!B:L,MATCH(SMALL('Gestion des Livres'!N:N,ROW(A104)),'Gestion des Livres'!N:N,0),1),\"\")","v":""},{"$f":"IFERROR(INDEX('Gestion des Livres'!B:L,MATCH(SMALL('Gestion des Livres'!N:N,ROW(B104)),'Gestion des Livres'!N:N,0),4),\"\")","v":""},null,1]
[{"$f":"IFERROR(INDEX('Gestion des Livres'!B:L,MATCH(SMALL('Gestion des Livres'!N:N,ROW(A105)),'Gestion des Livres'!N:N,0),1),\"\")","v":""},{"$f":"IFERROR(INDEX('Gestion des Livres'!B:L,MATCH(SMALL('Gestion des Livres'!N:N,ROW(B105)),'Gestion des Livres'!N:N,0),4),\"\")","v":""},null,1]
[{"$f":"IFERROR(INDEX('Gestion des Livres'!B:L,MATCH(SMALL('Gestion des Livres'!N:N,ROW(A106)),'Gestion des Livres'!N:N,0),1),\"\")","v":""},{"$f":"IFERROR(INDEX('Gestion des Livres'!B:L,MATCH(SMALL('Gestion des Livres'!N:N,ROW(B106)),'Gestion des Livres'!N:N,0),4),\"\")","v":""},null,1]
[{"$f":"IFERROR(INDEX('Gestion des Livres'!B:L,MATCH(SMALL('Gestion des Livres'!N:N,ROW(A107)),'Gestion des Livres'!N:N,0),1),\"\")","v":""},{"$f":"IFERROR(INDEX('Gestion des Livres'!B:L,MATCH(SMALL('Gestion des Livres'!N:N,ROW(B107)),'Gestion des Livres'!N:N,0),4),\"\")","v":""},null,1]
[{"$f":"IFERROR(INDEX('Gestion des Livres'!B:L,MATCH(SMALL('Gestion des Livres'!N:N,ROW(A108)),'Gestion des Livres'!N:N,0),1),\"\")","v":""},{"$f":"IFERROR(INDEX('Gestion des Livres'!B:L,MATCH(SMALL('Gestion des Livres'!N:N,ROW(B108)),'Gestion des Livres'!N:N,0),4),\"\")","v":""},null,1]
[{"$f":"IFERROR(INDEX('Gestion des Livres'!B:L,MATCH(SMALL('Gestion des Livres'!N:N,ROW(A109)),'Gestion des Livres'!N:N,0),1),\"\")","v":""},{"$f":"IFERROR(INDEX('Gestion des Livres'!B:L,MATCH(SMALL('Gestion des Livres'!N:N,ROW(B109)),'Gestion des Livres'!N:N,0),4),\"\")","v":""},null,1]
[{"$f":"IFERROR(INDEX('Gestion des Livres'!B:L,MATCH(SMALL('Gestion des Livres'!N:N,ROW(A110)),'Gestion des Livres'!N:N,0),1),\"\")","v":""},{"$f":"IFERROR(INDEX('Gestion des Livres'!B:L,MATCH(SMALL('Gestion des Livres'!N:N,ROW(B110)),'Gestion des Livres'!N:N,0),4),\"\")","v":""},null,1]
[{"$f":"IFERROR(INDEX('Gestion des Livres'!B:L,MATCH(SMALL('Gestion des Livres'!N:N,ROW(A111)),'Gestion des Livres'!N:N,0),1),\"\")","v":""},{"$f":"IFERROR(INDEX('Gestion des Livres'!B:L,MATCH(SMALL('Gestion des Livres'!N:N,ROW(B111)),'Gestion des Livres'!N:N,0),4),\"\")","v":""},null,1]
[{"$f":"IFERROR(INDEX('Gestion des Livres'!B:L,MATCH(SMALL('Gestion des Livres'!N:N,ROW(A112)),'Gestion des Livres'!N:N,0),1),\"\")","v":""},{"$f":"IFERROR(INDEX('Gestion des Livres'!B:L,MATCH(SMALL('Gestion des Livres'!N:N,ROW(B112)),'Gestion des Livres'!N:N,0),4),\"\")","v":""},null,1]
[{"$f":"IFERROR(INDEX('Gestion des Livres'!B:L,MATCH(SMALL('Gestion des Livres'!N:N,ROW(A113)),'Gestion des Livres'!N:N,0),1),\"\")","v":""},{"$f":"IFERROR(INDEX('Gestion des Livres'!B:L,MATCH(SMALL('Gestion des Livres'!N:N,ROW(B113)),'Gestion des Livres'!N:N,0),4),\"\")","v":""},null,1]
[{"$f":"IFERROR(INDEX('Gestion des Livres'!B:L,MATCH(SMALL('Gestion des Livres'!N:N,ROW(A114)),'Gestion des Livres'!N:N,0),1),\"\")","v":""},{"$f":"IFERROR(INDEX('Gestion des Livres'!B:L,MATCH(SMALL('Gestion des Livres'!N:N,ROW(B114)),'Gestion des Livres'!N:N,0),4),\"\")","v":""},null,1]
[{"$f":"IFERROR(INDEX('Gestion des Livres'!B:L,MATCH(SMALL('Gestion des Livres'!N:N,ROW(A115)),'Gestion des Livres'!N:N,0),1),\"\")","v":""},{"$f":"IFERROR(INDEX('Gestion des Livres'!B:L,MATCH(SMALL('Gestion des Livres'!N:N,ROW(B115)),'Gestion des Livres'!N:N,0),4),\"\")","v":""},null,1]
[{"$f":"IFERROR(INDEX('Gestion des Livres'!B:L,MATCH(SMALL('Gestion des Livres'!N:N,ROW(A116)),'Gestion des Livres'!N:N,0),1),\"\")","v":""},{"$f":"IFERROR(INDEX('Gestion des Livres'!B:L,MATCH(SMALL('Gestion des Livres'!N:N,ROW(B116)),'Gestion des Livres'!N:N,0),4),\"\")","v":""},null,1]
[{"$f":"IFERROR(INDEX('Gestion des Livres'!B:L,MATCH(SMALL('Gestion des Livres'!N:N,ROW(A117)),'Gestion des Livres'!N:N,0),1),\"\")","v":""},{"$f":"IFERROR(INDEX('Gestion des Livres'!B:L,MATCH(SMALL('Gestion des Livres'!N:N,ROW(B117)),'Gestion des Livres'!N:N,0),4),\"\")","v":""},null,1]
[{"$f":"IFERROR(INDEX('Gestion des Livres'!B:L,MATCH(SMALL('Gestion des Livres'!N:N,ROW(A118)),'Gestion des Livres'!N:N,0),1),\"\")","v":""},{"$f":"IFERROR(INDEX('Gestion des Livres'!B:L,MATCH(SMALL('Gestion des Livres'!N:N,ROW(B118)),'Gestion des Livres'!N:N,0),4),\"\")","v":""},null,1]
[{"$f":"IFERROR(INDEX('Gestion des Livres'!B:L,MATCH(SMALL('Gestion des Livres'!N:N,ROW(A119)),'Gestion des Livres'!N:N,0),1),\"\")","v":""},{"$f":"IFERROR(INDEX('Gestion des Livres'!B:L,MATCH(SMALL('Gestion des Livres'!N:N,ROW(B119)),'Gestion des Livres'!N:N,0),4),\"\")","v":""},null,1]
[{"$f":"IFERROR(INDEX('Gestion des Livres'!B:L,MATCH(SMALL('Gestion des Livres'!N:N,ROW(A120)),'Gestion des Livres'!N:N,0),1),\"\")","v":""},{"$f":"IFERROR(INDEX('Gestion des Livres'!B:L,MATCH(SMALL('Gestion des Livres'!N:N,ROW(B120)),'Gestion des Livres'!N:N,0),4),\"\")","v":""},null,1]
[{"$f":"IFERROR(INDEX('Gestion des Livres'!B:L,MATCH(SMALL('Gestion des Livres'!N:N,ROW(A121)),'Gestion des Livres'!N:N,0),1),\"\")","v":""},{"$f":"IFERROR(INDEX('Gestion des Livres'!B:L,MATCH(SMALL('Gestion des Livres'!N:N,ROW(B121)),'Gestion des Livres'!N:N,0),4),\"\")","v":""},null,1]
[{"$f":"IFERROR(INDEX('Gestion des Livres'!B:L,MATCH(SMALL('Gestion des Livres'!N:N,ROW(A122)),'Gestion des Livres'!N:N,0),1),\"\")","v":""},{"$f":"IFERROR(INDEX('Gestion des Livres'!B:L,MATCH(SMALL('Gestion des Livres'!N:N,ROW(B122)),'Gestion des Livres'!N:N,0),4),\"\")","v":""},null,1]
[{"$f":"IFERROR(INDEX('Gestion des Livres'!B:L,MATCH(SMALL('Gestion des Livres'!N:N,ROW(A123)),'Gestion des Livres'!N:N,0),1),\"\")","v":""},{"$f":"IFERROR(INDEX('Gestion des Livres'!B:L,MATCH(SMALL('Gestion des Livres'!N:N,ROW(B123)),'Gestion des Livres'!N:N,0),4),\"\")","v":""},null,1]
[{"$f":"IFERROR(INDEX('Gestion des Livres'!B:L,MATCH(SMALL('Gestion des Livres'!N:N,ROW(A124)),'Gestion des Livres'!N:N,0),1),\"\")","v":""},{"$f":"IFERROR(INDEX('Gestion des Livres'!B:L,MATCH(SMALL('Gestion des Livres'!N:N,ROW(B124)),'Gestion des Livres'!N:N,0),4),\"\")","v":""},null,1]
[{"$f":"IFERROR(INDEX('Gestion des Livres'!B:L,MATCH(SMALL('Gestion des Livres'!N:N,ROW(A125)),'Gestion des Livres'!N:N,0),1),\"\")","v":""},{"$f":"IFERROR(INDEX('Gestion des Livres'!B:L,MATCH(SMALL('Gestion des Livres'!N:N,ROW(B125)),'Gestion des Livres'!N:N,0),4),\"\")","v":""},null,1]
[{"$f":"IFERROR(INDEX('Gestion des Livres'!B:L,MATCH(SMALL('Gestion des Livres'!N:N,ROW(A126)),'Gestion des Livres'!N:N,0),1),\"\")","v":""},{"$f":"IFERROR(INDEX('Gestion des Livres'!B:L,MATCH(SMALL('Gestion des Livres'!N:N,ROW(B126)),'Gestion des Livres'!N:N,0),4),\"\")","v":""},null,1]
[{"$f":"IFERROR(INDEX('Gestion des Livres'!B:L,MATCH(SMALL('Gestion des Livres'!N:N,ROW(A127)),'Gestion des Livres'!N:N,0),1),\"\")","v":""},{"$f":"IFERROR(INDEX('Gestion des Livres'!B:L,MATCH(SMALL('Gestion des Livres'!N:N,ROW(B127)),'Gestion des Livres'!N:N,0),4),\"\")","v":""},null,1]
[{"$f":"IFERROR(INDEX('Gestion des Livres'!B:L,MATCH(SMALL('Gestion des Livres'!N:N,ROW(A128)),'Gestion des Livres'!N:N,0),1),\"\")","v":""},{"$f":"IFERROR(INDEX('Gestion des Livres'!B:L,MATCH(SMALL('Gestion des Livres'!N:N,ROW(B128)),'Gestion des Livres'!N:N,0),4),\"\")","v":""},null,1]
[{"$f":"IFERROR(INDEX('Gestion des Livres'!B:L,MATCH(SMALL('Gestion des Livres'!N:N,ROW(A129)),'Gestion des Livres'!N:N,0),1),\"\")","v":""},{"$f":"IFERROR(INDEX('Gestion des Livres'!B:L,MATCH(SMALL('Gestion des Livres'!N:N,ROW(B129)),'Gestion des Livres'!N:N,0),4),\"\")","v":""},null,{"$f":"IF((B131)=0,\"\",1)","v":1}]
[{"$f":"IFERROR(INDEX('Gestion des Livres'!B:L,MATCH(SMALL('Gestion des Livres'!N:N,ROW(A130)),'Gestion des Livres'!N:N,0),1),\"\")","v":""},{"$f":"IFERROR(INDEX('Gestion des Livres'!B:L,MATCH(SMALL('Gestion des Livres'!N:N,ROW(B130)),'Gestion des Livres'!N:N,0),4),\"\")","v":""},null,1]
[{"$f":"IFERROR(INDEX('Gestion des Livres'!B:L,MATCH(SMALL('Gestion des Livres'!N:N,ROW(A131)),'Gestion des Livres'!N:N,0),1),\"\")","v":""},{"$f":"IFERROR(INDEX('Gestion des Livres'!B:L,MATCH(SMALL('Gestion des Livres'!N:N,ROW(B131)),'Gestion des Livres'!N:N,0),4),\"\")","v":""},null,1]
[{"$f":"IFERROR(INDEX('Gestion des Livres'!B:L,MATCH(SMALL('Gestion des Livres'!N:N,ROW(A132)),'Gestion des Livres'!N:N,0),1),\"\")","v":""},{"$f":"IFERROR(INDEX('Gestion des Livres'!B:L,MATCH(SMALL('Gestion des Livres'!N:N,ROW(B132)),'Gestion des Livres'!N:N,0),4),\"\")","v":""},null,1]
[{"$f":"IFERROR(INDEX('Gestion des Livres'!B:L,MATCH(SMALL('Gestion des Livres'!N:N,ROW(A133)),'Gestion des Livres'!N:N,0),1),\"\")","v":""},{"$f":"IFERROR(INDEX('Gestion des Livres'!B:L,MATCH(SMALL('Gestion des Livres'!N:N,ROW(B133)),'Gestion des Livres'!N:N,0),4),\"\")","v":""},null,1]
[{"$f":"IFERROR(INDEX('Gestion des Livres'!B:L,MATCH(SMALL('Gestion des Livres'!N:N,ROW(A134)),'Gestion des Livres'!N:N,0),1),\"\")","v":""},{"$f":"IFERROR(INDEX('Gestion des Livres'!B:L,MATCH(SMALL('Gestion des Livres'!N:N,ROW(B134)),'Gestion des Livres'!N:N,0),4),\"\")","v":""},null,1]
[{"$f":"IFERROR(INDEX('Gestion des Livres'!B:L,MATCH(SMALL('Gestion des Livres'!N:N,ROW(A135)),'Gestion des Livres'!N:N,0),1),\"\")","v":""},{"$f":"IFERROR(INDEX('Gestion des Livres'!B:L,MATCH(SMALL('Gestion des Livres'!N:N,ROW(B135)),'Gestion des Livres'!N:N,0),4),\"\")","v":""},null,1]
[{"$f":"IFERROR(INDEX('Gestion des Livres'!B:L,MATCH(SMALL('Gestion des Livres'!N:N,ROW(A136)),'Gestion des Livres'!N:N,0),1),\"\")","v":""},{"$f":"IFERROR(INDEX('Gestion des Livres'!B:L,MATCH(SMALL('Gestion des Livres'!N:N,ROW(B136)),'Gestion des Livres'!N:N,0),4),\"\")","v":""},null,1]
[{"$f":"IFERROR(INDEX('Gestion des Livres'!B:L,MATCH(SMALL('Gestion des Livres'!N:N,ROW(A137)),'Gestion des Livres'!N:N,0),1),\"\")","v":""},{"$f":"IFERROR(INDEX('Gestion des Livres'!B:L,MATCH(SMALL('Gestion des Livres'!N:N,ROW(B137)),'Gestion des Livres'!N:N,0),4),\"\")","v":""},null,1]
[{"$f":"IFERROR(INDEX('Gestion des Livres'!B:L,MATCH(SMALL('Gestion des Livres'!N:N,ROW(A138)),'Gestion des Livres'!N:N,0),1),\"\")","v":""},{"$f":"IFERROR(INDEX('Gestion des Livres'!B:L,MATCH(SMALL('Gestion des Livres'!N:N,ROW(B138)),'Gestion des Livres'!N:N,0),4),\"\")","v":""},null,1]
[{"$f":"IFERROR(INDEX('Gestion des Livres'!B:L,MATCH(SMALL('Gestion des Livres'!N:N,ROW(A139)),'Gestion des Livres'!N:N,0),1),\"\")","v":""},{"$f":"IFERROR(INDEX('Gestion des Livres'!B:L,MATCH(SMALL('Gestion des Livres'!N:N,ROW(B139)),'Gestion des Livres'!N:N,0),4),\"\")","v":""},null,1]
[{"$f":"IFERROR(INDEX('Gestion des Livres'!B:L,MATCH(SMALL('Gestion des Livres'!N:N,ROW(A140)),'Gestion des Livres'!N:N,0),1),\"\")","v":""},{"$f":"IFERROR(INDEX('Gestion des Livres'!B:L,MATCH(SMALL('Gestion des Livres'!N:N,ROW(B140)),'Gestion des Livres'!N:N,0),4),\"\")","v":""},null,1]
[{"$f":"IFERROR(INDEX('Gestion des Livres'!B:L,MATCH(SMALL('Gestion des Livres'!N:N,ROW(A141)),'Gestion des Livres'!N:N,0),1),\"\")","v":""},{"$f":"IFERROR(INDEX('Gestion des Livres'!B:L,MATCH(SMALL('Gestion des Livres'!N:N,ROW(B141)),'Gestion des Livres'!N:N,0),4),\"\")","v":""},null,1]
[{"$f":"IFERROR(INDEX('Gestion des Livres'!B:L,MATCH(SMALL('Gestion des Livres'!N:N,ROW(A142)),'Gestion des Livres'!N:N,0),1),\"\")","v":""},{"$f":"IFERROR(INDEX('Gestion des Livres'!B:L,MATCH(SMALL('Gestion des Livres'!N:N,ROW(B142)),'Gestion des Livres'!N:N,0),4),\"\")","v":""},null,1]
[{"$f":"IFERROR(INDEX('Gestion des Livres'!B:L,MATCH(SMALL('Gestion des Livres'!N:N,ROW(A143)),'Gestion des Livres'!N:N,0),1),\"\")","v":""},{"$f":"IFERROR(INDEX('Gestion des Livres'!B:L,MATCH(SMALL('Gestion des Livres'!N:N,ROW(B143)),'Gestion des Livres'!N:N,0),4),\"\")","v":""},null,1]
[{"$f":"IFERROR(INDEX('Gestion des Livres'!B:L,MATCH(SMALL('Gestion des Livres'!N:N,ROW(A144)),'Gestion des Livres'!N:N,0),1),\"\")","v":""},{"$f":"IFERROR(INDEX('Gestion des Livres'!B:L,MATCH(SMALL('Gestion des Livres'!N:N,ROW(B144)),'Gestion des Livres'!N:N,0),4),\"\")","v":""},null,1]
[{"$f":"IFERROR(INDEX('Gestion des Livres'!B:L,MATCH(SMALL('Gestion des Livres'!N:N,ROW(A145)),'Gestion des Livres'!N:N,0),1),\"\")","v":""},{"$f":"IFERROR(INDEX('Gestion des Livres'!B:L,MATCH(SMALL('Gestion des Livres'!N:N,ROW(B145)),'Gestion des Livres'!N:N,0),4),\"\")","v":""},null,1]
[{"$f":"IFERROR(INDEX('Gestion des Livres'!B:L,MATCH(SMALL('Gestion des Livres'!N:N,ROW(A146)),'Gestion des Livres'!N:N,0),1),\"\")","v":""},{"$f":"IFERROR(INDEX('Gestion des Livres'!B:L,MATCH(SMALL('Gestion des Livres'!N:N,ROW(B146)),'Gestion des Livres'!N:N,0),4),\"\")","v":""},null,1]
[{"$f":"IFERROR(INDEX('Gestion des Livres'!B:L,MATCH(SMALL('Gestion des Livres'!N:N,ROW(A147)),'Gestion des Livres'!N:N,0),1),\"\")","v":""},{"$f":"IFERROR(INDEX('Gestion des Livres'!B:L,MATCH(SMALL('Gestion des Livres'!N:N,ROW(B147)),'Gestion des Livres'!N:N,0),4),\"\")","v":""},null,1]
[{"$f":"IFERROR(INDEX('Gestion des Livres'!B:L,MATCH(SMALL('Gestion des Livres'!N:N,ROW(A148)),'Gestion des Livres'!N:N,0),1),\"\")","v":""},{"$f":"IFERROR(INDEX('Gestion des Livres'!B:L,MATCH(SMALL('Gestion des Livres'!N:N,ROW(B148)),'Gestion des Livres'!N:N,0),4),\"\")","v":""},null,1]
[{"$f":"IFERROR(INDEX('Gestion des Livres'!B:L,MATCH(SMALL('Gestion des Livres'!N:N,ROW(A149)),'Gestion des Livres'!N:N,0),1),\"\")","v":""},{"$f":"IFERROR(INDEX('Gestion des Livres'!B:L,MATCH(SMALL('Gestion des Livres'!N:N,ROW(B149)),'Gestion des Livres'!N:N,0),4),\"\")","v":""},null,1]
[{"$f":"IFERROR(INDEX('Gestion des Livres'!B:L,MATCH(SMALL('Gestion des Livres'!N:N,ROW(A150)),'Gestion des Livres'!N:N,0),1),\"\")","v":""},{"$f":"IFERROR(INDEX('Gestion des Livres'!B:L,MATCH(SMALL('Gestion des Livres'!N:N,ROW(B150)),'Gestion des Livres'!N:N,0),4),\"\")","v":""},null,1]
[{"$f":"IFERROR(INDEX('Gestion des Livres'!B:L,MATCH(SMALL('Gestion des Livres'!N:N,ROW(A151)),'Gestion des Livres'!N:N,0),1),\"\")","v":""},{"$f":"IFERROR(INDEX('Gestion des Livres'!B:L,MATCH(SMALL('Gestion des Livres'!N:N,ROW(B151)),'Gestion des Livres'!N:N,0),4),\"\")","v":""},null,1]
[{"$f":"IFERROR(INDEX('Gestion des Livres'!B:L,MATCH(SMALL('Gestion des Livres'!N:N,ROW(A152)),'Gestion des Livres'!N:N,0),1),\"\")","v":""},{"$f":"IFERROR(INDEX('Gestion des Livres'!B:L,MATCH(SMALL('Gestion des Livres'!N:N,ROW(B152)),'Gestion des Livres'!N:N,0),4),\"\")","v":""},null,1]
[{"$f":"IFERROR(INDEX('Gestion des Livres'!B:L,MATCH(SMALL('Gestion des Livres'!N:N,ROW(A153)),'Gestion des Livres'!N:N,0),1),\"\")","v":""},{"$f":"IFERROR(INDEX('Gestion des Livres'!B:L,MATCH(SMALL('Gestion des Livres'!N:N,ROW(B153)),'Gestion des Livres'!N:N,0),4),\"\")","v":""},null,1]
[{"$f":"IFERROR(INDEX('Gestion des Livres'!B:L,MATCH(SMALL('Gestion des Livres'!N:N,ROW(A154)),'Gestion des Livres'!N:N,0),1),\"\")","v":""},{"$f":"IFERROR(INDEX('Gestion des Livres'!B:L,MATCH(SMALL('Gestion des Livres'!N:N,ROW(B154)),'Gestion des Livres'!N:N,0),4),\"\")","v":""},null,1]
[{"$f":"IFERROR(INDEX('Gestion des Livres'!B:L,MATCH(SMALL('Gestion des Livres'!N:N,ROW(A155)),'Gestion des Livres'!N:N,0),1),\"\")","v":""},{"$f":"IFERROR(INDEX('Gestion des Livres'!B:L,MATCH(SMALL('Gestion des Livres'!N:N,ROW(B155)),'Gestion des Livres'!N:N,0),4),\"\")","v":""},null,1]
[{"$f":"IFERROR(INDEX('Gestion des Livres'!B:L,MATCH(SMALL('Gestion des Livres'!N:N,ROW(A156)),'Gestion des Livres'!N:N,0),1),\"\")","v":""},{"$f":"IFERROR(INDEX('Gestion des Livres'!B:L,MATCH(SMALL('Gestion des Livres'!N:N,ROW(B156)),'Gestion des Livres'!N:N,0),4),\"\")","v":""},null,1]
[{"$f":"IFERROR(INDEX('Gestion des Livres'!B:L,MATCH(SMALL('Gestion des Livres'!N:N,ROW(A157)),'Gestion des Livres'!N:N,0),1),\"\")","v":""},{"$f":"IFERROR(INDEX('Gestion des Livres'!B:L,MATCH(SMALL('Gestion des Livres'!N:N,ROW(B157)),'Gestion des Livres'!N:N,0),4),\"\")","v":""},null,1]
[{"$f":"IFERROR(INDEX('Gestion des Livres'!B:L,MATCH(SMALL('Gestion des Livres'!N:N,ROW(A158)),'Gestion des Livres'!N:N,0),1),\"\")","v":""},{"$f":"IFERROR(INDEX('Gestion des Livres'!B:L,MATCH(SMALL('Gestion des Livres'!N:N,ROW(B158)),'Gestion des Livres'!N:N,0),4),\"\")","v":""},null,1]
[{"$f":"IFERROR(INDEX('Gestion des Livres'!B:L,MATCH(SMALL('Gestion des Livres'!N:N,ROW(A159)),'Gestion des Livres'!N:N,0),1),\"\")","v":""},{"$f":"IFERROR(INDEX('Gestion des Livres'!B:L,MATCH(SMALL('Gestion des Livres'!N:N,ROW(B159)),'Gestion des Livres'!N:N,0),4),\"\")","v":""},null,1]
[{"$f":"IFERROR(INDEX('Gestion des Livres'!B:L,MATCH(SMALL('Gestion des Livres'!N:N,ROW(A160)),'Gestion des Livres'!N:N,0),1),\"\")","v":""},{"$f":"IFERROR(INDEX('Gestion des Livres'!B:L,MATCH(SMALL('Gestion des Livres'!N:N,ROW(B160)),'Gestion des Livres'!N:N,0),4),\"\")","v":""},null,1]
[{"$f":"IFERROR(INDEX('Gestion des Livres'!B:L,MATCH(SMALL('Gestion des Livres'!N:N,ROW(A161)),'Gestion des Livres'!N:N,0),1),\"\")","v":""},{"$f":"IFERROR(INDEX('Gestion des Livres'!B:L,MATCH(SMALL('Gestion des Livres'!N:N,ROW(B161)),'Gestion des Livres'!N:N,0),4),\"\")","v":""},null,1]
[{"$f":"IFERROR(INDEX('Gestion des Livres'!B:L,MATCH(SMALL('Gestion des Livres'!N:N,ROW(A162)),'Gestion des Livres'!N:N,0),1),\"\")","v":""},{"$f":"IFERROR(INDEX('Gestion des Livres'!B:L,MATCH(SMALL('Gestion des Livres'!N:N,ROW(B162)),'Gestion des Livres'!N:N,0),4),\"\")","v":""},null,1]
[{"$f":"IFERROR(INDEX('Gestion des Livres'!B:L,MATCH(SMALL('Gestion des Livres'!N:N,ROW(A163)),'Gestion des Livres'!N:N,0),1),\"\")","v":""},{"$f":"IFERROR(INDEX('Gestion des Livres'!B:L,MATCH(SMALL('Gestion des Livres'!N:N,ROW(B163)),'Gestion des Livres'!N:N,0),4),\"\")","v":""},null,1]
[{"$f":"IFERROR(INDEX('Gestion des Livres'!B:L,MATCH(SMALL('Gestion des Livres'!N:N,ROW(A164)),'Gestion des Livres'!N:N,0),1),\"\")","v":""},{"$f":"IFERROR(INDEX('Gestion des Livres'!B:L,MATCH(SMALL('Gestion des Livres'!N:N,ROW(B164)),'Gestion des Livres'!N:N,0),4),\"\")","v":""},null,1]
[{"$f":"IFERROR(INDEX('Gestion des Livres'!B:L,MATCH(SMALL('Gestion des Livres'!N:N,ROW(A165)),'Gestion des Livres'!N:N,0),1),\"\")","v":""},{"$f":"IFERROR(INDEX('Gestion des Livres'!B:L,MATCH(SMALL('Gestion des Livres'!N:N,ROW(B165)),'Gestion des Livres'!N:N,0),4),\"\")","v":""},null,1]
[{"$f":"IFERROR(INDEX('Gestion des Livres'!B:L,MATCH(SMALL('Gestion des Livres'!N:N,ROW(A166)),'Gestion des Livres'!N:N,0),1),\"\")","v":""},{"$f":"IFERROR(INDEX('Gestion des Livres'!B:L,MATCH(SMALL('Gestion des Livres'!N:N,ROW(B166)),'Gestion des Livres'!N:N,0),4),\"\")","v":""},null,1]
[{"$f":"IFERROR(INDEX('Gestion des Livres'!B:L,MATCH(SMALL('Gestion des Livres'!N:N,ROW(A167)),'Gestion des Livres'!N:N,0),1),\"\")","v":""},{"$f":"IFERROR(INDEX('Gestion des Livres'!B:L,MATCH(SMALL('Gestion des Livres'!N:N,ROW(B167)),'Gestion des Livres'!N:N,0),4),\"\")","v":""},null,1]
[{"$f":"IFERROR(INDEX('Gestion des Livres'!B:L,MATCH(SMALL('Gestion des Livres'!N:N,ROW(A168)),'Gestion des Livres'!N:N,0),1),\"\")","v":""},{"$f":"IFERROR(INDEX('Gestion des Livres'!B:L,MATCH(SMALL('Gestion des Livres'!N:N,ROW(B168)),'Gestion des Livres'!N:N,0),4),\"\")","v":""},null,1]
[{"$f":"IFERROR(INDEX('Gestion des Livres'!B:L,MATCH(SMALL('Gestion des Livres'!N:N,ROW(A169)),'Gestion des Livres'!N:N,0),1),\"\")","v":""},{"$f":"IFERROR(INDEX('Gestion des Livres'!B:L,MATCH(SMALL('Gestion des Livres'!N:N,ROW(B169)),'Gestion des Livres'!N:N,0),4),\"\")","v":""},null,1]
[{"$f":"IFERROR(INDEX('Gestion des Livres'!B:L,MATCH(SMALL('Gestion des Livres'!N:N,ROW(A170)),'Gestion des Livres'!N:N,0),1),\"\")","v":""},{"$f":"IFERROR(INDEX('Gestion des Livres'!B:L,MATCH(SMALL('Gestion des Livres'!N:N,ROW(B170)),'Gestion des Livres'!N:N,0),4),\"\")","v":""},null,1]
[{"$f":"IFERROR(INDEX('Gestion des Livres'!B:L,MATCH(SMALL('Gestion des Livres'!N:N,ROW(A171)),'Gestion des Livres'!N:N,0),1),\"\")","v":""},{"$f":"IFERROR(INDEX('Gestion des Livres'!B:L,MATCH(SMALL('Gestion des Livres'!N:N,ROW(B171)),'Gestion des Livres'!N:N,0),4),\"\")","v":""},null,1]
[{"$f":"IFERROR(INDEX('Gestion des Livres'!B:L,MATCH(SMALL('Gestion des Livres'!N:N,ROW(A172)),'Gestion des Livres'!N:N,0),1),\"\")","v":""},{"$f":"IFERROR(INDEX('Gestion des Livres'!B:L,MATCH(SMALL('Gestion des Livres'!N:N,ROW(B172)),'Gestion des Livres'!N:N,0),4),\"\")","v":""},null,1]
[{"$f":"IFERROR(INDEX('Gestion des Livres'!B:L,MATCH(SMALL('Gestion des Livres'!N:N,ROW(A173)),'Gestion des Livres'!N:N,0),1),\"\")","v":""},{"$f":"IFERROR(INDEX('Gestion des Livres'!B:L,MATCH(SMALL('Gestion des Livres'!N:N,ROW(B173)),'Gestion des Livres'!N:N,0),4),\"\")","v":""},null,1]
[{"$f":"IFERROR(INDEX('Gestion des Livres'!B:L,MATCH(SMALL('Gestion des Livres'!N:N,ROW(A174)),'Gestion des Livres'!N:N,0),1),\"\")","v":""},{"$f":"IFERROR(INDEX('Gestion des Livres'!B:L,MATCH(SMALL('Gestion des Livres'!N:N,ROW(B174)),'Gestion des Livres'!N:N,0),4),\"\")","v":""},null,1]
[{"$f":"IFERROR(INDEX('Gestion des Livres'!B:L,MATCH(SMALL('Gestion des Livres'!N:N,ROW(A175)),'Gestion des Livres'!N:N,0),1),\"\")","v":""},{"$f":"IFERROR(INDEX('Gestion des Livres'!B:L,MATCH(SMALL('Gestion des Livres'!N:N,ROW(B175)),'Gestion des Livres'!N:N,0),4),\"\")","v":""},null,1]
[{"$f":"IFERROR(INDEX('Gestion des Livres'!B:L,MATCH(SMALL('Gestion des Livres'!N:N,ROW(A176)),'Gestion des Livres'!N:N,0),1),\"\")","v":""},{"$f":"IFERROR(INDEX('Gestion des Livres'!B:L,MATCH(SMALL('Gestion des Livres'!N:N,ROW(B176)),'Gestion des Livres'!N:N,0),4),\"\")","v":""},null,1]
[{"$f":"IFERROR(INDEX('Gestion des Livres'!B:L,MATCH(SMALL('Gestion des Livres'!N:N,ROW(A177)),'Gestion des Livres'!N:N,0),1),\"\")","v":""},{"$f":"IFERROR(INDEX('Gestion des Livres'!B:L,MATCH(SMALL('Gestion des Livres'!N:N,ROW(B177)),'Gestion des Livres'!N:N,0),4),\"\")","v":""},null,1]
[{"$f":"IFERROR(INDEX('Gestion des Livres'!B:L,MATCH(SMALL('Gestion des Livres'!N:N,ROW(A178)),'Gestion des Livres'!N:N,0),1),\"\")","v":""},{"$f":"IFERROR(INDEX('Gestion des Livres'!B:L,MATCH(SMALL('Gestion des Livres'!N:N,ROW(B178)),'Gestion des Livres'!N:N,0),4),\"\")","v":""},null,1]
[{"$f":"IFERROR(INDEX('Gestion des Livres'!B:L,MATCH(SMALL('Gestion des Livres'!N:N,ROW(A179)),'Gestion des Livres'!N:N,0),1),\"\")","v":""},{"$f":"IFERROR(INDEX('Gestion des Livres'!B:L,MATCH(SMALL('Gestion des Livres'!N:N,ROW(B179)),'Gestion des Livres'!N:N,0),4),\"\")","v":""},null,1]
[{"$f":"IFERROR(INDEX('Gestion des Livres'!B:L,MATCH(SMALL('Gestion des Livres'!N:N,ROW(A180)),'Gestion des Livres'!N:N,0),1),\"\")","v":""},{"$f":"IFERROR(INDEX('Gestion des Livres'!B:L,MATCH(SMALL('Gestion des Livres'!N:N,ROW(B180)),'Gestion des Livres'!N:N,0),4),\"\")","v":""},null,1]
[{"$f":"IFERROR(INDEX('Gestion des Livres'!B:L,MATCH(SMALL('Gestion des Livres'!N:N,ROW(A181)),'Gestion des Livres'!N:N,0),1),\"\")","v":""},{"$f":"IFERROR(INDEX('Gestion des Livres'!B:L,MATCH(SMALL('Gestion des Livres'!N:N,ROW(B181)),'Gestion des Livres'!N:N,0),4),\"\")","v":""},null,1]
[{"$f":"IFERROR(INDEX('Gestion des Livres'!B:L,MATCH(SMALL('Gestion des Livres'!N:N,ROW(A182)),'Gestion des Livres'!N:N,0),1),\"\")","v":""},{"$f":"IFERROR(INDEX('Gestion des Livres'!B:L,MATCH(SMALL('Gestion des Livres'!N:N,ROW(B182)),'Gestion des Livres'!N:N,0),4),\"\")","v":""},null,1]
[{"$f":"IFERROR(INDEX('Gestion des Livres'!B:L,MATCH(SMALL('Gestion des Livres'!N:N,ROW(A183)),'Gestion des Livres'!N:N,0),1),\"\")","v":""},{"$f":"IFERROR(INDEX('Gestion des Livres'!B:L,MATCH(SMALL('Gestion des Livres'!N:N,ROW(B183)),'Gestion des Livres'!N:N,0),4),\"\")","v":""},null,1]
[{"$f":"IFERROR(INDEX('Gestion des Livres'!B:L,MATCH(SMALL('Gestion des Livres'!N:N,ROW(A184)),'Gestion des Livres'!N:N,0),1),\"\")","v":""},{"$f":"IFERROR(INDEX('Gestion des Livres'!B:L,MATCH(SMALL('Gestion des Livres'!N:N,ROW(B184)),'Gestion des Livres'!N:N,0),4),\"\")","v":""},null,1]
[{"$f":"IFERROR(INDEX('Gestion des Livres'!B:L,MATCH(SMALL('Gestion des Livres'!N:N,ROW(A185)),'Gestion des Livres'!N:N,0),1),\"\")","v":""},{"$f":"IFERROR(INDEX('Gestion des Livres'!B:L,MATCH(SMALL('Gestion des Livres'!N:N,ROW(B185)),'Gestion des Livres'!N:N,0),4),\"\")","v":""},null,1]
[{"$f":"IFERROR(INDEX('Gestion des Livres'!B:L,MATCH(SMALL('Gestion des Livres'!N:N,ROW(A186)),'Gestion des Livres'!N:N,0),1),\"\")","v":""},{"$f":"IFERROR(INDEX('Gestion des Livres'!B:L,MATCH(SMALL('Gestion des Livres'!N:N,ROW(B186)),'Gestion des Livres'!N:N,0),4),\"\")","v":""},null,1]
[{"$f":"IFERROR(INDEX('Gestion des Livres'!B:L,MATCH(SMALL('Gestion des Livres'!N:N,ROW(A187)),'Gestion des Livres'!N:N,0),1),\"\")","v":""},{"$f":"IFERROR(INDEX('Gestion des Livres'!B:L,MATCH(SMALL('Gestion des Livres'!N:N,ROW(B187)),'Gestion des Livres'!N:N,0),4),\"\")","v":""},null,1]
[{"$f":"IFERROR(INDEX('Gestion des Livres'!B:L,MATCH(SMALL('Gestion des Livres'!N:N,ROW(A188)),'Gestion des Livres'!N:N,0),1),\"\")","v":""},{"$f":"IFERROR(INDEX('Gestion des Livres'!B:L,MATCH(SMALL('Gestion des Livres'!N:N,ROW(B188)),'Gestion des Livres'!N:N,0),4),\"\")","v":""},null,1]
[{"$f":"IFERROR(INDEX('Gestion des Livres'!B:L,MATCH(SMALL('Gestion des Livres'!N:N,ROW(A189)),'Gestion des Livres'!N:N,0),1),\"\")","v":""},{"$f":"IFERROR(INDEX('Gestion des Livres'!B:L,MATCH(SMALL('Gestion des Livres'!N:N,ROW(B189)),'Gestion des Livres'!N:N,0),4),\"\")","v":""},null,1]
[{"$f":"IFERROR(INDEX('Gestion des Livres'!B:L,MATCH(SMALL('Gestion des Livres'!N:N,ROW(A190)),'Gestion des Livres'!N:N,0),1),\"\")","v":""},{"$f":"IFERROR(INDEX('Gestion des Livres'!B:L,MATCH(SMALL('Gestion des Livres'!N:N,ROW(B190)),'Gestion des Livres'!N:N,0),4),\"\")","v":""},null,1]
[{"$f":"IFERROR(INDEX('Gestion des Livres'!B:L,MATCH(SMALL('Gestion des Livres'!N:N,ROW(A191)),'Gestion des Livres'!N:N,0),1),\"\")","v":""},{"$f":"IFERROR(INDEX('Gestion des Livres'!B:L,MATCH(SMALL('Gestion des Livres'!N:N,ROW(B191)),'Gestion des Livres'!N:N,0),4),\"\")","v":""},null,1]
[{"$f":"IFERROR(INDEX('Gestion des Livres'!B:L,MATCH(SMALL('Gestion des Livres'!N:N,ROW(A192)),'Gestion des Livres'!N:N,0),1),\"\")","v":""},{"$f":"IFERROR(INDEX('Gestion des Livres'!B:L,MATCH(SMALL('Gestion des Livres'!N:N,ROW(B192)),'Gestion des Livres'!N:N,0),4),\"\")","v":""},null,1]
[{"$f":"IFERROR(INDEX('Gestion des Livres'!B:L,MATCH(SMALL('Gestion des Livres'!N:N,ROW(A193)),'Gestion des Livres'!N:N,0),1),\"\")","v":""},{"$f":"IFERROR(INDEX('Gestion des Livres'!B:L,MATCH(SMALL('Gestion des Livres'!N:N,ROW(B193)),'Gestion des Livres'!N:N,0),4),\"\")","v":""},null,{"$f":"IF((B195)=0,\"\",1)","v":1}]
[{"$f":"IFERROR(INDEX('Gestion des Livres'!B:L,MATCH(SMALL('Gestion des Livres'!N:N,ROW(A194)),'Gestion des Livres'!N:N,0),1),\"\")","v":""},{"$f":"IFERROR(INDEX('Gestion des Livres'!B:L,MATCH(SMALL('Gestion des Livres'!N:N,ROW(B194)),'Gestion des Livres'!N:N,0),4),\"\")","v":""},null,1]
[{"$f":"IFERROR(INDEX('Gestion des Livres'!B:L,MATCH(SMALL('Gestion des Livres'!N:N,ROW(A195)),'Gestion des Livres'!N:N,0),1),\"\")","v":""},{"$f":"IFERROR(INDEX('Gestion des Livres'!B:L,MATCH(SMALL('Gestion des Livres'!N:N,ROW(B195)),'Gestion des Livres'!N:N,0),4),\"\")","v":""},null,1]
[{"$f":"IFERROR(INDEX('Gestion des Livres'!B:L,MATCH(SMALL('Gestion des Livres'!N:N,ROW(A196)),'Gestion des Livres'!N:N,0),1),\"\")","v":""},{"$f":"IFERROR(INDEX('Gestion des Livres'!B:L,MATCH(SMALL('Gestion des Livres'!N:N,ROW(B196)),'Gestion des Livres'!N:N,0),4),\"\")","v":""},null,1]
[{"$f":"IFERROR(INDEX('Gestion des Livres'!B:L,MATCH(SMALL('Gestion des Livres'!N:N,ROW(A197)),'Gestion des Livres'!N:N,0),1),\"\")","v":""},{"$f":"IFERROR(INDEX('Gestion des Livres'!B:L,MATCH(SMALL('Gestion des Livres'!N:N,ROW(B197)),'Gestion des Livres'!N:N,0),4),\"\")","v":""},null,1]
[{"$f":"IFERROR(INDEX('Gestion des Livres'!B:L,MATCH(SMALL('Gestion des Livres'!N:N,ROW(A198)),'Gestion des Livres'!N:N,0),1),\"\")","v":""},{"$f":"IFERROR(INDEX('Gestion des Livres'!B:L,MATCH(SMALL('Gestion des Livres'!N:N,ROW(B198)),'Gestion des Livres'!N:N,0),4),\"\")","v":""},null,1]
[{"$f":"IFERROR(INDEX('Gestion des Livres'!B:L,MATCH(SMALL('Gestion des Livres'!N:N,ROW(A199)),'Gestion des Livres'!N:N,0),1),\"\")","v":""},{"$f":"IFERROR(INDEX('Gestion des Livres'!B:L,MATCH(SMALL('Gestion des Livres'!N:N,ROW(B199)),'Gestion des Livres'!N:N,0),4),\"\")","v":""},null,1]
[{"$f":"IFERROR(INDEX('Gestion des Livres'!B:L,MATCH(SMALL('Gestion des Livres'!N:N,ROW(A200)),'Gestion des Livres'!N:N,0),1),\"\")","v":""},{"$f":"IFERROR(INDEX('Gestion des Livres'!B:L,MATCH(SMALL('Gestion des Livres'!N:N,ROW(B200)),'Gestion des Livres'!N:N,0),4),\"\")","v":""},null,1]
[{"$f":"IFERROR(INDEX('Gestion des Livres'!B:L,MATCH(SMALL('Gestion des Livres'!N:N,ROW(A201)),'Gestion des Livres'!N:N,0),1),\"\")","v":""},{"$f":"IFERROR(INDEX('Gestion des Livres'!B:L,MATCH(SMALL('Gestion des Livres'!N:N,ROW(B201)),'Gestion des Livres'!N:N,0),4),\"\")","v":""},null,1]
[{"$f":"IFERROR(INDEX('Gestion des Livres'!B:L,MATCH(SMALL('Gestion des Livres'!N:N,ROW(A202)),'Gestion des Livres'!N:N,0),1),\"\")","v":""},{"$f":"IFERROR(INDEX('Gestion des Livres'!B:L,MATCH(SMALL('Gestion des Livres'!N:N,ROW(B202)),'Gestion des Livres'!N:N,0),4),\"\")","v":""},null,1]
[{"$f":"IFERROR(INDEX('Gestion des Livres'!B:L,MATCH(SMALL('Gestion des Livres'!N:N,ROW(A203)),'Gestion des Livres'!N:N,0),1),\"\")","v":""},{"$f":"IFERROR(INDEX('Gestion des Livres'!B:L,MATCH(SMALL('Gestion des Livres'!N:N,ROW(B203)),'Gestion des Livres'!N:N,0),4),\"\")","v":""},null,1]
[{"$f":"IFERROR(INDEX('Gestion des Livres'!B:L,MATCH(SMALL('Gestion des Livres'!N:N,ROW(A204)),'Gestion des Livres'!N:N,0),1),\"\")","v":""},{"$f":"IFERROR(INDEX('Gestion des Livres'!B:L,MATCH(SMALL('Gestion des Livres'!N:N,ROW(B204)),'Gestion des Livres'!N:N,0),4),\"\")","v":""},null,1]
[{"$f":"IFERROR(INDEX('Gestion des Livres'!B:L,MATCH(SMALL('Gestion des Livres'!N:N,ROW(A205)),'Gestion des Livres'!N:N,0),1),\"\")","v":""},{"$f":"IFERROR(INDEX('Gestion des Livres'!B:L,MATCH(SMALL('Gestion des Livres'!N:N,ROW(B205)),'Gestion des Livres'!N:N,0),4),\"\")","v":""},null,1]
[{"$f":"IFERROR(INDEX('Gestion des Livres'!B:L,MATCH(SMALL('Gestion des Livres'!N:N,ROW(A206)),'Gestion des Livres'!N:N,0),1),\"\")","v":""},{"$f":"IFERROR(INDEX('Gestion des Livres'!B:L,MATCH(SMALL('Gestion des Livres'!N:N,ROW(B206)),'Gestion des Livres'!N:N,0),4),\"\")","v":""},null,1]
[{"$f":"IFERROR(INDEX('Gestion des Livres'!B:L,MATCH(SMALL('Gestion des Livres'!N:N,ROW(A207)),'Gestion des Livres'!N:N,0),1),\"\")","v":""},{"$f":"IFERROR(INDEX('Gestion des Livres'!B:L,MATCH(SMALL('Gestion des Livres'!N:N,ROW(B207)),'Gestion des Livres'!N:N,0),4),\"\")","v":""},null,1]
[{"$f":"IFERROR(INDEX('Gestion des Livres'!B:L,MATCH(SMALL('Gestion des Livres'!N:N,ROW(A208)),'Gestion des Livres'!N:N,0),1),\"\")","v":""},{"$f":"IFERROR(INDEX('Gestion des Livres'!B:L,MATCH(SMALL('Gestion des Livres'!N:N,ROW(B208)),'Gestion des Livres'!N:N,0),4),\"\")","v":""},null,1]
[{"$f":"IFERROR(INDEX('Gestion des Livres'!B:L,MATCH(SMALL('Gestion des Livres'!N:N,ROW(A209)),'Gestion des Livres'!N:N,0),1),\"\")","v":""},{"$f":"IFERROR(INDEX('Gestion des Livres'!B:L,MATCH(SMALL('Gestion des Livres'!N:N,ROW(B209)),'Gestion des Livres'!N:N,0),4),\"\")","v":""},null,1]
[{"$f":"IFERROR(INDEX('Gestion des Livres'!B:L,MATCH(SMALL('Gestion des Livres'!N:N,ROW(A210)),'Gestion des Livres'!N:N,0),1),\"\")","v":""},{"$f":"IFERROR(INDEX('Gestion des Livres'!B:L,MATCH(SMALL('Gestion des Livres'!N:N,ROW(B210)),'Gestion des Livres'!N:N,0),4),\"\")","v":""},null,1]
[{"$f":"IFERROR(INDEX('Gestion des Livres'!B:L,MATCH(SMALL('Gestion des Livres'!N:N,ROW(A211)),'Gestion des Livres'!N:N,0),1),\"\")","v":""},{"$f":"IFERROR(INDEX('Gestion des Livres'!B:L,MATCH(SMALL('Gestion des Livres'!N:N,ROW(B211)),'Gestion des Livres'!N:N,0),4),\"\")","v":""},null,1]
[{"$f":"IFERROR(INDEX('Gestion des Livres'!B:L,MATCH(SMALL('Gestion des Livres'!N:N,ROW(A212)),'Gestion des Livres'!N:N,0),1),\"\")","v":""},{"$f":"IFERROR(INDEX('Gestion des Livres'!B:L,MATCH(SMALL('Gestion des Livres'!N:N,ROW(B212)),'Gestion des Livres'!N:N,0),4),\"\")","v":""},null,1]
[{"$f":"IFERROR(INDEX('Gestion des Livres'!B:L,MATCH(SMALL('Gestion des Livres'!N:N,ROW(A213)),'Gestion des Livres'!N:N,0),1),\"\")","v":""},{"$f":"IFERROR(INDEX('Gestion des Livres'!B:L,MATCH(SMALL('Gestion des Livres'!N:N,ROW(B213)),'Gestion des Livres'!N:N,0),4),\"\")","v":""},null,1]
[{"$f":"IFERROR(INDEX('Gestion des Livres'!B:L,MATCH(SMALL('Gestion des Livres'!N:N,ROW(A214)),'Gestion des Livres'!N:N,0),1),\"\")","v":""},{"$f":"IFERROR(INDEX('Gestion des Livres'!B:L,MATCH(SMALL('Gestion des Livres'!N:N,ROW(B214)),'Gestion des Livres'!N:N,0),4),\"\")","v":""},null,1]
[{"$f":"IFERROR(INDEX('Gestion des Livres'!B:L,MATCH(SMALL('Gestion des Livres'!N:N,ROW(A215)),'Gestion des Livres'!N:N,0),1),\"\")","v":""},{"$f":"IFERROR(INDEX('Gestion des Livres'!B:L,MATCH(SMALL('Gestion des Livres'!N:N,ROW(B215)),'Gestion des Livres'!N:N,0),4),\"\")","v":""},null,1]
[{"$f":"IFERROR(INDEX('Gestion des Livres'!B:L,MATCH(SMALL('Gestion des Livres'!N:N,ROW(A216)),'Gestion des Livres'!N:N,0),1),\"\")","v":""},{"$f":"IFERROR(INDEX('Gestion des Livres'!B:L,MATCH(SMALL('Gestion des Livres'!N:N,ROW(B216)),'Gestion des Livres'!N:N,0),4),\"\")","v":""},null,1]
[{"$f":"IFERROR(INDEX('Gestion des Livres'!B:L,MATCH(SMALL('Gestion des Livres'!N:N,ROW(A217)),'Gestion des Livres'!N:N,0),1),\"\")","v":""},{"$f":"IFERROR(INDEX('Gestion des Livres'!B:L,MATCH(SMALL('Gestion des Livres'!N:N,ROW(B217)),'Gestion des Livres'!N:N,0),4),\"\")","v":""},null,1]
[{"$f":"IFERROR(INDEX('Gestion des Livres'!B:L,MATCH(SMALL('Gestion des Livres'!N:N,ROW(A218)),'Gestion des Livres'!N:N,0),1),\"\")","v":""},{"$f":"IFERROR(INDEX('Gestion des Livres'!B:L,MATCH(SMALL('Gestion des Livres'!N:N,ROW(B218)),'Gestion des Livres'!N:N,0),4),\"\")","v":""},null,1]
[{"$f":"IFERROR(INDEX('Gestion des Livres'!B:L,MATCH(SMALL('Gestion des Livres'!N:N,ROW(A219)),'Gestion des Livres'!N:N,0),1),\"\")","v":""},{"$f":"IFERROR(INDEX('Gestion des Livres'!B:L,MATCH(SMALL('Gestion des Livres'!N:N,ROW(B219)),'Gestion des Livres'!N:N,0),4),\"\")","v":""},null,1]
[{"$f":"IFERROR(INDEX('Gestion des Livres'!B:L,MATCH(SMALL('Gestion des Livres'!N:N,ROW(A220)),'Gestion des Livres'!N:N,0),1),\"\")","v":""},{"$f":"IFERROR(INDEX('Gestion des Livres'!B:L,MATCH(SMALL('Gestion des Livres'!N:N,ROW(B220)),'Gestion des Livres'!N:N,0),4),\"\")","v":""},null,1]
[{"$f":"IFERROR(INDEX('Gestion des Livres'!B:L,MATCH(SMALL('Gestion des Livres'!N:N,ROW(A221)),'Gestion des Livres'!N:N,0),1),\"\")","v":""},{"$f":"IFERROR(INDEX('Gestion des Livres'!B:L,MATCH(SMALL('Gestion des Livres'!N:N,ROW(B221)),'Gestion des Livres'!N:N,0),4),\"\")","v":""},null,1]
[{"$f":"IFERROR(INDEX('Gestion des Livres'!B:L,MATCH(SMALL('Gestion des Livres'!N:N,ROW(A222)),'Gestion des Livres'!N:N,0),1),\"\")","v":""},{"$f":"IFERROR(INDEX('Gestion des Livres'!B:L,MATCH(SMALL('Gestion des Livres'!N:N,ROW(B222)),'Gestion des Livres'!N:N,0),4),\"\")","v":""},null,1]
[{"$f":"IFERROR(INDEX('Gestion des Livres'!B:L,MATCH(SMALL('Gestion des Livres'!N:N,ROW(A223)),'Gestion des Livres'!N:N,0),1),\"\")","v":""},{"$f":"IFERROR(INDEX('Gestion des Livres'!B:L,MATCH(SMALL('Gestion des Livres'!N:N,ROW(B223)),'Gestion des Livres'!N:N,0),4),\"\")","v":""},null,1]
[{"$f":"IFERROR(INDEX('Gestion des Livres'!B:L,MATCH(SMALL('Gestion des Livres'!N:N,ROW(A224)),'Gestion des Livres'!N:N,0),1),\"\")","v":""},{"$f":"IFERROR(INDEX('Gestion des Livres'!B:L,MATCH(SMALL('Gestion des Livres'!N:N,ROW(B224)),'Gestion des Livres'!N:N,0),4),\"\")","v":""},null,1]
[{"$f":"IFERROR(INDEX('Gestion des Livres'!B:L,MATCH(SMALL('Gestion des Livres'!N:N,ROW(A225)),'Gestion des Livres'!N:N,0),1),\"\")","v":""},{"$f":"IFERROR(INDEX('Gestion des Livres'!B:L,MATCH(SMALL('Gestion des Livres'!N:N,ROW(B225)),'Gestion des Livres'!N:N,0),4),\"\")","v":""},null,1]
[{"$f":"IFERROR(INDEX('Gestion des Livres'!B:L,MATCH(SMALL('Gestion des Livres'!N:N,ROW(A226)),'Gestion des Livres'!N:N,0),1),\"\")","v":""},{"$f":"IFERROR(INDEX('Gestion des Livres'!B:L,MATCH(SMALL('Gestion des Livres'!N:N,ROW(B226)),'Gestion des Livres'!N:N,0),4),\"\")","v":""},null,1]
[{"$f":"IFERROR(INDEX('Gestion des Livres'!B:L,MATCH(SMALL('Gestion des Livres'!N:N,ROW(A227)),'Gestion des Livres'!N:N,0),1),\"\")","v":""},{"$f":"IFERROR(INDEX('Gestion des Livres'!B:L,MATCH(SMALL('Gestion des Livres'!N:N,ROW(B227)),'Gestion des Livres'!N:N,0),4),\"\")","v":""},null,1]
[{"$f":"IFERROR(INDEX('Gestion des Livres'!B:L,MATCH(SMALL('Gestion des Livres'!N:N,ROW(A228)),'Gestion des Livres'!N:N,0),1),\"\")","v":""},{"$f":"IFERROR(INDEX('Gestion des Livres'!B:L,MATCH(SMALL('Gestion des Livres'!N:N,ROW(B228)),'Gestion des Livres'!N:N,0),4),\"\")","v":""},null,1]
[{"$f":"IFERROR(INDEX('Gestion des Livres'!B:L,MATCH(SMALL('Gestion des Livres'!N:N,ROW(A229)),'Gestion des Livres'!N:N,0),1),\"\")","v":""},{"$f":"IFERROR(INDEX('Gestion des Livres'!B:L,MATCH(SMALL('Gestion des Livres'!N:N,ROW(B229)),'Gestion des Livres'!N:N,0),4),\"\")","v":""},null,1]
[{"$f":"IFERROR(INDEX('Gestion des Livres'!B:L,MATCH(SMALL('Gestion des Livres'!N:N,ROW(A230)),'Gestion des Livres'!N:N,0),1),\"\")","v":""},{"$f":"IFERROR(INDEX('Gestion des Livres'!B:L,MATCH(SMALL('Gestion des Livres'!N:N,ROW(B230)),'Gestion des Livres'!N:N,0),4),\"\")","v":""},null,1]
[{"$f":"IFERROR(INDEX('Gestion des Livres'!B:L,MATCH(SMALL('Gestion des Livres'!N:N,ROW(A231)),'Gestion des Livres'!N:N,0),1),\"\")","v":""},{"$f":"IFERROR(INDEX('Gestion des Livres'!B:L,MATCH(SMALL('Gestion des Livres'!N:N,ROW(B231)),'Gestion des Livres'!N:N,0),4),\"\")","v":""},null,1]
[{"$f":"IFERROR(INDEX('Gestion des Livres'!B:L,MATCH(SMALL('Gestion des Livres'!N:N,ROW(A232)),'Gestion des Livres'!N:N,0),1),\"\")","v":""},{"$f":"IFERROR(INDEX('Gestion des Livres'!B:L,MATCH(SMALL('Gestion des Livres'!N:N,ROW(B232)),'Gestion des Livres'!N:N,0),4),\"\")","v":""},null,1]
[{"$f":"IFERROR(INDEX('Gestion des Livres'!B:L,MATCH(SMALL('Gestion des Livres'!N:N,ROW(A233)),'Gestion des Livres'!N:N,0),1),\"\")","v":""},{"$f":"IFERROR(INDEX('Gestion des Livres'!B:L,MATCH(SMALL('Gestion des Livres'!N:N,ROW(B233)),'Gestion des Livres'!N:N,0),4),\"\")","v":""},null,1]
[{"$f":"IFERROR(INDEX('Gestion des Livres'!B:L,MATCH(SMALL('Gestion des Livres'!N:N,ROW(A234)),'Gestion des Livres'!N:N,0),1),\"\")","v":""},{"$f":"IFERROR(INDEX('Gestion des Livres'!B:L,MATCH(SMALL('Gestion des Livres'!N:N,ROW(B234)),'Gestion des Livres'!N:N,0),4),\"\")","v":""},null,1]
[{"$f":"IFERROR(INDEX('Gestion des Livres'!B:L,MATCH(SMALL('Gestion des Livres'!N:N,ROW(A235)),'Gestion des Livres'!N:N,0),1),\"\")","v":""},{"$f":"IFERROR(INDEX('Gestion des Livres'!B:L,MATCH(SMALL('Gestion des Livres'!N:N,ROW(B235)),'Gestion des Livres'!N:N,0),4),\"\")","v":""},null,1]
[{"$f":"IFERROR(INDEX('Gestion des Livres'!B:L,MATCH(SMALL('Gestion des Livres'!N:N,ROW(A236)),'Gestion des Livres'!N:N,0),1),\"\")","v":""},{"$f":"IFERROR(INDEX('Gestion des Livres'!B:L,MATCH(SMALL('Gestion des Livres'!N:N,ROW(B236)),'Gestion des Livres'!N:N,0),4),\"\")","v":""},null,1]
[{"$f":"IFERROR(INDEX('Gestion des Livres'!B:L,MATCH(SMALL('Gestion des Livres'!N:N,ROW(A237)),'Gestion des Livres'!N:N,0),1),\"\")","v":""},{"$f":"IFERROR(INDEX('Gestion des Livres'!B:L,MATCH(SMALL('Gestion des Livres'!N:N,ROW(B237)),'Gestion des Livres'!N:N,0),4),\"\")","v":""},null,1]
[{"$f":"IFERROR(INDEX('Gestion des Livres'!B:L,MATCH(SMALL('Gestion des Livres'!N:N,ROW(A238)),'Gestion des Livres'!N:N,0),1),\"\")","v":""},{"$f":"IFERROR(INDEX('Gestion des Livres'!B:L,MATCH(SMALL('Gestion des Livres'!N:N,ROW(B238)),'Gestion des Livres'!N:N,0),4),\"\")","v":""},null,1]
[{"$f":"IFERROR(INDEX('Gestion des Livres'!B:L,MATCH(SMALL('Gestion des Livres'!N:N,ROW(A239)),'Gestion des Livres'!N:N,0),1),\"\")","v":""},{"$f":"IFERROR(INDEX('Gestion des Livres'!B:L,MATCH(SMALL('Gestion des Livres'!N:N,ROW(B239)),'Gestion des Livres'!N:N,0),4),\"\")","v":""},null,1]
[{"$f":"IFERROR(INDEX('Gestion des Livres'!B:L,MATCH(SMALL('Gestion des Livres'!N:N,ROW(A240)),'Gestion des Livres'!N:N,0),1),\"\")","v":""},{"$f":"IFERROR(INDEX('Gestion des Livres'!B:L,MATCH(SMALL('Gestion des Livres'!N:N,ROW(B240)),'Gestion des Livres'!N:N,0),4),\"\")","v":""},null,1]
[{"$f":"IFERROR(INDEX('Gestion des Livres'!B:L,MATCH(SMALL('Gestion des Livres'!N:N,ROW(A241)),'Gestion des Livres'!N:N,0),1),\"\")","v":""},{"$f":"IFERROR(INDEX('Gestion des Livres'!B:L,MATCH(SMALL('Gestion des Livres'!N:N,ROW(B241)),'Gestion des Livres'!N:N,0),4),\"\")","v":""},null,1]
[{"$f":"IFERROR(INDEX('Gestion des Livres'!B:L,MATCH(SMALL('Gestion des Livres'!N:N,ROW(A242)),'Gestion des Livres'!N:N,0),1),\"\")","v":""},{"$f":"IFERROR(INDEX('Gestion des Livres'!B:L,MATCH(SMALL('Gestion des Livres'!N:N,ROW(B242)),'Gestion des Livres'!N:N,0),4),\"\")","v":""},null,1]
[{"$f":"IFERROR(INDEX('Gestion des Livres'!B:L,MATCH(SMALL('Gestion des Livres'!N:N,ROW(A243)),'Gestion des Livres'!N:N,0),1),\"\")","v":""},{"$f":"IFERROR(INDEX('Gestion des Livres'!B:L,MATCH(SMALL('Gestion des Livres'!N:N,ROW(B243)),'Gestion des Livres'!N:N,0),4),\"\")","v":""},null,1]
[{"$f":"IFERROR(INDEX('Gestion des Livres'!B:L,MATCH(SMALL('Gestion des Livres'!N:N,ROW(A244)),'Gestion des Livres'!N:N,0),1),\"\")","v":""},{"$f":"IFERROR(INDEX('Gestion des Livres'!B:L,MATCH(SMALL('Gestion des Livres'!N:N,ROW(B244)),'Gestion des Livres'!N:N,0),4),\"\")","v":""},null,1]
[{"$f":"IFERROR(INDEX('Gestion des Livres'!B:L,MATCH(SMALL('Gestion des Livres'!N:N,ROW(A245)),'Gestion des Livres'!N:N,0),1),\"\")","v":""},{"$f":"IFERROR(INDEX('Gestion des Livres'!B:L,MATCH(SMALL('Gestion des Livres'!N:N,ROW(B245)),'Gestion des Livres'!N:N,0),4),\"\")","v":""},null,1]
[{"$f":"IFERROR(INDEX('Gestion des Livres'!B:L,MATCH(SMALL('Gestion des Livres'!N:N,ROW(A246)),'Gestion des Livres'!N:N,0),1),\"\")","v":""},{"$f":"IFERROR(INDEX('Gestion des Livres'!B:L,MATCH(SMALL('Gestion des Livres'!N:N,ROW(B246)),'Gestion des Livres'!N:N,0),4),\"\")","v":""},null,1]
[{"$f":"IFERROR(INDEX('Gestion des Livres'!B:L,MATCH(SMALL('Gestion des Livres'!N:N,ROW(A247)),'Gestion des Livres'!N:N,0),1),\"\")","v":""},{"$f":"IFERROR(INDEX('Gestion des Livres'!B:L,MATCH(SMALL('Gestion des Livres'!N:N,ROW(B247)),'Gestion des Livres'!N:N,0),4),\"\")","v":""},null,1]
[{"$f":"IFERROR(INDEX('Gestion des Livres'!B:L,MATCH(SMALL('Gestion des Livres'!N:N,ROW(A248)),'Gestion des Livres'!N:N,0),1),\"\")","v":""},{"$f":"IFERROR(INDEX('Gestion des Livres'!B:L,MATCH(SMALL('Gestion des Livres'!N:N,ROW(B248)),'Gestion des Livres'!N:N,0),4),\"\")","v":""},null,1]
[{"$f":"IFERROR(INDEX('Gestion des Livres'!B:L,MATCH(SMALL('Gestion des Livres'!N:N,ROW(A249)),'Gestion des Livres'!N:N,0),1),\"\")","v":""},{"$f":"IFERROR(INDEX('Gestion des Livres'!B:L,MATCH(SMALL('Gestion des Livres'!N:N,ROW(B249)),'Gestion des Livres'!N:N,0),4),\"\")","v":""},null,1]
[{"$f":"IFERROR(INDEX('Gestion des Livres'!B:L,MATCH(SMALL('Gestion des Livres'!N:N,ROW(A250)),'Gestion des Livres'!N:N,0),1),\"\")","v":""},{"$f":"IFERROR(INDEX('Gestion des Livres'!B:L,MATCH(SMALL('Gestion des Livres'!N:N,ROW(B250)),'Gestion des Livres'!N:N,0),4),\"\")","v":""},null,1]
[{"$f":"IFERROR(INDEX('Gestion des Livres'!B:L,MATCH(SMALL('Gestion des Livres'!N:N,ROW(A251)),'Gestion des Livres'!N:N,0),1),\"\")","v":""},{"$f":"IFERROR(INDEX('Gestion des Livres'!B:L,MATCH(SMALL('Gestion des Livres'!N:N,ROW(B251)),'Gestion des Livres'!N:N,0),4),\"\")","v":""},null,1]
[{"$f":"IFERROR(INDEX('Gestion des Livres'!B:L,MATCH(SMALL('Gestion des Livres'!N:N,ROW(A252)),'Gestion des Livres'!N:N,0),1),\"\")","v":""},{"$f":"IFERROR(INDEX('Gestion des Livres'!B:L,MATCH(SMALL('Gestion des Livres'!N:N,ROW(B252)),'Gestion des Livres'!N:N,0),4),\"\")","v":""},null,1]
[{"$f":"IFERROR(INDEX('Gestion des Livres'!B:L,MATCH(SMALL('Gestion des Livres'!N:N,ROW(A253)),'Gestion des Livres'!N:N,0),1),\"\")","v":""},{"$f":"IFERROR(INDEX('Gestion des Livres'!B:L,MATCH(SMALL('Gestion des Livres'!N:N,ROW(B253)),'Gestion des Livres'!N:N,0),4),\"\")","v":""},null,1]
[{"$f":"IFERROR(INDEX('Gestion des Livres'!B:L,MATCH(SMALL('Gestion des Livres'!N:N,ROW(A254)),'Gestion des Livres'!N:N,0),1),\"\")","v":""},{"$f":"IFERROR(INDEX('Gestion des Livres'!B:L,MATCH(SMALL('Gestion des Livres'!N:N,ROW(B254)),'Gestion des Livres'!N:N,0),4),\"\")","v":""},null,1]
[{"$f":"IFERROR(INDEX('Gestion des Livres'!B:L,MATCH(SMALL('Gestion des Livres'!N:N,ROW(A255)),'Gestion des Livres'!N:N,0),1),\"\")","v":""},{"$f":"IFERROR(INDEX('Gestion des Livres'!B:L,MATCH(SMALL('Gestion des Livres'!N:N,ROW(B255)),'Gestion des Livres'!N:N,0),4),\"\")","v":""},null,1]
[{"$f":"IFERROR(INDEX('Gestion des Livres'!B:L,MATCH(SMALL('Gestion des Livres'!N:N,ROW(A256)),'Gestion des Livres'!N:N,0),1),\"\")","v":""},{"$f":"IFERROR(INDEX('Gestion des Livres'!B:L,MATCH(SMALL('Gestion des Livres'!N:N,ROW(B256)),'Gestion des Livres'!N:N,0),4),\"\")","v":""},null,1]
[{"$f":"IFERROR(INDEX('Gestion des Livres'!B:L,MATCH(SMALL('Gestion des Livres'!N:N,ROW(A257)),'Gestion des Livres'!N:N,0),1),\"\")","v":""},{"$f":"IFERROR(INDEX('Gestion des Livres'!B:L,MATCH(SMALL('Gestion des Livres'!N:N,ROW(B257)),'Gestion des Livres'!N:N,0),4),\"\")","v":""},null,{"$f":"IF((B259)=0,\"\",1)","v":1}]
[{"$f":"IFERROR(INDEX('Gestion des Livres'!B:L,MATCH(SMALL('Gestion des Livres'!N:N,ROW(A258)),'Gestion des Livres'!N:N,0),1),\"\")","v":""},{"$f":"IFERROR(INDEX('Gestion des Livres'!B:L,MATCH(SMALL('Gestion des Livres'!N:N,ROW(B258)),'Gestion des Livres'!N:N,0),4),\"\")","v":""},null,1]
[{"$f":"IFERROR(INDEX('Gestion des Livres'!B:L,MATCH(SMALL('Gestion des Livres'!N:N,ROW(A259)),'Gestion des Livres'!N:N,0),1),\"\")","v":""},{"$f":"IFERROR(INDEX('Gestion des Livres'!B:L,MATCH(SMALL('Gestion des Livres'!N:N,ROW(B259)),'Gestion des Livres'!N:N,0),4),\"\")","v":""},null,1]
[{"$f":"IFERROR(INDEX('Gestion des Livres'!B:L,MATCH(SMALL('Gestion des Livres'!N:N,ROW(A260)),'Gestion des Livres'!N:N,0),1),\"\")","v":""},{"$f":"IFERROR(INDEX('Gestion des Livres'!B:L,MATCH(SMALL('Gestion des Livres'!N:N,ROW(B260)),'Gestion des Livres'!N:N,0),4),\"\")","v":""},null,1]
[{"$f":"IFERROR(INDEX('Gestion des Livres'!B:L,MATCH(SMALL('Gestion des Livres'!N:N,ROW(A261)),'Gestion des Livres'!N:N,0),1),\"\")","v":""},{"$f":"IFERROR(INDEX('Gestion des Livres'!B:L,MATCH(SMALL('Gestion des Livres'!N:N,ROW(B261)),'Gestion des Livres'!N:N,0),4),\"\")","v":""},null,1]
[{"$f":"IFERROR(INDEX('Gestion des Livres'!B:L,MATCH(SMALL('Gestion des Livres'!N:N,ROW(A262)),'Gestion des Livres'!N:N,0),1),\"\")","v":""},{"$f":"IFERROR(INDEX('Gestion des Livres'!B:L,MATCH(SMALL('Gestion des Livres'!N:N,ROW(B262)),'Gestion des Livres'!N:N,0),4),\"\")","v":""},null,1]
[{"$f":"IFERROR(INDEX('Gestion des Livres'!B:L,MATCH(SMALL('Gestion des Livres'!N:N,ROW(A263)),'Gestion des Livres'!N:N,0),1),\"\")","v":""},{"$f":"IFERROR(INDEX('Gestion des Livres'!B:L,MATCH(SMALL('Gestion des Livres'!N:N,ROW(B263)),'Gestion des Livres'!N:N,0),4),\"\")","v":""},null,1]
[{"$f":"IFERROR(INDEX('Gestion des Livres'!B:L,MATCH(SMALL('Gestion des Livres'!N:N,ROW(A264)),'Gestion des Livres'!N:N,0),1),\"\")","v":""},{"$f":"IFERROR(INDEX('Gestion des Livres'!B:L,MATCH(SMALL('Gestion des Livres'!N:N,ROW(B264)),'Gestion des Livres'!N:N,0),4),\"\")","v":""},null,1]
[{"$f":"IFERROR(INDEX('Gestion des Livres'!B:L,MATCH(SMALL('Gestion des Livres'!N:N,ROW(A265)),'Gestion des Livres'!N:N,0),1),\"\")","v":""},{"$f":"IFERROR(INDEX('Gestion des Livres'!B:L,MATCH(SMALL('Gestion des Livres'!N:N,ROW(B265)),'Gestion des Livres'!N:N,0),4),\"\")","v":""},null,1]
[{"$f":"IFERROR(INDEX('Gestion des Livres'!B:L,MATCH(SMALL('Gestion des Livres'!N:N,ROW(A266)),'Gestion des Livres'!N:N,0),1),\"\")","v":""},{"$f":"IFERROR(INDEX('Gestion des Livres'!B:L,MATCH(SMALL('Gestion des Livres'!N:N,ROW(B266)),'Gestion des Livres'!N:N,0),4),\"\")","v":""},null,1]
[{"$f":"IFERROR(INDEX('Gestion des Livres'!B:L,MATCH(SMALL('Gestion des Livres'!N:N,ROW(A267)),'Gestion des Livres'!N:N,0),1),\"\")","v":""},{"$f":"IFERROR(INDEX('Gestion des Livres'!B:L,MATCH(SMALL('Gestion des Livres'!N:N,ROW(B267)),'Gestion des Livres'!N:N,0),4),\"\")","v":""},null,1]
[{"$f":"IFERROR(INDEX('Gestion des Livres'!B:L,MATCH(SMALL('Gestion des Livres'!N:N,ROW(A268)),'Gestion des Livres'!N:N,0),1),\"\")","v":""},{"$f":"IFERROR(INDEX('Gestion des Livres'!B:L,MATCH(SMALL('Gestion des Livres'!N:N,ROW(B268)),'Gestion des Livres'!N:N,0),4),\"\")","v":""},null,1]
[{"$f":"IFERROR(INDEX('Gestion des Livres'!B:L,MATCH(SMALL('Gestion des Livres'!N:N,ROW(A269)),'Gestion des Livres'!N:N,0),1),\"\")","v":""},{"$f":"IFERROR(INDEX('Gestion des Livres'!B:L,MATCH(SMALL('Gestion des Livres'!N:N,ROW(B269)),'Gestion des Livres'!N:N,0),4),\"\")","v":""},null,1]
[{"$f":"IFERROR(INDEX('Gestion des Livres'!B:L,MATCH(SMALL('Gestion des Livres'!N:N,ROW(A270)),'Gestion des Livres'!N:N,0),1),\"\")","v":""},{"$f":"IFERROR(INDEX('Gestion des Livres'!B:L,MATCH(SMALL('Gestion des Livres'!N:N,ROW(B270)),'Gestion des Livres'!N:N,0),4),\"\")","v":""},null,1]
[{"$f":"IFERROR(INDEX('Gestion des Livres'!B:L,MATCH(SMALL('Gestion des Livres'!N:N,ROW(A271)),'Gestion des Livres'!N:N,0),1),\"\")","v":""},{"$f":"IFERROR(INDEX('Gestion des Livres'!B:L,MATCH(SMALL('Gestion des Livres'!N:N,ROW(B271)),'Gestion des Livres'!N:N,0),4),\"\")","v":""},null,1]
[{"$f":"IFERROR(INDEX('Gestion des Livres'!B:L,MATCH(SMALL('Gestion des Livres'!N:N,ROW(A272)),'Gestion des Livres'!N:N,0),1),\"\")","v":""},{"$f":"IFERROR(INDEX('Gestion des Livres'!B:L,MATCH(SMALL('Gestion des Livres'!N:N,ROW(B272)),'Gestion des Livres'!N:N,0),4),\"\")","v":""},null,1]
[{"$f":"IFERROR(INDEX('Gestion des Livres'!B:L,MATCH(SMALL('Gestion des Livres'!N:N,ROW(A273)),'Gestion des Livres'!N:N,0),1),\"\")","v":""},{"$f":"IFERROR(INDEX('Gestion des Livres'!B:L,MATCH(SMALL('Gestion des Livres'!N:N,ROW(B273)),'Gestion des Livres'!N:N,0),4),\"\")","v":""},null,1]
[{"$f":"IFERROR(INDEX('Gestion des Livres'!B:L,MATCH(SMALL('Gestion des Livres'!N:N,ROW(A274)),'Gestion des Livres'!N:N,0),1),\"\")","v":""},{"$f":"IFERROR(INDEX('Gestion des Livres'!B:L,MATCH(SMALL('Gestion des Livres'!N:N,ROW(B274)),'Gestion des Livres'!N:N,0),4),\"\")","v":""},null,1]
[{"$f":"IFERROR(INDEX('Gestion des Livres'!B:L,MATCH(SMALL('Gestion des Livres'!N:N,ROW(A275)),'Gestion des Livres'!N:N,0),1),\"\")","v":""},{"$f":"IFERROR(INDEX('Gestion des Livres'!B:L,MATCH(SMALL('Gestion des Livres'!N:N,ROW(B275)),'Gestion des Livres'!N:N,0),4),\"\")","v":""},null,1]
[{"$f":"IFERROR(INDEX('Gestion des Livres'!B:L,MATCH(SMALL('Gestion des Livres'!N:N,ROW(A276)),'Gestion des Livres'!N:N,0),1),\"\")","v":""},{"$f":"IFERROR(INDEX('Gestion des Livres'!B:L,MATCH(SMALL('Gestion des Livres'!N:N,ROW(B276)),'Gestion des Livres'!N:N,0),4),\"\")","v":""},null,1]
[{"$f":"IFERROR(INDEX('Gestion des Livres'!B:L,MATCH(SMALL('Gestion des Livres'!N:N,ROW(A277)),'Gestion des Livres'!N:N,0),1),\"\")","v":""},{"$f":"IFERROR(INDEX('Gestion des Livres'!B:L,MATCH(SMALL('Gestion des Livres'!N:N,ROW(B277)),'Gestion des Livres'!N:N,0),4),\"\")","v":""},null,1]
[{"$f":"IFERROR(INDEX('Gestion des Livres'!B:L,MATCH(SMALL('Gestion des Livres'!N:N,ROW(A278)),'Gestion des Livres'!N:N,0),1),\"\")","v":""},{"$f":"IFERROR(INDEX('Gestion des Livres'!B:L,MATCH(SMALL('Gestion des Livres'!N:N,ROW(B278)),'Gestion des Livres'!N:N,0),4),\"\")","v":""},null,1]
[{"$f":"IFERROR(INDEX('Gestion des Livres'!B:L,MATCH(SMALL('Gestion des Livres'!N:N,ROW(A279)),'Gestion des Livres'!N:N,0),1),\"\")","v":""},{"$f":"IFERROR(INDEX('Gestion des Livres'!B:L,MATCH(SMALL('Gestion des Livres'!N:N,ROW(B279)),'Gestion des Livres'!N:N,0),4),\"\")","v":""},null,1]
[{"$f":"IFERROR(INDEX('Gestion des Livres'!B:L,MATCH(SMALL('Gestion des Livres'!N:N,ROW(A280)),'Gestion des Livres'!N:N,0),1),\"\")","v":""},{"$f":"IFERROR(INDEX('Gestion des Livres'!B:L,MATCH(SMALL('Gestion des Livres'!N:N,ROW(B280)),'Gestion des Livres'!N:N,0),4),\"\")","v":""},null,1]
[{"$f":"IFERROR(INDEX('Gestion des Livres'!B:L,MATCH(SMALL('Gestion des Livres'!N:N,ROW(A281)),'Gestion des Livres'!N:N,0),1),\"\")","v":""},{"$f":"IFERROR(INDEX('Gestion des Livres'!B:L,MATCH(SMALL('Gestion des Livres'!N:N,ROW(B281)),'Gestion des Livres'!N:N,0),4),\"\")","v":""},null,1]
[{"$f":"IFERROR(INDEX('Gestion des Livres'!B:L,MATCH(SMALL('Gestion des Livres'!N:N,ROW(A282)),'Gestion des Livres'!N:N,0),1),\"\")","v":""},{"$f":"IFERROR(INDEX('Gestion des Livres'!B:L,MATCH(SMALL('Gestion des Livres'!N:N,ROW(B282)),'Gestion des Livres'!N:N,0),4),\"\")","v":""},null,1]
[{"$f":"IFERROR(INDEX('Gestion des Livres'!B:L,MATCH(SMALL('Gestion des Livres'!N:N,ROW(A283)),'Gestion des Livres'!N:N,0),1),\"\")","v":""},{"$f":"IFERROR(INDEX('Gestion des Livres'!B:L,MATCH(SMALL('Gestion des Livres'!N:N,ROW(B283)),'Gestion des Livres'!N:N,0),4),\"\")","v":""},null,1]
[{"$f":"IFERROR(INDEX('Gestion des Livres'!B:L,MATCH(SMALL('Gestion des Livres'!N:N,ROW(A284)),'Gestion des Livres'!N:N,0),1),\"\")","v":""},{"$f":"IFERROR(INDEX('Gestion des Livres'!B:L,MATCH(SMALL('Gestion des Livres'!N:N,ROW(B284)),'Gestion des Livres'!N:N,0),4),\"\")","v":""},null,1]
[{"$f":"IFERROR(INDEX('Gestion des Livres'!B:L,MATCH(SMALL('Gestion des Livres'!N:N,ROW(A285)),'Gestion des Livres'!N:N,0),1),\"\")","v":""},{"$f":"IFERROR(INDEX('Gestion des Livres'!B:L,MATCH(SMALL('Gestion des Livres'!N:N,ROW(B285)),'Gestion des Livres'!N:N,0),4),\"\")","v":""},null,1]
[{"$f":"IFERROR(INDEX('Gestion des Livres'!B:L,MATCH(SMALL('Gestion des Livres'!N:N,ROW(A286)),'Gestion des Livres'!N:N,0),1),\"\")","v":""},{"$f":"IFERROR(INDEX('Gestion des Livres'!B:L,MATCH(SMALL('Gestion des Livres'!N:N,ROW(B286)),'Gestion des Livres'!N:N,0),4),\"\")","v":""},null,1]
[{"$f":"IFERROR(INDEX('Gestion des Livres'!B:L,MATCH(SMALL('Gestion des Livres'!N:N,ROW(A287)),'Gestion des Livres'!N:N,0),1),\"\")","v":""},{"$f":"IFERROR(INDEX('Gestion des Livres'!B:L,MATCH(SMALL('Gestion des Livres'!N:N,ROW(B287)),'Gestion des Livres'!N:N,0),4),\"\")","v":""},null,1]
[{"$f":"IFERROR(INDEX('Gestion des Livres'!B:L,MATCH(SMALL('Gestion des Livres'!N:N,ROW(A288)),'Gestion des Livres'!N:N,0),1),\"\")","v":""},{"$f":"IFERROR(INDEX('Gestion des Livres'!B:L,MATCH(SMALL('Gestion des Livres'!N:N,ROW(B288)),'Gestion des Livres'!N:N,0),4),\"\")","v":""},null,1]
[{"$f":"IFERROR(INDEX('Gestion des Livres'!B:L,MATCH(SMALL('Gestion des Livres'!N:N,ROW(A289)),'Gestion des Livres'!N:N,0),1),\"\")","v":""},{"$f":"IFERROR(INDEX('Gestion des Livres'!B:L,MATCH(SMALL('Gestion des Livres'!N:N,ROW(B289)),'Gestion des Livres'!N:N,0),4),\"\")","v":""},null,1]
[{"$f":"IFERROR(INDEX('Gestion des Livres'!B:L,MATCH(SMALL('Gestion des Livres'!N:N,ROW(A290)),'Gestion des Livres'!N:N,0),1),\"\")","v":""},{"$f":"IFERROR(INDEX('Gestion des Livres'!B:L,MATCH(SMALL('Gestion des Livres'!N:N,ROW(B290)),'Gestion des Livres'!N:N,0),4),\"\")","v":""},null,1]
[{"$f":"IFERROR(INDEX('Gestion des Livres'!B:L,MATCH(SMALL('Gestion des Livres'!N:N,ROW(A291)),'Gestion des Livres'!N:N,0),1),\"\")","v":""},{"$f":"IFERROR(INDEX('Gestion des Livres'!B:L,MATCH(SMALL('Gestion des Livres'!N:N,ROW(B291)),'Gestion des Livres'!N:N,0),4),\"\")","v":""},null,1]
[{"$f":"IFERROR(INDEX('Gestion des Livres'!B:L,MATCH(SMALL('Gestion des Livres'!N:N,ROW(A292)),'Gestion des Livres'!N:N,0),1),\"\")","v":""},{"$f":"IFERROR(INDEX('Gestion des Livres'!B:L,MATCH(SMALL('Gestion des Livres'!N:N,ROW(B292)),'Gestion des Livres'!N:N,0),4),\"\")","v":""},null,1]
[{"$f":"IFERROR(INDEX('Gestion des Livres'!B:L,MATCH(SMALL('Gestion des Livres'!N:N,ROW(A293)),'Gestion des Livres'!N:N,0),1),\"\")","v":""},{"$f":"IFERROR(INDEX('Gestion des Livres'!B:L,MATCH(SMALL('Gestion des Livres'!N:N,ROW(B293)),'Gestion des Livres'!N:N,0),4),\"\")","v":""},null,1]
[{"$f":"IFERROR(INDEX('Gestion des Livres'!B:L,MATCH(SMALL('Gestion des Livres'!N:N,ROW(A294)),'Gestion des Livres'!N:N,0),1),\"\")","v":""},{"$f":"IFERROR(INDEX('Gestion des Livres'!B:L,MATCH(SMALL('Gestion des Livres'!N:N,ROW(B294)),'Gestion des Livres'!N:N,0),4),\"\")","v":""},null,1]
[{"$f":"IFERROR(INDEX('Gestion des Livres'!B:L,MATCH(SMALL('Gestion des Livres'!N:N,ROW(A295)),'Gestion des Livres'!N:N,0),1),\"\")","v":""},{"$f":"IFERROR(INDEX('Gestion des Livres'!B:L,MATCH(SMALL('Gestion des Livres'!N:N,ROW(B295)),'Gestion des Livres'!N:N,0),4),\"\")","v":""},null,1]
[{"$f":"IFERROR(INDEX('Gestion des Livres'!B:L,MATCH(SMALL('Gestion des Livres'!N:N,ROW(A296)),'Gestion des Livres'!N:N,0),1),\"\")","v":""},{"$f":"IFERROR(INDEX('Gestion des Livres'!B:L,MATCH(SMALL('Gestion des Livres'!N:N,ROW(B296)),'Gestion des Livres'!N:N,0),4),\"\")","v":""},null,1]
[{"$f":"IFERROR(INDEX('Gestion des Livres'!B:L,MATCH(SMALL('Gestion des Livres'!N:N,ROW(A297)),'Gestion des Livres'!N:N,0),1),\"\")","v":""},{"$f":"IFERROR(INDEX('Gestion des Livres'!B:L,MATCH(SMALL('Gestion des Livres'!N:N,ROW(B297)),'Gestion des Livres'!N:N,0),4),\"\")","v":""},null,1]
[{"$f":"IFERROR(INDEX('Gestion des Livres'!B:L,MATCH(SMALL('Gestion des Livres'!N:N,ROW(A298)),'Gestion des Livres'!N:N,0),1),\"\")","v":""},{"$f":"IFERROR(INDEX('Gestion des Livres'!B:L,MATCH(SMALL('Gestion des Livres'!N:N,ROW(B298)),'Gestion des Livres'!N:N,0),4),\"\")","v":""},null,1]
[{"$f":"IFERROR(INDEX('Gestion des Livres'!B:L,MATCH(SMALL('Gestion des Livres'!N:N,ROW(A299)),'Gestion des Livres'!N:N,0),1),\"\")","v":""},{"$f":"IFERROR(INDEX('Gestion des Livres'!B:L,MATCH(SMALL('Gestion des Livres'!N:N,ROW(B299)),'Gestion des Livres'!N:N,0),4),\"\")","v":""},null,1]
[{"$f":"IFERROR(INDEX('Gestion des Livres'!B:L,MATCH(SMALL('Gestion des Livres'!N:N,ROW(A300)),'Gestion des Livres'!N:N,0),1),\"\")","v":""},{"$f":"IFERROR(INDEX('Gestion des Livres'!B:L,MATCH(SMALL('Gestion des Livres'!N:N,ROW(B300)),'Gestion des Livres'!N:N,0),4),\"\")","v":""},null,1]
[{"$f":"IFERROR(INDEX('Gestion des Livres'!B:L,MATCH(SMALL('Gestion des Livres'!N:N,ROW(A301)),'Gestion des Livres'!N:N,0),1),\"\")","v":""},{"$f":"IFERROR(INDEX('Gestion des Livres'!B:L,MATCH(SMALL('Gestion des Livres'!N:N,ROW(B301)),'Gestion des Livres'!N:N,0),4),\"\")","v":""},null,1]
[{"$f":"IFERROR(INDEX('Gestion des Livres'!B:L,MATCH(SMALL('Gestion des Livres'!N:N,ROW(A302)),'Gestion des Livres'!N:N,0),1),\"\")","v":""},{"$f":"IFERROR(INDEX('Gestion des Livres'!B:L,MATCH(SMALL('Gestion des Livres'!N:N,ROW(B302)),'Gestion des Livres'!N:N,0),4),\"\")","v":""},null,1]
[{"$f":"IFERROR(INDEX('Gestion des Livres'!B:L,MATCH(SMALL('Gestion des Livres'!N:N,ROW(A303)),'Gestion des Livres'!N:N,0),1),\"\")","v":""},{"$f":"IFERROR(INDEX('Gestion des Livres'!B:L,MATCH(SMALL('Gestion des Livres'!N:N,ROW(B303)),'Gestion des Livres'!N:N,0),4),\"\")","v":""},null,1]
[{"$f":"IFERROR(INDEX('Gestion des Livres'!B:L,MATCH(SMALL('Gestion des Livres'!N:N,ROW(A304)),'Gestion des Livres'!N:N,0),1),\"\")","v":""},{"$f":"IFERROR(INDEX('Gestion des Livres'!B:L,MATCH(SMALL('Gestion des Livres'!N:N,ROW(B304)),'Gestion des Livres'!N:N,0),4),\"\")","v":""},null,1]
[{"$f":"IFERROR(INDEX('Gestion des Livres'!B:L,MATCH(SMALL('Gestion des Livres'!N:N,ROW(A305)),'Gestion des Livres'!N:N,0),1),\"\")","v":""},{"$f":"IFERROR(INDEX('Gestion des Livres'!B:L,MATCH(SMALL('Gestion des Livres'!N:N,ROW(B305)),'Gestion des Livres'!N:N,0),4),\"\")","v":""},null,1]
[{"$f":"IFERROR(INDEX('Gestion des Livres'!B:L,MATCH(SMALL('Gestion des Livres'!N:N,ROW(A306)),'Gestion des Livres'!N:N,0),1),\"\")","v":""},{"$f":"IFERROR(INDEX('Gestion des Livres'!B:L,MATCH(SMALL('Gestion des Livres'!N:N,ROW(B306)),'Gestion des Livres'!N:N,0),4),\"\")","v":""},null,1]
[{"$f":"IFERROR(INDEX('Gestion des Livres'!B:L,MATCH(SMALL('Gestion des Livres'!N:N,ROW(A307)),'Gestion des Livres'!N:N,0),1),\"\")","v":""},{"$f":"IFERROR(INDEX('Gestion des Livres'!B:L,MATCH(SMALL('Gestion des Livres'!N:N,ROW(B307)),'Gestion des Livres'!N:N,0),4),\"\")","v":""},null,1]
[{"$f":"IFERROR(INDEX('Gestion des Livres'!B:L,MATCH(SMALL('Gestion des Livres'!N:N,ROW(A308)),'Gestion des Livres'!N:N,0),1),\"\")","v":""},{"$f":"IFERROR(INDEX('Gestion des Livres'!B:L,MATCH(SMALL('Gestion des Livres'!N:N,ROW(B308)),'Gestion des Livres'!N:N,0),4),\"\")","v":""},null,1]
[{"$f":"IFERROR(INDEX('Gestion des Livres'!B:L,MATCH(SMALL('Gestion des Livres'!N:N,ROW(A309)),'Gestion des Livres'!N:N,0),1),\"\")","v":""},{"$f":"IFERROR(INDEX('Gestion des Livres'!B:L,MATCH(SMALL('Gestion des Livres'!N:N,ROW(B309)),'Gestion des Livres'!N:N,0),4),\"\")","v":""},null,1]
[{"$f":"IFERROR(INDEX('Gestion des Livres'!B:L,MATCH(SMALL('Gestion des Livres'!N:N,ROW(A310)),'Gestion des Livres'!N:N,0),1),\"\")","v":""},{"$f":"IFERROR(INDEX('Gestion des Livres'!B:L,MATCH(SMALL('Gestion des Livres'!N:N,ROW(B310)),'Gestion des Livres'!N:N,0),4),\"\")","v":""},null,1]
[{"$f":"IFERROR(INDEX('Gestion des Livres'!B:L,MATCH(SMALL('Gestion des Livres'!N:N,ROW(A311)),'Gestion des Livres'!N:N,0),1),\"\")","v":""},{"$f":"IFERROR(INDEX('Gestion des Livres'!B:L,MATCH(SMALL('Gestion des Livres'!N:N,ROW(B311)),'Gestion des Livres'!N:N,0),4),\"\")","v":""},null,1]
[{"$f":"IFERROR(INDEX('Gestion des Livres'!B:L,MATCH(SMALL('Gestion des Livres'!N:N,ROW(A312)),'Gestion des Livres'!N:N,0),1),\"\")","v":""},{"$f":"IFERROR(INDEX('Gestion des Livres'!B:L,MATCH(SMALL('Gestion des Livres'!N:N,ROW(B312)),'Gestion des Livres'!N:N,0),4),\"\")","v":""},null,1]
[{"$f":"IFERROR(INDEX('Gestion des Livres'!B:L,MATCH(SMALL('Gestion des Livres'!N:N,ROW(A313)),'Gestion des Livres'!N:N,0),1),\"\")","v":""},{"$f":"IFERROR(INDEX('Gestion des Livres'!B:L,MATCH(SMALL('Gestion des Livres'!N:N,ROW(B313)),'Gestion des Livres'!N:N,0),4),\"\")","v":""},null,1]
[{"$f":"IFERROR(INDEX('Gestion des Livres'!B:L,MATCH(SMALL('Gestion des Livres'!N:N,ROW(A314)),'Gestion des Livres'!N:N,0),1),\"\")","v":""},{"$f":"IFERROR(INDEX('Gestion des Livres'!B:L,MATCH(SMALL('Gestion des Livres'!N:N,ROW(B314)),'Gestion des Livres'!N:N,0),4),\"\")","v":""},null,1]
[{"$f":"IFERROR(INDEX('Gestion des Livres'!B:L,MATCH(SMALL('Gestion des Livres'!N:N,ROW(A315)),'Gestion des Livres'!N:N,0),1),\"\")","v":""},{"$f":"IFERROR(INDEX('Gestion des Livres'!B:L,MATCH(SMALL('Gestion des Livres'!N:N,ROW(B315)),'Gestion des Livres'!N:N,0),4),\"\")","v":""},null,1]
[{"$f":"IFERROR(INDEX('Gestion des Livres'!B:L,MATCH(SMALL('Gestion des Livres'!N:N,ROW(A316)),'Gestion des Livres'!N:N,0),1),\"\")","v":""},{"$f":"IFERROR(INDEX('Gestion des Livres'!B:L,MATCH(SMALL('Gestion des Livres'!N:N,ROW(B316)),'Gestion des Livres'!N:N,0),4),\"\")","v":""},null,1]
[{"$f":"IFERROR(INDEX('Gestion des Livres'!B:L,MATCH(SMALL('Gestion des Livres'!N:N,ROW(A317)),'Gestion des Livres'!N:N,0),1),\"\")","v":""},{"$f":"IFERROR(INDEX('Gestion des Livres'!B:L,MATCH(SMALL('Gestion des Livres'!N:N,ROW(B317)),'Gestion des Livres'!N:N,0),4),\"\")","v":""},null,1]
[{"$f":"IFERROR(INDEX('Gestion des Livres'!B:L,MATCH(SMALL('Gestion des Livres'!N:N,ROW(A318)),'Gestion des Livres'!N:N,0),1),\"\")","v":""},{"$f":"IFERROR(INDEX('Gestion des Livres'!B:L,MATCH(SMALL('Gestion des Livres'!N:N,ROW(B318)),'Gestion des Livres'!N:N,0),4),\"\")","v":""},null,1]
[{"$f":"IFERROR(INDEX('Gestion des Livres'!B:L,MATCH(SMALL('Gestion des Livres'!N:N,ROW(A319)),'Gestion des Livres'!N:N,0),1),\"\")","v":""},{"$f":"IFERROR(INDEX('Gestion des Livres'!B:L,MATCH(SMALL('Gestion des Livres'!N:N,ROW(B319)),'Gestion des Livres'!N:N,0),4),\"\")","v":""},null,1]
[{"$f":"IFERROR(INDEX('Gestion des Livres'!B:L,MATCH(SMALL('Gestion des Livres'!N:N,ROW(A320)),'Gestion des Livres'!N:N,0),1),\"\")","v":""},{"$f":"IFERROR(INDEX('Gestion des Livres'!B:L,MATCH(SMALL('Gestion des Livres'!N:N,ROW(B320)),'Gestion des Livres'!N:N,0),4),\"\")","v":""},null,1]
[{"$f":"IFERROR(INDEX('Gestion des Livres'!B:L,MATCH(SMALL('Gestion des Livres'!N:N,ROW(A321)),'Gestion des Livres'!N:N,0),1),\"\")","v":""},{"$f":"IFERROR(INDEX('Gestion des Livres'!B:L,MATCH(SMALL('Gestion des Livres'!N:N,ROW(B321)),'Gestion des Livres'!N:N,0),4),\"\")","v":""},null,{"$f":"IF((B323)=0,\"\",1)","v":1}]
[{"$f":"IFERROR(INDEX('Gestion des Livres'!B:L,MATCH(SMALL('Gestion des Livres'!N:N,ROW(A322)),'Gestion des Livres'!N:N,0),1),\"\")","v":""},{"$f":"IFERROR(INDEX('Gestion des Livres'!B:L,MATCH(SMALL('Gestion des Livres'!N:N,ROW(B322)),'Gestion des Livres'!N:N,0),4),\"\")","v":""},null,1]
[{"$f":"IFERROR(INDEX('Gestion des Livres'!B:L,MATCH(SMALL('Gestion des Livres'!N:N,ROW(A323)),'Gestion des Livres'!N:N,0),1),\"\")","v":""},{"$f":"IFERROR(INDEX('Gestion des Livres'!B:L,MATCH(SMALL('Gestion des Livres'!N:N,ROW(B323)),'Gestion des Livres'!N:N,0),4),\"\")","v":""},null,1]
[{"$f":"IFERROR(INDEX('Gestion des Livres'!B:L,MATCH(SMALL('Gestion des Livres'!N:N,ROW(A324)),'Gestion des Livres'!N:N,0),1),\"\")","v":""},{"$f":"IFERROR(INDEX('Gestion des Livres'!B:L,MATCH(SMALL('Gestion des Livres'!N:N,ROW(B324)),'Gestion des Livres'!N:N,0),4),\"\")","v":""},null,1]
[{"$f":"IFERROR(INDEX('Gestion des Livres'!B:L,MATCH(SMALL('Gestion des Livres'!N:N,ROW(A325)),'Gestion des Livres'!N:N,0),1),\"\")","v":""},{"$f":"IFERROR(INDEX('Gestion des Livres'!B:L,MATCH(SMALL('Gestion des Livres'!N:N,ROW(B325)),'Gestion des Livres'!N:N,0),4),\"\")","v":""},null,1]
[{"$f":"IFERROR(INDEX('Gestion des Livres'!B:L,MATCH(SMALL('Gestion des Livres'!N:N,ROW(A326)),'Gestion des Livres'!N:N,0),1),\"\")","v":""},{"$f":"IFERROR(INDEX('Gestion des Livres'!B:L,MATCH(SMALL('Gestion des Livres'!N:N,ROW(B326)),'Gestion des Livres'!N:N,0),4),\"\")","v":""},null,1]
[{"$f":"IFERROR(INDEX('Gestion des Livres'!B:L,MATCH(SMALL('Gestion des Livres'!N:N,ROW(A327)),'Gestion des Livres'!N:N,0),1),\"\")","v":""},{"$f":"IFERROR(INDEX('Gestion des Livres'!B:L,MATCH(SMALL('Gestion des Livres'!N:N,ROW(B327)),'Gestion des Livres'!N:N,0),4),\"\")","v":""},null,1]
[{"$f":"IFERROR(INDEX('Gestion des Livres'!B:L,MATCH(SMALL('Gestion des Livres'!N:N,ROW(A328)),'Gestion des Livres'!N:N,0),1),\"\")","v":""},{"$f":"IFERROR(INDEX('Gestion des Livres'!B:L,MATCH(SMALL('Gestion des Livres'!N:N,ROW(B328)),'Gestion des Livres'!N:N,0),4),\"\")","v":""},null,1]
[{"$f":"IFERROR(INDEX('Gestion des Livres'!B:L,MATCH(SMALL('Gestion des Livres'!N:N,ROW(A329)),'Gestion des Livres'!N:N,0),1),\"\")","v":""},{"$f":"IFERROR(INDEX('Gestion des Livres'!B:L,MATCH(SMALL('Gestion des Livres'!N:N,ROW(B329)),'Gestion des Livres'!N:N,0),4),\"\")","v":""},null,1]
[{"$f":"IFERROR(INDEX('Gestion des Livres'!B:L,MATCH(SMALL('Gestion des Livres'!N:N,ROW(A330)),'Gestion des Livres'!N:N,0),1),\"\")","v":""},{"$f":"IFERROR(INDEX('Gestion des Livres'!B:L,MATCH(SMALL('Gestion des Livres'!N:N,ROW(B330)),'Gestion des Livres'!N:N,0),4),\"\")","v":""},null,1]
[{"$f":"IFERROR(INDEX('Gestion des Livres'!B:L,MATCH(SMALL('Gestion des Livres'!N:N,ROW(A331)),'Gestion des Livres'!N:N,0),1),\"\")","v":""},{"$f":"IFERROR(INDEX('Gestion des Livres'!B:L,MATCH(SMALL('Gestion des Livres'!N:N,ROW(B331)),'Gestion des Livres'!N:N,0),4),\"\")","v":""},null,1]
[{"$f":"IFERROR(INDEX('Gestion des Livres'!B:L,MATCH(SMALL('Gestion des Livres'!N:N,ROW(A332)),'Gestion des Livres'!N:N,0),1),\"\")","v":""},{"$f":"IFERROR(INDEX('Gestion des Livres'!B:L,MATCH(SMALL('Gestion des Livres'!N:N,ROW(B332)),'Gestion des Livres'!N:N,0),4),\"\")","v":""},null,1]
[{"$f":"IFERROR(INDEX('Gestion des Livres'!B:L,MATCH(SMALL('Gestion des Livres'!N:N,ROW(A333)),'Gestion des Livres'!N:N,0),1),\"\")","v":""},{"$f":"IFERROR(INDEX('Gestion des Livres'!B:L,MATCH(SMALL('Gestion des Livres'!N:N,ROW(B333)),'Gestion des Livres'!N:N,0),4),\"\")","v":""},null,1]
[{"$f":"IFERROR(INDEX('Gestion des Livres'!B:L,MATCH(SMALL('Gestion des Livres'!N:N,ROW(A334)),'Gestion des Livres'!N:N,0),1),\"\")","v":""},{"$f":"IFERROR(INDEX('Gestion des Livres'!B:L,MATCH(SMALL('Gestion des Livres'!N:N,ROW(B334)),'Gestion des Livres'!N:N,0),4),\"\")","v":""},null,1]
[{"$f":"IFERROR(INDEX('Gestion des Livres'!B:L,MATCH(SMALL('Gestion des Livres'!N:N,ROW(A335)),'Gestion des Livres'!N:N,0),1),\"\")","v":""},{"$f":"IFERROR(INDEX('Gestion des Livres'!B:L,MATCH(SMALL('Gestion des Livres'!N:N,ROW(B335)),'Gestion des Livres'!N:N,0),4),\"\")","v":""},null,1]
[{"$f":"IFERROR(INDEX('Gestion des Livres'!B:L,MATCH(SMALL('Gestion des Livres'!N:N,ROW(A336)),'Gestion des Livres'!N:N,0),1),\"\")","v":""},{"$f":"IFERROR(INDEX('Gestion des Livres'!B:L,MATCH(SMALL('Gestion des Livres'!N:N,ROW(B336)),'Gestion des Livres'!N:N,0),4),\"\")","v":""},null,1]
[{"$f":"IFERROR(INDEX('Gestion des Livres'!B:L,MATCH(SMALL('Gestion des Livres'!N:N,ROW(A337)),'Gestion des Livres'!N:N,0),1),\"\")","v":""},{"$f":"IFERROR(INDEX('Gestion des Livres'!B:L,MATCH(SMALL('Gestion des Livres'!N:N,ROW(B337)),'Gestion des Livres'!N:N,0),4),\"\")","v":""},null,1]
[{"$f":"IFERROR(INDEX('Gestion des Livres'!B:L,MATCH(SMALL('Gestion des Livres'!N:N,ROW(A338)),'Gestion des Livres'!N:N,0),1),\"\")","v":""},{"$f":"IFERROR(INDEX('Gestion des Livres'!B:L,MATCH(SMALL('Gestion des Livres'!N:N,ROW(B338)),'Gestion des Livres'!N:N,0),4),\"\")","v":""},null,1]
[{"$f":"IFERROR(INDEX('Gestion des Livres'!B:L,MATCH(SMALL('Gestion des Livres'!N:N,ROW(A339)),'Gestion des Livres'!N:N,0),1),\"\")","v":""},{"$f":"IFERROR(INDEX('Gestion des Livres'!B:L,MATCH(SMALL('Gestion des Livres'!N:N,ROW(B339)),'Gestion des Livres'!N:N,0),4),\"\")","v":""},null,1]
[{"$f":"IFERROR(INDEX('Gestion des Livres'!B:L,MATCH(SMALL('Gestion des Livres'!N:N,ROW(A340)),'Gestion des Livres'!N:N,0),1),\"\")","v":""},{"$f":"IFERROR(INDEX('Gestion des Livres'!B:L,MATCH(SMALL('Gestion des Livres'!N:N,ROW(B340)),'Gestion des Livres'!N:N,0),4),\"\")","v":""},null,1]
[{"$f":"IFERROR(INDEX('Gestion des Livres'!B:L,MATCH(SMALL('Gestion des Livres'!N:N,ROW(A341)),'Gestion des Livres'!N:N,0),1),\"\")","v":""},{"$f":"IFERROR(INDEX('Gestion des Livres'!B:L,MATCH(SMALL('Gestion des Livres'!N:N,ROW(B341)),'Gestion des Livres'!N:N,0),4),\"\")","v":""},null,1]
[{"$f":"IFERROR(INDEX('Gestion des Livres'!B:L,MATCH(SMALL('Gestion des Livres'!N:N,ROW(A342)),'Gestion des Livres'!N:N,0),1),\"\")","v":""},{"$f":"IFERROR(INDEX('Gestion des Livres'!B:L,MATCH(SMALL('Gestion des Livres'!N:N,ROW(B342)),'Gestion des Livres'!N:N,0),4),\"\")","v":""},null,1]
[{"$f":"IFERROR(INDEX('Gestion des Livres'!B:L,MATCH(SMALL('Gestion des Livres'!N:N,ROW(A343)),'Gestion des Livres'!N:N,0),1),\"\")","v":""},{"$f":"IFERROR(INDEX('Gestion des Livres'!B:L,MATCH(SMALL('Gestion des Livres'!N:N,ROW(B343)),'Gestion des Livres'!N:N,0),4),\"\")","v":""},null,1]
[{"$f":"IFERROR(INDEX('Gestion des Livres'!B:L,MATCH(SMALL('Gestion des Livres'!N:N,ROW(A344)),'Gestion des Livres'!N:N,0),1),\"\")","v":""},{"$f":"IFERROR(INDEX('Gestion des Livres'!B:L,MATCH(SMALL('Gestion des Livres'!N:N,ROW(B344)),'Gestion des Livres'!N:N,0),4),\"\")","v":""},null,1]
[{"$f":"IFERROR(INDEX('Gestion des Livres'!B:L,MATCH(SMALL('Gestion des Livres'!N:N,ROW(A345)),'Gestion des Livres'!N:N,0),1),\"\")","v":""},{"$f":"IFERROR(INDEX('Gestion des Livres'!B:L,MATCH(SMALL('Gestion des Livres'!N:N,ROW(B345)),'Gestion des Livres'!N:N,0),4),\"\")","v":""},null,1]
[{"$f":"IFERROR(INDEX('Gestion des Livres'!B:L,MATCH(SMALL('Gestion des Livres'!N:N,ROW(A346)),'Gestion des Livres'!N:N,0),1),\"\")","v":""},{"$f":"IFERROR(INDEX('Gestion des Livres'!B:L,MATCH(SMALL('Gestion des Livres'!N:N,ROW(B346)),'Gestion des Livres'!N:N,0),4),\"\")","v":""},null,1]
[{"$f":"IFERROR(INDEX('Gestion des Livres'!B:L,MATCH(SMALL('Gestion des Livres'!N:N,ROW(A347)),'Gestion des Livres'!N:N,0),1),\"\")","v":""},{"$f":"IFERROR(INDEX('Gestion des Livres'!B:L,MATCH(SMALL('Gestion des Livres'!N:N,ROW(B347)),'Gestion des Livres'!N:N,0),4),\"\")","v":""},null,1]
[{"$f":"IFERROR(INDEX('Gestion des Livres'!B:L,MATCH(SMALL('Gestion des Livres'!N:N,ROW(A348)),'Gestion des Livres'!N:N,0),1),\"\")","v":""},{"$f":"IFERROR(INDEX('Gestion des Livres'!B:L,MATCH(SMALL('Gestion des Livres'!N:N,ROW(B348)),'Gestion des Livres'!N:N,0),4),\"\")","v":""},null,1]
[{"$f":"IFERROR(INDEX('Gestion des Livres'!B:L,MATCH(SMALL('Gestion des Livres'!N:N,ROW(A349)),'Gestion des Livres'!N:N,0),1),\"\")","v":""},{"$f":"IFERROR(INDEX('Gestion des Livres'!B:L,MATCH(SMALL('Gestion des Livres'!N:N,ROW(B349)),'Gestion des Livres'!N:N,0),4),\"\")","v":""},null,1]
[{"$f":"IFERROR(INDEX('Gestion des Livres'!B:L,MATCH(SMALL('Gestion des Livres'!N:N,ROW(A350)),'Gestion des Livres'!N:N,0),1),\"\")","v":""},{"$f":"IFERROR(INDEX('Gestion des Livres'!B:L,MATCH(SMALL('Gestion des Livres'!N:N,ROW(B350)),'Gestion des Livres'!N:N,0),4),\"\")","v":""},null,1]
[{"$f":"IFERROR(INDEX('Gestion des Livres'!B:L,MATCH(SMALL('Gestion des Livres'!N:N,ROW(A351)),'Gestion des Livres'!N:N,0),1),\"\")","v":""},{"$f":"IFERROR(INDEX('Gestion des Livres'!B:L,MATCH(SMALL('Gestion des Livres'!N:N,ROW(B351)),'Gestion des Livres'!N:N,0),4),\"\")","v":""},null,1]
[{"$f":"IFERROR(INDEX('Gestion des Livres'!B:L,MATCH(SMALL('Gestion des Livres'!N:N,ROW(A352)),'Gestion des Livres'!N:N,0),1),\"\")","v":""},{"$f":"IFERROR(INDEX('Gestion des Livres'!B:L,MATCH(SMALL('Gestion des Livres'!N:N,ROW(B352)),'Gestion des Livres'!N:N,0),4),\"\")","v":""},null,1]
[{"$f":"IFERROR(INDEX('Gestion des Livres'!B:L,MATCH(SMALL('Gestion des Livres'!N:N,ROW(A353)),'Gestion des Livres'!N:N,0),1),\"\")","v":""},{"$f":"IFERROR(INDEX('Gestion des Livres'!B:L,MATCH(SMALL('Gestion des Livres'!N:N,ROW(B353)),'Gestion des Livres'!N:N,0),4),\"\")","v":""},null,1]
[{"$f":"IFERROR(INDEX('Gestion des Livres'!B:L,MATCH(SMALL('Gestion des Livres'!N:N,ROW(A354)),'Gestion des Livres'!N:N,0),1),\"\")","v":""},{"$f":"IFERROR(INDEX('Gestion des Livres'!B:L,MATCH(SMALL('Gestion des Livres'!N:N,ROW(B354)),'Gestion des Livres'!N:N,0),4),\"\")","v":""},null,1]
[{"$f":"IFERROR(INDEX('Gestion des Livres'!B:L,MATCH(SMALL('Gestion des Livres'!N:N,ROW(A355)),'Gestion des Livres'!N:N,0),1),\"\")","v":""},{"$f":"IFERROR(INDEX('Gestion des Livres'!B:L,MATCH(SMALL('Gestion des Livres'!N:N,ROW(B355)),'Gestion des Livres'!N:N,0),4),\"\")","v":""},null,1]
[{"$f":"IFERROR(INDEX('Gestion des Livres'!B:L,MATCH(SMALL('Gestion des Livres'!N:N,ROW(A356)),'Gestion des Livres'!N:N,0),1),\"\")","v":""},{"$f":"IFERROR(INDEX('Gestion des Livres'!B:L,MATCH(SMALL('Gestion des Livres'!N:N,ROW(B356)),'Gestion des Livres'!N:N,0),4),\"\")","v":""},null,1]
[{"$f":"IFERROR(INDEX('Gestion des Livres'!B:L,MATCH(SMALL('Gestion des Livres'!N:N,ROW(A357)),'Gestion des Livres'!N:N,0),1),\"\")","v":""},{"$f":"IFERROR(INDEX('Gestion des Livres'!B:L,MATCH(SMALL('Gestion des Livres'!N:N,ROW(B357)),'Gestion des Livres'!N:N,0),4),\"\")","v":""},null,1]
[{"$f":"IFERROR(INDEX('Gestion des Livres'!B:L,MATCH(SMALL('Gestion des Livres'!N:N,ROW(A358)),'Gestion des Livres'!N:N,0),1),\"\")","v":""},{"$f":"IFERROR(INDEX('Gestion des Livres'!B:L,MATCH(SMALL('Gestion des Livres'!N:N,ROW(B358)),'Gestion des Livres'!N:N,0),4),\"\")","v":""},null,1]
[{"$f":"IFERROR(INDEX('Gestion des Livres'!B:L,MATCH(SMALL('Gestion des Livres'!N:N,ROW(A359)),'Gestion des Livres'!N:N,0),1),\"\")","v":""},{"$f":"IFERROR(INDEX('Gestion des Livres'!B:L,MATCH(SMALL('Gestion des Livres'!N:N,ROW(B359)),'Gestion des Livres'!N:N,0),4),\"\")","v":""},null,1]
[{"$f":"IFERROR(INDEX('Gestion des Livres'!B:L,MATCH(SMALL('Gestion des Livres'!N:N,ROW(A360)),'Gestion des Livres'!N:N,0),1),\"\")","v":""},{"$f":"IFERROR(INDEX('Gestion des Livres'!B:L,MATCH(SMALL('Gestion des Livres'!N:N,ROW(B360)),'Gestion des Livres'!N:N,0),4),\"\")","v":""},null,1]
[{"$f":"IFERROR(INDEX('Gestion des Livres'!B:L,MATCH(SMALL('Gestion des Livres'!N:N,ROW(A361)),'Gestion des Livres'!N:N,0),1),\"\")","v":""},{"$f":"IFERROR(INDEX('Gestion des Livres'!B:L,MATCH(SMALL('Gestion des Livres'!N:N,ROW(B361)),'Gestion des Livres'!N:N,0),4),\"\")","v":""},null,1]
[{"$f":"IFERROR(INDEX('Gestion des Livres'!B:L,MATCH(SMALL('Gestion des Livres'!N:N,ROW(A362)),'Gestion des Livres'!N:N,0),1),\"\")","v":""},{"$f":"IFERROR(INDEX('Gestion des Livres'!B:L,MATCH(SMALL('Gestion des Livres'!N:N,ROW(B362)),'Gestion des Livres'!N:N,0),4),\"\")","v":""},null,1]
[{"$f":"IFERROR(INDEX('Gestion des Livres'!B:L,MATCH(SMALL('Gestion des Livres'!N:N,ROW(A363)),'Gestion des Livres'!N:N,0),1),\"\")","v":""},{"$f":"IFERROR(INDEX('Gestion des Livres'!B:L,MATCH(SMALL('Gestion des Livres'!N:N,ROW(B363)),'Gestion des Livres'!N:N,0),4),\"\")","v":""},null,1]
[{"$f":"IFERROR(INDEX('Gestion des Livres'!B:L,MATCH(SMALL('Gestion des Livres'!N:N,ROW(A364)),'Gestion des Livres'!N:N,0),1),\"\")","v":""},{"$f":"IFERROR(INDEX('Gestion des Livres'!B:L,MATCH(SMALL('Gestion des Livres'!N:N,ROW(B364)),'Gestion des Livres'!N:N,0),4),\"\")","v":""},null,1]
[{"$f":"IFERROR(INDEX('Gestion des Livres'!B:L,MATCH(SMALL('Gestion des Livres'!N:N,ROW(A365)),'Gestion des Livres'!N:N,0),1),\"\")","v":""},{"$f":"IFERROR(INDEX('Gestion des Livres'!B:L,MATCH(SMALL('Gestion des Livres'!N:N,ROW(B365)),'Gestion des Livres'!N:N,0),4),\"\")","v":""},null,1]
[{"$f":"IFERROR(INDEX('Gestion des Livres'!B:L,MATCH(SMALL('Gestion des Livres'!N:N,ROW(A366)),'Gestion des Livres'!N:N,0),1),\"\")","v":""},{"$f":"IFERROR(INDEX('Gestion des Livres'!B:L,MATCH(SMALL('Gestion des Livres'!N:N,ROW(B366)),'Gestion des Livres'!N:N,0),4),\"\")","v":""},null,1]
[{"$f":"IFERROR(INDEX('Gestion des Livres'!B:L,MATCH(SMALL('Gestion des Livres'!N:N,ROW(A367)),'Gestion des Livres'!N:N,0),1),\"\")","v":""},{"$f":"IFERROR(INDEX('Gestion des Livres'!B:L,MATCH(SMALL('Gestion des Livres'!N:N,ROW(B367)),'Gestion des Livres'!N:N,0),4),\"\")","v":""},null,1]
[{"$f":"IFERROR(INDEX('Gestion des Livres'!B:L,MATCH(SMALL('Gestion des Livres'!N:N,ROW(A368)),'Gestion des Livres'!N:N,0),1),\"\")","v":""},{"$f":"IFERROR(INDEX('Gestion des Livres'!B:L,MATCH(SMALL('Gestion des Livres'!N:N,ROW(B368)),'Gestion des Livres'!N:N,0),4),\"\")","v":""},null,1]
[{"$f":"IFERROR(INDEX('Gestion des Livres'!B:L,MATCH(SMALL('Gestion des Livres'!N:N,ROW(A369)),'Gestion des Livres'!N:N,0),1),\"\")","v":""},{"$f":"IFERROR(INDEX('Gestion des Livres'!B:L,MATCH(SMALL('Gestion des Livres'!N:N,ROW(B369)),'Gestion des Livres'!N:N,0),4),\"\")","v":""},null,1]
[{"$f":"IFERROR(INDEX('Gestion des Livres'!B:L,MATCH(SMALL('Gestion des Livres'!N:N,ROW(A370)),'Gestion des Livres'!N:N,0),1),\"\")","v":""},{"$f":"IFERROR(INDEX('Gestion des Livres'!B:L,MATCH(SMALL('Gestion des Livres'!N:N,ROW(B370)),'Gestion des Livres'!N:N,0),4),\"\")","v":""},null,1]
[{"$f":"IFERROR(INDEX('Gestion des Livres'!B:L,MATCH(SMALL('Gestion des Livres'!N:N,ROW(A371)),'Gestion des Livres'!N:N,0),1),\"\")","v":""},{"$f":"IFERROR(INDEX('Gestion des Livres'!B:L,MATCH(SMALL('Gestion des Livres'!N:N,ROW(B371)),'Gestion des Livres'!N:N,0),4),\"\")","v":""},null,1]
[{"$f":"IFERROR(INDEX('Gestion des Livres'!B:L,MATCH(SMALL('Gestion des Livres'!N:N,ROW(A372)),'Gestion des Livres'!N:N,0),1),\"\")","v":""},{"$f":"IFERROR(INDEX('Gestion des Livres'!B:L,MATCH(SMALL('Gestion des Livres'!N:N,ROW(B372)),'Gestion des Livres'!N:N,0),4),\"\")","v":""},null,1]
[{"$f":"IFERROR(INDEX('Gestion des Livres'!B:L,MATCH(SMALL('Gestion des Livres'!N:N,ROW(A373)),'Gestion des Livres'!N:N,0),1),\"\")","v":""},{"$f":"IFERROR(INDEX('Gestion des Livres'!B:L,MATCH(SMALL('Gestion des Livres'!N:N,ROW(B373)),'Gestion des Livres'!N:N,0),4),\"\")","v":""},null,1]
[{"$f":"IFERROR(INDEX('Gestion des Livres'!B:L,MATCH(SMALL('Gestion des Livres'!N:N,ROW(A374)),'Gestion des Livres'!N:N,0),1),\"\")","v":""},{"$f":"IFERROR(INDEX('Gestion des Livres'!B:L,MATCH(SMALL('Gestion des Livres'!N:N,ROW(B374)),'Gestion des Livres'!N:N,0),4),\"\")","v":""},null,1]
[{"$f":"IFERROR(INDEX('Gestion des Livres'!B:L,MATCH(SMALL('Gestion des Livres'!N:N,ROW(A375)),'Gestion des Livres'!N:N,0),1),\"\")","v":""},{"$f":"IFERROR(INDEX('Gestion des Livres'!B:L,MATCH(SMALL('Gestion des Livres'!N:N,ROW(B375)),'Gestion des Livres'!N:N,0),4),\"\")","v":""},null,1]
[{"$f":"IFERROR(INDEX('Gestion des Livres'!B:L,MATCH(SMALL('Gestion des Livres'!N:N,ROW(A376)),'Gestion des Livres'!N:N,0),1),\"\")","v":""},{"$f":"IFERROR(INDEX('Gestion des Livres'!B:L,MATCH(SMALL('Gestion des Livres'!N:N,ROW(B376)),'Gestion des Livres'!N:N,0),4),\"\")","v":""},null,1]
[{"$f":"IFERROR(INDEX('Gestion des Livres'!B:L,MATCH(SMALL('Gestion des Livres'!N:N,ROW(A377)),'Gestion des Livres'!N:N,0),1),\"\")","v":""},{"$f":"IFERROR(INDEX('Gestion des Livres'!B:L,MATCH(SMALL('Gestion des Livres'!N:N,ROW(B377)),'Gestion des Livres'!N:N,0),4),\"\")","v":""},null,1]
[{"$f":"IFERROR(INDEX('Gestion des Livres'!B:L,MATCH(SMALL('Gestion des Livres'!N:N,ROW(A378)),'Gestion des Livres'!N:N,0),1),\"\")","v":""},{"$f":"IFERROR(INDEX('Gestion des Livres'!B:L,MATCH(SMALL('Gestion des Livres'!N:N,ROW(B378)),'Gestion des Livres'!N:N,0),4),\"\")","v":""},null,1]
[{"$f":"IFERROR(INDEX('Gestion des Livres'!B:L,MATCH(SMALL('Gestion des Livres'!N:N,ROW(A379)),'Gestion des Livres'!N:N,0),1),\"\")","v":""},{"$f":"IFERROR(INDEX('Gestion des Livres'!B:L,MATCH(SMALL('Gestion des Livres'!N:N,ROW(B379)),'Gestion des Livres'!N:N,0),4),\"\")","v":""},null,1]
[{"$f":"IFERROR(INDEX('Gestion des Livres'!B:L,MATCH(SMALL('Gestion des Livres'!N:N,ROW(A380)),'Gestion des Livres'!N:N,0),1),\"\")","v":""},{"$f":"IFERROR(INDEX('Gestion des Livres'!B:L,MATCH(SMALL('Gestion des Livres'!N:N,ROW(B380)),'Gestion des Livres'!N:N,0),4),\"\")","v":""},null,1]
[{"$f":"IFERROR(INDEX('Gestion des Livres'!B:L,MATCH(SMALL('Gestion des Livres'!N:N,ROW(A381)),'Gestion des Livres'!N:N,0),1),\"\")","v":""},{"$f":"IFERROR(INDEX('Gestion des Livres'!B:L,MATCH(SMALL('Gestion des Livres'!N:N,ROW(B381)),'Gestion des Livres'!N:N,0),4),\"\")","v":""},null,1]
[{"$f":"IFERROR(INDEX('Gestion des Livres'!B:L,MATCH(SMALL('Gestion des Livres'!N:N,ROW(A382)),'Gestion des Livres'!N:N,0),1),\"\")","v":""},{"$f":"IFERROR(INDEX('Gestion des Livres'!B:L,MATCH(SMALL('Gestion des Livres'!N:N,ROW(B382)),'Gestion des Livres'!N:N,0),4),\"\")","v":""},null,1]
[{"$f":"IFERROR(INDEX('Gestion des Livres'!B:L,MATCH(SMALL('Gestion des Livres'!N:N,ROW(A383)),'Gestion des Livres'!N:N,0),1),\"\")","v":""},{"$f":"IFERROR(INDEX('Gestion des Livres'!B:L,MATCH(SMALL('Gestion des Livres'!N:N,ROW(B383)),'Gestion des Livres'!N:N,0),4),\"\")","v":""},null,1]
[{"$f":"IFERROR(INDEX('Gestion des Livres'!B:L,MATCH(SMALL('Gestion des Livres'!N:N,ROW(A384)),'Gestion des Livres'!N:N,0),1),\"\")","v":""},{"$f":"IFERROR(INDEX('Gestion des Livres'!B:L,MATCH(SMALL('Gestion des Livres'!N:N,ROW(B384)),'Gestion des Livres'!N:N,0),4),\"\")","v":""},null,1]
[{"$f":"IFERROR(INDEX('Gestion des Livres'!B:L,MATCH(SMALL('Gestion des Livres'!N:N,ROW(A385)),'Gestion des Livres'!N:N,0),1),\"\")","v":""},{"$f":"IFERROR(INDEX('Gestion des Livres'!B:L,MATCH(SMALL('Gestion des Livres'!N:N,ROW(B385)),'Gestion des Livres'!N:N,0),4),\"\")","v":""},null,{"$f":"IF((B387)=0,\"\",1)","v":1}]
[{"$f":"IFERROR(INDEX('Gestion des Livres'!B:L,MATCH(SMALL('Gestion des Livres'!N:N,ROW(A386)),'Gestion des Livres'!N:N,0),1),\"\")","v":""},{"$f":"IFERROR(INDEX('Gestion des Livres'!B:L,MATCH(SMALL('Gestion des Livres'!N:N,ROW(B386)),'Gestion des Livres'!N:N,0),4),\"\")","v":""},null,1]
[{"$f":"IFERROR(INDEX('Gestion des Livres'!B:L,MATCH(SMALL('Gestion des Livres'!N:N,ROW(A387)),'Gestion des Livres'!N:N,0),1),\"\")","v":""},{"$f":"IFERROR(INDEX('Gestion des Livres'!B:L,MATCH(SMALL('Gestion des Livres'!N:N,ROW(B387)),'Gestion des Livres'!N:N,0),4),\"\")","v":""},null,1]
[{"$f":"IFERROR(INDEX('Gestion des Livres'!B:L,MATCH(SMALL('Gestion des Livres'!N:N,ROW(A388)),'Gestion des Livres'!N:N,0),1),\"\")","v":""},{"$f":"IFERROR(INDEX('Gestion des Livres'!B:L,MATCH(SMALL('Gestion des Livres'!N:N,ROW(B388)),'Gestion des Livres'!N:N,0),4),\"\")","v":""},null,1]
[{"$f":"IFERROR(INDEX('Gestion des Livres'!B:L,MATCH(SMALL('Gestion des Livres'!N:N,ROW(A389)),'Gestion des Livres'!N:N,0),1),\"\")","v":""},{"$f":"IFERROR(INDEX('Gestion des Livres'!B:L,MATCH(SMALL('Gestion des Livres'!N:N,ROW(B389)),'Gestion des Livres'!N:N,0),4),\"\")","v":""},null,1]
[{"$f":"IFERROR(INDEX('Gestion des Livres'!B:L,MATCH(SMALL('Gestion des Livres'!N:N,ROW(A390)),'Gestion des Livres'!N:N,0),1),\"\")","v":""},{"$f":"IFERROR(INDEX('Gestion des Livres'!B:L,MATCH(SMALL('Gestion des Livres'!N:N,ROW(B390)),'Gestion des Livres'!N:N,0),4),\"\")","v":""},null,1]
[{"$f":"IFERROR(INDEX('Gestion des Livres'!B:L,MATCH(SMALL('Gestion des Livres'!N:N,ROW(A391)),'Gestion des Livres'!N:N,0),1),\"\")","v":""},{"$f":"IFERROR(INDEX('Gestion des Livres'!B:L,MATCH(SMALL('Gestion des Livres'!N:N,ROW(B391)),'Gestion des Livres'!N:N,0),4),\"\")","v":""},null,1]
[{"$f":"IFERROR(INDEX('Gestion des Livres'!B:L,MATCH(SMALL('Gestion des Livres'!N:N,ROW(A392)),'Gestion des Livres'!N:N,0),1),\"\")","v":""},{"$f":"IFERROR(INDEX('Gestion des Livres'!B:L,MATCH(SMALL('Gestion des Livres'!N:N,ROW(B392)),'Gestion des Livres'!N:N,0),4),\"\")","v":""},null,1]
[{"$f":"IFERROR(INDEX('Gestion des Livres'!B:L,MATCH(SMALL('Gestion des Livres'!N:N,ROW(A393)),'Gestion des Livres'!N:N,0),1),\"\")","v":""},{"$f":"IFERROR(INDEX('Gestion des Livres'!B:L,MATCH(SMALL('Gestion des Livres'!N:N,ROW(B393)),'Gestion des Livres'!N:N,0),4),\"\")","v":""},null,1]
[{"$f":"IFERROR(INDEX('Gestion des Livres'!B:L,MATCH(SMALL('Gestion des Livres'!N:N,ROW(A394)),'Gestion des Livres'!N:N,0),1),\"\")","v":""},{"$f":"IFERROR(INDEX('Gestion des Livres'!B:L,MATCH(SMALL('Gestion des Livres'!N:N,ROW(B394)),'Gestion des Livres'!N:N,0),4),\"\")","v":""},null,1]
[{"$f":"IFERROR(INDEX('Gestion des Livres'!B:L,MATCH(SMALL('Gestion des Livres'!N:N,ROW(A395)),'Gestion des Livres'!N:N,0),1),\"\")","v":""},{"$f":"IFERROR(INDEX('Gestion des Livres'!B:L,MATCH(SMALL('Gestion des Livres'!N:N,ROW(B395)),'Gestion des Livres'!N:N,0),4),\"\")","v":""},null,1]
[{"$f":"IFERROR(INDEX('Gestion des Livres'!B:L,MATCH(SMALL('Gestion des Livres'!N:N,ROW(A396)),'Gestion des Livres'!N:N,0),1),\"\")","v":""},{"$f":"IFERROR(INDEX('Gestion des Livres'!B:L,MATCH(SMALL('Gestion des Livres'!N:N,ROW(B396)),'Gestion des Livres'!N:N,0),4),\"\")","v":""},null,1]
[{"$f":"IFERROR(INDEX('Gestion des Livres'!B:L,MATCH(SMALL('Gestion des Livres'!N:N,ROW(A397)),'Gestion des Livres'!N:N,0),1),\"\")","v":""},{"$f":"IFERROR(INDEX('Gestion des Livres'!B:L,MATCH(SMALL('Gestion des Livres'!N:N,ROW(B397)),'Gestion des Livres'!N:N,0),4),\"\")","v":""},null,1]
[{"$f":"IFERROR(INDEX('Gestion des Livres'!B:L,MATCH(SMALL('Gestion des Livres'!N:N,ROW(A398)),'Gestion des Livres'!N:N,0),1),\"\")","v":""},{"$f":"IFERROR(INDEX('Gestion des Livres'!B:L,MATCH(SMALL('Gestion des Livres'!N:N,ROW(B398)),'Gestion des Livres'!N:N,0),4),\"\")","v":""},null,1]
[{"$f":"IFERROR(INDEX('Gestion des Livres'!B:L,MATCH(SMALL('Gestion des Livres'!N:N,ROW(A399)),'Gestion des Livres'!N:N,0),1),\"\")","v":""},{"$f":"IFERROR(INDEX('Gestion des Livres'!B:L,MATCH(SMALL('Gestion des Livres'!N:N,ROW(B399)),'Gestion des Livres'!N:N,0),4),\"\")","v":""},null,1]
[{"$f":"IFERROR(INDEX('Gestion des Livres'!B:L,MATCH(SMALL('Gestion des Livres'!N:N,ROW(A400)),'Gestion des Livres'!N:N,0),1),\"\")","v":""},{"$f":"IFERROR(INDEX('Gestion des Livres'!B:L,MATCH(SMALL('Gestion des Livres'!N:N,ROW(B400)),'Gestion des Livres'!N:N,0),4),\"\")","v":""},null,1]
[{"$f":"IFERROR(INDEX('Gestion des Livres'!B:L,MATCH(SMALL('Gestion des Livres'!N:N,ROW(A401)),'Gestion des Livres'!N:N,0),1),\"\")","v":""},{"$f":"IFERROR(INDEX('Gestion des Livres'!B:L,MATCH(SMALL('Gestion des Livres'!N:N,ROW(B401)),'Gestion des Livres'!N:N,0),4),\"\")","v":""},null,1]
[{"$f":"IFERROR(INDEX('Gestion des Livres'!B:L,MATCH(SMALL('Gestion des Livres'!N:N,ROW(A402)),'Gestion des Livres'!N:N,0),1),\"\")","v":""},{"$f":"IFERROR(INDEX('Gestion des Livres'!B:L,MATCH(SMALL('Gestion des Livres'!N:N,ROW(B402)),'Gestion des Livres'!N:N,0),4),\"\")","v":""},null,1]
[{"$f":"IFERROR(INDEX('Gestion des Livres'!B:L,MATCH(SMALL('Gestion des Livres'!N:N,ROW(A403)),'Gestion des Livres'!N:N,0),1),\"\")","v":""},{"$f":"IFERROR(INDEX('Gestion des Livres'!B:L,MATCH(SMALL('Gestion des Livres'!N:N,ROW(B403)),'Gestion des Livres'!N:N,0),4),\"\")","v":""},null,1]
[{"$f":"IFERROR(INDEX('Gestion des Livres'!B:L,MATCH(SMALL('Gestion des Livres'!N:N,ROW(A404)),'Gestion des Livres'!N:N,0),1),\"\")","v":""},{"$f":"IFERROR(INDEX('Gestion des Livres'!B:L,MATCH(SMALL('Gestion des Livres'!N:N,ROW(B404)),'Gestion des Livres'!N:N,0),4),\"\")","v":""},null,1]
[{"$f":"IFERROR(INDEX('Gestion des Livres'!B:L,MATCH(SMALL('Gestion des Livres'!N:N,ROW(A405)),'Gestion des Livres'!N:N,0),1),\"\")","v":""},{"$f":"IFERROR(INDEX('Gestion des Livres'!B:L,MATCH(SMALL('Gestion des Livres'!N:N,ROW(B405)),'Gestion des Livres'!N:N,0),4),\"\")","v":""},null,1]
[{"$f":"IFERROR(INDEX('Gestion des Livres'!B:L,MATCH(SMALL('Gestion des Livres'!N:N,ROW(A406)),'Gestion des Livres'!N:N,0),1),\"\")","v":""},{"$f":"IFERROR(INDEX('Gestion des Livres'!B:L,MATCH(SMALL('Gestion des Livres'!N:N,ROW(B406)),'Gestion des Livres'!N:N,0),4),\"\")","v":""},null,1]
[{"$f":"IFERROR(INDEX('Gestion des Livres'!B:L,MATCH(SMALL('Gestion des Livres'!N:N,ROW(A407)),'Gestion des Livres'!N:N,0),1),\"\")","v":""},{"$f":"IFERROR(INDEX('Gestion des Livres'!B:L,MATCH(SMALL('Gestion des Livres'!N:N,ROW(B407)),'Gestion des Livres'!N:N,0),4),\"\")","v":""},null,1]
[{"$f":"IFERROR(INDEX('Gestion des Livres'!B:L,MATCH(SMALL('Gestion des Livres'!N:N,ROW(A408)),'Gestion des Livres'!N:N,0),1),\"\")","v":""},{"$f":"IFERROR(INDEX('Gestion des Livres'!B:L,MATCH(SMALL('Gestion des Livres'!N:N,ROW(B408)),'Gestion des Livres'!N:N,0),4),\"\")","v":""},null,1]
[{"$f":"IFERROR(INDEX('Gestion des Livres'!B:L,MATCH(SMALL('Gestion des Livres'!N:N,ROW(A409)),'Gestion des Livres'!N:N,0),1),\"\")","v":""},{"$f":"IFERROR(INDEX('Gestion des Livres'!B:L,MATCH(SMALL('Gestion des Livres'!N:N,ROW(B409)),'Gestion des Livres'!N:N,0),4),\"\")","v":""},null,1]
[{"$f":"IFERROR(INDEX('Gestion des Livres'!B:L,MATCH(SMALL('Gestion des Livres'!N:N,ROW(A410)),'Gestion des Livres'!N:N,0),1),\"\")","v":""},{"$f":"IFERROR(INDEX('Gestion des Livres'!B:L,MATCH(SMALL('Gestion des Livres'!N:N,ROW(B410)),'Gestion des Livres'!N:N,0),4),\"\")","v":""},null,1]
[{"$f":"IFERROR(INDEX('Gestion des Livres'!B:L,MATCH(SMALL('Gestion des Livres'!N:N,ROW(A411)),'Gestion des Livres'!N:N,0),1),\"\")","v":""},{"$f":"IFERROR(INDEX('Gestion des Livres'!B:L,MATCH(SMALL('Gestion des Livres'!N:N,ROW(B411)),'Gestion des Livres'!N:N,0),4),\"\")","v":""},null,1]
[{"$f":"IFERROR(INDEX('Gestion des Livres'!B:L,MATCH(SMALL('Gestion des Livres'!N:N,ROW(A412)),'Gestion des Livres'!N:N,0),1),\"\")","v":""},{"$f":"IFERROR(INDEX('Gestion des Livres'!B:L,MATCH(SMALL('Gestion des Livres'!N:N,ROW(B412)),'Gestion des Livres'!N:N,0),4),\"\")","v":""},null,1]
[{"$f":"IFERROR(INDEX('Gestion des Livres'!B:L,MATCH(SMALL('Gestion des Livres'!N:N,ROW(A413)),'Gestion des Livres'!N:N,0),1),\"\")","v":""},{"$f":"IFERROR(INDEX('Gestion des Livres'!B:L,MATCH(SMALL('Gestion des Livres'!N:N,ROW(B413)),'Gestion des Livres'!N:N,0),4),\"\")","v":""},null,1]
[{"$f":"IFERROR(INDEX('Gestion des Livres'!B:L,MATCH(SMALL('Gestion des Livres'!N:N,ROW(A414)),'Gestion des Livres'!N:N,0),1),\"\")","v":""},{"$f":"IFERROR(INDEX('Gestion des Livres'!B:L,MATCH(SMALL('Gestion des Livres'!N:N,ROW(B414)),'Gestion des Livres'!N:N,0),4),\"\")","v":""},null,1]
[{"$f":"IFERROR(INDEX('Gestion des Livres'!B:L,MATCH(SMALL('Gestion des Livres'!N:N,ROW(A415)),'Gestion des Livres'!N:N,0),1),\"\")","v":""},{"$f":"IFERROR(INDEX('Gestion des Livres'!B:L,MATCH(SMALL('Gestion des Livres'!N:N,ROW(B415)),'Gestion des Livres'!N:N,0),4),\"\")","v":""},null,1]
[{"$f":"IFERROR(INDEX('Gestion des Livres'!B:L,MATCH(SMALL('Gestion des Livres'!N:N,ROW(A416)),'Gestion des Livres'!N:N,0),1),\"\")","v":""},{"$f":"IFERROR(INDEX('Gestion des Livres'!B:L,MATCH(SMALL('Gestion des Livres'!N:N,ROW(B416)),'Gestion des Livres'!N:N,0),4),\"\")","v":""},null,1]
[{"$f":"IFERROR(INDEX('Gestion des Livres'!B:L,MATCH(SMALL('Gestion des Livres'!N:N,ROW(A417)),'Gestion des Livres'!N:N,0),1),\"\")","v":""},{"$f":"IFERROR(INDEX('Gestion des Livres'!B:L,MATCH(SMALL('Gestion des Livres'!N:N,ROW(B417)),'Gestion des Livres'!N:N,0),4),\"\")","v":""},null,1]
[{"$f":"IFERROR(INDEX('Gestion des Livres'!B:L,MATCH(SMALL('Gestion des Livres'!N:N,ROW(A418)),'Gestion des Livres'!N:N,0),1),\"\")","v":""},{"$f":"IFERROR(INDEX('Gestion des Livres'!B:L,MATCH(SMALL('Gestion des Livres'!N:N,ROW(B418)),'Gestion des Livres'!N:N,0),4),\"\")","v":""},null,1]
[{"$f":"IFERROR(INDEX('Gestion des Livres'!B:L,MATCH(SMALL('Gestion des Livres'!N:N,ROW(A419)),'Gestion des Livres'!N:N,0),1),\"\")","v":""},{"$f":"IFERROR(INDEX('Gestion des Livres'!B:L,MATCH(SMALL('Gestion des Livres'!N:N,ROW(B419)),'Gestion des Livres'!N:N,0),4),\"\")","v":""},null,1]
[{"$f":"IFERROR(INDEX('Gestion des Livres'!B:L,MATCH(SMALL('Gestion des Livres'!N:N,ROW(A420)),'Gestion des Livres'!N:N,0),1),\"\")","v":""},{"$f":"IFERROR(INDEX('Gestion des Livres'!B:L,MATCH(SMALL('Gestion des Livres'!N:N,ROW(B420)),'Gestion des Livres'!N:N,0),4),\"\")","v":""},null,1]
[{"$f":"IFERROR(INDEX('Gestion des Livres'!B:L,MATCH(SMALL('Gestion des Livres'!N:N,ROW(A421)),'Gestion des Livres'!N:N,0),1),\"\")","v":""},{"$f":"IFERROR(INDEX('Gestion des Livres'!B:L,MATCH(SMALL('Gestion des Livres'!N:N,ROW(B421)),'Gestion des Livres'!N:N,0),4),\"\")","v":""},null,1]
[{"$f":"IFERROR(INDEX('Gestion des Livres'!B:L,MATCH(SMALL('Gestion des Livres'!N:N,ROW(A422)),'Gestion des Livres'!N:N,0),1),\"\")","v":""},{"$f":"IFERROR(INDEX('Gestion des Livres'!B:L,MATCH(SMALL('Gestion des Livres'!N:N,ROW(B422)),'Gestion des Livres'!N:N,0),4),\"\")","v":""},null,1]
[{"$f":"IFERROR(INDEX('Gestion des Livres'!B:L,MATCH(SMALL('Gestion des Livres'!N:N,ROW(A423)),'Gestion des Livres'!N:N,0),1),\"\")","v":""},{"$f":"IFERROR(INDEX('Gestion des Livres'!B:L,MATCH(SMALL('Gestion des Livres'!N:N,ROW(B423)),'Gestion des Livres'!N:N,0),4),\"\")","v":""},null,1]
[{"$f":"IFERROR(INDEX('Gestion des Livres'!B:L,MATCH(SMALL('Gestion des Livres'!N:N,ROW(A424)),'Gestion des Livres'!N:N,0),1),\"\")","v":""},{"$f":"IFERROR(INDEX('Gestion des Livres'!B:L,MATCH(SMALL('Gestion des Livres'!N:N,ROW(B424)),'Gestion des Livres'!N:N,0),4),\"\")","v":""}]
[{"$f":"IFERROR(INDEX('Gestion des Livres'!B:L,MATCH(SMALL('Gestion des Livres'!N:N,ROW(A425)),'Gestion des Livres'!N:N,0),1),\"\")","v":""},{"$f":"IFERROR(INDEX('Gestion des Livres'!B:L,MATCH(SMALL('Gestion des Livres'!N:N,ROW(B425)),'Gestion des Livres'!N:N,0),4),\"\")","v":""}]
[{"$f":"IFERROR(INDEX('Gestion des Livres'!B:L,MATCH(SMALL('Gestion des Livres'!N:N,ROW(A426)),'Gestion des Livres'!N:N,0),1),\"\")","v":""},{"$f":"IFERROR(INDEX('Gestion des Livres'!B:L,MATCH(SMALL('Gestion des Livres'!N:N,ROW(B426)),'Gestion des Livres'!N:N,0),4),\"\")","v":""}]
[{"$f":"IFERROR(INDEX('Gestion des Livres'!B:L,MATCH(SMALL('Gestion des Livres'!N:N,ROW(A427)),'Gestion des Livres'!N:N,0),1),\"\")","v":""},{"$f":"IFERROR(INDEX('Gestion des Livres'!B:L,MATCH(SMALL('Gestion des Livres'!N:N,ROW(B427)),'Gestion des Livres'!N:N,0),4),\"\")","v":""}]